Workbook

Sheet Accueil
D1: Dans le cadre de la Dynamique Climat Nord-Pas de Calais
C2: Outil créé par l'ADEME et le Conseil Régional Nord-Pas de Calais | N2: Hébergement, diffusion, évolutions de l'outil et accompagnement à son utilisation : | P2: Version 5 mise à jour le 18 novembre 2019
B5: ESPASS - Bilan Territorial des Emissions de GES, Polluants Atmosphériques et Carbone des Sols | V5: SCOT | W5: Vider les champs
V6: 1 | W6: SCOT Flandre - Dunkerque
V7: 2 | W7: SCOT du Calaisis
C8: Présaisie des données : | P8: Exporter les résultats dans une fiche word: | V8: 1 | W8: CA du Boulonnais-CC de Desvres-Samer-CC de la Terre des Deux Caps
V9: 2 | W9: CA du Pays de Saint-Omer-CC du pays de Lumbres
C10: Sélectionnez un territoire: | D10: Vider les champs | V10: 1 | W10: Pays du Montreuillois
V11: 2 | W11: CC des 7 Vallées-CC du Ternois
V12: 1 | W12: CA de Béthune-Bruay, Artois-Lys Romane-CA d'hénin-Carvin-CA de Lens - Liévin
V13: 2 | W13: SCOT de Flandre intérieure
C14: Données générales du territoire d'étude : | N14: Guide et versions : | V14: 1 | W14: SCOT de Lille Métropole
V15: 2 | W15: SCOT du Valenciennois
C16: Année du bilan | V16: 1 | W16: SCOT du Grand Douaisis
C17: Région | D17: Hauts-de-France | N17: Consultez la rubrique "Grandes Questions" du site de l'Observatoire Climat Hauts-de-France | V17: 2 | W17: SCOT de Sambre-Avesnois
C18: Ex-région | V18: 1 | W18: SCOT du Cambrésis
C19: Nombre d'habitants en région HdF | D19: 6006107 | F19: Source et année: | G19: Pop. Légale 2014, INSEE | V19: 2 | W19: SCOT de la région d'Arras
C20: Type de territoire | V20: 1 | W20: SCOT Baie de Somme 3 vallées
C21: Nom du territoire | O21: Vous y trouverez : | P21: - les versions de l'outil | V21: 2 | W21: SCOT du Grand Amiénois
C22: Nombre d'habitants du territoire | F22: Source et année: | G22: Pop. Légale 2014, INSEE | P22: - les guides d'utilisation | V22: 1 | W22: SCOT du Pays du Santerre Haute-Somme
C23: Superficie (ha) | F23: Source et année: | G23: CORINE Land Cover, UE-SDES, 2012 | V23: 2 | W23: SCOT du Pays du Saint Quentinois
C24: Part de la population régionale | D24: =D22/D19 -> 0 | P24: - des données régionales et territoriales | V24: 1 | W24: CC de la Thiérache du Centre-CC des Portes de la Thiérache-Communauté de communes des Trois Rivières-CC Thiérache Sambre et Oise
C25: Caractéristiques du territoire | P25: - des ressources | V25: 2 | W25: CA du Pays de Laon-CC de la Champagne Picarde-CC du chemin des dames-CC du Pays de la Serre
C26: Nombre d'habitants en France | D26: 64129660 | F26: Source et année: | G26: Pop. Légale 2014, INSEE 2017 | V26: 1 | W26: CC du Pays des Sources-CC des Deux Vallées-CC du Pays Noyonnais
C27: EPCI composant le territoire | V27: 2 | W27: CA Chauny Tergnier la Fère-CC Picardie des Châteaux
V28: 1 | W28: Grand Beauvaisis
V29: 2 | W29: SCOT UCCSA
V30: 1 | W30: CA de la Région de Compiègne et de la Basse Automne-CC de la Plaine d'Estrées-CC des Lisières de l'Oise
C31: Navigation dans le tableur : | N31: Code couleur des cellules : | V31: 2 | W31: CC des Sablons-CC Thelloise-CC du Vexin-Thelle
V32: 1 | W32: CA Creil Sud Oise-CC de l'aire Cantilienne-CC des Pays d'Oise et d'Halatte-CC du Liancourtois-CC du Pays de Valois-CC Senlis Sud Oise
C33: Thème / couleur de l'onglet | D33: Description de l'onglet | E33: Navigation | G33: Données primaires à saisir par le territoire | H33: Données primaires à saisir au niveau régional | I33: Données semi-spécifiques (améliorables) | J33: Données optionnelles | N33: Types de données | P33: Qui ? | V33: 2 | W33: CA du Soissonnais-CC du Val de l'Aisne-CC du Canton d'Oulchy le Château-CC Retz en Valois
C34: Accueil | D34: Accueil | E34: Accueil | G34: X | I34: X | J34: X | N34: Données primaires à saisir tout le temps | P34: Usager, Observatoire Climat | V34: 1 | W34: Pays Interrégional Bresle - Yères
C35: Données concernant les émissions directes de GES / polluants | D35: Emissions directes MyEmiss'Air - territoire | E35: D1a | G35: X | I35: X | N35: Données semi-spécifiques à remplacer si données primaires disponibles | P35: Usager | V35: 2 | W35: Aisne
D36: Emissions directes MyEmiss'Air - Hauts de France | E36: D1b | H36: X | N36: Données optionnelles qui améliorent les résultats | P36: Usager | V36: 1 | W36: Nord
D37: Production d'électricité | E37: D2a | J37: X | N37: Données calculées, non primaire et non semi-spécifiques | P37: Auto | V37: 2 | W37: Oise
D38: Production de chaleur et froid par réseaux | E38: D2b | G38: X | I38: X | J38: X | N38: Données mises en avant pour plus de visibilité | P38: Auto | V38: 1 | W38: Pas-de-Calais
D39: Données nécessaires - correspondance MyEmiss'Air | E39: D3a | I39: X | V39: 2 | W39: Somme
D40: Correspondance MyEmiss'Air- postes ESPASS | E40: D3b | W40: Hauts-de-France
D41: Correspondance MyEmiss'Air- postes PCAET | E41: D3c
D42: Sol & biomasse - stock de carbone | E42: D4a | G42: X | I42: X | N42: Arborescence de l'outil :
D43: Sol & biomasse - flux de carbone | E43: D4b | G43: X | I43: X | J43: X
C44: Données concernant les émissions indirectes liées à l'énergie | D44: Consommation d'électricité du territoire | E44: I1a | I44: X | J44: X
D45: Bilan des émissions de GES liées à la consommation d'électricité - par poste ESPASS | E45: I1b
D46: Bilan des émissions de GES liées à la production / consommation d'électricité (scope 2 )- par poste ESPASS | E46: I1c
D47: Bilan des émissions de GES liées à la production/consommation d'électricité et de combustibles du territoire- par poste PCAET | E47: I1d
D48: Consommation de chaleur et de froid du territoire par réseaux | E48: I2 | I48: X | J48: X
D49: Bilan des autres émissions indirectes liées à l'énergie - Amont des combustibles … | E49: I3
C50: Données concernant les émissions indirectes liées à l'échange de biens et de services | D50: Données douanes | E50: IE1 | H50: X | I50: X
D51: Données SitraM | E51: IE2 | H51: X | I51: X
C52: Emissions indirectes | D52: Résidentiel | E52: Resid | G52: X | I52: X
D53: Déplacements | E53: Depl | I53: X
D54: Biens de consommation | E54: Biens de conso | I54: X
D55: Alimentation | E55: Alim | I55: X | J55: X
D56: Services | E56: Serv | I56: X
D57: Travaux | E57: Tra | G57: X | I57: X | J57: X
C58: Résultats | D58: Tableau - émissions directes de GES | E58: R1
D59: Tableau - émissions liées à la consommation de GES / polluants | E59: R2
D60: Tableau - émissions liées à la consommation de GES détaillées (par habitant) | E60: R3
D61: Tableau - Emissions directes (format PCAET) | E61: R4
D62: Tableau - PCAET- Emissions directes et indirectes liées à l'énergie de GES et polluant et consommation énergétique | E62: R5
D63: Graphes - émissions directes de GES | E63: R6_GES_directs
D64: Graphes - émissions de GES liées à la consommation | E64: R7_GES_indirects
D65: Graphes - émissions de polluants (directes et indirectes) | E65: R8_polluants
D66: Graphes - émissions liées au sol et la biomasse | E66: R9_UTCF
D67: Tableau- Rendu final PCAET | E67: R10_Cadre_dépôt_PCAET
C71: Conversion unités :
C73: 1 | D73: ktep | F73: =C73*41868000 -> 41868000 | G73: MJ
C74: 1 | D74: ktep | F74: =11628*C74 -> 11628 | G74: MWh
C75: 1 | D75: MJ | F75: =C75/3.6 -> 0.2777777778 | G75: kWh
C76: 1 | D76: m² | F76: =C76/10000 -> 0.0001 | G76: ha

Sheet Récap des saisies (hidden)
B1: Accueil | E1: D1a | U1: D1b | W1: D2a | Z1: D2b | AK1: D3a | AO1: D3b | AQ1: D3c | AS1: I1a | AV1: I1b | AX1: I1c | AZ1: I1d | BB1: I2 | BL1: I3 | BN1: D4a | BX1: D4b | CF1: I1a | CR1: Resid | CU1: Alim | CY1: Travaux
B3: Accueil | E3: =D1a!B2 -> MyEmiss'Air | W3: Production d'électricité du territoire | Z3: =D2b!B2 -> Répartition des émissions liées à la production de chaleur et de froid du territoire | AK3: =D3a!B2 -> Données nécessaires pour établir la correspondance des secteurs MyEmiss'Air | AS3: =I1a!B2 -> Consommation d'électricité du territoire | BB3: ='I2'!B2 -> Consommation de chaleur et de froid du territoire par réseaux | BN3: =D4a!B2 -> STOCK DE CARBONE | BX3: =D4b!B2 -> FLUX DE CARBONE | CF3: =I1a!B2 -> Consommation d'électricité du territoire | CR3: Mix énergétique | CU3: Facteur repas | CY3: Surfaces construites
B4: =Accueil!C16 -> Année du bilan | C4: =Accueil!D16 -> 0 | E4: =D1a!D13 -> SECTEN 2 M2012 | F4: =D1a!E13 -> CH4 kg/an | G4: =D1a!F13 -> CO2 bio kg/an | H4: =D1a!G13 -> CO2 kg/an | I4: =D1a!H13 -> CO2 Scope2 kg/an | J4: =D1a!I13 -> COVNM kg/an | K4: =D1a!J13 -> GES en tonnes eqCO2/an | L4: =D1a!K13 -> GES en tonnes eqCO2/an GIEC2007 | M4: =D1a!L13 -> HFC kg/an | N4: =D1a!M13 -> N2O kg/an | O4: =D1a!N13 -> NH3 kg/an | P4: =D1a!Q13 -> PM10 kg/an | Q4: =D1a!R13 -> PM2.5 kg/an | R4: =D1a!S13 -> SF6 kg/an | S4: =D1a!T13 -> SO2 kg/an | U4: Néant | W4: =D2a!C6 -> Production d'électricité | X4: =D2a!E6 -> 0 | AA4: =D2b!H8 -> Part de la production située sur le territoire (%) | AB4: =D2b!I8 -> Part de la production consommée par le territoire (%) | AC4: =D2b!J8 -> Production du réseau (MWh) | AD4: =D2b!S8 -> Résidentiel | AE4: =D2b!T8 -> Déplacements | AF4: =D2b!U8 -> Biens de consommation | AG4: =D2b!V8 -> Alimentation | AH4: =D2b!W8 -> Services | AI4: =D2b!X8 -> Travaux | AK4: =D3a!C6 -> % chauffage urbain utilisé dans le résidentiel | AL4: =D3a!D6 -> 0.5461109288 | AO4: Néant | AQ4: Néant | AS4: =I1a!C9 -> Hauts de France - consommation d'électricité dans le résidentiel | AT4: =I1a!G9 -> 1105.63 | AV4: Néant | AX4: Néant | AZ4: Néant | BC4: ='I2'!N9 -> Résidentiel | BD4: ='I2'!O9 -> Déplacements | BE4: ='I2'!P9 -> Biens de consommation | BF4: ='I2'!Q9 -> Alimentation | BG4: ='I2'!R9 -> Services | BH4: ='I2'!S9 -> Travaux | BL4: Néant | BN4: =D4a!B18 -> 1 - surfaces du territoire par type d'occupation du sol (hors haies) | BX4: =D4b!B18 -> 1 - bilan des mutations du sol | CF4: =I1a!C9 -> Hauts de France - consommation d'électricité dans le résidentiel | CG4: =I1a!G9 -> 1105.63 | CR4: =Resid!F75 -> Gaz naturel | CS4: =Resid!G75 -> 0 | CW4: =Alim!E77 -> Nombre de ménages | CY4: =Tra!C95 -> Surface de locaux autorisés pour des activités économiques | DB4: =Tra!F95 -> 0
B5: =Accueil!C17 -> Région | C5: =Accueil!D17 -> Hauts-de-France | E5: =D1a!D14 -> 0 | F5: =D1a!E14 -> 0 | G5: =D1a!F14 -> 0 | H5: =D1a!G14 -> 0 | I5: =D1a!H14 -> 0 | J5: =D1a!I14 -> 0 | K5: =D1a!J14 -> 0 | L5: =D1a!K14 -> 0 | M5: =D1a!L14 -> 0 | N5: =D1a!M14 -> 0 | O5: =D1a!N14 -> 0 | P5: =D1a!Q14 -> 0 | Q5: =D1a!R14 -> 0 | R5: =D1a!S14 -> 0 | S5: =D1a!T14 -> 0 | Z5: =D2b!D9 -> Alma-Beaurepaire | AA5: =D2b!H9 -> 0 | AB5: =D2b!I9 -> 0 | AC5: =D2b!J9 -> 111190 | AD5: =D2b!S9 -> 0.5461109288 | AE5: =D2b!T9 -> 0 | AF5: =D2b!U9 -> 0 | AG5: =D2b!V9 -> 0 | AH5: =D2b!W9 -> 0.4538890712 | AI5: =D2b!X9 -> 0 | AK5: =D3a!C8 -> % transport ferroviaire pour des déplacements | AL5: =D3a!D8 -> 0.8 | AS5: =I1a!B18 -> Résidentiel - consommation d'électricité totale | AT5: =I1a!D20 -> 0 | BB5: ='I2'!D10 -> Alma-Beaurepaire | BC5: ='I2'!N10 -> 0.5461109288 | BD5: ='I2'!O10 -> 0 | BE5: ='I2'!P10 -> 0 | BF5: ='I2'!Q10 -> 0 | BG5: ='I2'!R10 -> 0.4538890712 | BH5: ='I2'!S10 -> 0 | BO5: =D4a!D20 -> Surfaces (ha) | BX5: =D4b!C20 -> Evolution entre | BY5: =D4b!D20 -> 2006 | BZ5: =D4b!E20 -> et | CA5: =D4b!F20 -> 2012 | CC5: =D4b!J20 -> CORINE Land Cover, UE-SDES | CF5: =I1a!C15 -> Territoire - consommation d'électricité - résidentiel | CG5: =I1a!G15 -> 0 | CR5: =Resid!F76 -> Fioul | CS5: =Resid!G76 -> 0 | CU5: =Alim!C78 -> Couple sans enfant | CW5: =Alim!E78 -> 0
B6: =Accueil!C19 -> Nombre d'habitants en région HdF | C6: =Accueil!D19 -> 6006107 | E6: =D1a!D15 -> 0 | F6: =D1a!E15 -> 0 | G6: =D1a!F15 -> 0 | H6: =D1a!G15 -> 0 | I6: =D1a!H15 -> 0 | J6: =D1a!I15 -> 0 | K6: =D1a!J15 -> 0 | L6: =D1a!K15 -> 0 | M6: =D1a!L15 -> 0 | N6: =D1a!M15 -> 0 | O6: =D1a!N15 -> 0 | P6: =D1a!Q15 -> 0 | Q6: =D1a!R15 -> 0 | R6: =D1a!S15 -> 0 | S6: =D1a!T15 -> 0 | Z6: =D2b!D10 -> Les Canonniers | AA6: =D2b!H10 -> 0 | AB6: =D2b!I10 -> 0 | AC6: =D2b!J10 -> 0 | AD6: =D2b!S10 -> 0.5461109288 | AE6: =D2b!T10 -> 0 | AF6: =D2b!U10 -> 0 | AG6: =D2b!V10 -> 0 | AH6: =D2b!W10 -> 0.4538890712 | AI6: =D2b!X10 -> 0 | AK6: =D3a!C9 -> % transport fluvial pour des déplacements | AL6: =D3a!D9 -> 0.02 | BB6: ='I2'!D11 -> Les Canonniers | BC6: ='I2'!N11 -> 0.5461109288 | BD6: ='I2'!O11 -> 0 | BE6: ='I2'!P11 -> 0 | BF6: ='I2'!Q11 -> 0 | BG6: ='I2'!R11 -> 0.4538890712 | BH6: ='I2'!S11 -> 0 | BN6: =D4a!C21 -> Cultures | BO6: =D4a!D21 -> 0 | CR6: =Resid!F77 -> Charbon | CS6: =Resid!G77 -> 0 | CU6: =Alim!C79 -> Personne seule | CW6: =Alim!E79 -> 0 | CY6: =Tra!C97 -> Nombre de logements autorisés | DB6: =Tra!F97 -> 0
B7: =Accueil!C20 -> Type de territoire | C7: =Accueil!D20 -> 0 | E7: =D1a!D16 -> 0 | F7: =D1a!E16 -> 0 | G7: =D1a!F16 -> 0 | H7: =D1a!G16 -> 0 | I7: =D1a!H16 -> 0 | J7: =D1a!I16 -> 0 | K7: =D1a!J16 -> 0 | L7: =D1a!K16 -> 0 | M7: =D1a!L16 -> 0 | N7: =D1a!M16 -> 0 | O7: =D1a!N16 -> 0 | P7: =D1a!Q16 -> 0 | Q7: =D1a!R16 -> 0 | R7: =D1a!S16 -> 0 | S7: =D1a!T16 -> 0 | Z7: =D2b!D11 -> Réseau de Sains-du-Nord | AA7: =D2b!H11 -> 0 | AB7: =D2b!I11 -> 0 | AC7: =D2b!J11 -> 0 | AD7: =D2b!S11 -> 0.5461109288 | AE7: =D2b!T11 -> 0 | AF7: =D2b!U11 -> 0 | AG7: =D2b!V11 -> 0 | AH7: =D2b!W11 -> 0.4538890712 | AI7: =D2b!X11 -> 0 | AK7: =D3a!C10 -> % VUL détenu par des particuliers | AL7: =D3a!D10 -> 0.4 | AS7: =I1a!C81 -> Territoire - consommation d'électricité (hors branche énergie) | AT7: =SUM(I1a!G81:K81) ->  | BB7: ='I2'!D12 -> Réseau de Sains-du-Nord | BC7: ='I2'!N12 -> 0.5461109288 | BD7: ='I2'!O12 -> 0 | BE7: ='I2'!P12 -> 0 | BF7: ='I2'!Q12 -> 0 | BG7: ='I2'!R12 -> 0.4538890712 | BH7: ='I2'!S12 -> 0 | BN7: =D4a!C22 -> Forêts | BO7: =D4a!D22 -> 0 | BX7: =D4b!C22 -> Evolutions des surfaces (ha) | BY7: =D4b!D22 -> Espaces artificialisés | BZ7: =D4b!E22 -> Espaces agricoles | CA7: =D4b!F22 -> Espaces semi-naturels | CF7: =I1a!C28 -> Région HdF- consommation carburants routier voitures particulières | CG7: =I1a!G28 -> 3121.29 | CR7: =Resid!F78 -> GPL | CS7: =Resid!G78 -> 0 | CU7: =Alim!C80 -> Couple avec 1 enfant | CW7: =Alim!E80 -> 0
B8: =Accueil!C21 -> Nom du territoire | C8: =Accueil!D21 -> 0 | E8: =D1a!D17 -> 0 | F8: =D1a!E17 -> 0 | G8: =D1a!F17 -> 0 | H8: =D1a!G17 -> 0 | I8: =D1a!H17 -> 0 | J8: =D1a!I17 -> 0 | K8: =D1a!J17 -> 0 | L8: =D1a!K17 -> 0 | M8: =D1a!L17 -> 0 | N8: =D1a!M17 -> 0 | O8: =D1a!N17 -> 0 | P8: =D1a!Q17 -> 0 | Q8: =D1a!R17 -> 0 | R8: =D1a!S17 -> 0 | S8: =D1a!T17 -> 0 | Z8: =D2b!D12 -> Quartier Pont de bois | AA8: =D2b!H12 -> 0 | AB8: =D2b!I12 -> 0 | AC8: =D2b!J12 -> 39332 | AD8: =D2b!S12 -> 0.5461109288 | AE8: =D2b!T12 -> 0 | AF8: =D2b!U12 -> 0 | AG8: =D2b!V12 -> 0 | AH8: =D2b!W12 -> 0.4538890712 | AI8: =D2b!X12 -> 0 | AK8: =D3a!C11 -> Transport routier de marchandises : % t.km réalisées pour des produits agricoles et agroalimentaires | AL8: =D3a!D11 -> 0.3 | AS8: =I1a!B84 -> Biens de consommation - consommation d'électricité totale | AT8: =I1a!D86 -> 0 | BB8: ='I2'!D13 -> Quartier Pont de bois | BC8: ='I2'!N13 -> 0.5461109288 | BD8: ='I2'!O13 -> 0 | BE8: ='I2'!P13 -> 0 | BF8: ='I2'!Q13 -> 0 | BG8: ='I2'!R13 -> 0.4538890712 | BH8: ='I2'!S13 -> 0 | BN8: =D4a!C23 -> Prairies | BO8: =D4a!D23 -> 0 | BX8: =D4b!C23 -> Espaces artificialisés évoluant vers | BY8: =D4b!D23 -> 0 | BZ8: =D4b!E23 -> 0 | CA8: =D4b!F23 -> 0 | CF8: =I1a!C31 -> Part des émissions de GES liée à l'énergie | CG8: =I1a!G31 -> 1 | CR8: =Resid!F79 -> Bois | CS8: =Resid!G79 -> 0 | CU8: =Alim!C81 -> Couple avec 2 enfants | CW8: =Alim!E81 -> 0
B9: =Accueil!C22 -> Nombre d'habitants du territoire | C9: =Accueil!D22 -> 0 | E9: =D1a!D18 -> 0 | F9: =D1a!E18 -> 0 | G9: =D1a!F18 -> 0 | H9: =D1a!G18 -> 0 | I9: =D1a!H18 -> 0 | J9: =D1a!I18 -> 0 | K9: =D1a!J18 -> 0 | L9: =D1a!K18 -> 0 | M9: =D1a!L18 -> 0 | N9: =D1a!M18 -> 0 | O9: =D1a!N18 -> 0 | P9: =D1a!Q18 -> 0 | Q9: =D1a!R18 -> 0 | R9: =D1a!S18 -> 0 | S9: =D1a!T18 -> 0 | Z9: =D2b!D13 -> Domaine Universitaire et Scientifique | AA9: =D2b!H13 -> 0 | AB9: =D2b!I13 -> 0 | AC9: =D2b!J13 -> 35765 | AD9: =D2b!S13 -> 0.5461109288 | AE9: =D2b!T13 -> 0 | AF9: =D2b!U13 -> 0 | AG9: =D2b!V13 -> 0 | AH9: =D2b!W13 -> 0.4538890712 | AI9: =D2b!X13 -> 0 | AK9: =D3a!C12 -> Transport fluvial de marchandises : % t.km réalisées pour des produits agricoles et agroalimentaires | AL9: =D3a!D12 -> 0.27 | BB9: ='I2'!D14 -> Domaine Universitaire et Scientifique | BC9: ='I2'!N14 -> 0.5461109288 | BD9: ='I2'!O14 -> 0 | BE9: ='I2'!P14 -> 0 | BF9: ='I2'!Q14 -> 0 | BG9: ='I2'!R14 -> 0.4538890712 | BH9: ='I2'!S14 -> 0 | BN9: =D4a!C24 -> Espaces artificialisés | BO9: =D4a!D24 -> 0 | BX9: =D4b!C24 -> Espaces agricoles évoluant vers | BY9: =D4b!D24 -> 0 | BZ9: =D4b!E24 -> 0 | CA9: =D4b!F24 -> 0 | CF9: =I1a!C37 -> Part de l'électricité dans le parc automobile | CG9: =I1a!G37 -> 0.0003641143113 | CR9: =Resid!E80 -> Réseaux de chaleur et de froid | CS9: =Resid!G80 -> 0 | CU9: =Alim!C82 -> Couple avec 3 enfants | CW9: =Alim!E82 -> 0 | CY9: =Tra!C117 -> Surface de voiries communales | DB9: =Tra!F117 -> 0
B10: =Accueil!C24 -> Part de la population régionale | C10: =Accueil!D24 -> 0 | E10: =D1a!D19 -> 0 | F10: =D1a!E19 -> 0 | G10: =D1a!F19 -> 0 | H10: =D1a!G19 -> 0 | I10: =D1a!H19 -> 0 | J10: =D1a!I19 -> 0 | K10: =D1a!J19 -> 0 | L10: =D1a!K19 -> 0 | M10: =D1a!L19 -> 0 | N10: =D1a!M19 -> 0 | O10: =D1a!N19 -> 0 | P10: =D1a!Q19 -> 0 | Q10: =D1a!R19 -> 0 | R10: =D1a!S19 -> 0 | S10: =D1a!T19 -> 0 | Z10: =D2b!D14 -> ZUP de Wattignies-Blanc Riez | AA10: =D2b!H14 -> 0 | AB10: =D2b!I14 -> 0 | AC10: =D2b!J14 -> 28237 | AD10: =D2b!S14 -> 0.5461109288 | AE10: =D2b!T14 -> 0 | AF10: =D2b!U14 -> 0 | AG10: =D2b!V14 -> 0 | AH10: =D2b!W14 -> 0.4538890712 | AI10: =D2b!X14 -> 0 | AK10: =D3a!C13 -> Transport ferroviaire de marchandises : % t.km réalisées pour des produits agricoles et agroalimentaires | AL10: =D3a!D13 -> 0.24 | AS10: =I1a!C105 -> Territoire - consommation d'électricité - agriculture | AT10: =I1a!G105 -> 0 | BB10: ='I2'!D15 -> ZUP de Wattignies-Blanc Riez | BC10: ='I2'!N15 -> 0.5461109288 | BD10: ='I2'!O15 -> 0 | BE10: ='I2'!P15 -> 0 | BF10: ='I2'!Q15 -> 0 | BG10: ='I2'!R15 -> 0.4538890712 | BH10: ='I2'!S15 -> 0 | BN10: =D4a!C25 -> Espaces verts | BO10: =D4a!D25 -> 0 | BX10: =D4b!C25 -> Espaces semi-naturel évoluant vers | BY10: =D4b!D25 -> 0 | BZ10: =D4b!E25 -> 0 | CA10: =D4b!F25 -> 0 | CF10: =I1a!C41 -> Territoire - consommation d'électricité - transport routier | CG10: =I1a!G41 -> 0 | CR10: =Resid!F81 -> 0 | CS10: =Resid!G81 -> 0 | CU10: =Alim!C83 -> Famille monoparentale | CW10: =Alim!E83 -> 0 | CY10: =Tra!C118 -> Surface de voiries départementales / nationales | DB10: =Tra!F118 -> 0
B11: =Accueil!C25 -> Caractéristiques du territoire | C11: =Accueil!D25 -> 0 | E11: =D1a!D20 -> 0 | F11: =D1a!E20 -> 0 | G11: =D1a!F20 -> 0 | H11: =D1a!G20 -> 0 | I11: =D1a!H20 -> 0 | J11: =D1a!I20 -> 0 | K11: =D1a!J20 -> 0 | L11: =D1a!K20 -> 0 | M11: =D1a!L20 -> 0 | N11: =D1a!M20 -> 0 | O11: =D1a!N20 -> 0 | P11: =D1a!Q20 -> 0 | Q11: =D1a!R20 -> 0 | R11: =D1a!S20 -> 0 | S11: =D1a!T20 -> 0 | Z11: =D2b!D15 -> Réseau de Wattrelos | AA11: =D2b!H15 -> 0 | AB11: =D2b!I15 -> 0 | AC11: =D2b!J15 -> 16374 | AD11: =D2b!S15 -> 0.5461109288 | AE11: =D2b!T15 -> 0 | AF11: =D2b!U15 -> 0 | AG11: =D2b!V15 -> 0 | AH11: =D2b!W15 -> 0.4538890712 | AI11: =D2b!X15 -> 0 | AS11: =I1a!C118 -> Territoire - consommation d'électricité - agroalimentaire | AT11: =I1a!G118 -> 0 | BB11: ='I2'!D16 -> Réseau de Wattrelos | BC11: ='I2'!N16 -> 0.5461109288 | BD11: ='I2'!O16 -> 0 | BE11: ='I2'!P16 -> 0 | BF11: ='I2'!Q16 -> 0 | BG11: ='I2'!R16 -> 0.4538890712 | BH11: ='I2'!S16 -> 0 | BN11: =D4a!C26 -> Milieux humides | BO11: =D4a!D26 -> 0 | CU11: =Alim!C84 -> Autres | CW11: =Alim!E84 -> 0 | CY11: =Tra!C119 -> Surface d'autoroutes | DB11: =Tra!F119 -> 0
B12: =Accueil!C26 -> Nombre d'habitants en France | C12: =Accueil!D26 -> 64129660 | E12: =D1a!D21 -> 0 | F12: =D1a!E21 -> 0 | G12: =D1a!F21 -> 0 | H12: =D1a!G21 -> 0 | I12: =D1a!H21 -> 0 | J12: =D1a!I21 -> 0 | K12: =D1a!J21 -> 0 | L12: =D1a!K21 -> 0 | M12: =D1a!L21 -> 0 | N12: =D1a!M21 -> 0 | O12: =D1a!N21 -> 0 | P12: =D1a!Q21 -> 0 | Q12: =D1a!R21 -> 0 | R12: =D1a!S21 -> 0 | S12: =D1a!T21 -> 0 | Z12: =D2b!D16 -> ZAC des Epis | AA12: =D2b!H16 -> 0 | AB12: =D2b!I16 -> 0 | AC12: =D2b!J16 -> 22257 | AD12: =D2b!S16 -> 0.5461109288 | AE12: =D2b!T16 -> 0 | AF12: =D2b!U16 -> 0 | AG12: =D2b!V16 -> 0 | AH12: =D2b!W16 -> 0.4538890712 | AI12: =D2b!X16 -> 0 | AS12: =I1a!B121 -> Alimentation - consommation d'électricité totale | AT12: =I1a!D123 -> 0 | BB12: ='I2'!D17 -> ZAC des Epis | BC12: ='I2'!N17 -> 0.5461109288 | BD12: ='I2'!O17 -> 0 | BE12: ='I2'!P17 -> 0 | BF12: ='I2'!Q17 -> 0 | BG12: ='I2'!R17 -> 0.4538890712 | BH12: ='I2'!S17 -> 0 | BN12: =D4a!C27 -> Total | BO12: =D4a!D27 -> 0 | BX12: =D4b!B45 -> Flux total annuel dans les sols stables cultivés | CU12: =Alim!C85 -> Total | CW12: =Alim!E85 -> 0
E13: =D1a!D22 -> 0 | F13: =D1a!E22 -> 0 | G13: =D1a!F22 -> 0 | H13: =D1a!G22 -> 0 | I13: =D1a!H22 -> 0 | J13: =D1a!I22 -> 0 | K13: =D1a!J22 -> 0 | L13: =D1a!K22 -> 0 | M13: =D1a!L22 -> 0 | N13: =D1a!M22 -> 0 | O13: =D1a!N22 -> 0 | P13: =D1a!Q22 -> 0 | Q13: =D1a!R22 -> 0 | R13: =D1a!S22 -> 0 | S13: =D1a!T22 -> 0 | Z13: =D2b!D17 -> Monsenergie | AA13: =D2b!H17 -> 0 | AB13: =D2b!I17 -> 0 | AC13: =D2b!J17 -> 63591 | AD13: =D2b!S17 -> 0.5461109288 | AE13: =D2b!T17 -> 0 | AF13: =D2b!U17 -> 0 | AG13: =D2b!V17 -> 0 | AH13: =D2b!W17 -> 0.4538890712 | AI13: =D2b!X17 -> 0 | BB13: ='I2'!D18 -> Monsenergie | BC13: ='I2'!N18 -> 0.5461109288 | BD13: ='I2'!O18 -> 0 | BE13: ='I2'!P18 -> 0 | BF13: ='I2'!Q18 -> 0 | BG13: ='I2'!R18 -> 0.4538890712 | BH13: ='I2'!S18 -> 0 | BX13: =D4b!C49 -> Total | BY13: =D4b!D49 -> 0 | CF13: =I1a!C46 -> Région Hauts de France- consommation électricité transport ferroviaire | CG13: =I1a!G46 -> 1343499.12 | CU13: =Alim!C86 -> 0 | CW13: =Alim!E86 -> 0
E14: =D1a!D23 -> 0 | F14: =D1a!E23 -> 0 | G14: =D1a!F23 -> 0 | H14: =D1a!G23 -> 0 | I14: =D1a!H23 -> 0 | J14: =D1a!I23 -> 0 | K14: =D1a!J23 -> 0 | L14: =D1a!K23 -> 0 | M14: =D1a!L23 -> 0 | N14: =D1a!M23 -> 0 | O14: =D1a!N23 -> 0 | P14: =D1a!Q23 -> 0 | Q14: =D1a!R23 -> 0 | R14: =D1a!S23 -> 0 | S14: =D1a!T23 -> 0 | Z14: =D2b!D18 -> Métropole Nord | AA14: =D2b!H18 -> 0 | AB14: =D2b!I18 -> 0 | AC14: =D2b!J18 -> 289364 | AD14: =D2b!S18 -> 0.5461109288 | AE14: =D2b!T18 -> 0 | AF14: =D2b!U18 -> 0 | AG14: =D2b!V18 -> 0 | AH14: =D2b!W18 -> 0.4538890712 | AI14: =D2b!X18 -> 0 | AS14: =I1a!C140 -> Territoire - consommation d'électricité - services (hors traitement des déchets) | AT14: =I1a!G140 -> 0 | BB14: ='I2'!D19 -> Métropole Nord | BC14: ='I2'!N19 -> 0.5461109288 | BD14: ='I2'!O19 -> 0 | BE14: ='I2'!P19 -> 0 | BF14: ='I2'!Q19 -> 0 | BG14: ='I2'!R19 -> 0.4538890712 | BH14: ='I2'!S19 -> 0 | BN14: =D4a!B33 -> 1 - Stock de carbone - haies | CF14: =I1a!C47 -> Part de la consommation électrique du transport ferroviaire consommée sur le territoire | CG14: =I1a!G47 -> 0 | CU14: =Alim!C87 -> Type de repas | CW14: =Alim!E87 -> Part du type de repas (%)
E15: =D1a!D24 -> 0 | F15: =D1a!E24 -> 0 | G15: =D1a!F24 -> 0 | H15: =D1a!G24 -> 0 | I15: =D1a!H24 -> 0 | J15: =D1a!I24 -> 0 | K15: =D1a!J24 -> 0 | L15: =D1a!K24 -> 0 | M15: =D1a!L24 -> 0 | N15: =D1a!M24 -> 0 | O15: =D1a!N24 -> 0 | P15: =D1a!Q24 -> 0 | Q15: =D1a!R24 -> 0 | R15: =D1a!S24 -> 0 | S15: =D1a!T24 -> 0 | Z15: =D2b!D19 -> CHU Lille | AA15: =D2b!H19 -> 0 | AB15: =D2b!I19 -> 0 | AC15: =D2b!J19 -> 100000 | AD15: =D2b!S19 -> 0.5461109288 | AE15: =D2b!T19 -> 0 | AF15: =D2b!U19 -> 0 | AG15: =D2b!V19 -> 0 | AH15: =D2b!W19 -> 0.4538890712 | AI15: =D2b!X19 -> 0 | AS15: =I1a!C153 -> Territoire - consommation d'électricité - traitement des déchets | AT15: =I1a!G153 -> 0 | BB15: ='I2'!D20 -> CHU Lille | BC15: ='I2'!N20 -> 0.5461109288 | BD15: ='I2'!O20 -> 0 | BE15: ='I2'!P20 -> 0 | BF15: ='I2'!Q20 -> 0 | BG15: ='I2'!R20 -> 0.4538890712 | BH15: ='I2'!S20 -> 0 | BN15: =D4a!C39 -> Haies | BO15: =D4a!D39 -> 0 | CU15: =Alim!C88 -> Repas classique 1 (avec poulet) | CW15: =Alim!E88 -> 0
E16: =D1a!D25 -> 0 | F16: =D1a!E25 -> 0 | G16: =D1a!F25 -> 0 | H16: =D1a!G25 -> 0 | I16: =D1a!H25 -> 0 | J16: =D1a!I25 -> 0 | K16: =D1a!J25 -> 0 | L16: =D1a!K25 -> 0 | M16: =D1a!L25 -> 0 | N16: =D1a!M25 -> 0 | O16: =D1a!N25 -> 0 | P16: =D1a!Q25 -> 0 | Q16: =D1a!R25 -> 0 | R16: =D1a!S25 -> 0 | S16: =D1a!T25 -> 0 | Z16: =D2b!D20 -> Réseau de Lambersart | AA16: =D2b!H20 -> 0 | AB16: =D2b!I20 -> 0 | AC16: =D2b!J20 -> 15916 | AD16: =D2b!S20 -> 0.5461109288 | AE16: =D2b!T20 -> 0 | AF16: =D2b!U20 -> 0 | AG16: =D2b!V20 -> 0 | AH16: =D2b!W20 -> 0.4538890712 | AI16: =D2b!X20 -> 0 | AS16: =I1a!B156 -> Services - consommation d'électricité totale | AT16: =I1a!D158 -> 0 | BB16: ='I2'!D21 -> Réseau de Lambersart | BC16: ='I2'!N21 -> 0.5461109288 | BD16: ='I2'!O21 -> 0 | BE16: ='I2'!P21 -> 0 | BF16: ='I2'!Q21 -> 0 | BG16: ='I2'!R21 -> 0.4538890712 | BH16: ='I2'!S21 -> 0 | CU16: =Alim!C89 -> Repas classique 2 (avec bœuf) | CW16: =Alim!E89 -> 0
E17: =D1a!D26 -> 0 | F17: =D1a!E26 -> 0 | G17: =D1a!F26 -> 0 | H17: =D1a!G26 -> 0 | I17: =D1a!H26 -> 0 | J17: =D1a!I26 -> 0 | K17: =D1a!J26 -> 0 | L17: =D1a!K26 -> 0 | M17: =D1a!L26 -> 0 | N17: =D1a!M26 -> 0 | O17: =D1a!N26 -> 0 | P17: =D1a!Q26 -> 0 | Q17: =D1a!R26 -> 0 | R17: =D1a!S26 -> 0 | S17: =D1a!T26 -> 0 | Z17: =D2b!D21 -> ZUP de la caserne joyeuse | AA17: =D2b!H21 -> 0 | AB17: =D2b!I21 -> 0 | AC17: =D2b!J21 -> 2501 | AD17: =D2b!S21 -> 0.5461109288 | AE17: =D2b!T21 -> 0 | AF17: =D2b!U21 -> 0 | AG17: =D2b!V21 -> 0 | AH17: =D2b!W21 -> 0.4538890712 | AI17: =D2b!X21 -> 0 | BB17: ='I2'!D22 -> ZUP de la caserne joyeuse | BC17: ='I2'!N22 -> 0.5461109288 | BD17: ='I2'!O22 -> 0 | BE17: ='I2'!P22 -> 0 | BF17: ='I2'!Q22 -> 0 | BG17: ='I2'!R22 -> 0.4538890712 | BH17: ='I2'!S22 -> 0 | BN17: =D4a!B48 -> 3 - répartition du peuplement forestier | CF17: =I1a!C50 -> Territoire - consommation d'électricité - autres transports | CG17: =I1a!G50 -> 0 | CU17: =Alim!C90 -> Repas végétarien 1 | CW17: =Alim!E90 -> 0
E18: =D1a!D27 -> 0 | F18: =D1a!E27 -> 0 | G18: =D1a!F27 -> 0 | H18: =D1a!G27 -> 0 | I18: =D1a!H27 -> 0 | J18: =D1a!I27 -> 0 | K18: =D1a!J27 -> 0 | L18: =D1a!K27 -> 0 | M18: =D1a!L27 -> 0 | N18: =D1a!M27 -> 0 | O18: =D1a!N27 -> 0 | P18: =D1a!Q27 -> 0 | Q18: =D1a!R27 -> 0 | R18: =D1a!S27 -> 0 | S18: =D1a!T27 -> 0 | Z18: =D2b!D22 -> Les rives créatives de l'Escaut | AA18: =D2b!H22 -> 0 | AB18: =D2b!I22 -> 0 | AC18: =D2b!J22 -> 2500 | AD18: =D2b!S22 -> 0.5461109288 | AE18: =D2b!T22 -> 0 | AF18: =D2b!U22 -> 0 | AG18: =D2b!V22 -> 0 | AH18: =D2b!W22 -> 0.4538890712 | AI18: =D2b!X22 -> 0 | AS18: =I1a!C41 -> Territoire - consommation d'électricité - transport routier | AT18: =I1a!G41 -> 0 | BB18: ='I2'!D23 -> Les rives créatives de l'Escaut | BC18: ='I2'!N23 -> 0.5461109288 | BD18: ='I2'!O23 -> 0 | BE18: ='I2'!P23 -> 0 | BF18: ='I2'!Q23 -> 0 | BG18: ='I2'!R23 -> 0.4538890712 | BH18: ='I2'!S23 -> 0 | BN18: =D4a!C51 -> Peupleraies | BO18: =D4a!D51 -> 0.11 | BQ18: =D4a!I51 -> Observatoire Régional de la Biodiversité - 2011 - Nord-Pas de Calais- extrapolé à la Picardie | BS18: Peupleraies | BT18: 0.11 | BU18: Observatoire Régional de la Biodiversité 2011 | CU18: =Alim!C91 -> Repas végétarien 2 | CW18: =Alim!E91 -> 0
E19: =D1a!D28 -> 0 | F19: =D1a!E28 -> 0 | G19: =D1a!F28 -> 0 | H19: =D1a!G28 -> 0 | I19: =D1a!H28 -> 0 | J19: =D1a!I28 -> 0 | K19: =D1a!J28 -> 0 | L19: =D1a!K28 -> 0 | M19: =D1a!L28 -> 0 | N19: =D1a!M28 -> 0 | O19: =D1a!N28 -> 0 | P19: =D1a!Q28 -> 0 | Q19: =D1a!R28 -> 0 | R19: =D1a!S28 -> 0 | S19: =D1a!T28 -> 0 | Z19: =D2b!D23 -> Energie Grand Littoral | AA19: =D2b!H23 -> 0 | AB19: =D2b!I23 -> 0 | AC19: =D2b!J23 -> 136778 | AD19: =D2b!S23 -> 0.5461109288 | AE19: =D2b!T23 -> 0 | AF19: =D2b!U23 -> 0 | AG19: =D2b!V23 -> 0 | AH19: =D2b!W23 -> 0.4538890712 | AI19: =D2b!X23 -> 0 | AS19: =I1a!C50 -> Territoire - consommation d'électricité - autres transports | AT19: =I1a!G50 -> 0 | BB19: ='I2'!D24 -> Energie Grand Littoral | BC19: ='I2'!N24 -> 0.5461109288 | BD19: ='I2'!O24 -> 0 | BE19: ='I2'!P24 -> 0 | BF19: ='I2'!Q24 -> 0 | BG19: ='I2'!R24 -> 0.4538890712 | BH19: ='I2'!S24 -> 0 | BN19: =D4a!C52 -> Feuillus hors peupleraies | BO19: =D4a!D52 -> 0.85 | BQ19: =D4a!I51 -> Observatoire Régional de la Biodiversité - 2011 - Nord-Pas de Calais- extrapolé à la Picardie | BS19: Feuillus hors peupleraies | BT19: 0.85 | BU19: Observatoire Régional de la Biodiversité 2011 | CJ19: =I1a!G65 -> Sidérurgie | CK19: =I1a!H65 -> Métallurgie non-ferreux | CL19: =I1a!I65 -> Chimie | CM19: =I1a!J65 -> Papier, carton | CN19: =I1a!K65 -> Energie/ Raffinage | CO19: =I1a!L65 -> Automobile | CP19: =I1a!M65 -> Divers | CU19: =Alim!C92 -> Repas à dominante végétale 1 (avec poulet) | CW19: =Alim!E92 -> 0
E20: =D1a!D29 -> 0 | F20: =D1a!E29 -> 0 | G20: =D1a!F29 -> 0 | H20: =D1a!G29 -> 0 | I20: =D1a!H29 -> 0 | J20: =D1a!I29 -> 0 | K20: =D1a!J29 -> 0 | L20: =D1a!K29 -> 0 | M20: =D1a!L29 -> 0 | N20: =D1a!M29 -> 0 | O20: =D1a!N29 -> 0 | P20: =D1a!Q29 -> 0 | Q20: =D1a!R29 -> 0 | R20: =D1a!S29 -> 0 | S20: =D1a!T29 -> 0 | Z20: =D2b!D24 -> Réseau de chauffage d'Hazebrouck | AA20: =D2b!H24 -> 0 | AB20: =D2b!I24 -> 0 | AC20: =D2b!J24 -> 6708 | AD20: =D2b!S24 -> 0.5461109288 | AE20: =D2b!T24 -> 0 | AF20: =D2b!U24 -> 0 | AG20: =D2b!V24 -> 0 | AH20: =D2b!W24 -> 0.4538890712 | AI20: =D2b!X24 -> 0 | AS20: =I1a!B53 -> Déplacements - consommation d'électricité totale | AT20: =I1a!D55 -> 0 | BB20: ='I2'!D25 -> Réseau de chauffage d'Hazebrouck | BC20: ='I2'!N25 -> 0.5461109288 | BD20: ='I2'!O25 -> 0 | BE20: ='I2'!P25 -> 0 | BF20: ='I2'!Q25 -> 0 | BG20: ='I2'!R25 -> 0.4538890712 | BH20: ='I2'!S25 -> 0 | CF20: =I1a!C67 -> Part des émissions directes de GES liée à l'énergie | CJ20: =I1a!G67 -> 1 | CK20: =I1a!H67 -> 0.91 | CL20: =I1a!I67 -> 0.93 | CM20: =I1a!J67 -> 1 | CN20: =I1a!K67 -> 0.53 | CO20: =I1a!L67 -> 0.98 | CP20: =I1a!M67 -> 0.98 | CU20: =Alim!C93 -> Repas à dominante végétale 2 (avec bœuf) | CW20: =Alim!E93 -> 0
E21: =D1a!D30 -> 0 | F21: =D1a!E30 -> 0 | G21: =D1a!F30 -> 0 | H21: =D1a!G30 -> 0 | I21: =D1a!H30 -> 0 | J21: =D1a!I30 -> 0 | K21: =D1a!J30 -> 0 | L21: =D1a!K30 -> 0 | M21: =D1a!L30 -> 0 | N21: =D1a!M30 -> 0 | O21: =D1a!N30 -> 0 | P21: =D1a!Q30 -> 0 | Q21: =D1a!R30 -> 0 | R21: =D1a!S30 -> 0 | S21: =D1a!T30 -> 0 | Z21: =D2b!D25 -> Quartier Tournebride Lomme-Capinghem | AA21: =D2b!H25 -> 0 | AB21: =D2b!I25 -> 0 | AC21: =D2b!J25 -> 6179 | AD21: =D2b!S25 -> 0.5461109288 | AE21: =D2b!T25 -> 0 | AF21: =D2b!U25 -> 0 | AG21: =D2b!V25 -> 0 | AH21: =D2b!W25 -> 0.4538890712 | AI21: =D2b!X25 -> 0 | BB21: ='I2'!D26 -> Quartier Tournebride Lomme-Capinghem | BC21: ='I2'!N26 -> 0.5461109288 | BD21: ='I2'!O26 -> 0 | BE21: ='I2'!P26 -> 0 | BF21: ='I2'!Q26 -> 0 | BG21: ='I2'!R26 -> 0.4538890712 | BH21: ='I2'!S26 -> 0 | BN21: =D4a!B57 -> 4 - autres caractéristiques de la forêt | CF21: =I1a!C69 -> Equivalence GES / consommation d'énergie (hors électricité) | CJ21: =I1a!G68 -> 0 | CK21: =I1a!H68 -> 0 | CL21: =I1a!I68 -> 0 | CM21: =I1a!J68 -> 0 | CN21: =I1a!K68 -> 0 | CO21: =I1a!L68 -> 0 | CP21: =I1a!M68 -> 0 | CU21: =Alim!C94 -> Repas à dominante animale 1 (avec poulet) | CW21: =Alim!E94 -> 0
E22: =D1a!D31 -> 0 | F22: =D1a!E31 -> 0 | G22: =D1a!F31 -> 0 | H22: =D1a!G31 -> 0 | I22: =D1a!H31 -> 0 | J22: =D1a!I31 -> 0 | K22: =D1a!J31 -> 0 | L22: =D1a!K31 -> 0 | M22: =D1a!L31 -> 0 | N22: =D1a!M31 -> 0 | O22: =D1a!N31 -> 0 | P22: =D1a!Q31 -> 0 | Q22: =D1a!R31 -> 0 | R22: =D1a!S31 -> 0 | S22: =D1a!T31 -> 0 | Z22: =D2b!D26 -> 0 | AA22: =D2b!H27 -> 0 | AB22: =D2b!I27 -> 0 | AC22: =D2b!J26 -> 0 | AD22: =D2b!S26 -> 0.5461109288 | AE22: =D2b!T26 -> 0 | AF22: =D2b!U26 -> 0 | AG22: =D2b!V26 -> 0 | AH22: =D2b!W26 -> 0.4538890712 | AI22: =D2b!X26 -> 0 | BB22: ='I2'!D27 -> 0 | BC22: ='I2'!N27 -> 0.5461109288 | BD22: ='I2'!O27 -> 0 | BE22: ='I2'!P27 -> 0 | BF22: ='I2'!Q27 -> 0 | BG22: ='I2'!R27 -> 0.4538890712 | BH22: ='I2'!S27 -> 0 | BN22: =D4a!C60 -> Volume de bois fort | BO22: =D4a!D60 -> 181 | BQ22: =D4a!I60 -> IGN 2016 - Hauts de France | BS22: Volume de bois fort | BT22: 176 | BU22: IGN 2010- donnée NPdC 2012 | CF22: =I1a!C71 -> Part de l'électricité dans l'énergie totale consommée | CJ22: =I1a!G71 -> 0.12 | CK22: =I1a!H71 -> 0.69 | CL22: =I1a!I71 -> 0.12 | CM22: =I1a!J71 -> 0.31 | CN22: =I1a!K71 -> 0.06 | CO22: =I1a!L71 -> 0.57 | CP22: =I1a!M71 -> 0.57
E23: =D1a!D32 -> 0 | F23: =D1a!E32 -> 0 | G23: =D1a!F32 -> 0 | H23: =D1a!G32 -> 0 | I23: =D1a!H32 -> 0 | J23: =D1a!I32 -> 0 | K23: =D1a!J32 -> 0 | L23: =D1a!K32 -> 0 | M23: =D1a!L32 -> 0 | N23: =D1a!M32 -> 0 | O23: =D1a!N32 -> 0 | P23: =D1a!Q32 -> 0 | Q23: =D1a!R32 -> 0 | R23: =D1a!S32 -> 0 | S23: =D1a!T32 -> 0 | Z23: =D2b!D27 -> ZUP du quartier République | AA23: =D2b!H28 -> 0 | AB23: =D2b!I28 -> 0 | AC23: =D2b!J27 -> 15268 | AD23: =D2b!S27 -> 0.5461109288 | AE23: =D2b!T27 -> 0 | AF23: =D2b!U27 -> 0 | AG23: =D2b!V27 -> 0 | AH23: =D2b!W27 -> 0.4538890712 | AI23: =D2b!X27 -> 0 | BB23: ='I2'!D28 -> ZUP du quartier République | BC23: ='I2'!N28 -> 0.5461109288 | BD23: ='I2'!O28 -> 0 | BE23: ='I2'!P28 -> 0 | BF23: ='I2'!Q28 -> 0 | BG23: ='I2'!R28 -> 0.4538890712 | BH23: ='I2'!S28 -> 0 | BN23: =D4a!C61 -> Accroissement biologique bois fort | BO23: =D4a!D61 -> 6.7 | BQ23: =D4a!I61 -> IGN 2016 - Hauts de France | BS23: Accroissement biologique bois fort | BT23: 7.7 | BU23: IGN 2010- donnée NPdC 2012
E24: =D1a!D33 -> 0 | F24: =D1a!E33 -> 0 | G24: =D1a!F33 -> 0 | H24: =D1a!G33 -> 0 | I24: =D1a!H33 -> 0 | J24: =D1a!I33 -> 0 | K24: =D1a!J33 -> 0 | L24: =D1a!K33 -> 0 | M24: =D1a!L33 -> 0 | N24: =D1a!M33 -> 0 | O24: =D1a!N33 -> 0 | P24: =D1a!Q33 -> 0 | Q24: =D1a!R33 -> 0 | R24: =D1a!S33 -> 0 | S24: =D1a!T33 -> 0 | Z24: =D2b!D28 -> Réseau de Arques | AA24: =D2b!H29 -> 0 | AB24: =D2b!I29 -> 0 | AC24: =D2b!J28 -> 8000 | AD24: =D2b!S28 -> 0.5461109288 | AE24: =D2b!T28 -> 0 | AF24: =D2b!U28 -> 0 | AG24: =D2b!V28 -> 0 | AH24: =D2b!W28 -> 0.4538890712 | AI24: =D2b!X28 -> 0 | BB24: ='I2'!D29 -> Réseau de Arques | BC24: ='I2'!N29 -> 0.5461109288 | BD24: ='I2'!O29 -> 0 | BE24: ='I2'!P29 -> 0 | BF24: ='I2'!Q29 -> 0 | BG24: ='I2'!R29 -> 0.4538890712 | BH24: ='I2'!S29 -> 0 | BN24: =D4a!C62 -> Part de l'accroissement exploité | BO24: =D4a!D62 -> 0.67 | BQ24: =D4a!I62 -> IGN 2016 - Hauts de France | BS24: Part de l'accroissement exploité | BT24: 0.41 | BU24: Calculé sur base de données IGN 2010 et DRAAF 2010 | CF24: =I1a!C77 -> Territoire - Consommation d'électricité - Biens de consommation hors énergie | CI24: =I1a!F77 -> 0 | CJ24: =I1a!G77 -> MWh
E25: =D1a!D34 -> 0 | F25: =D1a!E34 -> 0 | G25: =D1a!F34 -> 0 | H25: =D1a!G34 -> 0 | I25: =D1a!H34 -> 0 | J25: =D1a!I34 -> 0 | K25: =D1a!J34 -> 0 | L25: =D1a!K34 -> 0 | M25: =D1a!L34 -> 0 | N25: =D1a!M34 -> 0 | O25: =D1a!N34 -> 0 | P25: =D1a!Q34 -> 0 | Q25: =D1a!R34 -> 0 | R25: =D1a!S34 -> 0 | S25: =D1a!T34 -> 0 | Z25: =D2b!D29 -> ZUP de Lens | AA25: =D2b!H30 -> 0 | AB25: =D2b!I30 -> 0 | AC25: =D2b!J29 -> 51703 | AD25: =D2b!S29 -> 0.5461109288 | AE25: =D2b!T29 -> 0 | AF25: =D2b!U29 -> 0 | AG25: =D2b!V29 -> 0 | AH25: =D2b!W29 -> 0.4538890712 | AI25: =D2b!X29 -> 0 | BB25: ='I2'!D30 -> ZUP de Lens | BC25: ='I2'!N30 -> 0.5461109288 | BD25: ='I2'!O30 -> 0 | BE25: ='I2'!P30 -> 0 | BF25: ='I2'!Q30 -> 0 | BG25: ='I2'!R30 -> 0.4538890712 | BH25: ='I2'!S30 -> 0 | CF25: =I1a!C78 -> Territoire - Consommation d'électricité - Biens de consommation énergie | CI25: =I1a!F78 -> 0 | CJ25: =I1a!G78 -> MWh
E26: =D1a!D35 -> 0 | F26: =D1a!E35 -> 0 | G26: =D1a!F35 -> 0 | H26: =D1a!G35 -> 0 | I26: =D1a!H35 -> 0 | J26: =D1a!I35 -> 0 | K26: =D1a!J35 -> 0 | L26: =D1a!K35 -> 0 | M26: =D1a!L35 -> 0 | N26: =D1a!M35 -> 0 | O26: =D1a!N35 -> 0 | P26: =D1a!Q35 -> 0 | Q26: =D1a!R35 -> 0 | R26: =D1a!S35 -> 0 | S26: =D1a!T35 -> 0 | Z26: =D2b!D30 -> Le Portel-Outreau Engie | AA26: =D2b!H31 -> 0 | AB26: =D2b!I31 -> 0 | AC26: =D2b!J30 -> 11000 | AD26: =D2b!S30 -> 0.5461109288 | AE26: =D2b!T30 -> 0 | AF26: =D2b!U30 -> 0 | AG26: =D2b!V30 -> 0 | AH26: =D2b!W30 -> 0.4538890712 | AI26: =D2b!X30 -> 0 | BB26: ='I2'!D31 -> Le Portel-Outreau Engie | BC26: ='I2'!N31 -> 0.5461109288 | BD26: ='I2'!O31 -> 0 | BE26: ='I2'!P31 -> 0 | BF26: ='I2'!Q31 -> 0 | BG26: ='I2'!R31 -> 0.4538890712 | BH26: ='I2'!S31 -> 0
E27: =D1a!D36 -> 0 | F27: =D1a!E36 -> 0 | G27: =D1a!F36 -> 0 | H27: =D1a!G36 -> 0 | I27: =D1a!H36 -> 0 | J27: =D1a!I36 -> 0 | K27: =D1a!J36 -> 0 | L27: =D1a!K36 -> 0 | M27: =D1a!L36 -> 0 | N27: =D1a!M36 -> 0 | O27: =D1a!N36 -> 0 | P27: =D1a!Q36 -> 0 | Q27: =D1a!R36 -> 0 | R27: =D1a!S36 -> 0 | S27: =D1a!T36 -> 0 | Z27: =D2b!D31 -> Le Portel-Outreau Dalkia | AA27: =D2b!H32 -> 0 | AB27: =D2b!I32 -> 0 | AC27: =D2b!J31 -> 5344 | AD27: =D2b!S31 -> 0.5461109288 | AE27: =D2b!T31 -> 0 | AF27: =D2b!U31 -> 0 | AG27: =D2b!V31 -> 0 | AH27: =D2b!W31 -> 0.4538890712 | AI27: =D2b!X31 -> 0 | BB27: ='I2'!D32 -> Le Portel-Outreau Dalkia | BC27: ='I2'!N32 -> 0.5461109288 | BD27: ='I2'!O32 -> 0 | BE27: ='I2'!P32 -> 0 | BF27: ='I2'!Q32 -> 0 | BG27: ='I2'!R32 -> 0.4538890712 | BH27: ='I2'!S32 -> 0 | CF27: =I1a!C100 -> FE combustion du fioul | CG27: =I1a!G100 -> 0.272
E28: =D1a!D37 -> 0 | F28: =D1a!E37 -> 0 | G28: =D1a!F37 -> 0 | H28: =D1a!G37 -> 0 | I28: =D1a!H37 -> 0 | J28: =D1a!I37 -> 0 | K28: =D1a!J37 -> 0 | L28: =D1a!K37 -> 0 | M28: =D1a!L37 -> 0 | N28: =D1a!M37 -> 0 | O28: =D1a!N37 -> 0 | P28: =D1a!Q37 -> 0 | Q28: =D1a!R37 -> 0 | R28: =D1a!S37 -> 0 | S28: =D1a!T37 -> 0 | Z28: =D2b!D32 -> ZUP de Béthune | AA28: =D2b!H33 -> 0 | AB28: =D2b!I33 -> 0 | AC28: =D2b!J32 -> 27133 | AD28: =D2b!S32 -> 0.5461109288 | AE28: =D2b!T32 -> 0 | AF28: =D2b!U32 -> 0 | AG28: =D2b!V32 -> 0 | AH28: =D2b!W32 -> 0.4538890712 | AI28: =D2b!X32 -> 0 | BB28: ='I2'!D33 -> ZUP de Béthune | BC28: ='I2'!N33 -> 0.5461109288 | BD28: ='I2'!O33 -> 0 | BE28: ='I2'!P33 -> 0 | BF28: ='I2'!Q33 -> 0 | BG28: ='I2'!R33 -> 0.4538890712 | BH28: ='I2'!S33 -> 0 | CF28: =I1a!C102 -> Ratio consommation d'électricité / consommation de fioul (%) | CG28: =I1a!G102 -> 0.16
E29: =D1a!D38 -> 0 | F29: =D1a!E38 -> 0 | G29: =D1a!F38 -> 0 | H29: =D1a!G38 -> 0 | I29: =D1a!H38 -> 0 | J29: =D1a!I38 -> 0 | K29: =D1a!J38 -> 0 | L29: =D1a!K38 -> 0 | M29: =D1a!L38 -> 0 | N29: =D1a!M38 -> 0 | O29: =D1a!N38 -> 0 | P29: =D1a!Q38 -> 0 | Q29: =D1a!R38 -> 0 | R29: =D1a!S38 -> 0 | S29: =D1a!T38 -> 0 | Z29: =D2b!D33 -> Réseau de Liévin | AA29: =D2b!H34 -> 0 | AB29: =D2b!I34 -> 0 | AC29: =D2b!J33 -> 21122 | AD29: =D2b!S33 -> 0.5461109288 | AE29: =D2b!T33 -> 0 | AF29: =D2b!U33 -> 0 | AG29: =D2b!V33 -> 0 | AH29: =D2b!W33 -> 0.4538890712 | AI29: =D2b!X33 -> 0 | BB29: ='I2'!D34 -> Réseau de Liévin | BC29: ='I2'!N34 -> 0.5461109288 | BD29: ='I2'!O34 -> 0 | BE29: ='I2'!P34 -> 0 | BF29: ='I2'!Q34 -> 0 | BG29: ='I2'!R34 -> 0.4538890712 | BH29: ='I2'!S34 -> 0
E30: =D1a!D39 -> 0 | F30: =D1a!E39 -> 0 | G30: =D1a!F39 -> 0 | H30: =D1a!G39 -> 0 | I30: =D1a!H39 -> 0 | J30: =D1a!I39 -> 0 | K30: =D1a!J39 -> 0 | L30: =D1a!K39 -> 0 | M30: =D1a!L39 -> 0 | N30: =D1a!M39 -> 0 | O30: =D1a!N39 -> 0 | P30: =D1a!Q39 -> 0 | Q30: =D1a!R39 -> 0 | R30: =D1a!S39 -> 0 | S30: =D1a!T39 -> 0 | Z30: =D2b!D34 -> Calais Energie | AA30: =D2b!H35 -> 0 | AB30: =D2b!I35 -> 0 | AC30: =D2b!J34 -> 52106 | AD30: =D2b!S34 -> 0.5461109288 | AE30: =D2b!T34 -> 0 | AF30: =D2b!U34 -> 0 | AG30: =D2b!V34 -> 0 | AH30: =D2b!W34 -> 0.4538890712 | AI30: =D2b!X34 -> 0 | BB30: ='I2'!D35 -> Calais Energie | BC30: ='I2'!N35 -> 0.5461109288 | BD30: ='I2'!O35 -> 0 | BE30: ='I2'!P35 -> 0 | BF30: ='I2'!Q35 -> 0 | BG30: ='I2'!R35 -> 0.4538890712 | BH30: ='I2'!S35 -> 0
E31: =D1a!D40 -> 0 | F31: =D1a!E40 -> 0 | G31: =D1a!F40 -> 0 | H31: =D1a!G40 -> 0 | I31: =D1a!H40 -> 0 | J31: =D1a!I40 -> 0 | K31: =D1a!J40 -> 0 | L31: =D1a!K40 -> 0 | M31: =D1a!L40 -> 0 | N31: =D1a!M40 -> 0 | O31: =D1a!N40 -> 0 | P31: =D1a!Q40 -> 0 | Q31: =D1a!R40 -> 0 | R31: =D1a!S40 -> 0 | S31: =D1a!T40 -> 0 | Z31: =D2b!D35 -> Réseau Centre Ville | AA31: =D2b!H36 -> 0 | AB31: =D2b!I36 -> 0 | AC31: =D2b!J35 -> 12678 | AD31: =D2b!S35 -> 0.5461109288 | AE31: =D2b!T35 -> 0 | AF31: =D2b!U35 -> 0 | AG31: =D2b!V35 -> 0 | AH31: =D2b!W35 -> 0.4538890712 | AI31: =D2b!X35 -> 0 | BB31: ='I2'!D36 -> Réseau Centre Ville | BC31: ='I2'!N36 -> 0.5461109288 | BD31: ='I2'!O36 -> 0 | BE31: ='I2'!P36 -> 0 | BF31: ='I2'!Q36 -> 0 | BG31: ='I2'!R36 -> 0.4538890712 | BH31: ='I2'!S36 -> 0 | CF31: =I1a!C105 -> Territoire - consommation d'électricité - agriculture | CG31: =I1a!G105 -> 0 | CH31: =I1a!H105 -> MWh
E32: =D1a!D41 -> 0 | F32: =D1a!E41 -> 0 | G32: =D1a!F41 -> 0 | H32: =D1a!G41 -> 0 | I32: =D1a!H41 -> 0 | J32: =D1a!I41 -> 0 | K32: =D1a!J41 -> 0 | L32: =D1a!K41 -> 0 | M32: =D1a!L41 -> 0 | N32: =D1a!M41 -> 0 | O32: =D1a!N41 -> 0 | P32: =D1a!Q41 -> 0 | Q32: =D1a!R41 -> 0 | R32: =D1a!S41 -> 0 | S32: =D1a!T41 -> 0 | Z32: =D2b!D36 -> Réseau d'Achicourt | AA32: =D2b!H37 -> 0 | AB32: =D2b!I37 -> 0 | AC32: =D2b!J36 -> 6416 | AD32: =D2b!S36 -> 0.5461109288 | AE32: =D2b!T36 -> 0 | AF32: =D2b!U36 -> 0 | AG32: =D2b!V36 -> 0 | AH32: =D2b!W36 -> 0.4538890712 | AI32: =D2b!X36 -> 0 | BB32: ='I2'!D37 -> Réseau d'Achicourt | BC32: ='I2'!N37 -> 0.5461109288 | BD32: ='I2'!O37 -> 0 | BE32: ='I2'!P37 -> 0 | BF32: ='I2'!Q37 -> 0 | BG32: ='I2'!R37 -> 0.4538890712 | BH32: ='I2'!S37 -> 0
E33: =D1a!D42 -> 0 | F33: =D1a!E42 -> 0 | G33: =D1a!F42 -> 0 | H33: =D1a!G42 -> 0 | I33: =D1a!H42 -> 0 | J33: =D1a!I42 -> 0 | K33: =D1a!J42 -> 0 | L33: =D1a!K42 -> 0 | M33: =D1a!L42 -> 0 | N33: =D1a!M42 -> 0 | O33: =D1a!N42 -> 0 | P33: =D1a!Q42 -> 0 | Q33: =D1a!R42 -> 0 | R33: =D1a!S42 -> 0 | S33: =D1a!T42 -> 0 | Z33: =D2b!D37 -> Réseau d'Arras | AA33: =D2b!H38 -> 0 | AB33: =D2b!I38 -> 0 | AC33: =D2b!J37 -> 56703 | AD33: =D2b!S37 -> 0.5461109288 | AE33: =D2b!T37 -> 0 | AF33: =D2b!U37 -> 0 | AG33: =D2b!V37 -> 0 | AH33: =D2b!W37 -> 0.4538890712 | AI33: =D2b!X37 -> 0 | BB33: ='I2'!D38 -> Réseau d'Arras | BC33: ='I2'!N38 -> 0.5461109288 | BD33: ='I2'!O38 -> 0 | BE33: ='I2'!P38 -> 0 | BF33: ='I2'!Q38 -> 0 | BG33: ='I2'!R38 -> 0.4538890712 | BH33: ='I2'!S38 -> 0 | CF33: =I1a!C118 -> Territoire - consommation d'électricité - agroalimentaire | CG33: =I1a!G118 -> 0 | CH33: =I1a!H118 -> MWh
E34: =D1a!D43 -> 0 | F34: =D1a!E43 -> 0 | G34: =D1a!F43 -> 0 | H34: =D1a!G43 -> 0 | I34: =D1a!H43 -> 0 | J34: =D1a!I43 -> 0 | K34: =D1a!J43 -> 0 | L34: =D1a!K43 -> 0 | M34: =D1a!L43 -> 0 | N34: =D1a!M43 -> 0 | O34: =D1a!N43 -> 0 | P34: =D1a!Q43 -> 0 | Q34: =D1a!R43 -> 0 | R34: =D1a!S43 -> 0 | S34: =D1a!T43 -> 0 | Z34: =D2b!D38 -> Réseau de Boulogne-sur-Mer | AA34: =D2b!H39 -> 0 | AB34: =D2b!I39 -> 0 | AC34: =D2b!J38 -> 29249 | AD34: =D2b!S38 -> 0.5461109288 | AE34: =D2b!T38 -> 0 | AF34: =D2b!U38 -> 0 | AG34: =D2b!V38 -> 0 | AH34: =D2b!W38 -> 0.4538890712 | AI34: =D2b!X38 -> 0 | BB34: ='I2'!D39 -> Réseau de Boulogne-sur-Mer | BC34: ='I2'!N39 -> 0.5461109288 | BD34: ='I2'!O39 -> 0 | BE34: ='I2'!P39 -> 0 | BF34: ='I2'!Q39 -> 0 | BG34: ='I2'!R39 -> 0.4538890712 | BH34: ='I2'!S39 -> 0
E35: =D1a!D44 -> 0 | F35: =D1a!E44 -> 0 | G35: =D1a!F44 -> 0 | H35: =D1a!G44 -> 0 | I35: =D1a!H44 -> 0 | J35: =D1a!I44 -> 0 | K35: =D1a!J44 -> 0 | L35: =D1a!K44 -> 0 | M35: =D1a!L44 -> 0 | N35: =D1a!M44 -> 0 | O35: =D1a!N44 -> 0 | P35: =D1a!Q44 -> 0 | Q35: =D1a!R44 -> 0 | R35: =D1a!S44 -> 0 | S35: =D1a!T44 -> 0 | Z35: =D2b!D39 -> Quartier du chemin vert | AA35: =D2b!H40 -> 0 | AB35: =D2b!I40 -> 0 | AC35: =D2b!J39 -> 18977 | AD35: =D2b!S39 -> 0.5461109288 | AE35: =D2b!T39 -> 0 | AF35: =D2b!U39 -> 0 | AG35: =D2b!V39 -> 0 | AH35: =D2b!W39 -> 0.4538890712 | AI35: =D2b!X39 -> 0 | BB35: ='I2'!D40 -> Quartier du chemin vert | BC35: ='I2'!N40 -> 0.5461109288 | BD35: ='I2'!O40 -> 0 | BE35: ='I2'!P40 -> 0 | BF35: ='I2'!Q40 -> 0 | BG35: ='I2'!R40 -> 0.4538890712 | BH35: ='I2'!S40 -> 0
E36: =D1a!D45 -> 0 | F36: =D1a!E45 -> 0 | G36: =D1a!F45 -> 0 | H36: =D1a!G45 -> 0 | I36: =D1a!H45 -> 0 | J36: =D1a!I45 -> 0 | K36: =D1a!J45 -> 0 | L36: =D1a!K45 -> 0 | M36: =D1a!L45 -> 0 | N36: =D1a!M45 -> 0 | O36: =D1a!N45 -> 0 | P36: =D1a!Q45 -> 0 | Q36: =D1a!R45 -> 0 | R36: =D1a!S45 -> 0 | S36: =D1a!T45 -> 0 | Z36: =D2b!D40 -> 0 | AA36: =D2b!H57 -> 0 | AB36: =D2b!I57 -> 0 | AC36: =D2b!J40 -> 0 | AD36: =D2b!S40 -> 0.5461109288 | AE36: =D2b!T40 -> 0 | AF36: =D2b!U40 -> 0 | AG36: =D2b!V40 -> 0 | AH36: =D2b!W40 -> 0.4538890712 | AI36: =D2b!X40 -> 0 | BB36: ='I2'!D41 -> 0 | BC36: ='I2'!N41 -> 0.5461109288 | BD36: ='I2'!O41 -> 0 | BE36: ='I2'!P41 -> 0 | BF36: ='I2'!Q41 -> 0 | BG36: ='I2'!R41 -> 0.4538890712 | BH36: ='I2'!S41 -> 0 | CF36: =I1a!C134 -> Hauts de France - consommation d'électricité dans les services | CG36: =I1a!G134 -> 824.28 | CH36: =I1a!H134 -> ktep
E37: =D1a!D46 -> 0 | F37: =D1a!E46 -> 0 | G37: =D1a!F46 -> 0 | H37: =D1a!G46 -> 0 | I37: =D1a!H46 -> 0 | J37: =D1a!I46 -> 0 | K37: =D1a!J46 -> 0 | L37: =D1a!K46 -> 0 | M37: =D1a!L46 -> 0 | N37: =D1a!M46 -> 0 | O37: =D1a!N46 -> 0 | P37: =D1a!Q46 -> 0 | Q37: =D1a!R46 -> 0 | R37: =D1a!S46 -> 0 | S37: =D1a!T46 -> 0 | CF37: =I1a!C140 -> Territoire - consommation d'électricité - services (hors traitement des déchets) | CG37: =I1a!G140 -> 0 | CH37: =I1a!H140 -> MWh
E38: =D1a!D47 -> 0 | F38: =D1a!E47 -> 0 | G38: =D1a!F47 -> 0 | H38: =D1a!G47 -> 0 | I38: =D1a!H47 -> 0 | J38: =D1a!I47 -> 0 | K38: =D1a!J47 -> 0 | L38: =D1a!K47 -> 0 | M38: =D1a!L47 -> 0 | N38: =D1a!M47 -> 0 | O38: =D1a!N47 -> 0 | P38: =D1a!Q47 -> 0 | Q38: =D1a!R47 -> 0 | R38: =D1a!S47 -> 0 | S38: =D1a!T47 -> 0
E39: =D1a!D48 -> 0 | F39: =D1a!E48 -> 0 | G39: =D1a!F48 -> 0 | H39: =D1a!G48 -> 0 | I39: =D1a!H48 -> 0 | J39: =D1a!I48 -> 0 | K39: =D1a!J48 -> 0 | L39: =D1a!K48 -> 0 | M39: =D1a!L48 -> 0 | N39: =D1a!M48 -> 0 | O39: =D1a!N48 -> 0 | P39: =D1a!Q48 -> 0 | Q39: =D1a!R48 -> 0 | R39: =D1a!S48 -> 0 | S39: =D1a!T48 -> 0 | CF39: =I1a!C146 -> Part des émissions de GES liée à l'énergie | CG39: =I1a!G146 -> 0.25 | CH39: =I1a!H146 -> 0
E40: =D1a!D49 -> 0 | F40: =D1a!E49 -> 0 | G40: =D1a!F49 -> 0 | H40: =D1a!G49 -> 0 | I40: =D1a!H49 -> 0 | J40: =D1a!I49 -> 0 | K40: =D1a!J49 -> 0 | L40: =D1a!K49 -> 0 | M40: =D1a!L49 -> 0 | N40: =D1a!M49 -> 0 | O40: =D1a!N49 -> 0 | P40: =D1a!Q49 -> 0 | Q40: =D1a!R49 -> 0 | R40: =D1a!S49 -> 0 | S40: =D1a!T49 -> 0
E41: =D1a!D50 -> 0 | F41: =D1a!E50 -> 0 | G41: =D1a!F50 -> 0 | H41: =D1a!G50 -> 0 | I41: =D1a!H50 -> 0 | J41: =D1a!I50 -> 0 | K41: =D1a!J50 -> 0 | L41: =D1a!K50 -> 0 | M41: =D1a!L50 -> 0 | N41: =D1a!M50 -> 0 | O41: =D1a!N50 -> 0 | P41: =D1a!Q50 -> 0 | Q41: =D1a!R50 -> 0 | R41: =D1a!S50 -> 0 | S41: =D1a!T50 -> 0 | Z41: =D2b!D62 -> 0 | AA41: =D2b!H62 -> Part de la production située sur le territoire (%) | AB41: =D2b!I62 -> Part de la production consommée par le territoire (%) | AC41: =D2b!J61 -> 0 | AD41: =D2b!S61 -> Répartition des consommations sur le territoire par poste | AE41: =D2b!T61 -> 0 | AF41: =D2b!U61 -> 0 | AG41: =D2b!V61 -> 0 | AH41: =D2b!W61 -> 0 | AI41: =D2b!X61 -> 0 | BB41: ='I2'!D62 -> 0 | BC41: ='I2'!N62 -> Répartition des consommations du territoire par poste - pour tous les réseaux connectés au territoire | BD41: ='I2'!O62 -> 0 | BE41: ='I2'!P62 -> 0 | BF41: ='I2'!Q62 -> 0 | BG41: ='I2'!R62 -> 0 | BH41: ='I2'!S62 -> 0 | CF41: =I1a!C148 -> Equivalence GES / consommation d'énergie (hors électricité) | CG41: =I1a!G148 -> 0.2 | CH41: =I1a!H148 -> t eq CO2 / MWh
E42: =D1a!D58 -> 0 | F42: =D1a!E58 -> 0 | G42: =D1a!F58 -> 0 | H42: =D1a!G58 -> 0 | I42: =D1a!H58 -> 0 | J42: =D1a!I58 -> 0 | K42: =D1a!J58 -> 0 | L42: =D1a!K58 -> 0 | M42: =D1a!L58 -> 0 | N42: =D1a!M58 -> 0 | O42: =D1a!N58 -> 0 | P42: =D1a!Q58 -> 0 | Q42: =D1a!R58 -> 0 | R42: =D1a!S51 -> 0 | S42: =D1a!T51 -> 0 | Z42: =D2b!D63 -> 0 | AA42: =D2b!H63 -> 0 | AB42: =D2b!I63 -> 0 | AC42: =D2b!J62 -> Production du réseau (MWh) | AD42: =D2b!S62 -> Résidentiel | AE42: =D2b!T62 -> Déplacements | AF42: =D2b!U62 -> Biens de consommation | AG42: =D2b!V62 -> Alimentation | AH42: =D2b!W62 -> Services | AI42: =D2b!X62 -> Travaux | BB42: ='I2'!D63 -> 0 | BC42: ='I2'!N63 -> Résidentiel | BD42: ='I2'!O63 -> Déplacements | BE42: ='I2'!P63 -> Biens de consommation | BF42: ='I2'!Q63 -> Alimentation | BG42: ='I2'!R63 -> Services | BH42: ='I2'!S63 -> Travaux
E43: =D1a!D59 -> 0 | F43: =D1a!E59 -> 0 | G43: =D1a!F59 -> 0 | H43: =D1a!G59 -> 0 | I43: =D1a!H59 -> 0 | J43: =D1a!I59 -> 0 | K43: =D1a!J59 -> 0 | L43: =D1a!K59 -> 0 | M43: =D1a!L59 -> 0 | N43: =D1a!M59 -> 0 | O43: =D1a!N59 -> 0 | P43: =D1a!Q59 -> 0 | Q43: =D1a!R59 -> 0 | R43: =D1a!S52 -> 0 | S43: =D1a!T52 -> 0 | Z43: =D2b!D64 -> 0 | AA43: =D2b!H64 -> 0 | AB43: =D2b!I64 -> 0 | AC43: =D2b!J63 -> 0 | AD43: =D2b!S63 -> 0 | AE43: =D2b!T63 -> 0 | AF43: =D2b!U63 -> 0.03 | AG43: =D2b!V63 -> 0 | AH43: =D2b!W63 -> 0.97 | AI43: =D2b!X63 -> 0 | BB43: ='I2'!D64 -> 0 | BC43: ='I2'!N64 -> 0 | BD43: ='I2'!O64 -> 0 | BE43: ='I2'!P64 -> 0.03 | BF43: ='I2'!Q64 -> 0 | BG43: ='I2'!R64 -> 0.97 | BH43: ='I2'!S64 -> 0 | CF43: =I1a!C150 -> Part de l'électricité dans l'énergie totale consommée | CG43: =I1a!G150 -> 0.02 | CH43: =I1a!H150 -> 0
E44: =D1a!D60 -> 0 | F44: =D1a!E60 -> 0 | G44: =D1a!F60 -> 0 | H44: =D1a!G60 -> 0 | I44: =D1a!H60 -> 0 | J44: =D1a!I60 -> 0 | K44: =D1a!J60 -> 0 | L44: =D1a!K60 -> 0 | M44: =D1a!L60 -> 0 | N44: =D1a!M60 -> 0 | O44: =D1a!N60 -> 0 | P44: =D1a!Q60 -> 0 | Q44: =D1a!R60 -> 0 | R44: =D1a!S53 -> 0 | S44: =D1a!T53 -> 0 | Z44: =D2b!D65 -> 0 | AA44: =D2b!H65 -> 0 | AB44: =D2b!I65 -> 0 | AC44: =D2b!J64 -> 0 | AD44: =D2b!S64 -> 0 | AE44: =D2b!T64 -> 0 | AF44: =D2b!U64 -> 0.03 | AG44: =D2b!V64 -> 0 | AH44: =D2b!W64 -> 0.97 | AI44: =D2b!X64 -> 0 | BB44: ='I2'!D65 -> 0 | BC44: ='I2'!N65 -> 0 | BD44: ='I2'!O65 -> 0 | BE44: ='I2'!P65 -> 0.03 | BF44: ='I2'!Q65 -> 0 | BG44: ='I2'!R65 -> 0.97 | BH44: ='I2'!S65 -> 0
E45: =D1a!D64 -> 0 | F45: =D1a!E64 -> 0 | G45: =D1a!F64 -> 0 | H45: =D1a!G64 -> 0 | I45: =D1a!H64 -> 0 | J45: =D1a!I64 -> 0 | K45: =D1a!J64 -> 0 | L45: =D1a!K64 -> 0 | M45: =D1a!L64 -> 0 | N45: =D1a!M64 -> 0 | O45: =D1a!N64 -> 0 | P45: =D1a!Q64 -> 0 | Q45: =D1a!R64 -> 0 | R45: =D1a!S54 -> 0 | S45: =D1a!T54 -> 0 | Z45: =D2b!D66 -> 0 | AA45: =D2b!H66 -> 0 | AB45: =D2b!I66 -> 0 | AC45: =D2b!J65 -> 0 | AD45: =D2b!S65 -> 0 | AE45: =D2b!T65 -> 0 | AF45: =D2b!U65 -> 0.03 | AG45: =D2b!V65 -> 0 | AH45: =D2b!W65 -> 0.97 | AI45: =D2b!X65 -> 0 | BB45: ='I2'!D66 -> 0 | BC45: ='I2'!N66 -> 0 | BD45: ='I2'!O66 -> 0 | BE45: ='I2'!P66 -> 0.03 | BF45: ='I2'!Q66 -> 0 | BG45: ='I2'!R66 -> 0.97 | BH45: ='I2'!S66 -> 0
E46: =D1a!D65 -> 0 | F46: =D1a!E65 -> 0 | G46: =D1a!F65 -> 0 | H46: =D1a!G65 -> 0 | I46: =D1a!H65 -> 0 | J46: =D1a!I65 -> 0 | K46: =D1a!J65 -> 0 | L46: =D1a!K65 -> 0 | M46: =D1a!L65 -> 0 | N46: =D1a!M65 -> 0 | O46: =D1a!N65 -> 0 | P46: =D1a!Q65 -> 0 | Q46: =D1a!R65 -> 0 | R46: =D1a!S55 -> 0 | S46: =D1a!T55 -> 0 | BB46: ='I2'!D67 -> 0 | BC46: ='I2'!N67 -> 0 | BD46: ='I2'!O67 -> 0 | BE46: ='I2'!P67 -> 0.03 | BF46: ='I2'!Q67 -> 0 | BG46: ='I2'!R67 -> 0.97 | BH46: ='I2'!S67 -> 0 | CF46: =I1a!C153 -> Territoire - consommation d'électricité - traitement des déchets | CG46: =I1a!G153 -> 0 | CH46: =I1a!H153 -> MWh
E47: =D1a!D67 -> 0 | F47: =D1a!E67 -> 0 | G47: =D1a!F67 -> 0 | H47: =D1a!G67 -> 0 | I47: =D1a!H67 -> 0 | J47: =D1a!I67 -> 0 | K47: =D1a!J67 -> 0 | L47: =D1a!K67 -> 0 | M47: =D1a!L67 -> 0 | N47: =D1a!M67 -> 0 | O47: =D1a!N67 -> 0 | P47: =D1a!Q67 -> 0 | Q47: =D1a!R67 -> 0 | R47: =D1a!S56 -> 0 | S47: =D1a!T56 -> 0 | BB47: ='I2'!D74 -> 0 | BC47: ='I2'!N74 -> 0 | BD47: ='I2'!O74 -> 0 | BE47: ='I2'!P74 -> 0 | BF47: ='I2'!Q74 -> 0 | BG47: ='I2'!R74 -> 0 | BH47: ='I2'!S74 -> 0 | CJ47: =I1a!G170 -> Industrie des minéraux non-métalliques et matériaux de construction
BB48: ='I2'!D75 -> 0 | BC48: ='I2'!N75 -> 0 | BD48: ='I2'!O75 -> 0 | BE48: ='I2'!P75 -> 0 | BF48: ='I2'!Q75 -> 0 | BG48: ='I2'!R75 -> 0 | BH48: ='I2'!S75 -> 0 | CF48: =I1a!C172 -> Part des émissions directes de GES liée à l'énergie | CI48: =I1a!F172 -> % | CJ48: =I1a!G172 -> 0.015
CF49: =I1a!C174 -> Equivalence GES / consommation d'énergie (hors électricité) | CI49: =I1a!F174 -> t eq CO2 / MWh | CJ49: =I1a!G174 -> 0.271
CF50: =I1a!C176 -> Part de l'électricité dans l'énergie totale consommée | CI50: =I1a!F176 -> % | CJ50: =I1a!G176 -> 0.16
CF52: =I1a!C181 -> Territoire - Consommation d'électricité - Travaux | CI52: =I1a!F181 -> 0 | CJ52: =I1a!G181 -> MWh

Sheet GestionErreurs
B2: ESPASS - Gestion des erreurs qui peuvent intervenir dans les macro. | V2: SCOT | W2: Vider les champs
B4: 1) | C4: Activer le contenu de la macro.
C16: Si cela ne résout pas le problème, essayer la résolution 2 ci-dessous.
B20: 2) | C20: Vérifier que les références des bibliothèques nécessaires à la macro soient correctement activées.
C21: 2.1) | D21: Pour cela vérifier que le menu "Developer" soit visible.
D22: Si ce n'est pas le cas, cocher le menu "Developer" dans le menu Fichier -> Options -> Personaliser le ruban.
C58: 2.2) | D58: Une fois visible, aller dans l'onglet Developer -> Visual Basic
C67: 2.3) | D67: Dans la fenêtre Visual Basic, choisir le menu Outils et Références et dans la fenetre des références, cocher toutes les références requises suivantes:
C87: 2.4) | D87: Si certaines références sont notées "Manquantes" ou "Missing", les désactiver et choisir des versions antérieures disponibles plus bas dans la liste.
C108: 2.5) | D108: Si cela ne résout pas le problème, essayer la résolution 3 ci-dessous.
B112: 3) | C112: Réessayer l'export Word en choisissant l'option "DOC" plutôt que "DOCX".
C113: Pour cela, la version ".doc" du template Word doit être présente dans votre dossier de travail.

Sheet D1a
B2: MyEmiss'Air
B4: Emissions directes du territoire
B6: Source: | C6: http://myemissair.atmo-npdc2.fr | E6: Année de la méthodologie: | G6: 2017
E7: Année des données: | G7: 2015
E9: Note : si vous devez réaliser plusieurs extractions de "myemiss'air" pour obtenir les onnées d'émissions à votre échelle géographique, faites une sous-total par poste secten (exemple : additionnez toutes les lignes "TROUTE" entre elles). Les données que vous saisissez ne doivent pas comporter plus de 52 lignes.
B11: Emissions directes territoriales par GES/polluants et par secteur
D13: SECTEN 2 M2012 | E13: CH4 kg/an | F13: CO2 bio kg/an | G13: CO2 kg/an | H13: CO2 Scope2 kg/an | I13: COVNM kg/an | J13: GES en tonnes eqCO2/an | K13: GES en tonnes eqCO2/an GIEC2007 | L13: HFC kg/an | M13: N2O kg/an | N13: NH3 kg/an | O13: NOx kg/an | P13: PFC kg/an | Q13: PM10 kg/an | R13: PM2.5 kg/an | S13: SF6 kg/an | T13: SO2 kg/an
C66: Total | E66: =SUM(E14:E65) -> 0 | F66: =SUM(F14:F65) -> 0 | G66: 0 | H66: 0 | I66: 0 | J66: 0 | K66: 0 | L66: 0 | M66: 0 | N66: 0 | O66: 0 | P66: 0 | Q66: 0 | R66: 0 | S66: 0 | T66: 0
B70: Nettoyage des données - Emissions directes territoriales par GES/polluants et par secteur (ne pas modifier)
E71: Gaz à effet de serre | L71: Polluants atmosphériques
E72: CO2 | F72: CH4 | G72: N2O | H72: HFC | I72: PFC | J72: SF6 | K72: GES en tonnes eqCO2/an | L72: PM10 | M72: NOx | N72: COVNM | O72: PM2.5 | P72: SO2 | Q72: NH3
D73: Secteurs atmo méthode 2012 | E73: kg | F73: kg | G73: kg | H73: kg | I73: kg | J73: kg | K73: kt eq CO2 | L73: kg | M73: kg | N73: kg | O73: kg | P73: kg | Q73: kg
D74: =D14 -> 0 | E74: =IFERROR(VALUE(SUBSTITUTE(G14,".",",")),0) -> 0 | F74: =IFERROR(VALUE(SUBSTITUTE(E14,".",",")),0) -> 0 | G74: =IFERROR(VALUE(SUBSTITUTE(M14,".",",")),0) -> 0 | H74: =IFERROR(VALUE(SUBSTITUTE(L14,".",",")),0) -> 0 | I74: =IFERROR(VALUE(SUBSTITUTE(P14,".",",")),0) -> 0 | J74: =IFERROR(VALUE(SUBSTITUTE(S14,".",",")),0) -> 0 | K74: =(IFERROR(VALUE(SUBSTITUTE(J14,".",",")),0)-IFERROR(VALUE(SUBSTITUTE(H14,".",",")),0)/1000)/1000 -> 0 | L74: =IFERROR(VALUE(SUBSTITUTE(Q14,".",",")),0) -> 0 | M74: =IFERROR(VALUE(SUBSTITUTE(O14,".",",")),0) -> 0 | N74: =IFERROR(VALUE(SUBSTITUTE(I14,".",",")),0) -> 0 | O74: =IFERROR(VALUE(SUBSTITUTE(R14,".",",")),0) -> 0 | P74: =IFERROR(VALUE(SUBSTITUTE(T14,".",",")),0) -> 0 | Q74: =IFERROR(VALUE(SUBSTITUTE(N14,".",",")),0) -> 0
D75: =D15 -> 0 | E75: 0 | F75: 0 | G75: 0 | H75: 0 | I75: 0 | J75: 0 | K75: =(IFERROR(VALUE(SUBSTITUTE(J15,".",",")),0)-IFERROR(VALUE(SUBSTITUTE(H15,".",",")),0)/1000)/1000 -> 0 | L75: 0 | M75: 0 | N75: 0 | O75: 0 | P75: 0 | Q75: 0
D76: 0 | E76: 0 | F76: 0 | G76: 0 | H76: 0 | I76: 0 | J76: 0 | K76: 0 | L76: 0 | M76: 0 | N76: 0 | O76: 0 | P76: 0 | Q76: 0
D77: 0 | E77: 0 | F77: 0 | G77: 0 | H77: 0 | I77: 0 | J77: 0 | K77: 0 | L77: 0 | M77: 0 | N77: 0 | O77: 0 | P77: 0 | Q77: 0
D78: 0 | E78: 0 | F78: 0 | G78: 0 | H78: 0 | I78: 0 | J78: 0 | K78: 0 | L78: 0 | M78: 0 | N78: 0 | O78: 0 | P78: 0 | Q78: 0
D79: 0 | E79: 0 | F79: 0 | G79: 0 | H79: 0 | I79: 0 | J79: 0 | K79: 0 | L79: 0 | M79: 0 | N79: 0 | O79: 0 | P79: 0 | Q79: 0
D80: 0 | E80: 0 | F80: 0 | G80: 0 | H80: 0 | I80: 0 | J80: 0 | K80: 0 | L80: 0 | M80: 0 | N80: 0 | O80: 0 | P80: 0 | Q80: 0
D81: 0 | E81: 0 | F81: 0 | G81: 0 | H81: 0 | I81: 0 | J81: 0 | K81: 0 | L81: 0 | M81: 0 | N81: 0 | O81: 0 | P81: 0 | Q81: 0
D82: 0 | E82: 0 | F82: 0 | G82: 0 | H82: 0 | I82: 0 | J82: 0 | K82: 0 | L82: 0 | M82: 0 | N82: 0 | O82: 0 | P82: 0 | Q82: 0
D83: 0 | E83: 0 | F83: 0 | G83: 0 | H83: 0 | I83: 0 | J83: 0 | K83: 0 | L83: 0 | M83: 0 | N83: 0 | O83: 0 | P83: 0 | Q83: 0
D84: 0 | E84: 0 | F84: 0 | G84: 0 | H84: 0 | I84: 0 | J84: 0 | K84: 0 | L84: 0 | M84: 0 | N84: 0 | O84: 0 | P84: 0 | Q84: 0
D85: 0 | E85: 0 | F85: 0 | G85: 0 | H85: 0 | I85: 0 | J85: 0 | K85: 0 | L85: 0 | M85: 0 | N85: 0 | O85: 0 | P85: 0 | Q85: 0
D86: 0 | E86: 0 | F86: 0 | G86: 0 | H86: 0 | I86: 0 | J86: 0 | K86: 0 | L86: 0 | M86: 0 | N86: 0 | O86: 0 | P86: 0 | Q86: 0
D87: 0 | E87: 0 | F87: 0 | G87: 0 | H87: 0 | I87: 0 | J87: 0 | K87: 0 | L87: 0 | M87: 0 | N87: 0 | O87: 0 | P87: 0 | Q87: 0
D88: 0 | E88: 0 | F88: 0 | G88: 0 | H88: 0 | I88: 0 | J88: 0 | K88: 0 | L88: 0 | M88: 0 | N88: 0 | O88: 0 | P88: 0 | Q88: 0
D89: 0 | E89: 0 | F89: 0 | G89: 0 | H89: 0 | I89: 0 | J89: 0 | K89: 0 | L89: 0 | M89: 0 | N89: 0 | O89: 0 | P89: 0 | Q89: 0
D90: 0 | E90: 0 | F90: =IFERROR(VALUE(SUBSTITUTE(E30,".",",")),0) -> 0 | G90: 0 | H90: 0 | I90: 0 | J90: 0 | K90: 0 | L90: 0 | M90: 0 | N90: 0 | O90: 0 | P90: 0 | Q90: 0
D91: 0 | E91: 0 | F91: 0 | G91: 0 | H91: 0 | I91: 0 | J91: 0 | K91: 0 | L91: 0 | M91: 0 | N91: 0 | O91: 0 | P91: 0 | Q91: 0
D92: 0 | E92: 0 | F92: 0 | G92: 0 | H92: 0 | I92: 0 | J92: 0 | K92: 0 | L92: 0 | M92: 0 | N92: 0 | O92: 0 | P92: 0 | Q92: 0
D93: 0 | E93: 0 | F93: 0 | G93: 0 | H93: 0 | I93: 0 | J93: 0 | K93: 0 | L93: 0 | M93: 0 | N93: 0 | O93: 0 | P93: 0 | Q93: 0
D94: 0 | E94: 0 | F94: 0 | G94: 0 | H94: 0 | I94: 0 | J94: 0 | K94: 0 | L94: 0 | M94: 0 | N94: 0 | O94: 0 | P94: 0 | Q94: 0
D95: 0 | E95: 0 | F95: 0 | G95: 0 | H95: 0 | I95: 0 | J95: 0 | K95: 0 | L95: 0 | M95: 0 | N95: 0 | O95: 0 | P95: 0 | Q95: 0
D96: 0 | E96: 0 | F96: 0 | G96: 0 | H96: 0 | I96: 0 | J96: 0 | K96: 0 | L96: 0 | M96: 0 | N96: 0 | O96: 0 | P96: 0 | Q96: 0
D97: 0 | E97: 0 | F97: 0 | G97: 0 | H97: 0 | I97: 0 | J97: 0 | K97: 0 | L97: 0 | M97: 0 | N97: 0 | O97: 0 | P97: 0 | Q97: 0
D98: 0 | E98: 0 | F98: 0 | G98: 0 | H98: 0 | I98: 0 | J98: 0 | K98: 0 | L98: 0 | M98: 0 | N98: 0 | O98: 0 | P98: 0 | Q98: 0
D99: 0 | E99: 0 | F99: 0 | G99: 0 | H99: 0 | I99: 0 | J99: 0 | K99: 0 | L99: 0 | M99: 0 | N99: 0 | O99: 0 | P99: 0 | Q99: 0
D100: 0 | E100: 0 | F100: 0 | G100: 0 | H100: 0 | I100: 0 | J100: 0 | K100: 0 | L100: 0 | M100: 0 | N100: 0 | O100: 0 | P100: 0 | Q100: 0
D101: 0 | E101: 0 | F101: 0 | G101: 0 | H101: 0 | I101: 0 | J101: 0 | K101: 0 | L101: 0 | M101: 0 | N101: 0 | O101: 0 | P101: 0 | Q101: 0
D102: 0 | E102: =IFERROR(VALUE(SUBSTITUTE(G42,".",",")),0) -> 0 | F102: 0 | G102: 0 | H102: 0 | I102: 0 | J102: 0 | K102: 0 | L102: 0 | M102: 0 | N102: 0 | O102: 0 | P102: 0 | Q102: 0
D103: 0 | E103: 0 | F103: 0 | G103: 0 | H103: 0 | I103: 0 | J103: 0 | K103: 0 | L103: 0 | M103: 0 | N103: 0 | O103: 0 | P103: 0 | Q103: 0
D104: 0 | E104: 0 | F104: 0 | G104: 0 | H104: 0 | I104: 0 | J104: 0 | K104: 0 | L104: 0 | M104: 0 | N104: 0 | O104: 0 | P104: 0 | Q104: 0
D105: 0 | E105: 0 | F105: 0 | G105: 0 | H105: 0 | I105: 0 | J105: 0 | K105: 0 | L105: 0 | M105: 0 | N105: 0 | O105: 0 | P105: 0 | Q105: 0
D106: 0 | E106: =IFERROR(VALUE(SUBSTITUTE(G46,".",",")),0) -> 0 | F106: 0 | G106: 0 | H106: 0 | I106: 0 | J106: 0 | K106: 0 | L106: 0 | M106: 0 | N106: 0 | O106: 0 | P106: 0 | Q106: 0
D107: 0 | E107: =IFERROR(VALUE(SUBSTITUTE(G47,".",",")),0) -> 0 | F107: 0 | G107: 0 | H107: 0 | I107: 0 | J107: 0 | K107: 0 | L107: 0 | M107: 0 | N107: 0 | O107: 0 | P107: 0 | Q107: 0
D108: 0 | E108: =IFERROR(VALUE(SUBSTITUTE(G48,".",",")),0) -> 0 | F108: 0 | G108: 0 | H108: 0 | I108: 0 | J108: 0 | K108: 0 | L108: 0 | M108: 0 | N108: 0 | O108: 0 | P108: 0 | Q108: 0
D109: 0 | E109: =IFERROR(VALUE(SUBSTITUTE(G49,".",",")),0) -> 0 | F109: 0 | G109: 0 | H109: 0 | I109: 0 | J109: 0 | K109: 0 | L109: 0 | M109: 0 | N109: 0 | O109: 0 | P109: 0 | Q109: 0
D110: 0 | E110: =IFERROR(VALUE(SUBSTITUTE(G50,".",",")),0) -> 0 | F110: =IFERROR(VALUE(SUBSTITUTE(E50,".",",")),0) -> 0 | G110: =IFERROR(VALUE(SUBSTITUTE(M50,".",",")),0) -> 0 | H110: =IFERROR(VALUE(SUBSTITUTE(L50,".",",")),0) -> 0 | I110: =IFERROR(VALUE(SUBSTITUTE(P50,".",",")),0) -> 0 | J110: =IFERROR(VALUE(SUBSTITUTE(S50,".",",")),0) -> 0 | K110: 0 | L110: =IFERROR(VALUE(SUBSTITUTE(Q50,".",",")),0) -> 0 | M110: =IFERROR(VALUE(SUBSTITUTE(O50,".",",")),0) -> 0 | N110: =IFERROR(VALUE(SUBSTITUTE(I50,".",",")),0) -> 0 | O110: =IFERROR(VALUE(SUBSTITUTE(R50,".",",")),0) -> 0 | P110: =IFERROR(VALUE(SUBSTITUTE(T50,".",",")),0) -> 0 | Q110: =IFERROR(VALUE(SUBSTITUTE(N50,".",",")),0) -> 0
D111: 0 | E111: 0 | F111: 0 | G111: 0 | H111: 0 | I111: 0 | J111: 0 | K111: 0 | L111: 0 | M111: 0 | N111: 0 | O111: 0 | P111: 0 | Q111: 0
D112: 0 | E112: 0 | F112: 0 | G112: 0 | H112: 0 | I112: 0 | J112: 0 | K112: 0 | L112: 0 | M112: 0 | N112: 0 | O112: 0 | P112: 0 | Q112: 0
D113: 0 | E113: 0 | F113: 0 | G113: 0 | H113: 0 | I113: 0 | J113: 0 | K113: 0 | L113: 0 | M113: 0 | N113: 0 | O113: 0 | P113: 0 | Q113: 0
D114: 0 | E114: 0 | F114: 0 | G114: 0 | H114: 0 | I114: 0 | J114: 0 | K114: 0 | L114: 0 | M114: 0 | N114: 0 | O114: 0 | P114: 0 | Q114: 0
D115: 0 | E115: 0 | F115: 0 | G115: 0 | H115: 0 | I115: 0 | J115: 0 | K115: 0 | L115: 0 | M115: 0 | N115: 0 | O115: 0 | P115: 0 | Q115: 0
D116: 0 | E116: 0 | F116: 0 | G116: 0 | H116: 0 | I116: 0 | J116: 0 | K116: 0 | L116: 0 | M116: 0 | N116: 0 | O116: 0 | P116: 0 | Q116: 0
D117: 0 | E117: 0 | F117: 0 | G117: 0 | H117: 0 | I117: 0 | J117: 0 | K117: 0 | L117: 0 | M117: 0 | N117: 0 | O117: 0 | P117: 0 | Q117: 0
D118: 0 | E118: 0 | F118: 0 | G118: 0 | H118: 0 | I118: 0 | J118: 0 | K118: 0 | L118: 0 | M118: 0 | N118: 0 | O118: 0 | P118: 0 | Q118: 0
D119: 0 | E119: =IFERROR(VALUE(SUBSTITUTE(G59,".",",")),0) -> 0 | F119: =IFERROR(VALUE(SUBSTITUTE(E59,".",",")),0) -> 0 | G119: =IFERROR(VALUE(SUBSTITUTE(M59,".",",")),0) -> 0 | H119: =IFERROR(VALUE(SUBSTITUTE(L59,".",",")),0) -> 0 | I119: =IFERROR(VALUE(SUBSTITUTE(P59,".",",")),0) -> 0 | J119: =IFERROR(VALUE(SUBSTITUTE(S59,".",",")),0) -> 0 | K119: 0 | L119: =IFERROR(VALUE(SUBSTITUTE(Q59,".",",")),0) -> 0 | M119: =IFERROR(VALUE(SUBSTITUTE(O59,".",",")),0) -> 0 | N119: =IFERROR(VALUE(SUBSTITUTE(I59,".",",")),0) -> 0 | O119: =IFERROR(VALUE(SUBSTITUTE(R59,".",",")),0) -> 0 | P119: =IFERROR(VALUE(SUBSTITUTE(T59,".",",")),0) -> 0 | Q119: =IFERROR(VALUE(SUBSTITUTE(N59,".",",")),0) -> 0
D120: 0 | E120: 0 | F120: 0 | G120: 0 | H120: 0 | I120: 0 | J120: 0 | K120: 0 | L120: 0 | M120: 0 | N120: 0 | O120: 0 | P120: 0 | Q120: 0
D121: 0 | E121: 0 | F121: 0 | G121: 0 | H121: 0 | I121: 0 | J121: 0 | K121: 0 | L121: 0 | M121: 0 | N121: 0 | O121: 0 | P121: 0 | Q121: 0
D122: 0 | E122: 0 | F122: 0 | G122: 0 | H122: 0 | I122: 0 | J122: 0 | K122: 0 | L122: 0 | M122: 0 | N122: 0 | O122: 0 | P122: 0 | Q122: 0
D123: 0 | E123: 0 | F123: 0 | G123: 0 | H123: 0 | I123: 0 | J123: 0 | K123: 0 | L123: 0 | M123: 0 | N123: 0 | O123: 0 | P123: 0 | Q123: 0
D124: 0 | E124: 0 | F124: 0 | G124: 0 | H124: 0 | I124: 0 | J124: 0 | K124: 0 | L124: 0 | M124: 0 | N124: 0 | O124: 0 | P124: 0 | Q124: 0
D125: 0 | E125: 0 | F125: 0 | G125: 0 | H125: 0 | I125: 0 | J125: 0 | K125: 0 | L125: 0 | M125: 0 | N125: 0 | O125: 0 | P125: 0 | Q125: 0
C126: Total | E126: =SUM(E74:E125) -> 0 | F126: =SUM(F74:F125) -> 0 | G126: 0 | H126: 0 | I126: 0 | J126: 0 | K126: 0 | L126: 0 | M126: 0 | N126: 0 | O126: 0 | P126: 0 | Q126: 0
B130: Récapitulatif - Table de correspondance SECTEN - Emissions directes territoriales par GES/polluants et par secteur (ne pas modifier)
E131: Gaz à effet de serre | L131: Polluants atmosphériques
E132: CO2 | F132: CH4 | G132: N2O | H132: HFC | I132: PFC | J132: SF6 | K132: Effet de serre (GIEC 2013-AR5) | L132: PM10 | M132: NOx | N132: COVNM | O132: PM2.5 | P132: SO2 | Q132: NH3
D133: Nomenclature ESPASS (base atmo méthode 2010) | E133: kg | F133: kg | G133: kg | H133: kg | I133: kg | J133: kg | K133: kt eq CO2 | L133: kg | M133: kg | N133: kg | O133: kg | P133: kg | Q133: kg | R133: Notes version ATMO
C134: Agriculture | D134: Autres sources de l'agriculture (tracteurs, …) + sylviculture | E134: =IFERROR(VLOOKUP($D$220,$D$74:$Q$125,E171,FALSE),0)+IFERROR(VLOOKUP($D$175,$D$74:$Q$125,E171,FALSE),0) -> 0 | F134: =IFERROR(VLOOKUP($D$220,$D$74:$Q$125,F171,FALSE),0)+IFERROR(VLOOKUP($D$175,$D$74:$Q$125,F171,FALSE),0) -> 0 | G134: 0 | H134: 0 | I134: 0 | J134: 0 | K134: =IFERROR(VLOOKUP($D$220,$D$74:$Q$125,K171,FALSE),0)+IFERROR(VLOOKUP($D$175,$D$74:$Q$125,K171,FALSE),0) -> 0 | L134: 0 | M134: 0 | N134: 0 | O134: 0 | P134: 0 | Q134: 0
D135: Culture | E135: =IFERROR(VLOOKUP($D$176,$D$74:$Q$125,E171,FALSE),0) -> 0 | F135: =IFERROR(VLOOKUP($D$176,$D$74:$Q$125,F171,FALSE),0) -> 0 | G135: 0 | H135: 0 | I135: 0 | J135: 0 | K135: 0 | L135: 0 | M135: 0 | N135: 0 | O135: 0 | P135: 0 | Q135: 0
D136: Elevage | E136: =IFERROR(VLOOKUP($D178,$D$74:$Q$125,E171,FALSE),0) -> 0 | F136: =IFERROR(VLOOKUP($D178,$D$74:$Q$125,F171,FALSE),0) -> 0 | G136: 0 | H136: 0 | I136: 0 | J136: 0 | K136: 0 | L136: 0 | M136: 0 | N136: 0 | O136: 0 | P136: 0 | Q136: 0
C137: Autres transports | D137: Transport aérien français | E137: =IFERROR(VLOOKUP($D221,$D$74:$Q$125,E171,FALSE),0)+IFERROR(VLOOKUP($D179,$D$74:$Q$125,E171,FALSE),0) -> 0 | F137: =IFERROR(VLOOKUP($D221,$D$74:$Q$125,F171,FALSE),0)+IFERROR(VLOOKUP($D179,$D$74:$Q$125,F171,FALSE),0) -> 0 | G137: 0 | H137: 0 | I137: 0 | J137: 0 | K137: 0 | L137: 0 | M137: 0 | N137: 0 | O137: 0 | P137: 0 | Q137: 0
D138: Transport ferroviaire | E138: =IFERROR(VLOOKUP($D180,$D$74:$Q$125,E171,FALSE),0) -> 0 | F138: =IFERROR(VLOOKUP($D180,$D$74:$Q$125,F171,FALSE),0) -> 0 | G138: 0 | H138: 0 | I138: 0 | J138: 0 | K138: 0 | L138: 0 | M138: 0 | N138: 0 | O138: 0 | P138: 0 | Q138: 0
D139: Transport fluvial et maritime | E139: =IFERROR(VLOOKUP($D181,$D$74:$Q$125,E171,FALSE),0)+IFERROR(VLOOKUP($D182,$D$74:$Q$125,E171,FALSE),0) -> 0 | F139: =IFERROR(VLOOKUP($D181,$D$74:$Q$125,F171,FALSE),0)+IFERROR(VLOOKUP($D182,$D$74:$Q$125,F171,FALSE),0) -> 0 | G139: 0 | H139: 0 | I139: 0 | J139: 0 | K139: 0 | L139: 0 | M139: 0 | N139: 0 | O139: 0 | P139: 0 | Q139: 0
C140: IDEC | D140: Agro-alimentaire | E140: =IFERROR(VLOOKUP($D183,$D$74:$Q$125,E171,FALSE),0) -> 0 | F140: =IFERROR(VLOOKUP($D183,$D$74:$Q$125,F171,FALSE),0) -> 0 | G140: 0 | H140: 0 | I140: 0 | J140: 0 | K140: 0 | L140: 0 | M140: 0 | N140: 0 | O140: 0 | P140: 0 | Q140: 0
D141: Autres secteurs de l'industrie et non spécifié | E141: =IFERROR(VLOOKUP($D184,$D$74:$Q$125,E171,FALSE),0) -> 0 | F141: =IFERROR(VLOOKUP($D184,$D$74:$Q$125,F171,FALSE),0) -> 0 | G141: 0 | H141: 0 | I141: 0 | J141: 0 | K141: 0 | L141: 0 | M141: 0 | N141: 0 | O141: 0 | P141: 0 | Q141: 0
D142: Biens d'équipement, matériels de transport… | E142: =IFERROR(VLOOKUP($D185,$D$74:$Q$125,E171,FALSE),0) -> 0 | F142: =IFERROR(VLOOKUP($D185,$D$74:$Q$125,F171,FALSE),0) -> 0 | G142: 0 | H142: 0 | I142: 0 | J142: 0 | K142: 0 | L142: 0 | M142: 0 | N142: 0 | O142: 0 | P142: 0 | Q142: 0
D143: Chimie organique, non-organique et divers | E143: =IFERROR(VLOOKUP($D186,$D$74:$Q$125,E171,FALSE),0) -> 0 | F143: =IFERROR(VLOOKUP($D186,$D$74:$Q$125,F171,FALSE),0) -> 0 | G143: 0 | H143: 0 | I143: 0 | J143: 0 | K143: 0 | L143: 0 | M143: 0 | N143: 0 | O143: 0 | P143: 0 | Q143: 0
D144: Construction | E144: =IFERROR(VLOOKUP($D187,$D$74:$Q$125,E171,FALSE),0) -> 0 | F144: =IFERROR(VLOOKUP($D187,$D$74:$Q$125,F171,FALSE),0) -> 0 | G144: 0 | H144: 0 | I144: 0 | J144: 0 | K144: 0 | L144: 0 | M144: 0 | N144: 0 | O144: 0 | P144: 0 | Q144: 0
D145: Métallurgie des métaux ferreux | E145: =IFERROR(VLOOKUP($D188,$D$74:$Q$125,E171,FALSE),0) -> 0 | F145: =IFERROR(VLOOKUP($D188,$D$74:$Q$125,F171,FALSE),0) -> 0 | G145: =IFERROR(VLOOKUP($D188,$D$74:$Q$125,G171,FALSE),0) -> 0 | H145: 0 | I145: 0 | J145: 0 | K145: 0 | L145: 0 | M145: 0 | N145: 0 | O145: 0 | P145: 0 | Q145: 0
D146: Métallurgie des métaux non-ferreux | E146: =IFERROR(VLOOKUP($D189,$D$74:$Q$125,E171,FALSE),0) -> 0 | F146: =IFERROR(VLOOKUP($D189,$D$74:$Q$125,F171,FALSE),0) -> 0 | G146: 0 | H146: 0 | I146: 0 | J146: 0 | K146: 0 | L146: 0 | M146: 0 | N146: 0 | O146: 0 | P146: 0 | Q146: 0
D147: Minéraux non-métalliques et matériaux de construction | E147: =IFERROR(VLOOKUP($D190,$D$74:$Q$125,E171,FALSE),0) -> 0 | F147: =IFERROR(VLOOKUP($D190,$D$74:$Q$125,F171,FALSE),0) -> 0 | G147: 0 | H147: 0 | I147: 0 | J147: 0 | K147: 0 | L147: 0 | M147: 0 | N147: 0 | O147: 0 | P147: 0 | Q147: 0
D148: Papier, carton | E148: =IFERROR(VLOOKUP($D191,$D$74:$Q$125,E171,FALSE),0) -> 0 | F148: =IFERROR(VLOOKUP($D191,$D$74:$Q$125,F171,FALSE),0) -> 0 | G148: 0 | H148: 0 | I148: 0 | J148: 0 | K148: 0 | L148: 0 | M148: 0 | N148: 0 | O148: 0 | P148: 0 | Q148: 0
D149: Tous secteurs IM | E149: 0 | F149: 0 | G149: 0 | H149: 0 | I149: 0 | J149: 0 | K149: 0 | L149: 0 | M149: 0 | N149: 0 | O149: 0 | P149: 0 | Q149: 0 | R149: supprimé (M2010>M2012)
D150: Traitement des déchets | E150: =IFERROR(VLOOKUP($D193,$D$74:$Q$125,E171,FALSE),0)+IFERROR(VLOOKUP($D194,$D$74:$Q$125,E171,FALSE),0) -> 0 | F150: =IFERROR(VLOOKUP($D193,$D$74:$Q$125,F171,FALSE),0)+IFERROR(VLOOKUP($D194,$D$74:$Q$125,F171,FALSE),0) -> 0 | G150: 0 | H150: 0 | I150: 0 | J150: 0 | K150: 0 | L150: 0 | M150: 0 | N150: 0 | O150: 0 | P150: 0 | Q150: 0
D151: Traitement déchets industrie | E151: 0 | F151: 0 | G151: 0 | H151: 0 | I151: 0 | J151: 0 | K151: 0 | L151: 0 | M151: 0 | N151: 0 | O151: 0 | P151: 0 | Q151: 0 | R151: ventilé (M2010>M2012)
C152: Résidentiel tertiaire | D152: Résidentiel | E152: =IFERROR(VLOOKUP($D196,$D$74:$Q$125,E171,FALSE),0) -> 0 | F152: =IFERROR(VLOOKUP($D196,$D$74:$Q$125,F171,FALSE),0) -> 0 | G152: =IFERROR(VLOOKUP($D196,$D$74:$Q$125,G171,FALSE),0) -> 0 | H152: 0 | I152: 0 | J152: 0 | K152: 0 | L152: 0 | M152: 0 | N152: 0 | O152: 0 | P152: 0 | Q152: 0
D153: Tertiaire, commercial et institutionnel | E153: =IFERROR(VLOOKUP($D197,$D$74:$Q$125,E171,FALSE),0) -> 0 | F153: =IFERROR(VLOOKUP($D197,$D$74:$Q$125,F171,FALSE),0) -> 0 | G153: 0 | H153: 0 | I153: 0 | J153: 0 | K153: 0 | L153: 0 | M153: 0 | N153: 0 | O153: 0 | P153: 0 | Q153: 0
C154: Transformation de l'énergie | D154: Chauffage urbain | E154: =IFERROR(VLOOKUP($D198,$D$74:$Q$125,E171,FALSE),0) -> 0 | F154: =IFERROR(VLOOKUP($D198,$D$74:$Q$125,F171,FALSE),0) -> 0 | G154: 0 | H154: 0 | I154: 0 | J154: 0 | K154: 0 | L154: 0 | M154: 0 | N154: 0 | O154: 0 | P154: 0 | Q154: 0
D155: Extraction des combustibles gazeux et distribution d'énergie | E155: =IFERROR(VLOOKUP($D199,$D$74:$Q$125,E171,FALSE),0) -> 0 | F155: =IFERROR(VLOOKUP($D199,$D$74:$Q$125,F171,FALSE),0) -> 0 | G155: 0 | H155: 0 | I155: 0 | J155: 0 | K155: 0 | L155: 0 | M155: 0 | N155: 0 | O155: 0 | P155: 0 | Q155: 0
D156: Extraction des combustibles liquides et distribution d'énergie | E156: =IFERROR(VLOOKUP($D200,$D$74:$Q$125,E171,FALSE),0) -> 0 | F156: =IFERROR(VLOOKUP($D200,$D$74:$Q$125,F171,FALSE),0) -> 0 | G156: 0 | H156: 0 | I156: 0 | J156: 0 | K156: 0 | L156: 0 | M156: 0 | N156: 0 | O156: 0 | P156: 0 | Q156: 0
D157: Extraction des combustibles solides et distribution d'énergie | E157: =IFERROR(VLOOKUP($D204,$D$74:$Q$125,E171,FALSE),0) -> 0 | F157: =IFERROR(VLOOKUP($D204,$D$74:$Q$125,F171,FALSE),0) -> 0 | G157: 0 | H157: 0 | I157: 0 | J157: 0 | K157: 0 | L157: 0 | M157: 0 | N157: 0 | O157: 0 | P157: 0 | Q157: 0
D158: Production d'électricité | E158: =IFERROR(VLOOKUP($D201,$D$74:$Q$125,E171,FALSE),0) -> 0 | F158: =IFERROR(VLOOKUP($D201,$D$74:$Q$125,F171,FALSE),0) -> 0 | G158: 0 | H158: 0 | I158: 0 | J158: 0 | K158: 0 | L158: 0 | M158: 0 | N158: 0 | O158: 0 | P158: 0 | Q158: 0
D159: Raffinage de pétrole | E159: =IFERROR(VLOOKUP($D202,$D$74:$Q$125,E171,FALSE),0)+IFERROR(VLOOKUP($D203,$D$74:$Q$125,E171,FALSE),0) -> 0 | F159: =IFERROR(VLOOKUP($D202,$D$74:$Q$125,F171,FALSE),0)+IFERROR(VLOOKUP($D203,$D$74:$Q$125,F171,FALSE),0) -> 0 | G159: 0 | H159: 0 | I159: 0 | J159: 0 | K159: 0 | L159: 0 | M159: 0 | N159: 0 | O159: 0 | P159: 0 | Q159: 0
D160: Transformation des combustibles minéraux solides – siderurgies | E160: =IFERROR(VLOOKUP($D$192,$D$74:$Q$125,E171,FALSE),0) -> 0 | F160: 0 | G160: 0 | H160: 0 | I160: 0 | J160: 0 | K160: 0 | L160: 0 | M160: 0 | N160: 0 | O160: 0 | P160: 0 | Q160: 0
C161: Transport routier | D161: Deux roues | E161: =IFERROR(VLOOKUP($D205,$D$74:$Q$125,E171,FALSE),0) -> 0 | F161: =IFERROR(VLOOKUP($D205,$D$74:$Q$125,F171,FALSE),0) -> 0 | G161: 0 | H161: 0 | I161: 0 | J161: 0 | K161: 0 | L161: 0 | M161: 0 | N161: 0 | O161: 0 | P161: 0 | Q161: 0
D162: evap essence | E162: 0 | F162: 0 | G162: 0 | H162: 0 | I162: 0 | J162: 0 | K162: 0 | L162: 0 | M162: 0 | N162: 0 | O162: 0 | P162: 0 | Q162: 0 | R162: ventilé (M2010>M2012)
D163: Poids lourds | E163: =IFERROR(VLOOKUP($D207,$D$74:$Q$125,E171,FALSE),0)+IFERROR(VLOOKUP($D208,$D$74:$Q$125,E171,FALSE),0)+IFERROR(VLOOKUP($D$206,$D$74:$Q$125,E171,FALSE),0) -> 0 | F163: 0 | G163: 0 | H163: 0 | I163: 0 | J163: 0 | K163: 0 | L163: 0 | M163: 0 | N163: 0 | O163: 0 | P163: 0 | Q163: 0
D164: trafic diffus | E164: 0 | F164: 0 | G164: 0 | H164: 0 | I164: 0 | J164: 0 | K164: 0 | L164: 0 | M164: 0 | N164: 0 | O164: 0 | P164: 0 | Q164: 0 | R164: ventilé (M2010>M2012)
D165: usure routes | E165: 0 | F165: 0 | G165: 0 | H165: 0 | I165: 0 | J165: 0 | K165: 0 | L165: 0 | M165: 0 | N165: 0 | O165: 0 | P165: 0 | Q165: 0 | R165: ventilé (M2010>M2012)
D166: Voitures particulières | E166: =IFERROR(VLOOKUP($D211,$D$74:$Q$125,E171,FALSE),0)+IFERROR(VLOOKUP($D212,$D$74:$Q$125,E171,FALSE),0)+IFERROR(VLOOKUP($D213,$D$74:$Q$125,E171,FALSE),0)+IFERROR(VLOOKUP($D214,$D$74:$Q$125,E171,FALSE),0)+IFERROR(VLOOKUP($D215,$D$74:$Q$125,E171,FALSE),0)+IFERROR(VLOOKUP($D$210,$D$74:$Q$125,E171,FALSE),0)+IFERROR(VLOOKUP($D$219,$D$74:$Q$125,E171,FALSE),0) -> 0 | F166: 0 | G166: 0 | H166: 0 | I166: 0 | J166: 0 | K166: 0 | L166: 0 | M166: 0 | N166: 0 | O166: 0 | P166: 0 | Q166: 0
D167: VUL | E167: =IFERROR(VLOOKUP($D216,$D$74:$Q$125,E171,FALSE),0)+IFERROR(VLOOKUP($D217,$D$74:$Q$125,E171,FALSE),0)+IFERROR(VLOOKUP($D218,$D$74:$Q$125,E171,FALSE),0)+IFERROR(VLOOKUP($D$209,$D$74:$Q$125,E171,FALSE),0) -> 0 | F167: 0 | G167: 0 | H167: 0 | I167: 0 | J167: 0 | K167: 0 | L167: 0 | M167: 0 | N167: 0 | O167: 0 | P167: 0 | Q167: 0
C168: Autres sources non antrophiques + sources biotiques agricoles | E168: =IFERROR(VLOOKUP($D$177,$D$74:$Q$125,E171,FALSE),0)+IFERROR(VLOOKUP($D$195,$D$74:$Q$125,E171,FALSE),0) -> 0 | F168: =IFERROR(VLOOKUP($D$177,$D$74:$Q$125,F171,FALSE),0)+IFERROR(VLOOKUP($D$195,$D$74:$Q$125,F171,FALSE),0) -> 0 | G168: 0 | H168: 0 | I168: 0 | J168: 0 | K168: 0 | L168: 0 | M168: 0 | N168: 0 | O168: 0 | P168: 0 | Q168: 0
C169: Total | E169: =SUM(E134:E168) -> 0 | F169: =SUM(F134:F168) -> 0 | G169: 0 | H169: 0 | I169: 0 | J169: 0 | K169: =SUM(K134:K168) -> 0 | L169: 0 | M169: 0 | N169: 0 | O169: 0 | P169: 0 | Q169: 0
C170: Total (hors sources non anthropiques) | E170: =SUM(E134:E167) -> 0 | F170: =SUM(F134:F167) -> 0 | G170: 0 | H170: 0 | I170: 0 | J170: 0 | K170: =SUM(K134:K167) -> 0 | L170: 0 | M170: 0 | N170: 0 | O170: 0 | P170: 0 | Q170: 0
E171: 2 | F171: 3 | G171: 4 | H171: 5 | I171: 6 | J171: 7 | K171: 8 | L171: 9 | M171: 10 | N171: 11 | O171: 12 | P171: 13 | Q171: 14
C172: Comparaison totaux | E172: =E169-E126 -> 0 | F172: =F169-F126 -> 0 | G172: 0 | H172: 0 | I172: 0 | J172: 0 | K172: 0 | L172: 0 | M172: 0 | N172: 0 | O172: 0 | P172: 0 | Q172: 0
C174: Nomenclature atmo méthode 2010 | D174: Nomenclature atmo méthode 2017
D175: AGRISY - Autre agriculture (combustion, engins,...) | F175: Les émissions non anthropiques, les sources biotiques agricoles et l'UTCF ne sont pas prises en compte dans les émissions directes car comptées par ailleurs.
D176: AGRISY - Culture | F176: Le transport aérien hors contribution national est compatabilisé (petits aérodromes)
D177: NON_FR - Sources biotiques agricoles | F177: La sylviculture est comptée dans le poste "autres sources de l'agriculture"
D178: AGRISY - Elevage
D179: TR_AUT - Transport aérien pris en compte dans le total national
D180: TR_AUT - Transport ferroviaire
D181: TR_AUT - Transport fluvial
D182: TR_AUT - Transport maritime selon la définition CEE-NU (partie nationale)
D183: INDUST - Industries agro-alimentaires
D184: INDUST - Diverses autres industries
D185: INDUST - Bien d'équipements, construction
D186: INDUST - Chimie
D187: INDUST - Construction
D188: INDUST - Sidérurgie et 1ere transformation des métaux ferreux y compris fonderie
D189: INDUST - Métallurgie des métaux non ferreux
D190: INDUST - Minéraux non-métalliques et matériaux de construction
D191: INDUST - Papier, carton
D192: EXTREN - Transformation de combustibles minéraux solides - mines
D193: INDUST - Traitement des déchets
D194: EXTREN - Autres secteurs de la transformation de l'énergie
D195: UTCF - Utilisation des terres, leur changement et la forêt
D196: RETECI - Résidentiel
D197: RETECI - Tertiaire
D198: EXTREN - Chauffage urbain
D199: EXTREN - Extraction et distribution de combustibles gazeux
D200: EXTREN - Extraction et distribution de combustibles liquides
D201: EXTREN - Production d'électricité
D202: EXTREN - Raffinage du pétrole
D203: EXTREN - Extraction et distribution d'autres produits énergétiques
D204: EXTREN - Extraction et distribution de combustibles solides
D205: TROUTE - Deux roues
D206: TROUTE - Poids lourds à moteur GNV
D207: TROUTE - Poids lourds à moteur diesel
D208: TROUTE - Poids lourds à moteur essence
D209: TROUTE - Véhicules utilitaires légers à moteur essence et non catalysé
D210: TROUTE - Voitures particulières à moteur électrique
D211: TROUTE - Voitures particulière à moteur diesel et catalysé
D212: TROUTE - Voitures particulière à moteur diesel et non catalysé
D213: TROUTE - Voitures particulière à moteur essence et catalysé
D214: TROUTE - Voitures particulière à moteur essence et GPL
D215: TROUTE - Voitures particulière à moteur essence et non catalysé
D216: TROUTE - Véhicules utilitaires légers à moteur diesel et catalysé
D217: TROUTE - Véhicules utilitaires légers à moteur diesel et non catalysé
D218: TROUTE - Véhicules utilitaires légers à moteur essence et catalysé
D219: TROUTE - Voitures particulières à moteur GNV
D220: AGRISY - Sylviculture
D221: NON_FR - Transport aérien hors contribution nationale

Sheet D1b
B2: MyEmiss'Air
B4: Emissions directes de la région Hauts-de-France
B6: Source: | C6: http://myemissair.atmo-npdc2.fr | E6: Année de la méthodologie: | G6: 2017
E7: Année des données: | G7: 2015
B10: Emissions directes régionales par GES/polluants et par secteur
E11: Gaz à effet de serre | L11: Polluants atmosphériques
E12: CO2 | F12: CH4 | G12: N2O | H12: HFC | I12: PFC | J12: SF6 | K12: Effet de serre | L12: PM10 | M12: NOx | N12: COVNM | O12: PM2.5 | P12: SO2 | Q12: NH3
E13: kg | F13: kg | G13: kg | H13: kg | I13: kg | J13: kg | K13: kt eq CO2 | L13: kg | M13: kg | N13: kg | O13: kg | P13: kg | Q13: kg | R13: Remarques
C14: Agriculture | D14: Autres sources de l'agriculture (tracteurs, …) | E14: 912849660.3 | F14: 6910595.686 | G14: 287081.2257 | H14: 0 | I14: 0 | J14: 0 | K14: 1182.422864 | L14: 519136.8032 | M14: 5849314.599 | N14: 36930822.53 | O14: 454082.7492 | P14: 11198.48424 | Q14: 2639.673325
D15: Culture | E15: 0 | F15: 827589.2404 | G15: 8294876.247 | H15: 0 | I15: 0 | J15: 0 | K15: 2221.314704 | L15: 9581585.226 | M15: 630476.2633 | N15: 1413453.856 | O15: 3101224.721 | P15: 127261.0022 | Q15: 29663256.65
D16: Elevage | E16: 0 | F16: 105585723.3 | G16: 1221912.872 | H16: 0 | I16: 0 | J16: 0 | K16: 3280.207162 | L16: 1015804.133 | M16: 0 | N16: 0 | O16: 265479.9898 | P16: 0 | Q16: 19327481.71
C17: Autres transports | D17: Transport aérien français | E17: 41757014.94 | F17: 2877.036541 | G17: 1606.811542 | H17: 0 | I17: 0 | J17: 0 | K17: 42.26337703 | L17: 42823.86752 | M17: 144976.7591 | N17: 25893.32887 | O17: 20352.96305 | P17: 13256.19522 | Q17: 0
D18: Transport ferroviaire | E18: 47279952.52 | F18: 4395.272378 | G18: 1582.529336 | H18: 0 | I18: 0 | J18: 0 | K18: 47.82239043 | L18: 449585.7526 | M18: 945202.0411 | N18: 71835.35513 | O18: 188369.1455 | P18: 300.06414 | Q18: 0
D19: Transport fluvial et maritime | E19: 298247417 | F19: 28671.29875 | G19: 7951.35121 | H19: 0 | I19: 0 | J19: 0 | K19: 301.1573214 | L19: 403137.7421 | M19: 6392133.287 | N19: 364322.302 | O19: 381831.9998 | P19: 142854.489 | Q19: 0
C20: IDEC | D20: Agro-alimentaire | E20: 1760000000 | F20: 115369.4422 | G20: 96418.11695 | H20: 1011.162615 | I20: 0 | J20: 0 | K20: 1791.294248 | L20: 873917.4714 | M20: 2382197.715 | N20: 2670623.152 | O20: 205392.3384 | P20: 3801906.583 | Q20: 11218.35862
D21: Autres secteurs de l'industrie et non spécifié | E21: 920670324.6 | F21: 1407774.66 | G21: 136166.4335 | H21: 1373.370253 | I21: 14 | J21: 0 | K21: 1008.108816 | L21: 1195219.103 | M21: 2052197.42 | N21: 6774313.928 | O21: 967758.9645 | P21: 1252036.971 | Q21: 3157.315454
D22: Biens d'équipement, matériels de transport… | E22: 273882268.5 | F22: 11487.00023 | G22: 4608.027812 | H22: 20.26768065 | I22: 0 | J22: 0 | K22: 275.4674521 | L22: 5110.987986 | M22: 258200.6548 | N22: 2717073.116 | O22: 4768.286556 | P22: 2438.058115 | Q22: 0
D23: Chimie organique, non-organique et divers | E23: 1110000000 | F23: 254333.3125 | G23: 1069474.221 | H23: 4860.055439 | I23: 0 | J23: 0 | K23: 1411.075455 | L23: 32743.97909 | M23: 1411611.367 | N23: 4414357.13 | O23: 31250.24579 | P23: 1501226.342 | Q23: 72439.95527
D24: Construction | E24: 669197703.9 | F24: 41675.58035 | G24: 235172.7306 | H24: 0 | I24: 0 | J24: 0 | K24: 732.6853938 | L24: 627832.9185 | M24: 3168527.852 | N24: 4181210.995 | O24: 347785.2425 | P24: 147107.2975 | Q24: 1477.189648
D25: Métallurgie des métaux ferreux | E25: 12500000000 | F25: 775632.4366 | G25: 65988.28587 | H25: 911.1 | I25: 0 | J25: 0 | K25: 12516.46802 | L25: 2359924.389 | M25: 6684236.534 | N25: 622699.3374 | O25: 2109479.543 | P25: 6345886.046 | Q25: 126714.89
D26: Métallurgie des métaux non-ferreux | E26: 782885871.4 | F26: 14403.35159 | G26: 6967.993276 | H26: 99.3 | I26: 5322 | J26: 140 | K26: 836.8987364 | L26: 8332.76963 | M26: 326411.2117 | N26: 368447.7701 | O26: 5526.585805 | P26: 4314548.225 | Q26: 2863.716153
D27: Minéraux non-métalliques et matériaux de construction | E27: 2880000000 | F27: 36065.90773 | G27: 23708.61584 | H27: 446.612478 | I27: 0 | J27: 0 | K27: 2887.902848 | L27: 783941.7064 | M27: 4732400.527 | N27: 95254.91101 | O27: 146743.178 | P27: 2160189.839 | Q27: 406.1207596
D28: Papier, carton | E28: 771615829.8 | F28: 15607.70329 | G28: 90758.07669 | H28: 0 | I28: 0 | J28: 0 | K28: 796.1037357 | L28: 10973.39836 | M28: 1029475.768 | N28: 729752.4096 | O28: 9099.805582 | P28: 52862.3682 | Q28: 0
D29: Tous secteurs IM | E29: 0 | F29: 0 | G29: 0 | H29: 0 | I29: 0 | J29: 0 | K29: 0 | L29: 0 | M29: 0 | N29: 0 | O29: 0 | P29: 0 | Q29: 0 | R29: supprimé (M2010>M2012)
D30: Traitement des déchets | E30: 621593415.5 | F30: 34540543.27 | G30: 375291.5669 | H30: 179 | I30: 0 | J30: 0 | K30: 1688.555539 | L30: 18120.34445 | M30: 951316.7063 | N30: 528951.5299 | O30: 15456.12218 | P30: 88810.73078 | Q30: 471416.8415
D31: Traitement déchets industrie | E31: 0 | F31: 0 | G31: 0 | H31: 0 | I31: 0 | J31: 0 | K31: 0 | L31: 0 | M31: 0 | N31: 0 | O31: 0 | P31: 0 | Q31: 0 | R31: ventilé (M2010>M2012)
C32: Résidentiel tertiaire | D32: Résidentiel | E32: 5670000000 | F32: 6684165.052 | G32: 150220.3663 | H32: 0 | I32: 0 | J32: 0 | K32: 6314.957416 | L32: 8398574.927 | M32: 6624665.193 | N32: 27255482.68 | O32: 8203060.73 | P32: 4246357.418 | Q32: 0
D33: Tertiaire, commercial et institutionnel | E33: 2870000000 | F33: 314467.3658 | G33: 42658.09203 | H33: 0 | I33: 0 | J33: 0 | K33: 3100.662237 | L33: 194517.3705 | M33: 3562344.873 | N33: 1790291.154 | O33: 192786.2252 | P33: 861829.8443 | Q33: 888.765072
C34: Transformation de l'énergie | D34: Chauffage urbain | E34: 374304083.1 | F34: 41685.78539 | G34: 17355.91195 | H34: 0 | I34: 0 | J34: 0 | K34: 380.0706017 | L34: 131199.425 | M34: 724289.1521 | N34: 5085.551544 | O34: 109543.3167 | P34: 140268.8594 | Q34: 0
D35: Extraction des combustibles gazeux et distribution d'énergie | E35: 197384188.1 | F35: 5032421.375 | G35: 3067.000059 | H35: 0 | I35: 0 | J35: 0 | K35: 339.1047416 | L35: 0 | M35: 134133.8564 | N35: 759601.9085 | O35: 0 | P35: 3568.772691 | Q35: 0
D36: Extraction des combustibles liquides et distribution d'énergie | E36: 0 | F36: 0 | G36: 0 | H36: 0 | I36: 0 | J36: 0 | K36: 0 | L36: 0 | M36: 0 | N36: 1113823.068 | O36: 0 | P36: 0 | Q36: 0
D37: Extraction des combustibles solides et distribution d'énergie | E37: 0 | F37: 0 | G37: 0 | H37: 0 | I37: 0 | J37: 0 | K37: 0 | L37: 0 | M37: 0 | N37: 0 | O37: 0 | P37: 0 | Q37: 0
D38: Production d'électricité | E38: 5170000000 | F38: 1073180.322 | G38: 24565.67065 | H38: 437.1608088 | I38: 0 | J38: 0 | K38: 5207.526298 | L38: 116480.3483 | M38: 2169288.848 | N38: 27765.82894 | O38: 70474.365 | P38: 2509506.75 | Q38: 5274.139269
D39: Raffinage de pétrole | E39: 843978977.5 | F39: 8412.320127 | G39: 22161.68444 | H39: 0 | I39: 0 | J39: 0 | K39: 850.0873689 | L39: 21040.05142 | M39: 459767.7657 | N39: 99289.95605 | O39: 18156.18879 | P39: 991937.9644 | Q39: 23800
D40: Transformation des combustibles minéraux solides – siderurgies | E40: 0 | F40: 44523 | G40: 0 | H40: 0 | I40: 0 | J40: 0 | K40: 1.246644 | L40: 0 | M40: 675215 | N40: 15490 | O40: 0 | P40: 1573534 | Q40: 179
C41: Transport routier | D41: Deux roues | E41: 120669341.9 | F41: 95576.15976 | G41: 2368.595324 | H41: 0 | I41: 0 | J41: 0 | K41: 123.9731521 | L41: 46972.35653 | M41: 309144.3798 | N41: 964864.1495 | O41: 31236.08467 | P41: 844.6332745 | Q41: 2368.595324
D42: evap essence | E42: 0 | F42: 0 | G42: 0 | H42: 0 | I42: 0 | J42: 0 | K42: 0 | L42: 0 | M42: 0 | N42: 0 | O42: 0 | P42: 0 | Q42: 0 | R42: ventilé (M2010>M2012)
D43: Poids lourds | E43: 2848240508 | F43: 56602.97687 | G43: 124013.0119 | H43: 0 | I43: 0 | J43: 0 | K43: 2883.503216 | L43: 1045061.936 | M43: 14409258.46 | N43: 359495.0991 | O43: 661051.1428 | P43: 19457.2567 | Q43: 23793.49937
D44: trafic diffus | E44: 0 | F44: 0 | G44: 0 | H44: 0 | I44: 0 | J44: 0 | K44: 0 | L44: 0 | M44: 0 | N44: 0 | O44: 0 | P44: 0 | Q44: 0 | R44: ventilé (M2010>M2012)
D45: usure routes | E45: 0 | F45: 0 | G45: 0 | H45: 0 | I45: 0 | J45: 0 | K45: 0 | L45: 0 | M45: 0 | N45: 0 | O45: 0 | P45: 0 | Q45: 0 | R45: ventilé (M2010>M2012)
D46: Voitures particulières | E46: 5983884567 | F46: 163194.2664 | G46: 205895.8245 | H46: 0 | I46: 0 | J46: 0 | K46: 6045.26516 | L46: 2833829.613 | M46: 20321194.49 | N46: 1618100.299 | O46: 1915379.398 | P46: 41892.04029 | Q46: 348988.0964
D47: VUL | E47: 2233198214 | F47: 15153.83126 | G47: 54135.48391 | H47: 0 | I47: 0 | J47: 0 | K47: 2252.340162 | L47: 958972.991 | M47: 10694819.76 | N47: 400420.7232 | O47: 708315.4197 | P47: 15324.75882 | Q47: 41592.80314
C48: Autres sources non antrophiques | E48: 0 | F48: 21997.27771 | G48: 586.5940722 | H48: 0 | I48: 0 | J48: 0 | K48: 0.771371205 | L48: 0 | M48: 5276852.595 | N48: 21659187.85 | O48: 0 | P48: 0 | Q48: 0
C49: Total | E49: 4.990163934e+10 | F49: 164124124.2 | G49: 12566593.34 | H49: 9338.029274 | I49: 5336 | J49: 140 | K49: 58519.25644 | L49: 31674839.61 | M49: 102319653.1 | N49: 117977909.9 | O49: 20164604.75 | P49: 30366404.99 | Q49: 50129957.32
C50: Total (hors sources non anthropiques) | E50: 4.990163934e+10 | F50: 164102127 | G50: 12566006.75 | H50: 9338.029274 | I50: 5336 | J50: 140 | K50: 58518.48506 | L50: 31674839.61 | M50: 97042800.5 | N50: 96318722.07 | O50: 20164604.75 | P50: 30366404.99 | Q50: 50129957.32

Sheet D2a
B2: Production d'électricité du territoire
B4: Biens de consommation- production d'électricité totale
C6: Production d'électricité | F6: MWh | H6: Source | K6: A saisir si le territoire le souhaite (pas nécessaire pour le bilan)
C7: Emissions GES liées à la production d'électricité sur le territoire = Emissions exportées | E7: =D1a!K158 -> 0 | F7: kt eq CO2

Sheet D2b
B2: Répartition des émissions liées à la production de chaleur et de froid du territoire
A4: A. | B4: Production de chaleur et de froid du territoire (MWh)
B6: Production de chaleur par réseau en Hauts-de-France
S7: Répartition des consommations du territoire par poste -seulement pour les réseaux situés sur le territoire
H8: Part de la production située sur le territoire (%) | I8: Part de la production consommée par le territoire (%) | J8: Production du réseau (MWh) | K8: Production du territoire (MWh) | L8: Production du territoire consommée sur le territoire (MWh) | M8: Production du territoire exportée (MWh) | N8: Emissions produites par les réseaux (kt eq CO2) | O8: Emissions produites sur le territoire (kt eq CO2) | P8: Emissions produites et consommées par le territoire (kt eq CO2) | Q8: Emissions produites sur le territoire et exportées (kt eq CO2) | R8: Source | S8: Résidentiel | T8: Déplacements | U8: Biens de consommation | V8: Alimentation | W8: Services | X8: Travaux | Y8: Source
C9: Nord | D9: Alma-Beaurepaire | F9: Roubaix | G9: Chaleur | J9: 111190 | K9: =H9*J9 -> 0 | L9: =I9*J9*H9 -> 0 | M9: =K9-L9 -> 0 | N9: =((J9)*('FE5'!$G30))/1000 -> 9.22877 | O9: =((K9)*('FE5'!$G30))/1000 -> 0 | P9: =((L9)*('FE5'!$G30))/1000 -> 0 | Q9: =((M9)*('FE5'!$G30))/1000 -> 0 | R9: Enquête nationale sur les réseaux de chaleur et de froid SOeS 2014 (données 2012) | S9: =D3a!$D$6 -> 0.5461109288 | T9: 0 | U9: 0 | V9: 0 | W9: =1-S9 -> 0.4538890712 | X9: 0 | Y9: NORENER 2014 - données 2011
D10: Les Canonniers | F10: Valenciennes | G10: Chaleur | J10: 0 | K10: =H10*J10 -> 0 | L10: =I10*J10*H10 -> 0 | M10: =K10-L10 -> 0 | N10: =((J10)*('FE5'!$G31))/1000 -> 0 | O10: =((K10)*('FE5'!$G31))/1000 -> 0 | P10: =((L10)*('FE5'!$G31))/1000 -> 0 | Q10: =((M10)*('FE5'!$G31))/1000 -> 0 | R10: Enquête nationale sur les réseaux de chaleur et de froid SOeS 2014 (données 2012) | S10: =D3a!$D$6 -> 0.5461109288 | T10: 0 | U10: 0 | V10: 0 | W10: 0.4538890712 | X10: 0 | Y10: NORENER 2014 - données 2011
D11: Réseau de Sains-du-Nord | F11: Sains-du-Nord | G11: Chaleur | J11: 0 | K11: =H11*J11 -> 0 | L11: =I11*J11*H11 -> 0 | M11: 0 | N11: =((J11)*('FE5'!$G32))/1000 -> 0 | O11: =((K11)*('FE5'!$G32))/1000 -> 0 | P11: =((L11)*('FE5'!$G32))/1000 -> 0 | Q11: =((M11)*('FE5'!$G32))/1000 -> 0 | R11: La voix du Nord, 17 avril 2017 | S11: =D3a!$D$6 -> 0.5461109288 | T11: 0 | U11: 0 | V11: 0 | W11: 0.4538890712 | X11: 0 | Y11: NORENER 2014 - données 2011
D12: Quartier Pont de bois | F12: Villeneuve-d'Ascq | G12: Chaleur | J12: 39332 | K12: 0 | L12: 0 | M12: 0 | N12: =((J12)*('FE5'!$G33))/1000 -> 8.417048 | O12: =((K12)*('FE5'!$G33))/1000 -> 0 | P12: =((L12)*('FE5'!$G33))/1000 -> 0 | Q12: =((M12)*('FE5'!$G33))/1000 -> 0 | R12: Enquête nationale sur les réseaux de chaleur et de froid SOeS 2014 (données 2012) | S12: =D3a!$D$6 -> 0.5461109288 | T12: 0 | U12: 0 | V12: 0 | W12: 0.4538890712 | X12: 0 | Y12: NORENER 2014 - données 2011
D13: Domaine Universitaire et Scientifique | F13: Villeneuve-d'Ascq | G13: Chaleur | J13: 35765 | K13: 0 | L13: 0 | M13: 0 | N13: =((J13)*('FE5'!$G34))/1000 -> 8.619365 | O13: =((K13)*('FE5'!$G34))/1000 -> 0 | P13: =((L13)*('FE5'!$G34))/1000 -> 0 | Q13: =((M13)*('FE5'!$G34))/1000 -> 0 | R13: Enquête nationale sur les réseaux de chaleur et de froid SOeS 2014 (données 2012) | S13: =D3a!$D$6 -> 0.5461109288 | T13: 0 | U13: 0 | V13: 0 | W13: 0.4538890712 | X13: 0 | Y13: NORENER 2014 - données 2011
D14: ZUP de Wattignies-Blanc Riez | F14: Wattignies | G14: Chaleur | J14: 28237 | K14: 0 | L14: 0 | M14: 0 | N14: =((J14)*('FE5'!$G35))/1000 -> 4.913238 | O14: =((K14)*('FE5'!$G35))/1000 -> 0 | P14: =((L14)*('FE5'!$G35))/1000 -> 0 | Q14: =((M14)*('FE5'!$G35))/1000 -> 0 | R14: Enquête nationale sur les réseaux de chaleur et de froid SOeS 2014 (données 2012) | S14: =D3a!$D$6 -> 0.5461109288 | T14: 0 | U14: 0 | V14: 0 | W14: 0.4538890712 | X14: 0 | Y14: NORENER 2014 - données 2011
D15: Réseau de Wattrelos | F15: Wattrelos | G15: Chaleur | J15: 16374 | K15: 0 | L15: 0 | M15: 0 | N15: =((J15)*('FE5'!$G36))/1000 -> 3.504036 | O15: =((K15)*('FE5'!$G36))/1000 -> 0 | P15: =((L15)*('FE5'!$G36))/1000 -> 0 | Q15: =((M15)*('FE5'!$G36))/1000 -> 0 | R15: Enquête nationale sur les réseaux de chaleur et de froid SOeS 2014 (données 2012) | S15: =D3a!$D$6 -> 0.5461109288 | T15: 0 | U15: 0 | V15: 0 | W15: 0.4538890712 | X15: 0 | Y15: NORENER 2014 - données 2011
D16: ZAC des Epis | F16: Sin-le-Noble | G16: Chaleur | J16: 22257 | K16: =H16*J16 -> 0 | L16: =I16*J16*H16 -> 0 | M16: 0 | N16: =((J16)*('FE5'!$G37))/1000 -> 5.074596 | O16: =((K16)*('FE5'!$G37))/1000 -> 0 | P16: =((L16)*('FE5'!$G37))/1000 -> 0 | Q16: =((M16)*('FE5'!$G37))/1000 -> 0 | R16: Enquête nationale sur les réseaux de chaleur et de froid SOeS 2014 (données 2012) | S16: =D3a!$D$6 -> 0.5461109288 | T16: 0 | U16: 0 | V16: 0 | W16: 0.4538890712 | X16: 0 | Y16: NORENER 2014 - données 2011
D17: Monsenergie | F17: Mons-en-Barœul | G17: Chaleur | J17: 63591 | K17: 0 | L17: 0 | M17: 0 | N17: =((J17)*('FE5'!$G38))/1000 -> 14.753112 | O17: =((K17)*('FE5'!$G38))/1000 -> 0 | P17: =((L17)*('FE5'!$G38))/1000 -> 0 | Q17: =((M17)*('FE5'!$G38))/1000 -> 0 | R17: Enquête nationale sur les réseaux de chaleur et de froid SOeS 2014 (données 2012) | S17: =D3a!$D$6 -> 0.5461109288 | T17: 0 | U17: 0 | V17: 0 | W17: 0.4538890712 | X17: 0 | Y17: NORENER 2014 - données 2011
D18: Métropole Nord | F18: Lille | G18: Chaleur | J18: 289364 | K18: 0 | L18: 0 | M18: 0 | N18: =((J18)*('FE5'!$G39))/1000 -> 82.179376 | O18: =((K18)*('FE5'!$G39))/1000 -> 0 | P18: =((L18)*('FE5'!$G39))/1000 -> 0 | Q18: =((M18)*('FE5'!$G39))/1000 -> 0 | R18: Enquête nationale sur les réseaux de chaleur et de froid SOeS 2014 (données 2012) | S18: =D3a!$D$6 -> 0.5461109288 | T18: 0 | U18: 0 | V18: 0 | W18: 0.4538890712 | X18: 0 | Y18: NORENER 2014 - données 2011
D19: CHU Lille | F19: Lille | G19: Chaleur | J19: 100000 | K19: 0 | L19: 0 | M19: 0 | N19: =((J19)*('FE5'!$G40))/1000 -> 32 | O19: =((K19)*('FE5'!$G40))/1000 -> 0 | P19: =((L19)*('FE5'!$G40))/1000 -> 0 | Q19: =((M19)*('FE5'!$G40))/1000 -> 0 | R19: Observatoire Climat, données 2012 | S19: =D3a!$D$6 -> 0.5461109288 | T19: 0 | U19: 0 | V19: 0 | W19: 0.4538890712 | X19: 0 | Y19: NORENER 2014 - données 2011
D20: Réseau de Lambersart | F20: Lambersart | G20: Chaleur | J20: 15916 | K20: 0 | L20: 0 | M20: 0 | N20: =((J20)*('FE5'!$G41))/1000 -> 4.679304 | O20: =((K20)*('FE5'!$G41))/1000 -> 0 | P20: =((L20)*('FE5'!$G41))/1000 -> 0 | Q20: =((M20)*('FE5'!$G41))/1000 -> 0 | R20: Observatoire Climat, données 2012 | S20: =D3a!$D$6 -> 0.5461109288 | T20: 0 | U20: 0 | V20: 0 | W20: 0.4538890712 | X20: 0 | Y20: NORENER 2014 - données 2011
D21: ZUP de la caserne joyeuse | F21: Maubeuge | G21: Chaleur | J21: 2501 | K21: 0 | L21: 0 | M21: 0 | N21: =((J21)*('FE5'!$G42))/1000 -> 0.592737 | O21: =((K21)*('FE5'!$G42))/1000 -> 0 | P21: =((L21)*('FE5'!$G42))/1000 -> 0 | Q21: =((M21)*('FE5'!$G42))/1000 -> 0 | R21: Enquête nationale sur les réseaux de chaleur et de froid SOeS 2014 (données 2012) | S21: =D3a!$D$6 -> 0.5461109288 | T21: 0 | U21: 0 | V21: 0 | W21: 0.4538890712 | X21: 0 | Y21: NORENER 2014 - données 2011
D22: Les rives créatives de l'Escaut | F22: Anzin | G22: Chaleur | J22: 2500 | K22: 0 | L22: 0 | M22: 0 | N22: =((J22)*('FE5'!$G43))/1000 -> 0.0125 | O22: =((K22)*('FE5'!$G43))/1000 -> 0 | P22: =((L22)*('FE5'!$G43))/1000 -> 0 | Q22: =((M22)*('FE5'!$G43))/1000 -> 0 | R22: Estimation RDC sur base d'une puissance de 281 kW | S22: =D3a!$D$6 -> 0.5461109288 | T22: 0 | U22: 0 | V22: 0 | W22: 0.4538890712 | X22: 0 | Y22: NORENER 2014 - données 2011
D23: Energie Grand Littoral | F23: Dunkerque | G23: Chaleur | J23: 136778 | K23: 0 | L23: 0 | M23: 0 | N23: =((J23)*('FE5'!$G44))/1000 -> 13.6778 | O23: =((K23)*('FE5'!$G44))/1000 -> 0 | P23: =((L23)*('FE5'!$G44))/1000 -> 0 | Q23: =((M23)*('FE5'!$G44))/1000 -> 0 | R23: Enquête nationale sur les réseaux de chaleur et de froid SOeS 2014 (données 2012) | S23: =D3a!$D$6 -> 0.5461109288 | T23: 0 | U23: 0 | V23: 0 | W23: 0.4538890712 | X23: 0 | Y23: NORENER 2014 - données 2011
D24: Réseau de chauffage d'Hazebrouck | F24: Hazebrouck | G24: Chaleur | J24: 6708 | K24: 0 | L24: 0 | M24: 0 | N24: =((J24)*('FE5'!$G45))/1000 -> 1.516008 | O24: =((K24)*('FE5'!$G45))/1000 -> 0 | P24: =((L24)*('FE5'!$G45))/1000 -> 0 | Q24: =((M24)*('FE5'!$G45))/1000 -> 0 | R24: Enquête nationale sur les réseaux de chaleur et de froid SOeS 2014 (données 2012) | S24: =D3a!$D$6 -> 0.5461109288 | T24: 0 | U24: 0 | V24: 0 | W24: 0.4538890712 | X24: 0 | Y24: NORENER 2014 - données 2011
D25: Quartier Tournebride Lomme-Capinghem | F25: Lille | G25: Chaleur | J25: 6179 | K25: =H25*J25 -> 0 | L25: =I25*J25*H25 -> 0 | M25: =K25-L25 -> 0 | N25: =((J25)*('FE5'!$G46))/1000 -> 0.488141 | O25: =((K25)*('FE5'!$G46))/1000 -> 0 | P25: =((L25)*('FE5'!$G46))/1000 -> 0 | Q25: =((M25)*('FE5'!$G46))/1000 -> 0 | R25: Observatoire Climat, données 2012 | S25: =D3a!$D$6 -> 0.5461109288 | T25: 0 | U25: 0 | V25: 0 | W25: =1-S25 -> 0.4538890712 | X25: 0 | Y25: NORENER 2014 - données 2011
G26: Chaleur | K26: =H26*J26 -> 0 | L26: =I26*J26*H26 -> 0 | M26: =K26-L26 -> 0 | N26: =((J26)*('FE5'!$G47))/1000 -> 0 | O26: =((K26)*('FE5'!$G47))/1000 -> 0 | P26: =((L26)*('FE5'!$G47))/1000 -> 0 | Q26: =((M26)*('FE5'!$G47))/1000 -> 0 | S26: =D3a!$D$6 -> 0.5461109288 | T26: 0 | U26: 0 | V26: 0 | W26: =1-S26 -> 0.4538890712 | X26: 0 | Y26: NORENER 2014 - données 2011
C27: Pas-de-calais | D27: ZUP du quartier République | F27: Avion | G27: Chaleur | J27: 15268 | K27: 0 | L27: 0 | M27: 0 | N27: =((J27)*('FE5'!$G48))/1000 -> 3.450568 | O27: =((K27)*('FE5'!$G48))/1000 -> 0 | P27: =((L27)*('FE5'!$G48))/1000 -> 0 | Q27: =((M27)*('FE5'!$G48))/1000 -> 0 | R27: Enquête nationale sur les réseaux de chaleur et de froid SOeS 2014 (données 2012) | S27: =D3a!$D$6 -> 0.5461109288 | T27: 0 | U27: 0 | V27: 0 | W27: 0.4538890712 | X27: 0 | Y27: NORENER 2014 - données 2011
D28: Réseau de Arques | F28: Arques | G28: Chaleur | J28: 8000 | K28: 0 | L28: 0 | M28: 0 | N28: =((J28)*('FE5'!$G49))/1000 -> 0.432 | O28: =((K28)*('FE5'!$G49))/1000 -> 0 | P28: =((L28)*('FE5'!$G49))/1000 -> 0 | Q28: =((M28)*('FE5'!$G49))/1000 -> 0 | R28: Enquête nationale sur les réseaux de chaleur et de froid SOeS 2014 (données 2012) | S28: =D3a!$D$6 -> 0.5461109288 | T28: 0 | U28: 0 | V28: 0 | W28: 0.4538890712 | X28: 0 | Y28: NORENER 2014 - données 2011
D29: ZUP de Lens | F29: Lens | G29: Chaleur | J29: 51703 | K29: 0 | L29: 0 | M29: 0 | N29: =((J29)*('FE5'!$G50))/1000 -> 0.310218 | O29: =((K29)*('FE5'!$G50))/1000 -> 0 | P29: =((L29)*('FE5'!$G50))/1000 -> 0 | Q29: =((M29)*('FE5'!$G50))/1000 -> 0 | R29: Enquête nationale sur les réseaux de chaleur et de froid SOeS 2014 (données 2012) | S29: =D3a!$D$6 -> 0.5461109288 | T29: 0 | U29: 0 | V29: 0 | W29: 0.4538890712 | X29: 0 | Y29: NORENER 2014 - données 2011
D30: Le Portel-Outreau Engie | F30: Outreau | G30: Chaleur | J30: 11000 | K30: 0 | L30: 0 | M30: 0 | N30: =((J30)*('FE5'!$G51))/1000 -> 2.123 | O30: =((K30)*('FE5'!$G51))/1000 -> 0 | P30: =((L30)*('FE5'!$G51))/1000 -> 0 | Q30: =((M30)*('FE5'!$G51))/1000 -> 0 | R30: estimation RDC puissance 2,4 MW, rendement 60% | S30: =D3a!$D$6 -> 0.5461109288 | T30: 0 | U30: 0 | V30: 0 | W30: 0.4538890712 | X30: 0 | Y30: NORENER 2014 - données 2011
D31: Le Portel-Outreau Dalkia | F31: Outreau | G31: Chaleur | J31: 5344 | K31: 0 | L31: 0 | M31: 0 | N31: =((J31)*('FE5'!$G52))/1000 -> 1.116896 | O31: =((K31)*('FE5'!$G52))/1000 -> 0 | P31: =((L31)*('FE5'!$G52))/1000 -> 0 | Q31: =((M31)*('FE5'!$G52))/1000 -> 0 | R31: Réseau Rafhael, présentation du 27 novembre 2013 | S31: =D3a!$D$6 -> 0.5461109288 | T31: 0 | U31: 0 | V31: 0 | W31: 0.4538890712 | X31: 0 | Y31: NORENER 2014 - données 2011
D32: ZUP de Béthune | F32: Béthune | G32: Chaleur | J32: 27133 | K32: 0 | L32: 0 | M32: 0 | N32: =((J32)*('FE5'!$G53))/1000 -> 6.484787 | O32: =((K32)*('FE5'!$G53))/1000 -> 0 | P32: =((L32)*('FE5'!$G53))/1000 -> 0 | Q32: =((M32)*('FE5'!$G53))/1000 -> 0 | R32: Enquête nationale sur les réseaux de chaleur et de froid SOeS 2014 (données 2012) | S32: =D3a!$D$6 -> 0.5461109288 | T32: 0 | U32: 0 | V32: 0 | W32: 0.4538890712 | X32: 0 | Y32: NORENER 2014 - données 2011
D33: Réseau de Liévin | F33: Liévin | G33: Chaleur | J33: 21122 | K33: 0 | L33: 0 | M33: 0 | N33: =((J33)*('FE5'!$G54))/1000 -> 5.322744 | O33: =((K33)*('FE5'!$G54))/1000 -> 0 | P33: =((L33)*('FE5'!$G54))/1000 -> 0 | Q33: =((M33)*('FE5'!$G54))/1000 -> 0 | R33: Enquête nationale sur les réseaux de chaleur et de froid SOeS 2014 (données 2012) | S33: =D3a!$D$6 -> 0.5461109288 | T33: 0 | U33: 0 | V33: 0 | W33: 0.4538890712 | X33: 0 | Y33: NORENER 2014 - données 2011
D34: Calais Energie | F34: Calais | G34: Chaleur | J34: 52106 | K34: 0 | L34: 0 | M34: 0 | N34: =((J34)*('FE5'!$G55))/1000 -> 10.525412 | O34: =((K34)*('FE5'!$G55))/1000 -> 0 | P34: =((L34)*('FE5'!$G55))/1000 -> 0 | Q34: =((M34)*('FE5'!$G55))/1000 -> 0 | R34: Enquête nationale sur les réseaux de chaleur et de froid SOeS 2014 (données 2012) | S34: =D3a!$D$6 -> 0.5461109288 | T34: 0 | U34: 0 | V34: 0 | W34: 0.4538890712 | X34: 0 | Y34: NORENER 2014 - données 2011
D35: Réseau Centre Ville | F35: Béthune | G35: Chaleur | J35: 12678 | K35: 0 | L35: 0 | M35: 0 | N35: =((J35)*('FE5'!$G56))/1000 -> 2.85255 | O35: =((K35)*('FE5'!$G56))/1000 -> 0 | P35: =((L35)*('FE5'!$G56))/1000 -> 0 | Q35: =((M35)*('FE5'!$G56))/1000 -> 0 | R35: Enquête nationale sur les réseaux de chaleur et de froid SOeS 2014 (données 2012) | S35: =D3a!$D$6 -> 0.5461109288 | T35: 0 | U35: 0 | V35: 0 | W35: 0.4538890712 | X35: 0 | Y35: NORENER 2014 - données 2011
D36: Réseau d'Achicourt | F36: Achicourt | G36: Chaleur | J36: 6416 | K36: 0 | L36: 0 | M36: 0 | N36: =((J36)*('FE5'!$G57))/1000 -> 0.6416 | O36: =((K36)*('FE5'!$G57))/1000 -> 0 | P36: =((L36)*('FE5'!$G57))/1000 -> 0 | Q36: =((M36)*('FE5'!$G57))/1000 -> 0 | R36: Observatoire Climat, données 2013 | S36: =D3a!$D$6 -> 0.5461109288 | T36: 0 | U36: 0 | V36: 0 | W36: 0.4538890712 | X36: 0 | Y36: NORENER 2014 - données 2011
D37: Réseau d'Arras | F37: Arras | G37: Chaleur | J37: 56703 | K37: 0 | L37: 0 | M37: 0 | N37: =((J37)*('FE5'!$G58))/1000 -> 12.701472 | O37: =((K37)*('FE5'!$G58))/1000 -> 0 | P37: =((L37)*('FE5'!$G58))/1000 -> 0 | Q37: =((M37)*('FE5'!$G58))/1000 -> 0 | R37: Enquête nationale sur les réseaux de chaleur et de froid SOeS 2014 (données 2012) | S37: =D3a!$D$6 -> 0.5461109288 | T37: 0 | U37: 0 | V37: 0 | W37: 0.4538890712 | X37: 0 | Y37: NORENER 2014 - données 2011
D38: Réseau de Boulogne-sur-Mer | F38: Boulogne-sur-Mer | G38: Chaleur | J38: 29249 | K38: 0 | L38: 0 | M38: 0 | N38: =((J38)*('FE5'!$G59))/1000 -> 6.961262 | O38: =((K38)*('FE5'!$G59))/1000 -> 0 | P38: =((L38)*('FE5'!$G59))/1000 -> 0 | Q38: =((M38)*('FE5'!$G59))/1000 -> 0 | R38: Observatoire Climat, données 2015 | S38: =D3a!$D$6 -> 0.5461109288 | T38: 0 | U38: 0 | V38: 0 | W38: 0.4538890712 | X38: 0 | Y38: NORENER 2014 - données 2011
D39: Quartier du chemin vert | F39: Boulogne-sur-Mer | G39: Chaleur | J39: 18977 | K39: =H39*J39 -> 0 | L39: 0 | M39: 0 | N39: =((J39)*('FE5'!$G60))/1000 -> 1.32933885 | O39: =((K39)*('FE5'!$G60))/1000 -> 0 | P39: =((L39)*('FE5'!$G60))/1000 -> 0 | Q39: =((M39)*('FE5'!$G60))/1000 -> 0 | R39: CERDD | S39: =D3a!$D$6 -> 0.5461109288 | T39: 0 | U39: 0 | V39: 0 | W39: 0.4538890712 | X39: 0 | Y39: NORENER 2014 - données 2011
G40: Chaleur | K40: =H40*J40 -> 0 | L40: =I40*J40*H40 -> 0 | M40: =K40-L40 -> 0 | N40: =((J40)*('FE5'!$G61))/1000 -> 0 | O40: =((K40)*('FE5'!$G61))/1000 -> 0 | P40: =((L40)*('FE5'!$G61))/1000 -> 0 | Q40: =((M40)*('FE5'!$G61))/1000 -> 0 | S40: =D3a!$D$6 -> 0.5461109288 | T40: 0 | U40: 0 | V40: 0 | W40: 0.4538890712 | X40: 0 | Y40: NORENER 2014 - données 2011
C41: Aisne | D41: ZUP du Quartier Europe | F41: Saint-Quentin | G41: Chaleur | J41: 65926 | K41: =H41*J41 -> 0 | L41: =I41*J41*H41 -> 0 | M41: =K41-L41 -> 0 | N41: =((J41)*('FE5'!$G62))/1000 -> 8.90001 | O41: =((K41)*('FE5'!$G62))/1000 -> 0 | P41: =((L41)*('FE5'!$G62))/1000 -> 0 | Q41: =((M41)*('FE5'!$G62))/1000 -> 0 | R41: L’ANNUAIRE DES RÉSEAUX DE CHALEUR ET DE FROID 2014/2015 (données 2012) | S41: =D3a!$D$6 -> 0.5461109288 | T41: 0 | U41: 0 | V41: 0 | W41: =1-S41 -> 0.4538890712 | X41: 0 | Y41: NORENER 2014 - données 2012
D42: ZUP de Presles | F42: Soissons | G42: Chaleur | J42: 33921 | K42: 0 | L42: 0 | M42: 0 | N42: =((J42)*('FE5'!$G63))/1000 -> 2.611917 | O42: =((K42)*('FE5'!$G63))/1000 -> 0 | P42: =((L42)*('FE5'!$G63))/1000 -> 0 | Q42: =((M42)*('FE5'!$G63))/1000 -> 0 | R42: L’ANNUAIRE DES RÉSEAUX DE CHALEUR ET DE FROID 2014/2015 (données 2012) | S42: =D3a!$D$6 -> 0.5461109288 | T42: 0 | U42: 0 | V42: 0 | W42: 0.4538890712 | X42: 0 | Y42: NORENER 2014 - données 2013
D43: Réseau de Laon | F43: Laon | G43: Chaleur | J43: 1825 | K43: 0 | L43: 0 | M43: 0 | N43: =((J43)*('FE5'!$G64))/1000 -> 0.0073 | O43: =((K43)*('FE5'!$G64))/1000 -> 0 | P43: =((L43)*('FE5'!$G64))/1000 -> 0 | Q43: =((M43)*('FE5'!$G64))/1000 -> 0 | R43: L’ANNUAIRE DES RÉSEAUX DE CHALEUR ET DE FROID 2014/2015 (données 2012) | S43: =D3a!$D$6 -> 0.5461109288 | T43: 0 | U43: 0 | V43: 0 | W43: 0.4538890712 | X43: 0 | Y43: NORENER 2014 - données 2014
D44: Réseau d'Urcel | F44: Urcel | G44: Chaleur | J44: 285 | K44: 0 | L44: 0 | M44: 0 | N44: =((J44)*('FE5'!$G65))/1000 -> 0.0114 | O44: =((K44)*('FE5'!$G65))/1000 -> 0 | P44: =((L44)*('FE5'!$G65))/1000 -> 0 | Q44: =((M44)*('FE5'!$G65))/1000 -> 0 | R44: Réseau de chaleur de la ville d'URCEL (02) (http://ret-ademe-region-hdf.fr/) | S44: =D3a!$D$6 -> 0.5461109288 | T44: 0 | U44: 0 | V44: 0 | W44: 0.4538890712 | X44: 0 | Y44: NORENER 2014 - données 2015
G45: Chaleur | K45: 0 | L45: 0 | M45: 0 | N45: =((J45)*('FE5'!$G66))/1000 -> 0 | O45: =((K45)*('FE5'!$G66))/1000 -> 0 | P45: =((L45)*('FE5'!$G66))/1000 -> 0 | Q45: =((M45)*('FE5'!$G66))/1000 -> 0 | S45: =D3a!$D$6 -> 0.5461109288 | T45: 0 | U45: 0 | V45: 0 | W45: 0.4538890712 | X45: 0 | Y45: NORENER 2014 - données 2016
C46: Oise | D46: Réseau de Compiègne | F46: Compiègne | G46: Chaleur | J46: 68895 | K46: 0 | L46: 0 | M46: 0 | N46: =((J46)*('FE5'!$G67))/1000 -> 16.94817 | O46: =((K46)*('FE5'!$G67))/1000 -> 0 | P46: =((L46)*('FE5'!$G67))/1000 -> 0 | Q46: =((M46)*('FE5'!$G67))/1000 -> 0 | R46: L’ANNUAIRE DES RÉSEAUX DE CHALEUR ET DE FROID 2014/2015 (données 2012) | S46: =D3a!$D$6 -> 0.5461109288 | T46: 0 | U46: 0 | V46: 0 | W46: 0.4538890712 | X46: 0 | Y46: NORENER 2014 - données 2017
D47: La Cavée | F47: Creil | G47: Chaleur | J47: 71957 | K47: 0 | L47: 0 | M47: 0 | N47: =((J47)*('FE5'!$G68))/1000 -> 7.843313 | O47: =((K47)*('FE5'!$G68))/1000 -> 0 | P47: =((L47)*('FE5'!$G68))/1000 -> 0 | Q47: =((M47)*('FE5'!$G68))/1000 -> 0 | R47: L’ANNUAIRE DES RÉSEAUX DE CHALEUR ET DE FROID 2014/2015 (données 2012) | S47: =D3a!$D$6 -> 0.5461109288 | T47: 0 | U47: 0 | V47: 0 | W47: 0.4538890712 | X47: 0 | Y47: NORENER 2014 - données 2018
D48: Quartier des Obiers | F48: Nogent-sur-Oise | G48: Chaleur | J48: 42305 | K48: 0 | L48: 0 | M48: 0 | N48: =((J48)*('FE5'!$G69))/1000 -> 7.741815 | O48: =((K48)*('FE5'!$G69))/1000 -> 0 | P48: =((L48)*('FE5'!$G69))/1000 -> 0 | Q48: =((M48)*('FE5'!$G69))/1000 -> 0 | R48: L’ANNUAIRE DES RÉSEAUX DE CHALEUR ET DE FROID 2014/2015 (données 2012) | S48: =D3a!$D$6 -> 0.5461109288 | T48: 0 | U48: 0 | V48: 0 | W48: 0.4538890712 | X48: 0 | Y48: NORENER 2014 - données 2019
D49: Les Martinets | F49: Montataire | G49: Chaleur | J49: 0 | K49: 0 | L49: 0 | M49: 0 | N49: =((J49)*('FE5'!$G70))/1000 -> 0 | O49: =((K49)*('FE5'!$G70))/1000 -> 0 | P49: =((L49)*('FE5'!$G70))/1000 -> 0 | Q49: =((M49)*('FE5'!$G70))/1000 -> 0 | R49: Cessation d'activité en 2014 : Annexe I de l'arrêté du 24 janvier 2014. | S49: =D3a!$D$6 -> 0.5461109288 | T49: 0 | U49: 0 | V49: 0 | W49: 0.4538890712 | X49: 0 | Y49: NORENER 2014 - données 2020
D50: Réseau du Quartier Saint-Jean | F50: Beauvais | G50: Chaleur | J50: 30000 | K50: 0 | L50: 0 | M50: 0 | N50: =((J50)*('FE5'!$G71))/1000 -> 0.39 | O50: =((K50)*('FE5'!$G71))/1000 -> 0 | P50: =((L50)*('FE5'!$G71))/1000 -> 0 | Q50: =((M50)*('FE5'!$G71))/1000 -> 0 | R50: http://www.cram.fr/project/ville-de-beauvais-quartier-st-jean/ | S50: =D3a!$D$6 -> 0.5461109288 | T50: 0 | U50: 0 | V50: 0 | W50: 0.4538890712 | X50: 0 | Y50: NORENER 2014 - données 2021
D51: Réseau de Breteuil-sur-Noye | F51: Breteuil-sur-Noye | G51: Chaleur | J51: 6230 | K51: 0 | L51: 0 | M51: 0 | N51: =((J51)*('FE5'!$G72))/1000 -> 0.15575 | O51: =((K51)*('FE5'!$G72))/1000 -> 0 | P51: =((L51)*('FE5'!$G72))/1000 -> 0 | Q51: =((M51)*('FE5'!$G72))/1000 -> 0 | R51: http://www.ville-breteuil.fr/mode-texte/fr/information/63260/chaufferie-biomasse-reseau-chaleur | S51: =D3a!$D$6 -> 0.5461109288 | T51: 0 | U51: 0 | V51: 0 | W51: 0.4538890712 | X51: 0 | Y51: NORENER 2014 - données 2022
G52: Chaleur | K52: 0 | L52: 0 | M52: 0 | N52: =((J52)*('FE5'!$G73))/1000 -> 0 | O52: =((K52)*('FE5'!$G73))/1000 -> 0 | P52: =((L52)*('FE5'!$G73))/1000 -> 0 | Q52: =((M52)*('FE5'!$G73))/1000 -> 0 | S52: =D3a!$D$6 -> 0.5461109288 | T52: 0 | U52: 0 | V52: 0 | W52: 0.4538890712 | X52: 0 | Y52: NORENER 2014 - données 2023
C53: Somme | D53: Etouvie | F53: Amiens | G53: Chaleur | J53: 30035 | K53: 0 | L53: 0 | M53: 0 | N53: =((J53)*('FE5'!$G74))/1000 -> 7.779065 | O53: =((K53)*('FE5'!$G74))/1000 -> 0 | P53: =((L53)*('FE5'!$G74))/1000 -> 0 | Q53: =((M53)*('FE5'!$G74))/1000 -> 0 | R53: L’ANNUAIRE DES RÉSEAUX DE CHALEUR ET DE FROID 2014/2015 (données 2012) | S53: =D3a!$D$6 -> 0.5461109288 | T53: 0 | U53: 0 | V53: 0 | W53: 0.4538890712 | X53: 0 | Y53: NORENER 2014 - données 2024
D54: Réseau de Montdidier | F54: Montdidier | G54: Chaleur | J54: 6970 | K54: 0 | L54: 0 | M54: 0 | N54: =((J54)*('FE5'!$G75))/1000 -> 0.52275 | O54: =((K54)*('FE5'!$G75))/1000 -> 0 | P54: =((L54)*('FE5'!$G75))/1000 -> 0 | Q54: =((M54)*('FE5'!$G75))/1000 -> 0 | R54: L’ANNUAIRE DES RÉSEAUX DE CHALEUR ET DE FROID 2014/2015 (données 2012) | S54: =D3a!$D$6 -> 0.5461109288 | T54: 0 | U54: 0 | V54: 0 | W54: 0.4538890712 | X54: 0 | Y54: NORENER 2014 - données 2025
D55: Réseau d'Abbeville | F55: Abbeville | G55: Chaleur | J55: 10511 | K55: 0 | L55: 0 | M55: 0 | N55: =((J55)*('FE5'!$G76))/1000 -> 1.114166 | O55: =((K55)*('FE5'!$G76))/1000 -> 0 | P55: =((L55)*('FE5'!$G76))/1000 -> 0 | Q55: =((M55)*('FE5'!$G76))/1000 -> 0 | R55: L’ANNUAIRE DES RÉSEAUX DE CHALEUR ET DE FROID 2014/2015 (données 2012) | S55: =D3a!$D$6 -> 0.5461109288 | T55: 0 | U55: 0 | V55: 0 | W55: 0.4538890712 | X55: 0 | Y55: NORENER 2014 - données 2026
G56: Chaleur | K56: 0 | L56: 0 | M56: 0 | N56: =((J56)*('FE5'!$G77))/1000 -> 0 | O56: =((K56)*('FE5'!$G77))/1000 -> 0 | P56: =((L56)*('FE5'!$G77))/1000 -> 0 | Q56: =((M56)*('FE5'!$G77))/1000 -> 0 | S56: =D3a!$D$6 -> 0.5461109288 | T56: 0 | U56: 0 | V56: 0 | W56: 0.4538890712 | X56: 0 | Y56: NORENER 2014 - données 2027
C57: Total | J57: =SUM(J9:J56) -> 1561251 | K57: =SUM(K9:K56) -> 0 | L57: 0 | M57: 0 | N57: 297.9335348 | O57: 0 | P57: 0 | Q57: 0
B60: Production de froid par réseau en Hauts-de-France
S61: Répartition des consommations sur le territoire par poste
H62: Part de la production située sur le territoire (%) | I62: Part de la production consommée par le territoire (%) | J62: Production du réseau (MWh) | K62: Production du territoire (MWh) | L62: Production du territoire consommée sur le territoire (MWh) | M62: Production du territoire exportée (MWh) | N62: Emissions produites par les réseaux (t eq CO2) | O62: Emissions produites sur le territoire (t eq CO2) | P62: Emissions produites et consommées par le territoire (t eq CO2) | Q62: Emissions exportées (t eq CO2) | R62: Source | S62: Résidentiel | T62: Déplacements | U62: Biens de consommation | V62: Alimentation | W62: Services | X62: Travaux | Y62: Source
C63: Nord | G63: Froid | K63: =H63*J63 -> 0 | L63: =I63*J63*H63 -> 0 | M63: =K63-L63 -> 0 | N63: =((J63*1000)*('FE5'!$G69))/1000 -> 0 | O63: =((K63*1000)*('FE5'!$G69))/1000 -> 0 | P63: =((L63*1000)*('FE5'!$G69))/1000 -> 0 | Q63: =((M63*1000)*('FE5'!$G69))/1000 -> 0 | S63: 0 | T63: 0 | U63: =1-W63 -> 0.03 | V63: 0 | W63: =D3a!$D$7 -> 0.97 | X63: 0 | Y63: =D3a!$E$7 -> Enquête de branche SNCU 2015
G64: Froid | K64: =H64*J64 -> 0 | L64: 0 | M64: 0 | N64: =((J64*1000)*('FE5'!$G70))/1000 -> 0 | O64: =((K64*1000)*('FE5'!$G70))/1000 -> 0 | P64: =((L64*1000)*('FE5'!$G70))/1000 -> 0 | Q64: =((M64*1000)*('FE5'!$G70))/1000 -> 0 | S64: 0 | T64: 0 | U64: =1-W64 -> 0.03 | V64: 0 | W64: =D3a!$D$7 -> 0.97 | X64: 0 | Y64: =D3a!$E$7 -> Enquête de branche SNCU 2015
C65: Pas-de-calais | G65: Froid | K65: 0 | L65: 0 | M65: 0 | N65: =((J65*1000)*('FE5'!$G71))/1000 -> 0 | O65: =((K65*1000)*('FE5'!$G71))/1000 -> 0 | P65: =((L65*1000)*('FE5'!$G71))/1000 -> 0 | Q65: =((M65*1000)*('FE5'!$G71))/1000 -> 0 | S65: 0 | T65: 0 | U65: 0.03 | V65: 0 | W65: =D3a!$D$7 -> 0.97 | X65: 0 | Y65: =D3a!$E$7 -> Enquête de branche SNCU 2015
G66: Froid | K66: 0 | L66: 0 | M66: 0 | N66: =L66-M66 -> 0 | O66: =M66-N66 -> 0 | P66: =N66-O66 -> 0 | Q66: =O66-P66 -> 0 | S66: 0 | T66: 0 | U66: 0.03 | V66: 0 | W66: =D3a!$D$7 -> 0.97 | X66: 0 | Y66: =D3a!$E$7 -> Enquête de branche SNCU 2015
C67: Aisne | G67: Froid | K67: 0 | L67: 0 | M67: 0 | N67: 0 | O67: 0 | P67: 0 | Q67: 0 | S67: 0 | T67: 0 | U67: 0.03 | V67: 0 | W67: =D3a!$D$7 -> 0.97 | X67: 0 | Y67: =D3a!$E$7 -> Enquête de branche SNCU 2015
G68: Froid | K68: 0 | L68: 0 | M68: 0 | N68: 0 | O68: 0 | P68: 0 | Q68: 0 | S68: 0 | T68: 0 | U68: 0.03 | V68: 0 | W68: =D3a!$D$7 -> 0.97 | X68: 0 | Y68: =D3a!$E$7 -> Enquête de branche SNCU 2015
C69: Oise | G69: Froid | K69: 0 | L69: 0 | M69: 0 | N69: 0 | O69: 0 | P69: 0 | Q69: 0 | S69: 0 | T69: 0 | U69: 0.03 | V69: 0 | W69: =D3a!$D$7 -> 0.97 | X69: 0 | Y69: =D3a!$E$7 -> Enquête de branche SNCU 2015
G70: Froid | K70: 0 | L70: 0 | M70: 0 | N70: 0 | O70: 0 | P70: 0 | Q70: 0 | S70: 0 | T70: 0 | U70: 0.03 | V70: 0 | W70: =D3a!$D$7 -> 0.97 | X70: 0 | Y70: =D3a!$E$7 -> Enquête de branche SNCU 2015
C71: Somme | G71: Froid | K71: 0 | L71: 0 | M71: 0 | N71: 0 | O71: 0 | P71: 0 | Q71: 0 | S71: 0 | T71: 0 | U71: 0.03 | V71: 0 | W71: =D3a!$D$7 -> 0.97 | X71: 0 | Y71: =D3a!$E$7 -> Enquête de branche SNCU 2015
G72: Froid | K72: 0 | L72: 0 | M72: 0 | N72: 0 | O72: 0 | P72: 0 | Q72: 0 | S72: 0 | T72: 0 | U72: 0.03 | V72: 0 | W72: =D3a!$D$7 -> 0.97 | X72: 0 | Y72: =D3a!$E$7 -> Enquête de branche SNCU 2015
C73: Total | J73: =SUM(J63:J72) -> 0 | K73: =SUM(K63:K72) -> 0 | L73: 0 | M73: 0 | N73: 0 | O73: 0 | P73: 0 | Q73: 0
A76: B. | B76: Production de chaleur et froid par poste ESPASS (MWh)
B78: Territoire - réseaux de chaleur - production de chaleur sur le territoire- répartition par poste
C80: Résidentiel | D80: =SUMPRODUCT(L9:L56,S9:S56) -> 0 | E80: MWh
C81: Déplacements | D81: =SUMPRODUCT(L9:L56,T9:T56) -> 0 | E81: MWh
C82: Biens de consommation | D82: =SUMPRODUCT(L9:L56,U9:U56)+SUM(M9:M56) -> 0 | E82: MWh
C83: Alimentation | D83: =SUMPRODUCT(L9:L56,V9:V56) -> 0 | E83: MWh
C84: Services | D84: =SUMPRODUCT(L9:L56,W9:W56) -> 0 | E84: MWh
C85: Travaux | D85: =SUMPRODUCT(L9:L56,X9:X56) -> 0 | E85: MWh
C86: Production d'énergie | D86: =SUMIF(G9:G56,"Chaleur",L9:L56) -> 0 | E86: MWh | F86: Source: | G86: Enquête nationale sur les réseaux de chaleur et de froid SOeS 2014 (données 2012)
B90: Territoire - réseaux de froid - production de froid sur le territoire
C92: Résidentiel | D92: =SUMPRODUCT(L63:L72,S63:S72) -> 0 | E92: MWh
C93: Déplacements | D93: =SUMPRODUCT(L63:L72,T63:T72) -> 0 | E93: MWh
C94: Biens de consommation | D94: =SUMPRODUCT(L63:L72,U63:U72)+SUM(M63:M72) -> 0 | E94: MWh
C95: Alimentation | D95: =SUMPRODUCT(L63:L72,V63:V72) -> 0 | E95: MWh
C96: Services | D96: =SUMPRODUCT(L63:L72,W63:W72) -> 0 | E96: MWh
C97: Travaux | D97: =SUMPRODUCT(L63:L72,X63:X72) -> 0 | E97: MWh
C98: Production d'énergie | D98: =SUMIF(G21:G73,"Chaleur",L21:L73) -> 0 | E98: MWh | F98: Source:
A102: C. | B102: Production de chaleur et froid par poste PCAET (MWh)
B104: Production de chaleur par poste PCAET
D106: Part de la consommation destinée au poste | E106: Production totale
C107: Industrie branche énergie | D107: 1 | E107: =$D$86*D107 -> 0 | F107: MWh
B111: Production de froid par poste PCAET
D113: Part de la consommation destinée au poste | E113: Production totale
C114: Industrie branche énergie | D114: 1 | E114: =$D$98*D114 -> 0 | F114: MWh
A118: D. | B118: Emissions liées aux réseaux de chaleur et de froid - par poste ESPASS
B120: Territoire - réseaux de chaleur et de froid - émissions directes - répartition par poste
D122: Emissions directes
C123: Résidentiel | D123: =SUMPRODUCT(P9:P56,S9:S56)+SUMPRODUCT(P63:P72,S63:S72) -> 0 | E123: kt eq CO2
C124: Déplacements | D124: =SUMPRODUCT(P9:P56,T9:T56)+SUMPRODUCT(P63:P72,T63:T72) -> 0 | E124: kt eq CO2
C125: Biens de consommation | D125: =SUMPRODUCT(P9:P56,U9:U56)+SUM(Q9:Q56)+SUMPRODUCT(P63:P72,U63:U72)+SUM(Q63:Q72) -> 0 | E125: kt eq CO2
C126: Alimentation | D126: =SUMPRODUCT(P9:P56,V9:V56)+SUMPRODUCT(P63:P72,V63:V72) -> 0 | E126: kt eq CO2
C127: Services | D127: =SUMPRODUCT(P9:P56,W9:W56)+SUMPRODUCT(P63:P72,W63:W72) -> 0 | E127: kt eq CO2
C128: Travaux | D128: =SUMPRODUCT(O9:O56,X9:X56)+SUMPRODUCT(P63:P72,X63:X72) -> 0 | E128: kt eq CO2
C129: Total | D129: =SUM(D123:D128) -> 0 | E129: kt eq CO2
A132: E. | B132: Emissions liées aux réseaux de chaleur et de froid - par poste PCAET
B134: Territoire - réseaux de chaleur - émissions liées à la consommation - répartition par poste
D136: Emissions directes
C137: Résidentiel | E137: kt eq CO2
C138: Tertiaire | E138: kt eq CO2
C139: Transport routier | E139: kt eq CO2
C140: Autres transports | E140: kt eq CO2
C141: Agriculture | E141: kt eq CO2
C142: Déchets | E142: kt eq CO2
C143: Industrie hors branche énergie | E143: kt eq CO2
C144: Industrie branche énergie | D144: =D114*D129 -> 0 | E144: kt eq CO2
C145: Total | D145: =SUM(D137:D144) -> 0 | E145: kt eq CO2

Sheet D3a
B2: Données nécessaires pour établir la correspondance des secteurs MyEmiss'Air
D5: Valeur | E5: Source
C6: % chauffage urbain utilisé dans le résidentiel | D6: =83.2/(61.11+8.04+83.2) -> 0.5461109288 | E6: NORENER 2017 Hauts de France- données 2014
C7: % réseaux de froid utilisé dans le tertiaire | D7: 0.97 | E7: Enquête de branche SNCU 2015
C8: % transport ferroviaire pour des déplacements | D8: 0.8 | E8: Calcul basé sur "Les comptes des transports" du SOeS
C9: % transport fluvial pour des déplacements | D9: 0.02 | E9: ATMO NPdC- appliqué aux hauts de France
C10: % VUL détenu par des particuliers | D10: 0.4 | E10: Chiffres et statistiques du SOeS
C11: Transport routier de marchandises : % t.km réalisées pour des produits agricoles et agroalimentaires | D11: 0.3 | E11: SITRAM - transport national
C12: Transport fluvial de marchandises : % t.km réalisées pour des produits agricoles et agroalimentaires | D12: 0.27 | E12: SITRAM - transport national
C13: Transport ferroviaire de marchandises : % t.km réalisées pour des produits agricoles et agroalimentaires | D13: 0.24 | E13: SITRAM - transport national

Sheet D3b
B2: Correspondance postes ESPASS <> MyEmiss'Air
B4: Tableau des correspondances
F8: Résidentiel | G8: Déplacements | H8: Biens de consommation | I8: Alimentation | J8: Services | K8: Travaux | L8: Total
C9: Agriculture | D9: Autres sources de l'agriculture (tracteurs, …) | I9: =D135 -> 1 | L9: =SUM(F9:K9) -> 1
D10: Culture | I10: =D136 -> 1 | L10: 1
D11: Elevage | I11: =D137 -> 1 | L11: 1
C12: Autres transports | D12: Transport aérien français | G12: =D70 -> 1 | L12: 1
D13: Transport ferroviaire | G13: =D71 -> 0.8 | H13: =D112 -> 0.152 | I13: =D139 -> 0.048 | L13: 1
D14: Transport fluvial | G14: =D72 -> 0.02 | H14: =D113 -> 0.7154 | I14: =D140 -> 0.2646 | L14: 1
C15: IDEC | D15: Agro-alimentaire | I15: =D138 -> 1 | L15: 1
D16: Autres secteurs de l'industrie et non spécifié | H16: =D105 -> 1 | L16: 1
D17: Biens d'équipement, matériels de transport… | H17: =D103 -> 1 | L17: 1
D18: Chimie organique, non-organique et divers | H18: =D101 -> 1 | L18: 1
D19: Construction | K19: =D165 -> 1 | L19: 1
D20: Métallurgie des métaux ferreux | H20: =D98 -> 1 | L20: 1
D21: Métallurgie des métaux non-ferreux | H21: =D100 -> 1 | L21: 1
D22: Minéraux non-métalliques et matériaux de construction | H22: 0.11 | K22: 0.89 | L22: 1 | O22: Source | P22: Calculs RDC sur base de ATMO et GEREP 2012 (émissions déclarées)
D23: Papier, carton | H23: =D102 -> 1 | L23: 1
D24: tous secteurs IM | H24: =D104 -> 1 | L24: 1
D25: Traitement des déchets | J25: =D154 -> 1 | L25: 1
D26: Traitement dechets industrie | J26: 1 | L26: 1
C27: Résidentiel tertiaire | D27: Résidentiel | F27: =D52 -> 1 | L27: 1
D28: Tertiaire, commercial et institutionnel | J28: =D153 -> 1 | L28: 1
C29: Transformation de l'énergie | D29: Chauffage urbain | F29: =IFERROR(D2b!D80/D2b!D86,D3a!$D$6) -> 0.5461109288 | G29: =IFERROR(D2b!D81/D2b!D86,0) -> 0 | H29: =IFERROR(D2b!D82/D2b!D86,0) -> 0 | I29: =IFERROR(D2b!D83/D2b!D86,0) -> 0 | J29: =IFERROR(D2b!D84/D2b!D86,1-D3a!D6) -> 0.4538890712 | K29: =IFERROR(D2b!D85/D2b!D86, 0) -> 0 | L29: 1
D30: Extraction des combustibles gazeux et distribution d'énergie | H30: =D107 -> 1 | L30: 1
D31: Extraction des combustibles liquides et distribution d'énergie | H31: =D108 -> 1 | L31: 1
D32: Extraction des combustibles solides et distribution d'énergie | H32: =D109 -> 1 | L32: 1
D33: Production d'électricité | H33: 1 | L33: 1
D34: Raffinage de pétrole | H34: =D111 -> 1 | L34: 1
D35: Transformation des combustibles minéraux solides – siderurgies | H35: =D99 -> 1 | L35: 1
C36: Transport routier | D36: Deux roues | G36: =D75 -> 1 | L36: 1
D37: evap essence | G37: =D76 -> 1 | L37: 1
D38: Poids lourds | H38: =D114 -> 0.7 | I38: =D141 -> 0.3 | L38: 1
D39: trafic diffus | G39: =D77 -> 1 | L39: 1
D40: usure routes | G40: =D78 -> 1 | L40: 1
D41: Voitures particulières | G41: =D73 -> 1 | L41: 1
D42: VUL | G42: =D74 -> 0.4 | H42: =D115 -> 0.42 | I42: =D142 -> 0.18 | L42: 1
C43: Autres sources non antrophiques
A47: A. | B47: Correspondances - résidentiel
B49: Résidentiel - correspondances
C51: Poste MyEmiss'Air | D51: Résidentiel
C52: Résidentiel | D52: 1
C53: Chauffage urbain | D53: =F29 -> 0.5461109288
A57: B. | B57: Correspondances - déplacements
B59: Déplacements - données utilisées pour établir la correspondance
D61: Valeur
C62: % transport ferroviaire pour des déplacements | D62: =D3a!D8 -> 0.8
C63: % transport fluvial pour des déplacements | D63: =D3a!D9 -> 0.02
C64: % VUL détenu par des particuliers | D64: =D3a!D10 -> 0.4
B67: Déplacements - correspondances
C69: Poste MyEmiss'Air | D69: Déplacements | E69: Sous-catégorie de déplacements
C70: Transport aérien français | D70: 1 | E70: Avion
C71: Transport ferroviaire | D71: =D62 -> 0.8 | E71: Train
C72: Transport fluvial | D72: =D63 -> 0.02 | E72: Bateau
C73: Voitures particulières | D73: 1 | E73: Routier
C74: VUL | D74: =D64 -> 0.4 | E74: Routier
C75: Deux roues | D75: 1 | E75: Routier
C76: evap essence | D76: 1 | E76: Routier
C77: trafic diffus | D77: 1 | E77: Routier
C78: usure routes | D78: 1 | E78: Routier
A82: C. | B82: Correspondances - biens de consommation
B84: Biens de consommation - données utilisées pour établir la correspondance
D86: Valeur
C87: % VUL détenus par des non particuliers | D87: =1-D3a!$D$10 -> 0.6
C88: Transport routier de marchandises : % t.km réalisées pour des produits non agricoles et non agroalimentaires | D88: =1-D3a!D11 -> 0.7
C89: Transport ferroviaire : % des émissions liées au transport de marchandises | D89: =1-D3a!D8 -> 0.2
C90: Transport ferroviaire de marchandises : % t.km réalisées pour des produits non agricoles et non agroalimentaires | D90: =1-D3a!D13 -> 0.76
C91: Transport fluvial : % des émissions liées au transport de marchandises | D91: =1-D3a!D9 -> 0.98
C92: Transport fluvial de marchandises : % t.km réalisées pour des produits non agricoles et non agroalimentaires | D92: =1-D3a!D12 -> 0.73
B95: Biens de consommation - correspondances
C97: Poste MyEmiss'Air | D97: Consommation | E97: Sous-catégorie de consommation
C98: Métallurgie des métaux ferreux | D98: 1 | E98: Industrie - sidérurgie
C99: Transformation des combustibles minéraux solides – siderurgies | D99: 1 | E99: Industrie - sidérurgie
C100: Métallurgie des métaux non-ferreux | D100: 1 | E100: Industrie - métallurgie non ferreux
C101: Chimie organique, non-organique et divers | D101: 1 | E101: Industrie - chimie
C102: Papier, carton | D102: 1 | E102: Industrie - papier carton
C103: Biens d'équipement, matériels de transport… | D103: 1 | E103: Industrie - automobile
C104: tous secteurs IM | D104: 1 | E104: Industrie - divers
C105: Autres secteurs de l'industrie et non spécifié | D105: 1 | E105: Industrie - divers
C106: Chauffage urbain | D106: =H29 -> 0 | E106: Industrie - divers
C107: Extraction des combustibles gazeux et distribution d'énergie | D107: 1 | E107: Industrie - énergie
C108: Extraction des combustibles liquides et distribution d'énergie | D108: 1 | E108: Industrie - énergie
C109: Extraction des combustibles solides et distribution d'énergie | D109: 1 | E109: Industrie - énergie
C110: Production d'électricité | D110: =H33 -> 1 | E110: Industrie- énergie
C111: Raffinage de pétrole | D111: 1 | E111: Industrie - énergie
C112: Transport ferroviaire | D112: =D89*D90 -> 0.152 | E112: Fret
C113: Transport fluvial | D113: =D91*D92 -> 0.7154 | E113: Fret
C114: Poids lourds | D114: =D88 -> 0.7 | E114: Fret
C115: VUL | D115: =D87*D88 -> 0.42 | E115: Fret
A119: D. | B119: Correspondances - alimentation
B121: Alimentation - données utilisées pour établir la correspondance
D123: Valeur
C124: % VUL détenus par des non particuliers | D124: =1-D3a!D10 -> 0.6
C125: Transport routier de marchandises : % t.km réalisées pour des produits agricoles et agroalimentaires | D125: =D3a!D11 -> 0.3
C126: Transport ferroviaire : % des émissions liées au transport de marchandises | D126: =1-D3a!D8 -> 0.2
C127: Transport ferroviaire de marchandises : % t.km réalisées pour des produits agricoles et agroalimentaires | D127: =D3a!D13 -> 0.24
C128: Transport fluvial : % des émissions liées au transport de marchandises | D128: =1-D3a!D9 -> 0.98
C129: Transport fluvial de marchandises : % t.km réalisées pour des produits agricoles et agroalimentaires | D129: =D3a!D12 -> 0.27
B132: Alimentation - correspondances
C134: Poste MyEmiss'Air | D134: Alimentation | E134: Sous-catégorie de consommation
C135: Autres sources de l'agriculture (tracteurs, …) | D135: 1 | E135: Agriculture
C136: Culture | D136: 1 | E136: Agriculture
C137: Elevage | D137: 1 | E137: Agriculture
C138: Agro-alimentaire | D138: 1 | E138: Agroalimentaire
C139: Transport ferroviaire | D139: =D126*D127 -> 0.048 | E139: Fret
C140: Transport fluvial | D140: =D128*D129 -> 0.2646 | E140: Fret
C141: Poids lourds | D141: =D125 -> 0.3 | E141: Fret
C142: VUL | D142: =D124*D125 -> 0.18 | E142: Fret
C143: Chauffage urbain | D143: =I29 -> 0 | E143: Chauffage urbain
A147: E. | B147: Correspondances - services
B150: Services - correspondances
C152: Poste MyEmiss'Air | D152: Services | E152: Sous-catégorie de services
C153: Tertiaire, commercial et institutionnel | D153: 1 | E153: Services hors déchets
C154: Traitement des déchets | D154: 1 | E154: Déchets
C155: Traitement des déchets industrie | D155: 1 | E155: Déchets
C156: Chauffage urbain | D156: =J29 -> 0.4538890712 | E156: Chauffage urbain
A160: F. | B160: Correspondances - travaux
B162: Travaux - correspondances
C164: Poste MyEmiss'Air | D164: Travaux
C165: Construction | D165: 1
C166: Minéraux non-métalliques et matériaux de construction | D166: 1
C167: Chauffage urbain | D167: =K29 -> 0

Sheet D3c
B2: Correspondance postes PCAET <> MyEmiss'Air
B4: Tableau des correspondances
F8: Résidentiel | G8: Tertiaire | H8: Transport routier | I8: Autres transports | J8: Agriculture | K8: Déchets | L8: Industrie hors branche énergie | M8: Industrie branche énergie | N8: Total
C9: Agriculture | D9: Autres sources de l'agriculture (tracteurs, …) | J9: 1 | N9: =SUM(F9:M9) -> 1
D10: Culture | J10: 1 | N10: =SUM(F10:M10) -> 1
D11: Elevage | J11: 1 | N11: 1
C12: Autres transports | D12: Transport aérien français | I12: 1 | N12: 1
D13: Transport ferroviaire | I13: 1 | N13: 1
D14: Transport fluvial | I14: 1 | N14: 1
C15: IDEC | D15: Agro-alimentaire | L15: 1 | N15: 1
D16: Autres secteurs de l'industrie et non spécifié | L16: 1 | N16: 1
D17: Biens d'équipement, matériels de transport… | L17: 1 | N17: 1
D18: Chimie organique, non-organique et divers | L18: 1 | N18: 1
D19: Construction | L19: 1 | N19: 1
D20: Métallurgie des métaux ferreux | L20: 1 | N20: 1
D21: Métallurgie des métaux non-ferreux | L21: 1 | N21: 1
D22: Minéraux non-métalliques et matériaux de construction | L22: 1 | N22: 1
D23: Papier, carton | L23: 1 | N23: 1
D24: tous secteurs IM | L24: 1 | N24: 1
D25: Traitement des déchets | K25: 1 | N25: 1
D26: traitement dechets industrie | K26: 1 | N26: 1
C27: Résidentiel tertiaire | D27: Résidentiel | F27: 1 | N27: 1
D28: Tertiaire, commercial et institutionnel | G28: 1 | N28: 1
C29: Transformation de l'énergie | D29: Chauffage urbain | M29: 1
D30: Extraction des combustibles gazeux et distribution d'énergie | M30: 1 | N30: 1
D31: Extraction des combustibles liquides et distribution d'énergie | M31: 1 | N31: 1
D32: Extraction des combustibles solides et distribution d'énergie | M32: 1 | N32: 1
D33: Production d'électricité | M33: 1 | N33: 1
D34: Raffinage de pétrole | M34: 1 | N34: 1
D35: Transformation des combustibles minéraux solides – siderurgies | M35: 1 | N35: 1
C36: Transport routier | D36: Deux roues | H36: 1 | N36: 1
D37: evap essence | H37: 1 | N37: 1
D38: Poids lourds | H38: 1 | N38: 1
D39: trafic diffus | H39: 1 | N39: 1
D40: usure routes | H40: 1 | N40: 1
D41: Voitures particulières | H41: 1 | N41: 1
D42: VUL | H42: 1 | N42: 1
C43: Autres sources non antrophiques

Sheet D4a
B2: STOCK DE CARBONE
A11: A. | B11: Stock dans les sols
B13: Source(s): | C13: http://www.arch.nordpasdecalais.fr/ | E13: http://opendata.hautsdefrance.fr | H13: http://geoidd.developpement-durable.gouv.fr/geoclip_stats_o3/index.php#l=fr
D15: Année des données: | F15: 2012
D16: Année de la méthodologie: | F16: 2012 | H16: Source: | I16: CORINE Land Cover, UE-SDES
B18: 1 - surfaces du territoire par type d'occupation du sol (hors haies) | H18: Source suggérée pour l'amélioration des données | I18: ARCH
D20: Surfaces (ha) | E20: Stock carbone (kt CO2)
C21: Cultures | E21: =D21*'FE4'!G10/1000 -> 0
C22: Forêts | E22: =D22*'FE4'!G11/1000 -> 0 | H22: Superficie régionale de forêt | I22: 432054 | J22: ha | K22: Source: | L22: CORINE Land Cover, UE-SDES
C23: Prairies | E23: =D23*'FE4'!G12/1000 -> 0
C24: Espaces artificialisés | E24: =D24*'FE4'!G13/1000 -> 0
C25: Espaces verts | E25: =D25*'FE4'!G14/1000 -> 0
C26: Milieux humides | E26: =D26*'FE4'!G15/1000 -> 0
C27: Total | D27: =SUM(D21:D26) -> 0 | E27: =SUM(E21:E26) -> 0
A31: B. | B31: Stock dans la biomasse
B33: 1 - Stock de carbone - haies
C35: Largeur d'une haie | D35: 2 | E35: m | I35: Source: | J35: Hypothèse RDC
D38: Linéaires haies (km) | E38: Surface haies (ha) | F38: Stock carbone (kt CO2)
C39: Haies | E39: =D35*D39/10 -> 0 | F39: =E39*'FE4'!G16/1000 -> 0 | I39: Source: | M39: Année des données: | O39: 2012
I40: Source conseillée pour affiner | J40: ARCH | M40: Année de la méthodologie: | O40: 2012
B42: 2 - surface forestière totale
D44: Surface (ha) | E44: Stock carbone (kt CO2)
C45: Forêt | D45: =D22 -> 0 | E45: =E54 -> 0
B48: 3 - répartition du peuplement forestier
D50: Répartition | E50: Stock carbone (kt CO2)
C51: Peupleraies | D51: 0.11 | E51: =((D$45*D51)*((D$61*(1-D$62)+D$60)*'FE4'!D25*'FE4'!E25*'FE4'!G25+'FE4'!I25))/1000 -> 0 | H51: Source: | I51: Observatoire Régional de la Biodiversité - 2011 - Nord-Pas de Calais- extrapolé à la Picardie
C52: Feuillus hors peupleraies | D52: 0.85 | E52: =((D$45*D52)*((D$61*(1-D$62)+D$60)*'FE4'!D26*'FE4'!E26*'FE4'!G26+'FE4'!I26))/1000 -> 0
C53: Résineux | D53: =D54-D51-D52 -> 0.04 | E53: =((D$45*D53)*((D$61*(1-D$62)+D$60)*'FE4'!D27*'FE4'!E27*'FE4'!G27+'FE4'!I27))/1000 -> 0
C54: Total | D54: 1 | E54: =SUM(E51:E53) -> 0
B57: 4 - autres caractéristiques de la forêt
D59: Valeur | E59: Unité
C60: Volume de bois fort | D60: 181 | E60: m³ / ha | H60: Source: | I60: IGN 2016 - Hauts de France
C61: Accroissement biologique bois fort | D61: 6.7 | E61: m³ / ha / an | H61: Source: | I61: IGN 2016 - Hauts de France
C62: Part de l'accroissement exploité | D62: 0.67 | E62: - | H62: Source: | I62: IGN 2016 - Hauts de France
A66: C. | B66: Stock de carbone total
B68: Synthèse - stock de carbone
D70: GES
D71: kt eq CO2
C72: Stock dans les sols | D72: =D4a!E27 -> 0
C73: Stock dans la biomasse | D73: =D4a!E54+F39 -> 0
C74: Total | D74: =SUM(D72:D73) -> 0

Sheet D4b
B2: FLUX DE CARBONE
A11: A. | B11: Flux liés au changement d'affectation des sols
B13: Source: | C13: http://www.sigale.nordpasdecalais.fr/cartotheque/ATLAS/Occsol_2005/OccSol_2005.html
B18: 1 - bilan des mutations du sol
C20: Evolution entre | D20: 2006 | E20: et | F20: 2012 | I20: Source: | J20: CORINE Land Cover, UE-SDES
C22: Evolutions des surfaces (ha) | D22: Espaces artificialisés | E22: Espaces agricoles | F22: Espaces semi-naturels
C23: Espaces artificialisés évoluant vers
C24: Espaces agricoles évoluant vers
C25: Espaces semi-naturel évoluant vers
C27: Evolutions des surfaces (ha/an) | D27: Espaces artificialisés | E27: Espaces agricoles | F27: Espaces semi-naturels
C28: Espaces artificialisés évoluant vers | D28: =D23/($F$20-$D$20) -> 0 | E28: =E23/($F$20-$D$20) -> 0 | F28: =F23/($F$20-$D$20) -> 0
C29: Espaces agricoles évoluant vers | D29: =D24/($F$20-$D$20) -> 0 | E29: 0 | F29: 0
C30: Espaces semi-naturel évoluant vers | D30: 0 | E30: 0 | F30: 0
B33: 2 - impact des mutations du sol
D35: GES
D36: kt eq CO2
C37: Stockage | D37: =(E28*'FE4'!E38+D4b!F28*'FE4'!F38+D4b!F29*'FE4'!F39)/1000 -> 0
C38: Déstockage | D38: =(D29*'FE4'!D39+D4b!D30*'FE4'!D40+D4b!E30*'FE4'!E40)/1000 -> 0
C39: Total | D39: =D37+D38 -> 0
A43: B. | B43: Flux dans les sols stables cultivés
B45: Flux total annuel dans les sols stables cultivés
D47: GES
D48: kt eq CO2
C49: Total | G49: Source: | H49: Calculs Agro-transfert à l'échelle cantonale, aggrégation RDC Environment
A53: C. | B53: Flux dans la biomasse
B55: Flux dans la biomasse forêt
D57: Répartition | E57: Flux carbone (kt CO2)
C58: Peupleraies | D58: =D4a!D51 -> 0.11 | E58: =-((D58*D4a!D$45*D4a!D$61*(1-D4a!D$62)*'FE4'!D25*'FE4'!E25*'FE4'!G25))/1000 -> 0
C59: Feuillus hors peupleraies | D59: =D4a!D52 -> 0.85 | E59: =-((D59*D4a!D$45*D4a!D$61*(1-D4a!D$62)*'FE4'!D26*'FE4'!E26*'FE4'!G26))/1000 -> 0
C60: Résineux | D60: =D4a!D53 -> 0.04 | E60: =-((D60*D4a!D$45*D4a!D$61*(1-D4a!D$62)*'FE4'!D27*'FE4'!E27*'FE4'!G27))/1000 -> 0
C61: Total | D61: =SUM(D58:D60) -> 1 | E61: =SUM(E58:E60) -> 0
A65: D. | B65: Flux de carbone total
B67: Synthèse - flux de carbone
D69: GES
D70: kt eq CO2
C71: Sols en transition | D71: =D39 -> 0
C72: Sols stables cultivés | D72: =D49 -> 0
C73: Biomasse forêt | D73: =E61 -> 0
C74: Total | D74: =SUM(D71:D73) -> 0
A78: E. | B78: Produits en bois
B80: Flux dans les produits en bois
D82: Valeur | E82: Source
C83: Volume de produits bois (m³/an) | D83: =0.339*population -> 0 | E83: Valeur moyenne France calculée sur base de la consommation de bois rond industriel (2015) en France - données FAOSTAT
C84: Taux de stockage | D84: 0.5 | E84: Hypothèse RDC
D86: t eq CO2 | E86: Source
C87: Contenu carbone des produits en bois (/m³) | D87: 0.95 | E87: Guide ADEME PCAET 2016
D89: kt eq CO2
C90: Total | D90: =-D83*D87*D84/1000 -> 0

Sheet I1a
B2: Consommation d'électricité du territoire
A4: A. | B4: Résidentiel - consommation d'électricité sur le territoire
B5: Renseigner directement la consommation d'électricité "résidentiel" au niveau territorial à partir des données du SGBD (prendre contact avec l'Observatoire Climat), ou cliquer sur "+" (à gauche) pour affiner l'estimation
B7: Consommation d'électricité dans le résidentiel
C9: Hauts de France - consommation d'électricité dans le résidentiel | F9: (en ktep) | G9: 1105.63 | H9: ktep | I9: Source: | J9: NORENER 2017 (données 2014)
F10: (en MWh) | G10: =11628*G9 -> 12856265.64 | H10: MWh
C11: HdF émissions directes de GES du poste "résidentiel" (hors électricité) | G11: =D1b!K32 -> 6314.957416 | H11: kt eq CO2
C12: Territoire - émissions directes de GES du poste "résidentiel" (hors électricité) | G12: =D1a!K152 -> 0 | H12: kt eq CO2
C13: Territoire - consommation d'électricité estimée - résidentiel | G13: =G10*G12/G11-0.5*G41 -> 0 | H13: MWh | I13: Source: | J13: =J9 -> NORENER 2017 (données 2014)
C15: Territoire - consommation d'électricité - résidentiel | G15: 0 | H15: MWh | I15: Source: | J15: Observatoire Climat Hauts de France, année 2012
B18: Résidentiel - consommation d'électricité totale
C20: Consommation d'électricité utilisée | D20: =IF(G15=0,G13,G15) -> 0 | E20: MWh | G20: Source: | H20: =IF(G15=0,J9,J15) -> NORENER 2017 (données 2014)
A24: B. | B24: Déplacements - consommation d'électricité sur le territoire
B26: Consommation d'électricité - transport routier
C28: Région HdF- consommation carburants routier voitures particulières | G28: =197+354+0.77*(1088+2100)+36.78+78.75 -> 3121.29 | H28: ktep | I28: Source: | J28: NORENER 2017 (données 2014) - 100% essence, 77% du diesel (23% camions), 100% du GPL - selon les allocations de NORENER NPdC 2016
C29: Région HdF- consommation carburants routier | G29: =G28*11628 -> 36294360.12 | H29: MWh
C30: Région HdF- émissions GES directes carburants routier véhicules particuliers | G30: =SUMPRODUCT(D1b!K41:K47,D3b!G36:G42) -> 7070.174377 | H30: kt eq CO2
C31: Part des émissions de GES liée à l'énergie | G31: 1 | I31: Source: | J31: hypothèse RDC
C32: Territoire - émissions directes de GES du transport routier particuliers (hors électricité) - MyEmiss'Air | G32: =Depl!F37 -> 0 | H32: kt eq CO2
C33: Territoire- consommation carburants routier | G33: =G32/G30*G29 -> 0 | H33: MWh
C34: Rendement véhicule thermique | G34: 0.45 | I34: Source: | J34: hypothèse RDC
C35: Rendement véhicule électrique | G35: 0.98 | I35: Source: | J35: hypothèse RDC
C36: Territoire - énergie fournie carburants | G36: =G33*G34 -> 0 | H36: MWh
C37: Part de l'électricité dans le parc automobile | G37: =(744+386)/(1141624+1961797) -> 0.0003641143113 | I37: Source: | J37: Proportion des véhicules particuliers et commerciaux électriques en Hauts de France - calcul à partir du Répertoire statistique des véhicules routiers RSVERO- MEEM (CGDD/SOeS) données disponibles sur EIDER - Hauts de France- données 2014
C38: Territoire-énergie électrique fournie dans les transports | G38: =G36*G37/(1-G37) -> 0 | H38: MWh
C39: Territoire - consommation d'électricité estimée - transport routier | G39: =G38/G35 -> 0 | H39: MWh | I39: Source: | J39: =CONCATENATE(J28,", ",J31,", ",J37) -> NORENER 2017 (données 2014) - 100% essence, 77% du diesel (23% camions), 100% du GPL - selon les allocations de NORENER NPdC 2016, hypothèse RDC, Proportion des véhicules particuliers et commerciaux électriques en Hauts de France - calcul à partir du Répertoire statistique des véhicules routiers RSVERO- MEEM (CGDD/SOeS) données disponibles sur EIDER - Hauts de France- données 2014
C41: Territoire - consommation d'électricité - transport routier | H41: MWh | I41: Source:
B44: Consommation d'électricité - autres transports
C46: Région Hauts de France- consommation électricité transport ferroviaire | G46: =115.54*Accueil!F74 -> 1343499.12 | H46: MWh | I46: Source: | J46: NORENER 2017 (données 2014)
C47: Part de la consommation électrique du transport ferroviaire consommée sur le territoire | G47: =D1a!L138/D1b!L18 -> 0 | I47: Source: | J47: Hypothèse RDC: part des émissions de PM10 du transport ferroviaire
C48: Territoire - consommation d'électricité transport ferroviaire | G48: =G46*G47 -> 0 | H48: MWh | I48: Source: | J48: =CONCATENATE(J46,", ",J47) -> NORENER 2017 (données 2014), Hypothèse RDC: part des émissions de PM10 du transport ferroviaire
C50: Territoire - consommation d'électricité - autres transports | H50: MWh | I50: Source:
B53: Déplacements - consommation d'électricité totale
C55: Consommation d'électricité utilisée | D55: =SUM(D56+D57) -> 0 | E55: MWh | G55: Source: | H55: =CONCATENATE(H56,", ",H57) -> NORENER 2017 (données 2014) - 100% essence, 77% du diesel (23% camions), 100% du GPL - selon les allocations de NORENER NPdC 2016, hypothèse RDC, Proportion des véhicules particuliers et commerciaux électriques en Hauts de France - calcul à partir du Répertoire statistique des véhicules routiers RSVERO- MEEM (CGDD/SOeS) données disponibles sur EIDER - Hauts de France- données 2014, NORENER 2017 (données 2014), Hypothèse RDC: part des émissions de PM10 du transport ferroviaire
C56: Transports routiers | D56: =IF(G41=0,G39,G41) -> 0 | E56: MWh | G56: Source: | H56: =IF(G41=0,J39,J41) -> NORENER 2017 (données 2014) - 100% essence, 77% du diesel (23% camions), 100% du GPL - selon les allocations de NORENER NPdC 2016, hypothèse RDC, Proportion des véhicules particuliers et commerciaux électriques en Hauts de France - calcul à partir du Répertoire statistique des véhicules routiers RSVERO- MEEM (CGDD/SOeS) données disponibles sur EIDER - Hauts de France- données 2014
C57: Autres transports | D57: =IF(G50=0,G48,G50) -> 0 | E57: MWh | G57: Source: | H57: =IF(G50=0,J48,J50) -> NORENER 2017 (données 2014), Hypothèse RDC: part des émissions de PM10 du transport ferroviaire
A60: C. | B60: Biens de consommation - consommation d'électricité sur le territoire
B61: Renseigner directement la consommation d'électricité "consommation" au niveau territorial, ou cliquer sur "+" (à gauche) pour affiner l'estimation
B63: Consommation d'électricité - Biens de consommation
G65: Sidérurgie | H65: Métallurgie non-ferreux | I65: Chimie | J65: Papier, carton | K65: Energie/ Raffinage | L65: Automobile | M65: Divers
C66: Territoire - émissions directes de GES (hors électricité) - MyEmiss'Air | F66: kt eq CO2 | G66: =D1a!K145+D1a!K160 -> 0 | H66: =D1a!K146 -> 0 | I66: =D1a!K143 -> 0 | J66: =D1a!K148 -> 0 | K66: =D1a!K155+D1a!K156+D1a!K157+D1a!K159+D2b!D129 -> 0 | L66: =D1a!K142 -> 0 | M66: =D1a!K141+D1a!K149 -> 0
C67: Part des émissions directes de GES liée à l'énergie | F67: % | G67: 1 | H67: 0.91 | I67: 0.93 | J67: 1 | K67: 0.53 | L67: 0.98 | M67: 0.98 | O67: Source: | P67: ATMO NPdC 2008, Raffinage classique du pétrole au Canada (CIPEC, 2002)
C68: Territoire - émissions directes de GES liées à l'énergie (hors électricité) | F68: kt eq CO2 | G68: =G66*G67 -> 0 | H68: 0 | I68: 0 | J68: 0 | K68: 0 | L68: 0 | M68: 0
C69: Equivalence GES / consommation d'énergie (hors électricité) | F69: t eq CO2 / MWh | G69: 0.411 | H69: 0.36 | I69: 0.184 | J69: 0.322 | K69: 0.219 | L69: 0.219 | M69: 0.219 | O69: Source: | P69: SESSI 2011
C70: Territoire - consommation d'énergie (hors électricité) | F70: MWh | G70: =G68/G69*1000 -> 0 | H70: 0 | I70: 0 | J70: 0 | K70: 0 | L70: 0 | M70: 0
C71: Part de l'électricité dans l'énergie totale consommée | F71: % | G71: 0.12 | H71: 0.69 | I71: 0.12 | J71: 0.31 | K71: 0.06 | L71: 0.57 | M71: 0.57 | O71: Source: | P71: SESSI 2011, Raffinage classique du pétrôle au Canada (CIPEC, 2002)
C72: Territoire - consommation d'électricité estimée | F72: MWh | G72: =(G70*G71)/(1-G71) -> 0 | H72: 0 | I72: 0 | J72: 0 | K72: 0 | L72: 0 | M72: 0
C74: Territoire- Consommation d'électricité estimée - Biens de consommation hors énergie | F74: =SUM(G72:M72)-K72 -> 0 | G74: MWh | I74: Source | J74: SESSI 2011, ATMO NPdC 2008
C75: Territoire- Consommation d'électricité estimée - Biens de consommation énergie | F75: =K72 -> 0 | G75: MWh | I75: Source | J75: Raffinage classique du pétrole au Canada (CIPEC, 2002)
C77: Territoire - Consommation d'électricité - Biens de consommation hors énergie | G77: MWh | I77: Source
C78: Territoire - Consommation d'électricité - Biens de consommation énergie | G78: MWh | I78: Source
C80: Estimation de répartition par secteur | G80: Sidérurgie | H80: Métallurgie non-ferreux | I80: Chimie | J80: Papier, carton | K80: Energie/ Raffinage | L80: Automobile | M80: Divers
C81: Territoire - consommation d'électricité (hors branche énergie) | F81: MWh | G81: =(G72/$F$74)*$F$77 ->  | H81: =(H72/$F$74)*$F$77 ->  | K81: =F78 -> 0
B84: Biens de consommation - consommation d'électricité totale
C86: Consommation d'électricité utilisée | D86: =IF(F77=0,F74,F77)+IF(F78=0,F75,F78) -> 0 | E86: MWh | G86: Source: | H86: =CONCATENATE(H87,", ",H88) -> SESSI 2011, ATMO NPdC 2008, Raffinage classique du pétrole au Canada (CIPEC, 2002)
C87: Biens de consommation hors énergie | D87: =IF(F77=0,F74,F77) -> 0 | E87: MWh | G87: Source: | H87: =IF(F77=0,J74,J77) -> SESSI 2011, ATMO NPdC 2008
C88: Biens de consommation énergie | D88: =IF(F80=0,F75,F80) -> 0 | E88: MWh | G88: Source: | H88: =IF(F78=0,J75,J78) -> Raffinage classique du pétrole au Canada (CIPEC, 2002)
A92: D. | B92: Alimentation - consommation d'électricité sur le territoire
B93: Cette partie n'est pas utilisée pour calculer le bilan GES final des émissions liées à la consommation. Spécifier les données bleues est optionnel et sert uniquement à obtenir la répartition par poste de la consommation électrique, à titre informatif.
B94: Renseigner directement la consommation d'électricité "alimentation" au niveau territorial, ou cliquer sur "+" (à gauche) pour affiner l'estimation
B97: Consommation d'électricité - agriculture
C99: Territoire - émissions directes de GES des autres sources de l'agriculture (hors électricité) | G99: =D1a!K134 -> 0 | H99: kt eq CO2
C100: FE combustion du fioul | G100: 0.272 | H100: t eq CO2 / MWh | I100: Source: | J100: Bilan Carbone v7
C101: Consommation de fioul estimée | G101: =G99/G100*1000 -> 0 | H101: MWh
C102: Ratio consommation d'électricité / consommation de fioul (%) | G102: 0.16 | I102: Source: | J102: ClimAgri étude NPdC 2012, appliqué aux Hauts de France
C103: Territoire - consommation d'électricité estimée - agriculture | G103: =G101*G102 -> 0 | H103: MWh | I103: Source: | J103: =CONCATENATE(J102,", ",J100) -> ClimAgri étude NPdC 2012, appliqué aux Hauts de France, Bilan Carbone v7
C105: Territoire - consommation d'électricité - agriculture | H105: MWh | I105: Source:
B108: Consommation d'électricité - industrie - agroalimentaire
C110: Territoire - émissions directes de GES (hors électricité) - MyEmiss'Air | G110: =D1a!K140 -> 0 | H110: kt eq CO2
C111: Part des émissions de GES liée à l'énergie | G111: 0.38 | I111: Source: | J111: ATMO HdF 2012
C112: Territoire - émissions directes de GES liées à l'énergie (hors électricité) | G112: =G110*G111 -> 0 | H112: kt eq CO2
C113: Equivalence GES / consommation d'énergie (hors électricité) | G113: 0.284 | H113: t eq CO2 / MWh | I113: Source: | J113: SESSI 2011
C114: Territoire - consommation d'énergie (hors électricité) | G114: =G112/G113*1000 -> 0 | H114: MWh
C115: Part de l'électricité dans l'énergie totale consommée | G115: 0.16 | I115: Source: | J115: SESSI 2011
C116: Territoire - consommation d'électricité estimée - agriculture | G116: =G114*G115/(1-G115) -> 0 | H116: MWh | I116: Source: | J116: =CONCATENATE(J111,", ",J113) -> ATMO HdF 2012, SESSI 2011
C118: Territoire - consommation d'électricité - agroalimentaire | H118: MWh | I118: Source:
B121: Alimentation - consommation d'électricité totale
C123: Consommation d'électricité utilisée | D123: =D124+D125 -> 0 | E123: MWh | G123: Source: | H123: =CONCATENATE(H124,", ",H125) -> ClimAgri étude NPdC 2012, appliqué aux Hauts de France, Bilan Carbone v7, ATMO HdF 2012, SESSI 2011
C124: Agriculture | D124: =IF(G105=0,G103,G105) -> 0 | E124: MWh | G124: Source: | H124: =IF(G105=0,J103,J105) -> ClimAgri étude NPdC 2012, appliqué aux Hauts de France, Bilan Carbone v7
C125: Agroalimentaire | D125: =IF(G118=0,G116,G118) -> 0 | E125: MWh | G125: Source: | H125: =IF(G118=0,J116,J118) -> ATMO HdF 2012, SESSI 2011
A129: E. | B129: Services - consommation d'électricité sur le territoire
B130: Renseigner directement la consommation d'électricité "services" au niveau territorial, ou cliquer sur "+" (à gauche) pour affiner l'estimation
B132: Consommation d'électricité - services (hors traitement des déchets)
C134: Hauts de France - consommation d'électricité dans les services | F134: (en ktep) | G134: =553.39+270.89 -> 824.28 | H134: ktep | I134: Source: | J134: NORENER 2017 HdF (données 2014)
F135: (en MWh) | G135: =11628*G134 -> 9584727.84 | H135: MWh
C136: Hauts de France - émissions directes de GES du poste "tertaire" (hors électricité) - MyEmiss'Air | G136: =D1b!K33 -> 3100.662237 | H136: kt eq CO2
C137: Territoire - émissions directes de GES du poste "tertiaire" (hors électricité) - MyEmiss'Air | G137: =D1a!K153 -> 0 | H137: kt eq CO2
C138: Territoire - consommation d'électricité estimée - services (hors traitement des déchets) | G138: =G135*G137/G136-0.5*G39 -> 0 | H138: MWh | I138: Source: | J138: =J134 -> NORENER 2017 HdF (données 2014)
C140: Territoire - consommation d'électricité - services (hors traitement des déchets) | H140: MWh | I140: Source:
B143: Consommation d'électricité - industrie - traitement des déchets
C145: Territoire - émissions directes de GES (hors électricité) - MyEmiss'Air | G145: =D1a!K150+D1a!K151 -> 0 | H145: kt eq CO2
C146: Part des émissions de GES liée à l'énergie | G146: 0.25 | I146: Source: | J146: ATMO Hauts de France "déchets" 2012- combustion
C147: Territoire - émissions directes de GES liées à l'énergie (hors électricité) | G147: =G145*G146 -> 0 | H147: kt eq CO2
C148: Equivalence GES / consommation d'énergie (hors électricité) | G148: 0.2 | H148: t eq CO2 / MWh | I148: Source: | J148: FE incinération des déchets
C149: Territoire - consommation d'énergie (hors électricité) | G149: =G147/G148*1000 -> 0 | H149: MWh
C150: Part de l'électricité dans l'énergie totale consommée | G150: 0.02 | I150: Source: | J150: Retour d'exp. ClimatMundi
C151: Territoire - consommation d'électricité estimée - traitement des déchets | G151: =G149*G150/(1-G150) -> 0 | H151: MWh | I151: Source: | J151: =CONCATENATE(J146,", ",J148,", ",J150) -> ATMO Hauts de France "déchets" 2012- combustion, FE incinération des déchets, Retour d'exp. ClimatMundi
C153: Territoire - consommation d'électricité - traitement des déchets | H153: MWh | I153: Source:
B156: Services - consommation d'électricité totale
C158: Consommation d'électricité utilisée | D158: =D159+D160 -> 0 | E158: MWh
C159: Services (hors déchets) | D159: =IF(G140=0,G138,G140) -> 0 | E159: MWh | G159: Source: | H159: =IF(G140=0,J138,J140) -> NORENER 2017 HdF (données 2014)
C160: Traitement des déchets | D160: =IF(G153=0,G151,G153) -> 0 | E160: MWh | G160: Source: | H160: =IF(G153=0,J151,J153) -> ATMO Hauts de France "déchets" 2012- combustion, FE incinération des déchets, Retour d'exp. ClimatMundi
A164: C. | B164: Travaux- consommation d'électricité sur le territoire
B165: Cette partie n'est pas utilisée pour calculer le bilan GES final des émissions liées à la consommation. Spécifier les données bleues est optionnel et sert uniquement à obtenir la répartition par poste de la consommation électrique, à titre informatif.
B166: Renseigner directement la consommation d'électricité "travaux" au niveau territorial, ou cliquer sur "+" (à gauche) pour affiner l'estimation
B168: Consommation d'électricité - Travaux
G170: Industrie des minéraux non-métalliques et matériaux de construction
C171: Territoire - émissions directes de GES (hors électricité) - MyEmiss'Air | F171: kt eq CO2 | G171: =D1a!K147 -> 0
C172: Part des émissions directes de GES liée à l'énergie | F172: % | G172: 0.015 | J172: Source: | K172: ATMO HdF 2012 | O172: Source: | P172: ATMO NPdC 2008, Raffinage classique du pétrole au Canada (CIPEC, 2002)
C173: Territoire - émissions directes de GES liées à l'énergie (hors électricité) | F173: kt eq CO2 | G173: =G171*G172 -> 0
C174: Equivalence GES / consommation d'énergie (hors électricité) | F174: t eq CO2 / MWh | G174: 0.271 | J174: Source: | K174: SESSI 2011 | O174: Source: | P174: SESSI 2011
C175: Territoire - consommation d'énergie (hors électricité) | F175: MWh | G175: =G173/G174*1000 -> 0
C176: Part de l'électricité dans l'énergie totale consommée | F176: % | G176: 0.16 | J176: Source: | K176: SESSI 2011 | O176: Source: | P176: SESSI 2011, Raffinage classique du pétrôle au Canada (CIPEC, 2002)
C177: Territoire - consommation d'électricité estimée | F177: MWh | G177: =(G175*G176)/(1-G176) -> 0
C179: Territoire- Consommation d'électricité estimée - Travaux | F179: =G177 -> 0 | G179: MWh | I179: Source | J179: =CONCATENATE(K172,", ",K174,", ",K176) -> ATMO HdF 2012, SESSI 2011, SESSI 2011
C181: Territoire - Consommation d'électricité - Travaux | G181: MWh | I181: Source
B184: Travaux - consommation d'électricité totale
C186: Consommation d'électricité utilisée | D186: =IF(F181=0,F179,F181) -> 0 | E186: MWh | G186: Source: | H186: =IF(F181=0,J179,J181) -> ATMO HdF 2012, SESSI 2011, SESSI 2011
A190: F. | B190: Bilan des consommations d'électricité sur le territoire- répartition par poste ESPASS
D193: Consommation d'électricité sur le territoire
D194: MWh | E194: %
C195: Résidentiel | D195: =D20 -> 0 | E195: =D195/$D$201 -> 
C196: Déplacements | D196: =D55 -> 0
C197: Biens de consommation | D197: =D86 -> 0
C198: Alimentation | D198: =D123 -> 0
C199: Services | D199: =D158 -> 0
C200: Travaux | D200: =D186 -> 0
C201: Consommation d'électricité | D201: =SUM(D195:D200) -> 0 | E201: =SUM(E195:E200) -> 
A204: G. | B204: Bilan des consommations d'électricité sur le territoire- répartition par poste PCAET
D207: Consommation d'électricité sur le territoire
D208: MWh | E208: %
C209: Résidentiel | D209: =D20 -> 0 | E209: =D209/$D$217 -> 
C210: Tertiaire | D210: =D159 -> 0
C211: Transport routier | D211: =D56 -> 0
C212: Autres transports | D212: =D57 -> 0
C213: Agriculture | D213: =D124 -> 0
C214: Déchets | D214: =D160 -> 0
C215: Industrie hors branche énergie | D215: =D125+D86+D186-K72 -> 0
C216: Industrie branche énergie | D216: =K72 -> 0
C217: Consommation d'électricité | D217: =SUM(D209:D216) -> 0 | E217: =SUM(E209:E216) -> 

Sheet I1b
B1: Bilan des émissions de GES liées à la consommation d'électricité- par poste
A3: A. | B3: Résidentiel - émissions de GES liées à la consommation d'électricité sur le territoire
B6: Résidentiel - émissions indirectes de GES liées à la consommation d'électricité (Imports)
D9: Consommation d'électricité | E9: Résidentiel | F9: =I1a!D20 -> 0 | G9: MWh
F11: Transport | G11: Industrie base | H11: Eclairage résidentiel | I11: Eclairage public et industrie | J11: Eau chaude sanitaire et cuisson | K11: Cuisson residentiel | L11: Climatisation tertiaire | M11: Chauffage | N11: Autres (BTP, recherche, armées, etc.) | O11: Total
C12: Répartition de la consommation d’électricité | E12: % | F12: ='FE5'!E9 -> 0 | G12: ='FE5'!F9 -> 0 | H12: ='FE5'!G9 -> 0.07 | I12: ='FE5'!H9 -> 0 | J12: ='FE5'!I9 -> 0.13 | K12: ='FE5'!J9 -> 0.08 | L12: ='FE5'!K9 -> 0 | M12: ='FE5'!L9 -> 0.29 | N12: ='FE5'!M9 -> 0.43 | O12: =SUM(F12:N12) -> 1
C13: Résidentiel- Consommation d'électricité | E13: MWh | F13: =$F$9*F12 -> 0 | G13: 0 | H13: 0 | I13: 0 | J13: 0 | K13: 0 | L13: 0 | M13: 0 | N13: 0 | O13: =SUM(F13:N13) -> 0
F15: Transport | G15: Industrie base | H15: Eclairage résidentiel | I15: Eclairage public et industrie | J15: Eau chaude sanitaire et cuisson | K15: Cuisson residentiel | L15: Climatisation tertiaire | M15: Chauffage | N15: Autres (BTP, recherche, armées, etc.) | O15: Total
C16: Résidentiel- Emissions indirectes (scope 2 - périmètre réglementaire) | E16: kt eq CO2 | F16: =(F13*'FE5'!E20)/1000000 -> 0 | G16: =(G13*'FE5'!F20)/1000000 -> 0 | H16: =(H13*'FE5'!G20)/1000000 -> 0 | I16: =(I13*'FE5'!H20)/1000000 -> 0 | J16: =(J13*'FE5'!I20)/1000000 -> 0 | K16: =(K13*'FE5'!J20)/1000000 -> 0 | L16: =(L13*'FE5'!K20)/1000000 -> 0 | M16: =(M13*'FE5'!L20)/1000000 -> 0 | N16: =(N13*'FE5'!M20)/1000000 -> 0 | O16: =SUM(F16:N16) -> 0
C17: résidentiel- Emissions indirectes (amont des combustibles, transport et distribution) | E17: kt eq CO2 | F17: =F18-F16 -> 0 | G17: =G18-G16 -> 0 | H17: 0 | I17: 0 | J17: 0 | K17: 0 | L17: 0 | M17: 0 | N17: 0 | O17: =SUM(F17:N17) -> 0
C18: Résidentiel- Scope 3 | E18: kt eq CO2 | F18: =(F13*'FE5'!E21)/1000000 -> 0 | G18: =(G13*'FE5'!F21)/1000000 -> 0 | H18: =(H13*'FE5'!G21)/1000000 -> 0 | I18: =(I13*'FE5'!H21)/1000000 -> 0 | J18: =(J13*'FE5'!I21)/1000000 -> 0 | K18: =(K13*'FE5'!J21)/1000000 -> 0 | L18: =(L13*'FE5'!K21)/1000000 -> 0 | M18: =(M13*'FE5'!L21)/1000000 -> 0 | N18: =(N13*'FE5'!M21)/1000000 -> 0 | O18: =SUM(F18:N18) -> 0
A21: B. | B21: Déplacements- Émissions indirectes de GES liées à la consommation d'électricité sur le territoire
B23: Déplacements - émissions indirectes de GES liées à la consommation d'électricité (Imports)
C25: Consommation d'électricité | E25: Déplacements | F25: =I1a!D55 -> 0 | G25: MWh
E26: Transport routier | F26: =I1a!D56 -> 0 | G26: MWh
E27: Autres transports | F27: =I1a!D57 -> 0 | G27: MWh
F29: Transport | G29: Industrie base | H29: Eclairage résidentiel | I29: Eclairage public et industrie | J29: Eau chaude sanitaire et cuisson | K29: Cuisson residentiel | L29: Climatisation tertiaire | M29: Chauffage | N29: Autres (BTP, recherche, armées, etc.) | O29: Total
C30: Répartition de la consommation d’électricité - Transport routier | E30: % | F30: ='FE5'!E11 -> 0 | G30: ='FE5'!F11 -> 0 | H30: ='FE5'!G11 -> 0 | I30: ='FE5'!H11 -> 0 | J30: ='FE5'!I11 -> 0 | K30: ='FE5'!J11 -> 0 | L30: ='FE5'!K11 -> 0 | M30: ='FE5'!L11 -> 0 | N30: ='FE5'!M11 -> 1 | O30: =SUM(F30:N30) -> 1
C31: Répartition de la consommation d’électricité - Autres transports | E31: % | F31: ='FE5'!E12 -> 1 | G31: ='FE5'!F12 -> 0 | H31: ='FE5'!G12 -> 0 | I31: ='FE5'!H12 -> 0 | J31: ='FE5'!I12 -> 0 | K31: ='FE5'!J12 -> 0 | L31: ='FE5'!K12 -> 0 | M31: ='FE5'!L12 -> 0 | N31: ='FE5'!M12 -> 0 | O31: =SUM(F31:N31) -> 1
C32: Transport routier | E32: MWh | F32: =$F$26*F30 -> 0 | G32: =$F$26*G30 -> 0 | H32: 0 | I32: 0 | J32: 0 | K32: 0 | L32: 0 | M32: 0 | N32: 0 | O32: =SUM(F32:N32) -> 0
C33: Autres transports | E33: MWh | F33: =$F$27*F31 -> 0 | G33: =$F$27*G31 -> 0 | H33: 0 | I33: 0 | J33: 0 | K33: 0 | L33: 0 | M33: 0 | N33: 0 | O33: =SUM(F33:N33) -> 0
C34: Déplacements- Consommation d'électricité | E34: MWh | F34: =F32+F33 -> 0 | G34: =G32+G33 -> 0 | H34: 0 | I34: 0 | J34: 0 | K34: 0 | L34: 0 | M34: 0 | N34: 0 | O34: =SUM(F34:N34) -> 0
F36: Transport | G36: Industrie base | H36: Eclairage résidentiel | I36: Eclairage public et industrie | J36: Eau chaude sanitaire et cuisson | K36: Cuisson residentiel | L36: Climatisation tertiaire | M36: Chauffage | N36: Autres (BTP, recherche, armées, etc.) | O36: Total
C37: Transport routier - Emissions indirectes (scope 2 - périmètre réglementaire) | E37: kt eq CO2 | F37: =(F32*'FE5'!E$20)/1000000 -> 0 | G37: =(G32*'FE5'!F$20)/1000000 -> 0 | H37: =(H32*'FE5'!G$20)/1000000 -> 0 | I37: =(I32*'FE5'!H$20)/1000000 -> 0 | J37: =(J32*'FE5'!I$20)/1000000 -> 0 | K37: =(K32*'FE5'!J$20)/1000000 -> 0 | L37: =(L32*'FE5'!K$20)/1000000 -> 0 | M37: =(M32*'FE5'!L$20)/1000000 -> 0 | N37: =(N32*'FE5'!M$20)/1000000 -> 0 | O37: =SUM(F37:N37) -> 0
C38: Transport routier- Emissions indirectes (amont des combustibles, transport et distribution) | E38: kt eq CO2 | F38: =F39-F37 -> 0 | G38: =G39-G37 -> 0 | H38: 0 | I38: 0 | J38: 0 | K38: 0 | L38: 0 | M38: 0 | N38: 0 | O38: 0
C39: Transport routier-Scope 3 | E39: kt eq CO2 | F39: =(F32*'FE5'!E$21)/1000000 -> 0 | G39: =(G32*'FE5'!F$21)/1000000 -> 0 | H39: =(H32*'FE5'!G$21)/1000000 -> 0 | I39: =(I32*'FE5'!H$21)/1000000 -> 0 | J39: =(J32*'FE5'!I$21)/1000000 -> 0 | K39: =(K32*'FE5'!J$21)/1000000 -> 0 | L39: =(L32*'FE5'!K$21)/1000000 -> 0 | M39: =(M32*'FE5'!L$21)/1000000 -> 0 | N39: =(N32*'FE5'!M$21)/1000000 -> 0 | O39: 0
C40: Autres transports - Emissions indirectes (scope 2 - périmètre réglementaire) | E40: kt eq CO2 | F40: =(F33*'FE5'!E$20)/1000000 -> 0 | G40: =(G33*'FE5'!F$20)/1000000 -> 0 | H40: =(H33*'FE5'!G$20)/1000000 -> 0 | I40: =(I33*'FE5'!H$20)/1000000 -> 0 | J40: =(J33*'FE5'!I$20)/1000000 -> 0 | K40: =(K33*'FE5'!J$20)/1000000 -> 0 | L40: =(L33*'FE5'!K$20)/1000000 -> 0 | M40: =(M33*'FE5'!L$20)/1000000 -> 0 | N40: =(N33*'FE5'!M$20)/1000000 -> 0 | O40: 0
C41: Autres transports- Emissions indirectes (amont des combustibles, transport et distribution) | E41: kt eq CO2 | F41: =F42-F40 -> 0 | G41: =G42-G40 -> 0 | H41: 0 | I41: 0 | J41: 0 | K41: 0 | L41: 0 | M41: 0 | N41: 0 | O41: 0
C42: Autres transports-Scope 3 | E42: kt eq CO2 | F42: =(F33*'FE5'!E$21)/1000000 -> 0 | G42: =(G33*'FE5'!F$21)/1000000 -> 0 | H42: =(H33*'FE5'!G$21)/1000000 -> 0 | I42: =(I33*'FE5'!H$21)/1000000 -> 0 | J42: =(J33*'FE5'!I$21)/1000000 -> 0 | K42: =(K33*'FE5'!J$21)/1000000 -> 0 | L42: =(L33*'FE5'!K$21)/1000000 -> 0 | M42: =(M33*'FE5'!L$21)/1000000 -> 0 | N42: =(N33*'FE5'!M$21)/1000000 -> 0 | O42: 0
C43: Déplacements-Emissions indirectes (scope 2 - périmètre réglementaire) | E43: kt eq CO2 | F43: =F34*'FE5'!E$20/1000000 -> 0 | G43: =G34*'FE5'!F$20/1000000 -> 0 | H43: =H34*'FE5'!G$20/1000000 -> 0 | I43: =I34*'FE5'!H$20/1000000 -> 0 | J43: =J34*'FE5'!I$20/1000000 -> 0 | K43: =K34*'FE5'!J$20/1000000 -> 0 | L43: =L34*'FE5'!K$20/1000000 -> 0 | M43: =M34*'FE5'!L$20/1000000 -> 0 | N43: =N34*'FE5'!M$20/1000000 -> 0 | O43: 0
C44: Déplacements- Emissions indirectes (amont des combustibles, transport et distribution) | E44: kt eq CO2 | F44: =F45-F43 -> 0 | G44: =G45-G43 -> 0 | H44: 0 | I44: 0 | J44: 0 | K44: 0 | L44: 0 | M44: 0 | N44: 0 | O44: 0
C45: Déplacements- Scope 3 | E45: kt eq CO2 | F45: =F34*'FE5'!E$21/1000000 -> 0 | G45: =G34*'FE5'!F$21/1000000 -> 0 | H45: =H34*'FE5'!G$21/1000000 -> 0 | I45: =I34*'FE5'!H$21/1000000 -> 0 | J45: =J34*'FE5'!I$21/1000000 -> 0 | K45: =K34*'FE5'!J$21/1000000 -> 0 | L45: =L34*'FE5'!K$21/1000000 -> 0 | M45: =M34*'FE5'!L$21/1000000 -> 0 | N45: =N34*'FE5'!M$21/1000000 -> 0 | O45: 0
A48: C. | B48: Biens de consommation- Émissions indirectes de GES liées à la consommation d'électricité sur le territoire
B50: Biens de consommation - émissions indirectes de GES liées à la consommation d'électricité (Imports)
C52: Consommation d'électricité | E52: Biens de consom. | F52: =I1a!D86 -> 0 | G52: MWh
E53: dont hors branche énergie | F53: =F52-I1a!K72 -> 0 | G53: MWh
E54: Industrie branche énergie | F54: =I1a!K72 -> 0 | G54: MWh
F57: Transport | G57: Industrie base | H57: Eclairage résidentiel | I57: Eclairage public et industrie | J57: Eau chaude sanitaire et cuisson | K57: Cuisson residentiel | L57: Climatisation tertiaire | M57: Chauffage | N57: Autres (BTP, recherche, armées, etc.) | O57: Total
C58: Répartition de la consommation d'électricité - Industrie hors énergie | E58: % | F58: ='FE5'!E15 -> 0 | G58: ='FE5'!F15 -> 1 | H58: ='FE5'!G15 -> 0 | I58: ='FE5'!H15 -> 0 | J58: ='FE5'!I15 -> 0 | K58: ='FE5'!J15 -> 0 | L58: ='FE5'!K15 -> 0 | M58: ='FE5'!L15 -> 0 | N58: ='FE5'!M15 -> 0 | O58: =SUM(F58:N58) -> 1
C59: Biens de consommation hors énergie - Consommation d'électricité | E59: % | F59: =F58 -> 0 | G59: =G58 -> 1 | H59: 0 | I59: 0 | J59: 0 | K59: 0 | L59: 0 | M59: 0 | N59: 0 | O59: 1
C60: Biens de consommation énergie - Consommation d'électricité | E60: % | F60: ='FE5'!E15 -> 0 | G60: ='FE5'!F15 -> 1 | H60: ='FE5'!G15 -> 0 | I60: ='FE5'!H15 -> 0 | J60: ='FE5'!I15 -> 0 | K60: ='FE5'!J15 -> 0 | L60: ='FE5'!K15 -> 0 | M60: ='FE5'!L15 -> 0 | N60: ='FE5'!M15 -> 0 | O60: 1
C61: Biens de consommation hors énergie - Consommation d'électricité | E61: MWh | F61: =$F$53*F59 -> 0 | G61: =$F$53*G59 -> 0 | H61: 0 | I61: 0 | J61: 0 | K61: 0 | L61: 0 | M61: 0 | N61: 0 | O61: 0
C62: Biens de consommation énergie - Consommation d'électricité | E62: MWh | F62: =$F$54*F60 -> 0 | G62: =$F$54*G60 -> 0 | H62: 0 | I62: 0 | J62: 0 | K62: 0 | L62: 0 | M62: 0 | N62: 0 | O62: 0
C63: Biens de consommation - Consommation d'électricité | E63: MWh | F63: =$F$52*F58 -> 0 | G63: =$F$52*G58 -> 0 | H63: 0 | I63: 0 | J63: 0 | K63: 0 | L63: 0 | M63: 0 | N63: 0 | O63: 0
F66: Transport | G66: Industrie base | H66: Eclairage résidentiel | I66: Eclairage public et industrie | J66: Eau chaude sanitaire et cuisson | K66: Cuisson residentiel | L66: Climatisation tertiaire | M66: Chauffage | N66: Autres (BTP, recherche, armées, etc.) | O66: Total
C67: Biens de consommation hors énergie - Emissions indirectes (scope 2 - périmètre réglementaire) | E67: kt eq CO2 | F67: =(F61*'FE5'!E$20)/1000000 -> 0 | G67: =(G61*'FE5'!F$20)/1000000 -> 0 | H67: =(H61*'FE5'!G$20)/1000000 -> 0 | I67: =(I61*'FE5'!H$20)/1000000 -> 0 | J67: =(J61*'FE5'!I$20)/1000000 -> 0 | K67: =(K61*'FE5'!J$20)/1000000 -> 0 | L67: =(L61*'FE5'!K$20)/1000000 -> 0 | M67: =(M61*'FE5'!L$20)/1000000 -> 0 | N67: =(N61*'FE5'!M$20)/1000000 -> 0 | O67: =SUM(F67:N67) -> 0
C68: Biens de consommation hors énergie - Emissions indirectes (amont des combustibles, transport et distribution) | E68: kt eq CO2 | F68: =F69-F67 -> 0 | G68: =G69-G67 -> 0 | H68: 0 | I68: 0 | J68: 0 | K68: 0 | L68: 0 | M68: 0 | N68: 0 | O68: 0
C69: Biens de consommation hors énergie -Scope 3 | E69: kt eq CO2 | F69: =(F61*'FE5'!E$21)/1000000 -> 0 | G69: =(G61*'FE5'!F$21)/1000000 -> 0 | H69: =(H61*'FE5'!G$21)/1000000 -> 0 | I69: =(I61*'FE5'!H$21)/1000000 -> 0 | J69: =(J61*'FE5'!I$21)/1000000 -> 0 | K69: =(K61*'FE5'!J$21)/1000000 -> 0 | L69: =(L61*'FE5'!K$21)/1000000 -> 0 | M69: =(M61*'FE5'!L$21)/1000000 -> 0 | N69: =(N61*'FE5'!M$21)/1000000 -> 0 | O69: 0
C70: Biens de consommation énergie - Emissions indirectes (scope 2 - périmètre réglementaire) | E70: kt eq CO2 | F70: =(F62*'FE5'!E$20)/1000000 -> 0 | G70: =(G62*'FE5'!F$20)/1000000 -> 0 | H70: =(H62*'FE5'!G$20)/1000000 -> 0 | I70: =(I62*'FE5'!H$20)/1000000 -> 0 | J70: =(J62*'FE5'!I$20)/1000000 -> 0 | K70: =(K62*'FE5'!J$20)/1000000 -> 0 | L70: =(L62*'FE5'!K$20)/1000000 -> 0 | M70: =(M62*'FE5'!L$20)/1000000 -> 0 | N70: =(N62*'FE5'!M$20)/1000000 -> 0 | O70: 0
C71: Biens de consommation énergie - Emissions indirectes (amont des combustibles, transport et distribution) | E71: kt eq CO2 | F71: =F72-F70 -> 0 | G71: 0 | H71: 0 | I71: 0 | J71: 0 | K71: 0 | L71: 0 | M71: 0 | N71: 0 | O71: 0
C72: Biens de consommation énergie -Scope 3 | E72: kt eq CO2 | F72: =(F62*'FE5'!E$21)/1000000 -> 0 | G72: =(G62*'FE5'!F$21)/1000000 -> 0 | H72: =(H62*'FE5'!G$21)/1000000 -> 0 | I72: =(I62*'FE5'!H$21)/1000000 -> 0 | J72: =(J62*'FE5'!I$21)/1000000 -> 0 | K72: =(K62*'FE5'!J$21)/1000000 -> 0 | L72: =(L62*'FE5'!K$21)/1000000 -> 0 | M72: =(M62*'FE5'!L$21)/1000000 -> 0 | N72: =(N62*'FE5'!M$21)/1000000 -> 0 | O72: 0
C73: Biens de consommation - Emissions indirectes (scope 2 - périmètre réglementaire) | E73: kt eq CO2 | F73: =(F63*'FE5'!E20)/1000000 -> 0 | G73: =(G63*'FE5'!F20)/1000000 -> 0 | H73: =(H63*'FE5'!G20)/1000000 -> 0 | I73: =(I63*'FE5'!H20)/1000000 -> 0 | J73: =(J63*'FE5'!I20)/1000000 -> 0 | K73: =(K63*'FE5'!J20)/1000000 -> 0 | L73: =(L63*'FE5'!K20)/1000000 -> 0 | M73: =(M63*'FE5'!L20)/1000000 -> 0 | N73: =(N63*'FE5'!M20)/1000000 -> 0 | O73: 0
C74: Biens de consommation - Emissions indirectes (amont des combustibles, transport et distribution) | E74: kt eq CO2 | F74: =F75-F73 -> 0 | G74: =G75-G73 -> 0 | H74: 0 | I74: 0 | J74: 0 | K74: 0 | L74: 0 | M74: 0 | N74: 0 | O74: 0
C75: Biens de consommation - Scope 3 | E75: kt eq CO2 | F75: =(F63*'FE5'!E21)/1000000 -> 0 | G75: =(G63*'FE5'!F21)/1000000 -> 0 | H75: =(H63*'FE5'!G21)/1000000 -> 0 | I75: =(I63*'FE5'!H21)/1000000 -> 0 | J75: =(J63*'FE5'!I21)/1000000 -> 0 | K75: =(K63*'FE5'!J21)/1000000 -> 0 | L75: =(L63*'FE5'!K21)/1000000 -> 0 | M75: =(M63*'FE5'!L21)/1000000 -> 0 | N75: =(N63*'FE5'!M21)/1000000 -> 0 | O75: 0
A78: D. | B78: Alimentation - Émissions indirectes de GES liées à la consommation d'électricité sur le territoire
B79: Cette partie n'est pas utilisée pour calculer le bilan GES final des émissions liées à la consommation. Spécifier les données bleues est optionnel et sert uniquement à obtenir la répartition par poste de la consommation électrique, à titre informatif.
B80: Renseigner directement la consommation d'électricité "alimentation" au niveau territorial, ou cliquer sur "+" (à gauche) pour affiner l'estimation
B82: Alimentation - émissions indirectes de GES liées à la consommation d'électricité (Imports)
C84: Consommation d'électricité | E84: Alimentation | F84: =I1a!D123 -> 0 | G84: MWh
E85: Agriculture | F85: =I1a!D124 -> 0 | G85: MWh
E86: Agroalimentaire | F86: =I1a!D125 -> 0 | G86: MWh
F88: Transport | G88: Industrie base | H88: Eclairage résidentiel | I88: Eclairage public et industrie | J88: Eau chaude sanitaire et cuisson | K88: Cuisson residentiel | L88: Climatisation tertiaire | M88: Chauffage | N88: Autres (BTP, recherche, armées, etc.) | O88: Total
C89: Répartition de la consommation d'électricité - Agriculture | E89: % | F89: ='FE5'!E13 -> 0 | G89: ='FE5'!F13 -> 0 | H89: ='FE5'!G13 -> 0 | I89: ='FE5'!H13 -> 0 | J89: ='FE5'!I13 -> 0 | K89: ='FE5'!J13 -> 0 | L89: ='FE5'!K13 -> 0 | M89: ='FE5'!L13 -> 0 | N89: ='FE5'!M13 -> 1 | O89: =SUM(F89:N89) -> 1
C90: Répartition de la consommation d'électricité - Industrie agroalimentaire | E90: % | F90: ='FE5'!E15 -> 0 | G90: ='FE5'!F15 -> 1 | H90: ='FE5'!G15 -> 0 | I90: ='FE5'!H15 -> 0 | J90: ='FE5'!I15 -> 0 | K90: ='FE5'!J15 -> 0 | L90: ='FE5'!K15 -> 0 | M90: ='FE5'!L15 -> 0 | N90: ='FE5'!M15 -> 0 | O90: =SUM(F90:N90) -> 1
C91: Agriculture | E91: MWh | F91: =$F$85*F89 -> 0 | G91: =$F$85*G89 -> 0 | H91: 0 | I91: 0 | J91: 0 | K91: 0 | L91: 0 | M91: 0 | N91: 0 | O91: =SUM(F91:N91) -> 0
C92: Industrie agroalimentaire | E92: MWh | F92: =$F$86*F90 -> 0 | G92: =$F$86*G90 -> 0 | H92: 0 | I92: 0 | J92: 0 | K92: 0 | L92: 0 | M92: 0 | N92: 0 | O92: =SUM(F92:N92) -> 0
C93: Alimentation - Consommation d'électricité | E93: MWh | F93: =F91+F92 -> 0 | G93: =G91+G92 -> 0 | H93: 0 | I93: 0 | J93: 0 | K93: 0 | L93: 0 | M93: 0 | N93: 0 | O93: =SUM(F93:N93) -> 0
F95: Transport | G95: Industrie base | H95: Eclairage résidentiel | I95: Eclairage public et industrie | J95: Eau chaude sanitaire et cuisson | K95: Cuisson residentiel | L95: Climatisation tertiaire | M95: Chauffage | N95: Autres (BTP, recherche, armées, etc.) | O95: Total
C96: Agriculture- Emissions indirectes (scope 2 - périmètre réglementaire) | E96: kt eq CO2 | F96: =(F91*'FE5'!E$20)/1000000 -> 0 | G96: =(G91*'FE5'!F$20)/1000000 -> 0 | H96: =(H91*'FE5'!G$20)/1000000 -> 0 | I96: =(I91*'FE5'!H$20)/1000000 -> 0 | J96: =(J91*'FE5'!I$20)/1000000 -> 0 | K96: =(K91*'FE5'!J$20)/1000000 -> 0 | L96: =(L91*'FE5'!K$20)/1000000 -> 0 | M96: =(M91*'FE5'!L$20)/1000000 -> 0 | N96: =(N91*'FE5'!M$20)/1000000 -> 0 | O96: =SUM(F96:N96) -> 0
C97: Agriculture- Emissions indirectes (amont des combustibles, transport et distribution) | E97: kt eq CO2 | F97: =F98-F96 -> 0 | G97: 0 | H97: 0 | I97: 0 | J97: 0 | K97: 0 | L97: 0 | M97: 0 | N97: 0 | O97: 0
C98: Agriculture-Scope 3 | E98: kt eq CO2 | F98: =(F91*'FE5'!E$21)/1000000 -> 0 | G98: =(G91*'FE5'!F$21)/1000000 -> 0 | H98: =(H91*'FE5'!G$21)/1000000 -> 0 | I98: =(I91*'FE5'!H$21)/1000000 -> 0 | J98: =(J91*'FE5'!I$21)/1000000 -> 0 | K98: =(K91*'FE5'!J$21)/1000000 -> 0 | L98: =(L91*'FE5'!K$21)/1000000 -> 0 | M98: =(M91*'FE5'!L$21)/1000000 -> 0 | N98: =(N91*'FE5'!M$21)/1000000 -> 0 | O98: 0
C99: Industrie agroalimentaire - Emissions indirectes (scope 2 - périmètre réglementaire) | E99: kt eq CO2 | F99: =(F92*'FE5'!E$20)/1000000 -> 0 | G99: =(G92*'FE5'!F$20)/1000000 -> 0 | H99: =(H92*'FE5'!G$20)/1000000 -> 0 | I99: =(I92*'FE5'!H$20)/1000000 -> 0 | J99: =(J92*'FE5'!I$20)/1000000 -> 0 | K99: =(K92*'FE5'!J$20)/1000000 -> 0 | L99: =(L92*'FE5'!K$20)/1000000 -> 0 | M99: =(M92*'FE5'!L$20)/1000000 -> 0 | N99: =(N92*'FE5'!M$20)/1000000 -> 0 | O99: 0
C100: Industrie agroalimentaire- Emissions indirectes (amont des combustibles, transport et distribution) | E100: kt eq CO2 | F100: =F101-F99 -> 0 | G100: =G101-G99 -> 0 | H100: 0 | I100: 0 | J100: 0 | K100: 0 | L100: 0 | M100: 0 | N100: 0 | O100: 0
C101: Industrie agroalimentaire-Scope 3 | E101: kt eq CO2 | F101: =(F92*'FE5'!E$21)/1000000 -> 0 | G101: =(G92*'FE5'!F$21)/1000000 -> 0 | H101: =(H92*'FE5'!G$21)/1000000 -> 0 | I101: =(I92*'FE5'!H$21)/1000000 -> 0 | J101: =(J92*'FE5'!I$21)/1000000 -> 0 | K101: =(K92*'FE5'!J$21)/1000000 -> 0 | L101: =(L92*'FE5'!K$21)/1000000 -> 0 | M101: =(M92*'FE5'!L$21)/1000000 -> 0 | N101: =(N92*'FE5'!M$21)/1000000 -> 0 | O101: 0
C102: Alimlentation (scope 2 - périmètre réglementaire) | E102: kt eq CO2 | F102: =(F93*'FE5'!E$20)/1000000 -> 0 | G102: =(G93*'FE5'!F$20)/1000000 -> 0 | H102: =(H93*'FE5'!G$20)/1000000 -> 0 | I102: =(I93*'FE5'!H$20)/1000000 -> 0 | J102: =(J93*'FE5'!I$20)/1000000 -> 0 | K102: =(K93*'FE5'!J$20)/1000000 -> 0 | L102: =(L93*'FE5'!K$20)/1000000 -> 0 | M102: =(M93*'FE5'!L$20)/1000000 -> 0 | N102: =(N93*'FE5'!M$20)/1000000 -> 0 | O102: 0
C103: Alimentation- Emissions indirectes (amont des combustibles, transport et distribution) | E103: kt eq CO2 | F103: =F104-F102 -> 0 | G103: =G104-G102 -> 0 | H103: 0 | I103: 0 | J103: 0 | K103: 0 | L103: 0 | M103: 0 | N103: 0 | O103: 0
C104: Alimentation - Scope 3 | E104: kt eq CO2 | F104: =(F93*'FE5'!E$21)/1000000 -> 0 | G104: =(G93*'FE5'!F$21)/1000000 -> 0 | H104: =(H93*'FE5'!G$21)/1000000 -> 0 | I104: =(I93*'FE5'!H$21)/1000000 -> 0 | J104: =(J93*'FE5'!I$21)/1000000 -> 0 | K104: =(K93*'FE5'!J$21)/1000000 -> 0 | L104: =(L93*'FE5'!K$21)/1000000 -> 0 | M104: =(M93*'FE5'!L$21)/1000000 -> 0 | N104: =(N93*'FE5'!M$21)/1000000 -> 0 | O104: 0
A107: E. | B107: Services - Émissions indirectes de GES liées à la consommation d'électricité sur le territoire
B109: Services - émissions indirectes de GES liées à la consommation d'électricité (Imports)
C111: Consommation d'électricité | E111: Services | F111: =I1a!D158 -> 0 | G111: MWh
E112: Tertiaire | F112: =I1a!D159 -> 0 | G112: MWh
E113: Traitement des déchets | F113: =I1a!D160 -> 0 | G113: MWh
F116: Transport | G116: Industrie base | H116: Eclairage résidentiel | I116: Eclairage public et industrie | J116: Eau chaude sanitaire et cuisson | K116: Cuisson residentiel | L116: Climatisation tertiaire | M116: Chauffage | N116: Autres (BTP, recherche, armées, etc.) | O116: Total
C117: Tertiaire | E117: % | F117: ='FE5'!E10 -> 0 | G117: ='FE5'!F10 -> 0 | H117: ='FE5'!G10 -> 0 | I117: ='FE5'!H10 -> 0 | J117: ='FE5'!I10 -> 0.07 | K117: ='FE5'!J10 -> 0 | L117: ='FE5'!K10 -> 0.11 | M117: ='FE5'!L10 -> 0.17 | N117: ='FE5'!M10 -> 0.65 | O117: =SUM(F117:N117) -> 1
C118: Traitement de déchets | E118: % | F118: ='FE5'!E14 -> 0 | G118: ='FE5'!F14 -> 1 | H118: ='FE5'!G14 -> 0 | I118: ='FE5'!H14 -> 0 | J118: ='FE5'!I14 -> 0 | K118: ='FE5'!J14 -> 0 | L118: ='FE5'!K14 -> 0 | M118: ='FE5'!L14 -> 0 | N118: ='FE5'!M14 -> 0 | O118: =SUM(F118:N118) -> 1
C119: Tertiaire | E119: MWh | F119: =$F$112*F117 -> 0 | G119: =$F$112*G117 -> 0 | H119: 0 | I119: 0 | J119: 0 | K119: 0 | L119: 0 | M119: 0 | N119: 0 | O119: =SUM(F119:N119) -> 0
C120: Traitement de déchets | E120: MWh | F120: =$F$113*F118 -> 0 | G120: =$F$113*G118 -> 0 | H120: 0 | I120: 0 | J120: 0 | K120: 0 | L120: 0 | M120: 0 | N120: 0 | O120: =SUM(F120:N120) -> 0
C121: Services- Consommation d'électricité | E121: MWh | F121: =F119+F120 -> 0 | G121: =G119+G120 -> 0 | H121: 0 | I121: 0 | J121: 0 | K121: 0 | L121: 0 | M121: 0 | N121: 0 | O121: =SUM(F121:N121) -> 0
F123: Transport | G123: Industrie base | H123: Eclairage résidentiel | I123: Eclairage public et industrie | J123: Eau chaude sanitaire et cuisson | K123: Cuisson residentiel | L123: Climatisation tertiaire | M123: Chauffage | N123: Autres (BTP, recherche, armées, etc.) | O123: Total
C124: Tertiaire- Emissions indirectes (scope 2 - périmètre réglementaire) | E124: kt eq CO2 | F124: =(F119*'FE5'!E$20)/1000000 -> 0 | G124: =(G119*'FE5'!F$20)/1000000 -> 0 | H124: =(H119*'FE5'!G$20)/1000000 -> 0 | I124: =(I119*'FE5'!H$20)/1000000 -> 0 | J124: =(J119*'FE5'!I$20)/1000000 -> 0 | K124: =(K119*'FE5'!J$20)/1000000 -> 0 | L124: =(L119*'FE5'!K$20)/1000000 -> 0 | M124: =(M119*'FE5'!L$20)/1000000 -> 0 | N124: =(N119*'FE5'!M$20)/1000000 -> 0 | O124: =SUM(F124:N124) -> 0
C125: Tertiaire- Emissions indirectes (amont des combustibles, transport et distribution) | E125: kt eq CO2 | F125: =F126-F124 -> 0 | G125: 0 | H125: 0 | I125: 0 | J125: 0 | K125: 0 | L125: 0 | M125: 0 | N125: 0 | O125: 0
C126: Tertiaire-Scope 3 | E126: kt eq CO2 | F126: =(F119*'FE5'!E$21)/1000000 -> 0 | G126: =(G119*'FE5'!F$21)/1000000 -> 0 | H126: =(H119*'FE5'!G$21)/1000000 -> 0 | I126: =(I119*'FE5'!H$21)/1000000 -> 0 | J126: =(J119*'FE5'!I$21)/1000000 -> 0 | K126: =(K119*'FE5'!J$21)/1000000 -> 0 | L126: =(L119*'FE5'!K$21)/1000000 -> 0 | M126: =(M119*'FE5'!L$21)/1000000 -> 0 | N126: =(N119*'FE5'!M$21)/1000000 -> 0 | O126: 0
C127: Traitement de déchets - Emissions indirectes (scope 2 - périmètre réglementaire) | E127: kt eq CO2 | F127: =(F120*'FE5'!E$20)/1000000 -> 0 | G127: =(G120*'FE5'!F$20)/1000000 -> 0 | H127: =(H120*'FE5'!G$20)/1000000 -> 0 | I127: =(I120*'FE5'!H$20)/1000000 -> 0 | J127: =(J120*'FE5'!I$20)/1000000 -> 0 | K127: =(K120*'FE5'!J$20)/1000000 -> 0 | L127: =(L120*'FE5'!K$20)/1000000 -> 0 | M127: =(M120*'FE5'!L$20)/1000000 -> 0 | N127: =(N120*'FE5'!M$20)/1000000 -> 0 | O127: 0
C128: Traitement de déchets- Emissions indirectes (amont des combustibles, transport et distribution) | E128: kt eq CO2 | F128: =F129-F127 -> 0 | G128: 0 | H128: 0 | I128: 0 | J128: 0 | K128: 0 | L128: 0 | M128: 0 | N128: 0 | O128: 0
C129: Traitement de déchets-Scope 3 | E129: kt eq CO2 | F129: =(F120*'FE5'!E$21)/1000000 -> 0 | G129: =(G120*'FE5'!F$21)/1000000 -> 0 | H129: =(H120*'FE5'!G$21)/1000000 -> 0 | I129: =(I120*'FE5'!H$21)/1000000 -> 0 | J129: =(J120*'FE5'!I$21)/1000000 -> 0 | K129: =(K120*'FE5'!J$21)/1000000 -> 0 | L129: =(L120*'FE5'!K$21)/1000000 -> 0 | M129: =(M120*'FE5'!L$21)/1000000 -> 0 | N129: =(N120*'FE5'!M$21)/1000000 -> 0 | O129: 0
C130: Services - Emissions indirectes (scope 2 - périmètre réglementaire) | E130: kt eq CO2 | F130: =(F121*'FE5'!E$20)/1000000 -> 0 | G130: =(G121*'FE5'!F$20)/1000000 -> 0 | H130: =(H121*'FE5'!G$20)/1000000 -> 0 | I130: =(I121*'FE5'!H$20)/1000000 -> 0 | J130: =(J121*'FE5'!I$20)/1000000 -> 0 | K130: =(K121*'FE5'!J$20)/1000000 -> 0 | L130: =(L121*'FE5'!K$20)/1000000 -> 0 | M130: =(M121*'FE5'!L$20)/1000000 -> 0 | N130: =(N121*'FE5'!M$20)/1000000 -> 0 | O130: 0
C131: Services - Emissions indirectes (amont des combustibles, transport et distribution) | E131: kt eq CO2 | F131: =F132-F130 -> 0 | G131: =G132-G130 -> 0 | H131: 0 | I131: 0 | J131: 0 | K131: 0 | L131: 0 | M131: 0 | N131: 0 | O131: 0
C132: Services- Scope 3 | E132: kt eq CO2 | F132: =(F121*'FE5'!E$21)/1000000 -> 0 | G132: =(G121*'FE5'!F$21)/1000000 -> 0 | H132: =(H121*'FE5'!G$21)/1000000 -> 0 | I132: =(I121*'FE5'!H$21)/1000000 -> 0 | J132: =(J121*'FE5'!I$21)/1000000 -> 0 | K132: =(K121*'FE5'!J$21)/1000000 -> 0 | L132: =(L121*'FE5'!K$21)/1000000 -> 0 | M132: =(M121*'FE5'!L$21)/1000000 -> 0 | N132: =(N121*'FE5'!M$21)/1000000 -> 0 | O132: 0
A135: F. | B135: Travaux - Émissions indirectes de GES liées à la consommation d'électricité sur le territoire
B136: Cette partie n'est pas utilisée pour calculer le bilan GES final des émissions liées à la consommation. Spécifier les données bleues est optionnel et sert uniquement à obtenir la répartition par poste de la consommation électrique, à titre informatif.
B137: Renseigner directement la consommation d'électricité "travaux" au niveau territorial, ou cliquer sur "+" (à gauche) pour affiner l'estimation
B139: Services - émissions indirectes de GES liées à la consommation d'électricité (Imports)
C141: Consommation d'électricité | E141: Travaux - Industrie des matériaux de construction | F141: =I1a!D186 -> 0 | G141: MWh
F144: Transport | G144: Industrie base | H144: Eclairage résidentiel | I144: Eclairage public et industrie | J144: Eau chaude sanitaire et cuisson | K144: Cuisson residentiel | L144: Climatisation tertiaire | M144: Chauffage | N144: Autres (BTP, recherche, armées, etc.) | O144: Total
C145: Travaux | E145: % | F145: ='FE5'!E15 -> 0 | G145: ='FE5'!F15 -> 1 | H145: ='FE5'!G15 -> 0 | I145: ='FE5'!H15 -> 0 | J145: ='FE5'!I15 -> 0 | K145: ='FE5'!J15 -> 0 | L145: ='FE5'!K15 -> 0 | M145: ='FE5'!L15 -> 0 | N145: ='FE5'!M15 -> 0 | O145: =SUM(F145:N145) -> 1
C146: Travaux- Consommation d'électricité | E146: MWh | F146: =$F$141*F145 -> 0 | G146: =$F$141*G145 -> 0 | H146: 0 | I146: 0 | J146: 0 | K146: 0 | L146: 0 | M146: 0 | N146: 0 | O146: =SUM(F146:N146) -> 0
F148: Transport | G148: Industrie base | H148: Eclairage résidentiel | I148: Eclairage public et industrie | J148: Eau chaude sanitaire et cuisson | K148: Cuisson residentiel | L148: Climatisation tertiaire | M148: Chauffage | N148: Autres (BTP, recherche, armées, etc.) | O148: Total
C149: Travaux - Emissions indirectes (scope 2 - périmètre réglementaire) | E149: kt eq CO2 | F149: =(F146*'FE5'!E$20)/1000000 -> 0 | G149: =(G146*'FE5'!F$20)/1000000 -> 0 | H149: =(H146*'FE5'!G$20)/1000000 -> 0 | I149: =(I146*'FE5'!H$20)/1000000 -> 0 | J149: =(J146*'FE5'!I$20)/1000000 -> 0 | K149: =(K146*'FE5'!J$20)/1000000 -> 0 | L149: =(L146*'FE5'!K$20)/1000000 -> 0 | M149: =(M146*'FE5'!L$20)/1000000 -> 0 | N149: =(N146*'FE5'!M$20)/1000000 -> 0 | O149: =SUM(F149:N149) -> 0
C150: Travaux- Emissions indirectes (amont des combustibles, transport et distribution) | E150: kt eq CO2 | F150: =F151-F149 -> 0 | G150: =G151-G149 -> 0 | H150: 0 | I150: 0 | J150: 0 | K150: 0 | L150: 0 | M150: 0 | N150: 0 | O150: =SUM(F150:N150) -> 0
C151: Travaux- Scope 3 | E151: kt eq CO2 | F151: =(F146*'FE5'!E$21)/1000000 -> 0 | G151: =(G146*'FE5'!F$21)/1000000 -> 0 | H151: =(H146*'FE5'!G$21)/1000000 -> 0 | I151: =(I146*'FE5'!H$21)/1000000 -> 0 | J151: =(J146*'FE5'!I$21)/1000000 -> 0 | K151: =(K146*'FE5'!J$21)/1000000 -> 0 | L151: =(L146*'FE5'!K$21)/1000000 -> 0 | M151: =(M146*'FE5'!L$21)/1000000 -> 0 | N151: =(N146*'FE5'!M$21)/1000000 -> 0 | O151: =SUM(F151:N151) -> 0

Sheet I1c
B1: Bilan des émissions de GES liées à la production / consommation d'électricité (scope 2 )- par poste ESPASS
B3: Bilan des émissions de GES liées à la production d'électricité / consommation d'électricité
A5: 1) | B5: Emissions liées à la consommation d'électricité - Emissions importées
G7: Résidentiel | H7: Déplacements | I7: Biens de consommation | J7: Alimentation | K7: Services | L7: Travaux | M7: Total
B8: Consommation d'électricité sur le territoire | F8: MWh | G8: =I1b!F9 -> 0 | H8: =I1b!F25 -> 0 | I8: =I1b!F52 -> 0 | J8: =I1b!F84 -> 0 | K8: =I1b!F111 -> 0 | L8: =I1b!F141 -> 0 | M8: =SUM(G8:L8) -> 0
B9: Emissions GES liées à la consommation d'électricité = Emissions importées (scope 2) | F9: kt eq CO2 | G9: =I1b!O16 -> 0 | H9: =I1b!O43 -> 0 | I9: =I1b!O73 -> 0 | J9: =I1b!O102 -> 0 | K9: =I1b!O130 -> 0 | L9: =I1b!O149 -> 0 | M9: =SUM(G9:L9) -> 0
A11: 2) | B11: Emissions liées à la production d'électricité - Emissions exportées
G13: Résidentiel | H13: Déplacements | I13: Biens de consommation | J13: Alimentation | K13: Services | L13: Travaux | M13: Total
B14: Production d'électricité | F14: MWh | I14: =D2a!E6 -> 0 | M14: =-D2a!E6 -> 0
B15: Emissions GES liées à la production d'électricité sur le territoire = Emissions exportées | F15: kt eq CO2 | I15: =-D2a!E7 -> 0 | M15: =-D2a!E7 -> 0
A17: 3) | B17: Bilan imports exports émissions liées à l'électricité (scope 2)
G19: Résidentiel | H19: Déplacements | I19: Biens de consommation | J19: Alimentation | K19: Services | L19: Travaux | M19: Total
B20: Emissions GES liées à la consommation d'électricité = Emissions importées (scope 2) | F20: kt eq CO2 | G20: =G9 -> 0 | H20: 0 | I20: 0 | J20: 0 | K20: 0 | L20: 0 | M20: 0
B21: Emissions GES liées à la production d'électricité sur le territoire = Emissions exportées | F21: kt eq CO2 | G21: =G15 -> 0 | H21: 0 | I21: 0 | J21: 0 | K21: 0 | L21: 0 | M21: 0
B22: Emissions indirectes (scope 2) - Solde imports-exports | F22: kt eq CO2 | G22: =G20+ G21 -> 0 | H22: 0 | I22: 0 | J22: 0 | K22: 0 | L22: 0 | M22: =M20-M21 -> 0

Sheet I1d
B1: Bilan des émissions de GES liées à la production/consommation d'électricité et de combustibles du territoire (scope 2)- par poste PCAET
B3: Bilan des émissions de GES liées à la production d'électricité / consommation d'électricité
A5: 1) | B5: Emissions liées à la consommation d'électricité - Emissions importées
G7: Résidentiel | H7: Tertiaire | I7: Transport routier | J7: Autres transports | K7: Agriculture | L7: Déchets | M7: Industrie hors branche énergie | N7: Industrie branche énergie | O7: Total
B8: Consommation d'électricité sur le territoire | F8: MWh | G8: =I1b!F9 -> 0 | H8: =I1b!F112 -> 0 | I8: =I1b!F26 -> 0 | J8: =I1b!F27 -> 0 | K8: =I1b!F85 -> 0 | L8: =I1b!F113 -> 0 | M8: =I1b!F141+I1b!F86+I1b!F53 -> 0 | N8: =I1b!F54 -> 0 | O8: =SUM(G8:N8) -> 0
B9: Emissions GES liées à la consommation d'électricité = Emissions importées (scope 2) | F9: kt eq CO2 | G9: =I1b!O16 -> 0 | H9: =I1b!O124 -> 0 | I9: =I1b!O37 -> 0 | J9: =I1b!O40 -> 0 | K9: =I1b!O96 -> 0 | L9: =I1b!O127 -> 0 | M9: =I1b!O67+I1b!O99+I1b!O149 -> 0 | N9: =I1b!O70 -> 0 | O9: =SUM(G9:N9) -> 0
A11: 2) | B11: Emissions liées à la production d'électricité - Emissions exportées
G13: Résidentiel | H13: Tertiaire | I13: Transport routier | J13: Autres transports | K13: Agriculture | L13: Déchets | M13: Industrie hors branche énergie | N13: Industrie branche énergie | O13: Total
B14: Production d'électricité | F14: MWh | N14: =D2a!E6 -> 0 | O14: =SUM(G14:N14) -> 0
B15: Emissions GES liées à la production d'électricité sur le territoire = Emissions exportées | F15: kt eq CO2 | N15: =-D2a!E7 -> 0 | O15: =SUM(G15:N15) -> 0
A17: 3) | B17: Bilan imports exports émissions liées à l'électricité (scope 2)
G19: Résidentiel | H19: Tertiaire | I19: Transport routier | J19: Autres transports | K19: Agriculture | L19: Déchets | M19: Industrie hors branche énergie | N19: Industrie branche énergie | O19: Total
B20: Emissions GES liées à la consommation d'électricité = Emissions importées (scope 2) | F20: kt eq CO2 | G20: =G9 -> 0 | H20: 0 | I20: 0 | J20: 0 | K20: 0 | L20: 0 | M20: 0 | N20: 0 | O20: 0
B21: Emissions GES liées à la production d'électricité sur le territoire = Emissions exportées | F21: kt eq CO2 | G21: =G15 -> 0 | H21: =H15 -> 0 | I21: =N15 -> 0 | J21: =J15 -> 0 | K21: 0 | L21: 0 | M21: 0 | N21: 0 | O21: 0
B22: Emissions indirectes (scope 2) - Solde imports-exports | F22: kt eq CO2 | G22: =G20+ G21 -> 0 | H22: 0 | I22: 0 | J22: 0 | K22: 0 | L22: 0 | M22: 0 | N22: 0 | O22: 0

Sheet I2
B2: Consommation de chaleur et de froid du territoire par réseaux
A4: A. | B4: Consommation de chaleur et de froid par réseaux du territoire (MWh)
B6: Consommation de chaleur et froid par réseau
C8: Aller dans l'onglet D2b pour modifier les valeurs | N8: Répartition des consommations du territoire par poste - pour tous les réseaux connectés au territoire
H9: Part de la production consommée par le territoire (%) | I9: Production du réseau (MWh) | J9: Consommation du territoire (MWh) | K9: Emissions produites par les réseaux (kt eq CO2) | L9: Emissions liées à la consommation (t eq CO2) | M9: Source | N9: Résidentiel | O9: Déplacements | P9: Biens de consommation | Q9: Alimentation | R9: Services | S9: Travaux | T9: Source
C10: Nord | D10: =D2b!D9 -> Alma-Beaurepaire | F10: =D2b!F9 -> Roubaix | G10: =D2b!G9 -> Chaleur | H10: =D2b!I9 -> 0 | I10: =D2b!J9 -> 111190 | J10: =H10*I10 -> 0 | K10: =((I10)*('FE5'!$G30))/1000 -> 9.22877 | L10: =H10*K10 -> 0 | M10: =D2b!R9 -> Enquête nationale sur les réseaux de chaleur et de froid SOeS 2014 (données 2012) | N10: =D3a!$D$6 -> 0.5461109288 | O10: 0 | P10: 0 | Q10: 0 | R10: =1-N10 -> 0.4538890712 | S10: 0 | T10: =D3a!$E$6 -> NORENER 2017 Hauts de France- données 2014
D11: =D2b!D10 -> Les Canonniers | F11: =D2b!F10 -> Valenciennes | G11: =D2b!G10 -> Chaleur | H11: =D2b!I10 -> 0 | I11: =D2b!J10 -> 0 | J11: =H11*I11 -> 0 | K11: =((I11)*('FE5'!$G31))/1000 -> 0 | L11: =H11*K11 -> 0 | M11: =D2b!R10 -> Enquête nationale sur les réseaux de chaleur et de froid SOeS 2014 (données 2012) | N11: =D3a!$D$6 -> 0.5461109288 | O11: 0 | P11: 0 | Q11: 0 | R11: 0.4538890712 | S11: 0 | T11: =D3a!$E$6 -> NORENER 2017 Hauts de France- données 2014
D12: =D2b!D11 -> Réseau de Sains-du-Nord | F12: =D2b!F11 -> Sains-du-Nord | G12: =D2b!G11 -> Chaleur | H12: =D2b!I11 -> 0 | I12: =D2b!J11 -> 0 | J12: 0 | K12: =((I12)*('FE5'!$G32))/1000 -> 0 | L12: 0 | M12: =D2b!R11 -> La voix du Nord, 17 avril 2017 | N12: =D3a!$D$6 -> 0.5461109288 | O12: 0 | P12: 0 | Q12: 0 | R12: 0.4538890712 | S12: 0 | T12: =D3a!$E$6 -> NORENER 2017 Hauts de France- données 2014
D13: =D2b!D12 -> Quartier Pont de bois | F13: =D2b!F12 -> Villeneuve-d'Ascq | G13: =D2b!G12 -> Chaleur | H13: =D2b!I12 -> 0 | I13: =D2b!J12 -> 39332 | J13: 0 | K13: =((I13)*('FE5'!$G33))/1000 -> 8.417048 | L13: 0 | M13: =D2b!R12 -> Enquête nationale sur les réseaux de chaleur et de froid SOeS 2014 (données 2012) | N13: =D3a!$D$6 -> 0.5461109288 | O13: 0 | P13: 0 | Q13: 0 | R13: 0.4538890712 | S13: 0 | T13: =D3a!$E$6 -> NORENER 2017 Hauts de France- données 2014
D14: =D2b!D13 -> Domaine Universitaire et Scientifique | F14: =D2b!F13 -> Villeneuve-d'Ascq | G14: =D2b!G13 -> Chaleur | H14: =D2b!I13 -> 0 | I14: =D2b!J13 -> 35765 | J14: 0 | K14: =((I14)*('FE5'!$G34))/1000 -> 8.619365 | L14: 0 | M14: =D2b!R13 -> Enquête nationale sur les réseaux de chaleur et de froid SOeS 2014 (données 2012) | N14: =D3a!$D$6 -> 0.5461109288 | O14: 0 | P14: 0 | Q14: 0 | R14: 0.4538890712 | S14: 0 | T14: =D3a!$E$6 -> NORENER 2017 Hauts de France- données 2014
D15: =D2b!D14 -> ZUP de Wattignies-Blanc Riez | F15: =D2b!F14 -> Wattignies | G15: =D2b!G14 -> Chaleur | H15: =D2b!I14 -> 0 | I15: =D2b!J14 -> 28237 | J15: 0 | K15: =((I15)*('FE5'!$G35))/1000 -> 4.913238 | L15: 0 | M15: =D2b!R14 -> Enquête nationale sur les réseaux de chaleur et de froid SOeS 2014 (données 2012) | N15: =D3a!$D$6 -> 0.5461109288 | O15: 0 | P15: 0 | Q15: 0 | R15: 0.4538890712 | S15: 0 | T15: =D3a!$E$6 -> NORENER 2017 Hauts de France- données 2014
D16: =D2b!D15 -> Réseau de Wattrelos | F16: =D2b!F15 -> Wattrelos | G16: =D2b!G15 -> Chaleur | H16: =D2b!I15 -> 0 | I16: =D2b!J15 -> 16374 | J16: 0 | K16: =((I16)*('FE5'!$G36))/1000 -> 3.504036 | L16: 0 | M16: =D2b!R15 -> Enquête nationale sur les réseaux de chaleur et de froid SOeS 2014 (données 2012) | N16: =D3a!$D$6 -> 0.5461109288 | O16: 0 | P16: 0 | Q16: 0 | R16: 0.4538890712 | S16: 0 | T16: =D3a!$E$6 -> NORENER 2017 Hauts de France- données 2014
D17: =D2b!D16 -> ZAC des Epis | F17: =D2b!F16 -> Sin-le-Noble | G17: =D2b!G16 -> Chaleur | H17: =D2b!I16 -> 0 | I17: =D2b!J16 -> 22257 | J17: 0 | K17: =((I17)*('FE5'!$G37))/1000 -> 5.074596 | L17: 0 | M17: =D2b!R16 -> Enquête nationale sur les réseaux de chaleur et de froid SOeS 2014 (données 2012) | N17: =D3a!$D$6 -> 0.5461109288 | O17: 0 | P17: 0 | Q17: 0 | R17: 0.4538890712 | S17: 0 | T17: =D3a!$E$6 -> NORENER 2017 Hauts de France- données 2014
D18: =D2b!D17 -> Monsenergie | F18: =D2b!F17 -> Mons-en-Barœul | G18: =D2b!G17 -> Chaleur | H18: =D2b!I17 -> 0 | I18: =D2b!J17 -> 63591 | J18: 0 | K18: =((I18)*('FE5'!$G38))/1000 -> 14.753112 | L18: 0 | M18: =D2b!R17 -> Enquête nationale sur les réseaux de chaleur et de froid SOeS 2014 (données 2012) | N18: =D3a!$D$6 -> 0.5461109288 | O18: 0 | P18: 0 | Q18: 0 | R18: 0.4538890712 | S18: 0 | T18: =D3a!$E$6 -> NORENER 2017 Hauts de France- données 2014
D19: =D2b!D18 -> Métropole Nord | F19: =D2b!F18 -> Lille | G19: =D2b!G18 -> Chaleur | H19: =D2b!I18 -> 0 | I19: =D2b!J18 -> 289364 | J19: 0 | K19: =((I19)*('FE5'!$G39))/1000 -> 82.179376 | L19: 0 | M19: =D2b!R18 -> Enquête nationale sur les réseaux de chaleur et de froid SOeS 2014 (données 2012) | N19: =D3a!$D$6 -> 0.5461109288 | O19: 0 | P19: 0 | Q19: 0 | R19: 0.4538890712 | S19: 0 | T19: =D3a!$E$6 -> NORENER 2017 Hauts de France- données 2014
D20: =D2b!D19 -> CHU Lille | F20: =D2b!F19 -> Lille | G20: =D2b!G19 -> Chaleur | H20: =D2b!I19 -> 0 | I20: =D2b!J19 -> 100000 | J20: 0 | K20: =((I20)*('FE5'!$G40))/1000 -> 32 | L20: 0 | M20: =D2b!R19 -> Observatoire Climat, données 2012 | N20: =D3a!$D$6 -> 0.5461109288 | O20: 0 | P20: 0 | Q20: 0 | R20: 0.4538890712 | S20: 0 | T20: =D3a!$E$6 -> NORENER 2017 Hauts de France- données 2014
D21: =D2b!D20 -> Réseau de Lambersart | F21: =D2b!F20 -> Lambersart | G21: =D2b!G20 -> Chaleur | H21: =D2b!I20 -> 0 | I21: =D2b!J20 -> 15916 | J21: 0 | K21: =((I21)*('FE5'!$G41))/1000 -> 4.679304 | L21: 0 | M21: =D2b!R20 -> Observatoire Climat, données 2012 | N21: =D3a!$D$6 -> 0.5461109288 | O21: 0 | P21: 0 | Q21: 0 | R21: 0.4538890712 | S21: 0 | T21: =D3a!$E$6 -> NORENER 2017 Hauts de France- données 2014
D22: =D2b!D21 -> ZUP de la caserne joyeuse | F22: =D2b!F21 -> Maubeuge | G22: =D2b!G21 -> Chaleur | H22: =D2b!I21 -> 0 | I22: =D2b!J21 -> 2501 | J22: 0 | K22: =((I22)*('FE5'!$G42))/1000 -> 0.592737 | L22: 0 | M22: =D2b!R21 -> Enquête nationale sur les réseaux de chaleur et de froid SOeS 2014 (données 2012) | N22: =D3a!$D$6 -> 0.5461109288 | O22: 0 | P22: 0 | Q22: 0 | R22: 0.4538890712 | S22: 0 | T22: =D3a!$E$6 -> NORENER 2017 Hauts de France- données 2014
D23: =D2b!D22 -> Les rives créatives de l'Escaut | F23: =D2b!F22 -> Anzin | G23: =D2b!G22 -> Chaleur | H23: =D2b!I22 -> 0 | I23: =D2b!J22 -> 2500 | J23: 0 | K23: =((I23)*('FE5'!$G43))/1000 -> 0.0125 | L23: 0 | M23: =D2b!R22 -> Estimation RDC sur base d'une puissance de 281 kW | N23: =D3a!$D$6 -> 0.5461109288 | O23: 0 | P23: 0 | Q23: 0 | R23: 0.4538890712 | S23: 0 | T23: =D3a!$E$6 -> NORENER 2017 Hauts de France- données 2014
D24: =D2b!D23 -> Energie Grand Littoral | F24: =D2b!F23 -> Dunkerque | G24: =D2b!G23 -> Chaleur | H24: =D2b!I23 -> 0 | I24: =D2b!J23 -> 136778 | J24: 0 | K24: =((I24)*('FE5'!$G44))/1000 -> 13.6778 | L24: 0 | M24: =D2b!R23 -> Enquête nationale sur les réseaux de chaleur et de froid SOeS 2014 (données 2012) | N24: =D3a!$D$6 -> 0.5461109288 | O24: 0 | P24: 0 | Q24: 0 | R24: 0.4538890712 | S24: 0 | T24: =D3a!$E$6 -> NORENER 2017 Hauts de France- données 2014
D25: =D2b!D24 -> Réseau de chauffage d'Hazebrouck | F25: =D2b!F24 -> Hazebrouck | G25: =D2b!G24 -> Chaleur | H25: =D2b!I24 -> 0 | I25: =D2b!J24 -> 6708 | J25: 0 | K25: =((I25)*('FE5'!$G45))/1000 -> 1.516008 | L25: 0 | M25: =D2b!R24 -> Enquête nationale sur les réseaux de chaleur et de froid SOeS 2014 (données 2012) | N25: =D3a!$D$6 -> 0.5461109288 | O25: 0 | P25: 0 | Q25: 0 | R25: 0.4538890712 | S25: 0 | T25: =D3a!$E$6 -> NORENER 2017 Hauts de France- données 2014
D26: =D2b!D25 -> Quartier Tournebride Lomme-Capinghem | F26: Lille | G26: =D2b!G25 -> Chaleur | H26: =D2b!I25 -> 0 | I26: =D2b!J25 -> 6179 | J26: 0 | K26: =((I26)*('FE5'!$G46))/1000 -> 0.488141 | L26: 0 | M26: =D2b!R25 -> Observatoire Climat, données 2012 | N26: =D3a!$D$6 -> 0.5461109288 | O26: 0 | P26: 0 | Q26: 0 | R26: 0.4538890712 | S26: 0 | T26: =D3a!$E$6 -> NORENER 2017 Hauts de France- données 2014
D27: =D2b!D26 -> 0 | F27: =D2b!F26 -> 0 | G27: =D2b!G26 -> Chaleur | H27: =D2b!I26 -> 0 | I27: =D2b!J26 -> 0 | J27: 0 | K27: =((I27)*('FE5'!$G47))/1000 -> 0 | L27: 0 | M27: =D2b!R26 -> 0 | N27: =D3a!$D$6 -> 0.5461109288 | O27: 0 | P27: 0 | Q27: 0 | R27: =1-N27 -> 0.4538890712 | S27: 0 | T27: =D3a!$E$6 -> NORENER 2017 Hauts de France- données 2014
C28: Pas-de-calais | D28: =D2b!D27 -> ZUP du quartier République | F28: =D2b!F27 -> Avion | G28: =D2b!G27 -> Chaleur | H28: =D2b!I27 -> 0 | I28: =D2b!J27 -> 15268 | J28: 0 | K28: =((I28)*('FE5'!$G48))/1000 -> 3.450568 | L28: =H28*K28 -> 0 | M28: =D2b!R27 -> Enquête nationale sur les réseaux de chaleur et de froid SOeS 2014 (données 2012) | N28: =D3a!$D$6 -> 0.5461109288 | O28: 0 | P28: 0 | Q28: 0 | R28: 0.4538890712 | S28: 0 | T28: =D3a!$E$6 -> NORENER 2017 Hauts de France- données 2014
D29: =D2b!D28 -> Réseau de Arques | F29: =D2b!F28 -> Arques | G29: =D2b!G28 -> Chaleur | H29: =D2b!I28 -> 0 | I29: =D2b!J28 -> 8000 | J29: 0 | K29: =((I29)*('FE5'!$G49))/1000 -> 0.432 | L29: 0 | M29: =D2b!R28 -> Enquête nationale sur les réseaux de chaleur et de froid SOeS 2014 (données 2012) | N29: =D3a!$D$6 -> 0.5461109288 | O29: 0 | P29: 0 | Q29: 0 | R29: 0.4538890712 | S29: 0 | T29: =D3a!$E$6 -> NORENER 2017 Hauts de France- données 2014
D30: =D2b!D29 -> ZUP de Lens | F30: =D2b!F29 -> Lens | G30: =D2b!G29 -> Chaleur | H30: =D2b!I29 -> 0 | I30: =D2b!J29 -> 51703 | J30: 0 | K30: =((I30)*('FE5'!$G50))/1000 -> 0.310218 | L30: 0 | M30: =D2b!R29 -> Enquête nationale sur les réseaux de chaleur et de froid SOeS 2014 (données 2012) | N30: =D3a!$D$6 -> 0.5461109288 | O30: 0 | P30: 0 | Q30: 0 | R30: 0.4538890712 | S30: 0 | T30: =D3a!$E$6 -> NORENER 2017 Hauts de France- données 2014
D31: =D2b!D30 -> Le Portel-Outreau Engie | F31: =D2b!F30 -> Outreau | G31: =D2b!G30 -> Chaleur | H31: =D2b!I30 -> 0 | I31: =D2b!J30 -> 11000 | J31: 0 | K31: =((I31)*('FE5'!$G51))/1000 -> 2.123 | L31: 0 | M31: =D2b!R30 -> estimation RDC puissance 2,4 MW, rendement 60% | N31: =D3a!$D$6 -> 0.5461109288 | O31: 0 | P31: 0 | Q31: 0 | R31: 0.4538890712 | S31: 0 | T31: =D3a!$E$6 -> NORENER 2017 Hauts de France- données 2014
D32: =D2b!D31 -> Le Portel-Outreau Dalkia | F32: =D2b!F31 -> Outreau | G32: =D2b!G31 -> Chaleur | H32: =D2b!I31 -> 0 | I32: =D2b!J31 -> 5344 | J32: 0 | K32: =((I32)*('FE5'!$G52))/1000 -> 1.116896 | L32: 0 | M32: =D2b!R31 -> Réseau Rafhael, présentation du 27 novembre 2013 | N32: =D3a!$D$6 -> 0.5461109288 | O32: 0 | P32: 0 | Q32: 0 | R32: 0.4538890712 | S32: 0 | T32: =D3a!$E$6 -> NORENER 2017 Hauts de France- données 2014
D33: =D2b!D32 -> ZUP de Béthune | F33: =D2b!F32 -> Béthune | G33: =D2b!G32 -> Chaleur | H33: =D2b!I32 -> 0 | I33: =D2b!J32 -> 27133 | J33: 0 | K33: =((I33)*('FE5'!$G53))/1000 -> 6.484787 | L33: 0 | M33: =D2b!R32 -> Enquête nationale sur les réseaux de chaleur et de froid SOeS 2014 (données 2012) | N33: =D3a!$D$6 -> 0.5461109288 | O33: 0 | P33: 0 | Q33: 0 | R33: 0.4538890712 | S33: 0 | T33: =D3a!$E$6 -> NORENER 2017 Hauts de France- données 2014
D34: =D2b!D33 -> Réseau de Liévin | F34: =D2b!F33 -> Liévin | G34: =D2b!G33 -> Chaleur | H34: =D2b!I33 -> 0 | I34: =D2b!J33 -> 21122 | J34: 0 | K34: =((I34)*('FE5'!$G54))/1000 -> 5.322744 | L34: 0 | M34: =D2b!R33 -> Enquête nationale sur les réseaux de chaleur et de froid SOeS 2014 (données 2012) | N34: =D3a!$D$6 -> 0.5461109288 | O34: 0 | P34: 0 | Q34: 0 | R34: 0.4538890712 | S34: 0 | T34: =D3a!$E$6 -> NORENER 2017 Hauts de France- données 2014
D35: =D2b!D34 -> Calais Energie | F35: =D2b!F34 -> Calais | G35: =D2b!G34 -> Chaleur | H35: =D2b!I34 -> 0 | I35: =D2b!J34 -> 52106 | J35: 0 | K35: =((I35)*('FE5'!$G55))/1000 -> 10.525412 | L35: 0 | M35: =D2b!R34 -> Enquête nationale sur les réseaux de chaleur et de froid SOeS 2014 (données 2012) | N35: =D3a!$D$6 -> 0.5461109288 | O35: 0 | P35: 0 | Q35: 0 | R35: 0.4538890712 | S35: 0 | T35: =D3a!$E$6 -> NORENER 2017 Hauts de France- données 2014
D36: =D2b!D35 -> Réseau Centre Ville | F36: =D2b!F35 -> Béthune | G36: =D2b!G35 -> Chaleur | H36: =D2b!I35 -> 0 | I36: =D2b!J35 -> 12678 | J36: 0 | K36: =((I36)*('FE5'!$G56))/1000 -> 2.85255 | L36: 0 | M36: =D2b!R35 -> Enquête nationale sur les réseaux de chaleur et de froid SOeS 2014 (données 2012) | N36: =D3a!$D$6 -> 0.5461109288 | O36: 0 | P36: 0 | Q36: 0 | R36: 0.4538890712 | S36: 0 | T36: =D3a!$E$6 -> NORENER 2017 Hauts de France- données 2014
D37: =D2b!D36 -> Réseau d'Achicourt | F37: =D2b!F36 -> Achicourt | G37: =D2b!G36 -> Chaleur | H37: =D2b!I36 -> 0 | I37: =D2b!J36 -> 6416 | J37: 0 | K37: =((I37)*('FE5'!$G57))/1000 -> 0.6416 | L37: 0 | M37: =D2b!R36 -> Observatoire Climat, données 2013 | N37: =D3a!$D$6 -> 0.5461109288 | O37: 0 | P37: 0 | Q37: 0 | R37: 0.4538890712 | S37: 0 | T37: =D3a!$E$6 -> NORENER 2017 Hauts de France- données 2014
D38: =D2b!D37 -> Réseau d'Arras | F38: =D2b!F37 -> Arras | G38: =D2b!G37 -> Chaleur | H38: =D2b!I37 -> 0 | I38: =D2b!J37 -> 56703 | J38: 0 | K38: =((I38)*('FE5'!$G58))/1000 -> 12.701472 | L38: 0 | M38: =D2b!R37 -> Enquête nationale sur les réseaux de chaleur et de froid SOeS 2014 (données 2012) | N38: =D3a!$D$6 -> 0.5461109288 | O38: 0 | P38: 0 | Q38: 0 | R38: 0.4538890712 | S38: 0 | T38: =D3a!$E$6 -> NORENER 2017 Hauts de France- données 2014
D39: =D2b!D38 -> Réseau de Boulogne-sur-Mer | F39: =D2b!F38 -> Boulogne-sur-Mer | G39: =D2b!G38 -> Chaleur | H39: =D2b!I38 -> 0 | I39: =D2b!J38 -> 29249 | J39: 0 | K39: =((I39)*('FE5'!$G59))/1000 -> 6.961262 | L39: 0 | M39: =D2b!R38 -> Observatoire Climat, données 2015 | N39: =D3a!$D$6 -> 0.5461109288 | O39: 0 | P39: 0 | Q39: 0 | R39: 0.4538890712 | S39: 0 | T39: =D3a!$E$6 -> NORENER 2017 Hauts de France- données 2014
D40: =D2b!D39 -> Quartier du chemin vert | F40: =D2b!F39 -> Boulogne-sur-Mer | G40: =D2b!G39 -> Chaleur | H40: =D2b!I39 -> 0 | I40: =D2b!J39 -> 18977 | J40: 0 | K40: =((I40)*('FE5'!$G60))/1000 -> 1.32933885 | L40: 0 | M40: =D2b!R39 -> CERDD | N40: =D3a!$D$6 -> 0.5461109288 | O40: 0 | P40: 0 | Q40: 0 | R40: 0.4538890712 | S40: 0 | T40: =D3a!$E$6 -> NORENER 2017 Hauts de France- données 2014
D41: =D2b!D40 -> 0 | F41: =D2b!F40 -> 0 | G41: =D2b!G40 -> Chaleur | H41: =D2b!I40 -> 0 | I41: =D2b!J40 -> 0 | J41: =H41*I41 -> 0 | K41: =((I41)*('FE5'!$G61))/1000 -> 0 | L41: 0 | M41: =D2b!R40 -> 0 | N41: =D3a!$D$6 -> 0.5461109288 | O41: 0 | P41: 0 | Q41: 0 | R41: =1-N41 -> 0.4538890712 | S41: 0 | T41: =D3a!$E$6 -> NORENER 2017 Hauts de France- données 2014
C42: Aisne | D42: =D2b!D41 -> ZUP du Quartier Europe | F42: =D2b!F41 -> Saint-Quentin | G42: =D2b!G41 -> Chaleur | H42: =D2b!I41 -> 0 | I42: =D2b!J41 -> 65926 | J42: =H42*I42 -> 0 | K42: =((I42)*('FE5'!$G62))/1000 -> 8.90001 | L42: =H42*K42 -> 0 | M42: =D2b!R41 -> L’ANNUAIRE DES RÉSEAUX DE CHALEUR ET DE FROID 2014/2015 (données 2012) | N42: =D3a!$D$6 -> 0.5461109288 | O42: 0 | P42: 0 | Q42: 0 | R42: =1-N42 -> 0.4538890712 | S42: 0 | T42: =D3a!$E$6 -> NORENER 2017 Hauts de France- données 2014
D43: =D2b!D42 -> ZUP de Presles | F43: =D2b!F42 -> Soissons | G43: =D2b!G42 -> Chaleur | H43: =D2b!I42 -> 0 | I43: =D2b!J42 -> 33921 | J43: 0 | K43: =((I43)*('FE5'!$G63))/1000 -> 2.611917 | L43: 0 | M43: =D2b!R42 -> L’ANNUAIRE DES RÉSEAUX DE CHALEUR ET DE FROID 2014/2015 (données 2012) | N43: =D3a!$D$6 -> 0.5461109288 | O43: 0 | P43: 0 | Q43: 0 | R43: 0.4538890712 | S43: 0 | T43: =D3a!$E$6 -> NORENER 2017 Hauts de France- données 2014
D44: =D2b!D43 -> Réseau de Laon | F44: =D2b!F43 -> Laon | G44: =D2b!G43 -> Chaleur | H44: =D2b!I43 -> 0 | I44: =D2b!J43 -> 1825 | J44: 0 | K44: =((I44)*('FE5'!$G64))/1000 -> 0.0073 | L44: 0 | M44: =D2b!R43 -> L’ANNUAIRE DES RÉSEAUX DE CHALEUR ET DE FROID 2014/2015 (données 2012) | N44: =D3a!$D$6 -> 0.5461109288 | O44: 0 | P44: 0 | Q44: 0 | R44: 0.4538890712 | S44: 0 | T44: =D3a!$E$6 -> NORENER 2017 Hauts de France- données 2014
D45: =D2b!D44 -> Réseau d'Urcel | F45: =D2b!F44 -> Urcel | G45: =D2b!G44 -> Chaleur | H45: =D2b!I44 -> 0 | I45: =D2b!J44 -> 285 | J45: 0 | K45: =((I45)*('FE5'!$G65))/1000 -> 0.0114 | L45: 0 | M45: =D2b!R44 -> Réseau de chaleur de la ville d'URCEL (02) (http://ret-ademe-region-hdf.fr/) | N45: =D3a!$D$6 -> 0.5461109288 | O45: 0 | P45: 0 | Q45: 0 | R45: 0.4538890712 | S45: 0 | T45: =D3a!$E$6 -> NORENER 2017 Hauts de France- données 2014
D46: =D2b!D45 -> 0 | F46: =D2b!F45 -> 0 | G46: =D2b!G45 -> Chaleur | H46: =D2b!I45 -> 0 | I46: =D2b!J45 -> 0 | J46: 0 | K46: =((I46)*('FE5'!$G66))/1000 -> 0 | L46: 0 | M46: =D2b!R45 -> 0 | N46: =D3a!$D$6 -> 0.5461109288 | O46: 0 | P46: 0 | Q46: 0 | R46: 0.4538890712 | S46: 0 | T46: =D3a!$E$6 -> NORENER 2017 Hauts de France- données 2014
C47: Oise | D47: =D2b!D46 -> Réseau de Compiègne | F47: =D2b!F46 -> Compiègne | G47: =D2b!G46 -> Chaleur | H47: =D2b!I46 -> 0 | I47: =D2b!J46 -> 68895 | J47: 0 | K47: =((I47)*('FE5'!$G67))/1000 -> 16.94817 | L47: 0 | M47: =D2b!R46 -> L’ANNUAIRE DES RÉSEAUX DE CHALEUR ET DE FROID 2014/2015 (données 2012) | N47: =D3a!$D$6 -> 0.5461109288 | O47: 0 | P47: 0 | Q47: 0 | R47: 0.4538890712 | S47: 0 | T47: =D3a!$E$6 -> NORENER 2017 Hauts de France- données 2014
D48: =D2b!D47 -> La Cavée | F48: =D2b!F47 -> Creil | G48: =D2b!G47 -> Chaleur | H48: =D2b!I47 -> 0 | I48: =D2b!J47 -> 71957 | J48: 0 | K48: =((I48)*('FE5'!$G68))/1000 -> 7.843313 | L48: 0 | M48: =D2b!R47 -> L’ANNUAIRE DES RÉSEAUX DE CHALEUR ET DE FROID 2014/2015 (données 2012) | N48: =D3a!$D$6 -> 0.5461109288 | O48: 0 | P48: 0 | Q48: 0 | R48: 0.4538890712 | S48: 0 | T48: =D3a!$E$6 -> NORENER 2017 Hauts de France- données 2014
D49: =D2b!D48 -> Quartier des Obiers | F49: =D2b!F48 -> Nogent-sur-Oise | G49: =D2b!G48 -> Chaleur | H49: =D2b!I48 -> 0 | I49: =D2b!J48 -> 42305 | J49: 0 | K49: =((I49)*('FE5'!$G69))/1000 -> 7.741815 | L49: 0 | M49: =D2b!R48 -> L’ANNUAIRE DES RÉSEAUX DE CHALEUR ET DE FROID 2014/2015 (données 2012) | N49: =D3a!$D$6 -> 0.5461109288 | O49: 0 | P49: 0 | Q49: 0 | R49: 0.4538890712 | S49: 0 | T49: =D3a!$E$6 -> NORENER 2017 Hauts de France- données 2014
D50: =D2b!D49 -> Les Martinets | F50: =D2b!F49 -> Montataire | G50: =D2b!G49 -> Chaleur | H50: =D2b!I49 -> 0 | I50: =D2b!J49 -> 0 | J50: 0 | K50: =((I50)*('FE5'!$G70))/1000 -> 0 | L50: 0 | M50: =D2b!R49 -> Cessation d'activité en 2014 : Annexe I de l'arrêté du 24 janvier 2014. | N50: =D3a!$D$6 -> 0.5461109288 | O50: 0 | P50: 0 | Q50: 0 | R50: 0.4538890712 | S50: 0 | T50: =D3a!$E$6 -> NORENER 2017 Hauts de France- données 2014
D51: =D2b!D50 -> Réseau du Quartier Saint-Jean | F51: =D2b!F50 -> Beauvais | G51: =D2b!G50 -> Chaleur | H51: =D2b!I50 -> 0 | I51: =D2b!J50 -> 30000 | J51: 0 | K51: =((I51)*('FE5'!$G71))/1000 -> 0.39 | L51: 0 | M51: =D2b!R50 -> http://www.cram.fr/project/ville-de-beauvais-quartier-st-jean/ | N51: =D3a!$D$6 -> 0.5461109288 | O51: 0 | P51: 0 | Q51: 0 | R51: 0.4538890712 | S51: 0 | T51: =D3a!$E$6 -> NORENER 2017 Hauts de France- données 2014
D52: =D2b!D51 -> Réseau de Breteuil-sur-Noye | F52: =D2b!F51 -> Breteuil-sur-Noye | G52: =D2b!G51 -> Chaleur | H52: =D2b!I51 -> 0 | I52: =D2b!J51 -> 6230 | J52: 0 | K52: =((I52)*('FE5'!$G72))/1000 -> 0.15575 | L52: 0 | M52: =D2b!R51 -> http://www.ville-breteuil.fr/mode-texte/fr/information/63260/chaufferie-biomasse-reseau-chaleur | N52: =D3a!$D$6 -> 0.5461109288 | O52: 0 | P52: 0 | Q52: 0 | R52: 0.4538890712 | S52: 0 | T52: =D3a!$E$6 -> NORENER 2017 Hauts de France- données 2014
D53: =D2b!D52 -> 0 | F53: =D2b!F52 -> 0 | G53: =D2b!G52 -> Chaleur | H53: =D2b!I52 -> 0 | I53: =D2b!J52 -> 0 | J53: 0 | K53: =((I53)*('FE5'!$G73))/1000 -> 0 | L53: 0 | M53: =D2b!R52 -> 0 | N53: =D3a!$D$6 -> 0.5461109288 | O53: 0 | P53: 0 | Q53: 0 | R53: 0.4538890712 | S53: 0 | T53: =D3a!$E$6 -> NORENER 2017 Hauts de France- données 2014
C54: Somme | D54: =D2b!D53 -> Etouvie | F54: =D2b!F53 -> Amiens | G54: =D2b!G53 -> Chaleur | H54: =D2b!I53 -> 0 | I54: =D2b!J53 -> 30035 | J54: 0 | K54: =((I54)*('FE5'!$G74))/1000 -> 7.779065 | L54: 0 | M54: =D2b!R53 -> L’ANNUAIRE DES RÉSEAUX DE CHALEUR ET DE FROID 2014/2015 (données 2012) | N54: =D3a!$D$6 -> 0.5461109288 | O54: 0 | P54: 0 | Q54: 0 | R54: 0.4538890712 | S54: 0 | T54: =D3a!$E$6 -> NORENER 2017 Hauts de France- données 2014
D55: =D2b!D54 -> Réseau de Montdidier | F55: =D2b!F54 -> Montdidier | G55: =D2b!G54 -> Chaleur | H55: =D2b!I54 -> 0 | I55: =D2b!J54 -> 6970 | J55: 0 | K55: =((I55)*('FE5'!$G75))/1000 -> 0.52275 | L55: 0 | M55: =D2b!R54 -> L’ANNUAIRE DES RÉSEAUX DE CHALEUR ET DE FROID 2014/2015 (données 2012) | N55: =D3a!$D$6 -> 0.5461109288 | O55: 0 | P55: 0 | Q55: 0 | R55: 0.4538890712 | S55: 0 | T55: =D3a!$E$6 -> NORENER 2017 Hauts de France- données 2014
D56: =D2b!D55 -> Réseau d'Abbeville | F56: =D2b!F55 -> Abbeville | G56: =D2b!G55 -> Chaleur | H56: =D2b!I55 -> 0 | I56: =D2b!J55 -> 10511 | J56: 0 | K56: =((I56)*('FE5'!$G76))/1000 -> 1.114166 | L56: 0 | M56: =D2b!R55 -> L’ANNUAIRE DES RÉSEAUX DE CHALEUR ET DE FROID 2014/2015 (données 2012) | N56: =D3a!$D$6 -> 0.5461109288 | O56: 0 | P56: 0 | Q56: 0 | R56: 0.4538890712 | S56: 0 | T56: =D3a!$E$6 -> NORENER 2017 Hauts de France- données 2014
D57: =D2b!D57 -> 0 | F57: =D2b!F56 -> 0 | G57: =D2b!G56 -> Chaleur | H57: =D2b!I56 -> 0 | I57: =D2b!J56 -> 0 | J57: 0 | K57: =((I57)*('FE5'!$G77))/1000 -> 0 | L57: 0 | M57: =D2b!R56 -> 0 | N57: =D3a!$D$6 -> 0.5461109288 | O57: 0 | P57: 0 | Q57: 0 | R57: 0.4538890712 | S57: 0 | T57: =D3a!$E$6 -> NORENER 2017 Hauts de France- données 2014
C58: Total | I58: =SUM(I10:I57) -> 1561251 | J58: =SUM(J10:J57) -> 0 | K58: =SUM(K10:K57) -> 297.9335348 | L58: =SUM(L10:L57) -> 0
B61: Production de froid par réseau
N62: Répartition des consommations du territoire par poste - pour tous les réseaux connectés au territoire
H63: Part de la production consommée par le territoire (%) | I63: Production du réseau (MWh) | J63: Consommation du territoire (MWh) | K63: Emissions produites par les réseaux (t eq CO2) | L63: Emissions liées à la consommation (t eq CO2) | M63: Source | N63: Résidentiel | O63: Déplacements | P63: Biens de consommation | Q63: Alimentation | R63: Services | S63: Travaux | T63: Source
C64: Nord | D64: =D2b!D63 -> 0 | F64: =D2b!F63 -> 0 | G64: =D2b!G63 -> Froid | H64: =D2b!I63 -> 0 | I64: =D2b!J63 -> 0 | J64: =H64*I64 -> 0 | K64: =D2b!N63 -> 0 | L64: =H64*K64 -> 0 | N64: 0 | O64: 0 | P64: =1-R64 -> 0.03 | Q64: 0 | R64: =D3a!$D$7 -> 0.97 | S64: 0 | T64: =D3a!$E$7 -> Enquête de branche SNCU 2015
D65: =D2b!D64 -> 0 | F65: =D2b!F64 -> 0 | G65: =D2b!G64 -> Froid | H65: =D2b!I64 -> 0 | I65: =D2b!J64 -> 0 | J65: =H65*I65 -> 0 | K65: =D2b!N64 -> 0 | L65: =H65*K65 -> 0 | N65: 0 | O65: 0 | P65: =1-R65 -> 0.03 | Q65: 0 | R65: =D3a!$D$7 -> 0.97 | S65: 0 | T65: =D3a!$E$7 -> Enquête de branche SNCU 2015
C66: Pas-de-calais | D66: =D2b!D65 -> 0 | F66: =D2b!F65 -> 0 | G66: =D2b!G65 -> Froid | H66: =D2b!I65 -> 0 | I66: =D2b!J65 -> 0 | J66: =H66*I66 -> 0 | K66: =D2b!N65 -> 0 | L66: =H66*K66 -> 0 | N66: 0 | O66: 0 | P66: 0.03 | Q66: 0 | R66: =D3a!$D$7 -> 0.97 | S66: 0 | T66: =D3a!$E$7 -> Enquête de branche SNCU 2015
D67: =D2b!D66 -> 0 | F67: =D2b!F66 -> 0 | G67: =D2b!G66 -> Froid | H67: =D2b!I66 -> 0 | I67: =D2b!J66 -> 0 | J67: =H67*I67 -> 0 | K67: =D2b!N66 -> 0 | L67: =H67*K67 -> 0 | N67: 0 | O67: 0 | P67: 0.03 | Q67: 0 | R67: =D3a!$D$7 -> 0.97 | S67: 0 | T67: =D3a!$E$7 -> Enquête de branche SNCU 2015
C68: Aisne | D68: =D2b!D67 -> 0 | F68: =D2b!F67 -> 0 | G68: =D2b!G67 -> Froid | H68: =D2b!I67 -> 0 | I68: =D2b!J67 -> 0 | J68: =H68*I68 -> 0 | K68: =D2b!N67 -> 0 | L68: =H68*K68 -> 0 | N68: 0 | O68: 0 | P68: 0.03 | Q68: 0 | R68: =D3a!$D$7 -> 0.97 | S68: 0 | T68: =D3a!$E$7 -> Enquête de branche SNCU 2015
D69: =D2b!D68 -> 0 | F69: =D2b!F68 -> 0 | G69: =D2b!G68 -> Froid | H69: =D2b!I68 -> 0 | I69: =D2b!J68 -> 0 | J69: 0 | K69: =D2b!N68 -> 0 | L69: 0 | N69: 0 | O69: 0 | P69: 0.03 | Q69: 0 | R69: =D3a!$D$7 -> 0.97 | S69: 0 | T69: =D3a!$E$7 -> Enquête de branche SNCU 2015
C70: Oise | D70: =D2b!D69 -> 0 | F70: =D2b!F69 -> 0 | G70: =D2b!G69 -> Froid | H70: =D2b!I69 -> 0 | I70: =D2b!J69 -> 0 | J70: 0 | K70: =D2b!N69 -> 0 | L70: 0 | N70: 0 | O70: 0 | P70: 0.03 | Q70: 0 | R70: =D3a!$D$7 -> 0.97 | S70: 0 | T70: =D3a!$E$7 -> Enquête de branche SNCU 2015
D71: =D2b!D70 -> 0 | F71: =D2b!F70 -> 0 | G71: =D2b!G70 -> Froid | H71: =D2b!I70 -> 0 | I71: =D2b!J70 -> 0 | J71: 0 | K71: =D2b!N70 -> 0 | L71: 0 | N71: 0 | O71: 0 | P71: 0.03 | Q71: 0 | R71: =D3a!$D$7 -> 0.97 | S71: 0 | T71: =D3a!$E$7 -> Enquête de branche SNCU 2015
C72: Somme | D72: =D2b!D71 -> 0 | F72: =D2b!F71 -> 0 | G72: =D2b!G71 -> Froid | H72: =D2b!I71 -> 0 | I72: =D2b!J71 -> 0 | J72: 0 | K72: =D2b!N71 -> 0 | L72: 0 | N72: 0 | O72: 0 | P72: 0.03 | Q72: 0 | R72: =D3a!$D$7 -> 0.97 | S72: 0 | T72: =D3a!$E$7 -> Enquête de branche SNCU 2015
D73: =D2b!D72 -> 0 | F73: =D2b!F72 -> 0 | G73: =D2b!G72 -> Froid | H73: =D2b!I72 -> 0 | I73: =D2b!J72 -> 0 | J73: 0 | K73: =D2b!N72 -> 0 | L73: 0 | N73: 0 | O73: 0 | P73: 0.03 | Q73: 0 | R73: =D3a!$D$7 -> 0.97 | S73: 0 | T73: =D3a!$E$7 -> Enquête de branche SNCU 2015
C74: Total | I74: =SUM(I64:I67) -> 0 | J74: =SUM(J64:J67) -> 0 | K74: =SUM(K64:K67) -> 0 | L74: =SUM(L64:L67) -> 0
A77: B. | B77: Consommation de chaleur et froid par poste ESPASS (MWh)
B79: Territoire - réseaux de chaleur - consommation de chaleur- répartition par poste
C81: Résidentiel | D81: =SUMPRODUCT(J10:J57,N10:N57) -> 0 | E81: MWh
C82: Déplacements | D82: =SUMPRODUCT(J10:J57,O10:O57) -> 0 | E82: MWh
C83: Biens de consommation | D83: =SUMPRODUCT(J10:J57,P10:P57) -> 0 | E83: MWh
C84: Alimentation | D84: =SUMPRODUCT(J10:J57,Q10:Q57) -> 0 | E84: MWh
C85: Services | D85: =SUMPRODUCT(J10:J57,R10:R57) -> 0 | E85: MWh
C86: Travaux | D86: =SUMPRODUCT(J10:J57,S10:S57) -> 0 | E86: MWh
C87: Consommation d'énergie | D87: =SUM(D81:D86) -> 0 | E87: MWh | F87: Source: | G87: Enquête nationale sur les réseaux de chaleur et de froid SOeS 2014 (données 2012)
B90: Territoire - réseaux de froid - consommation de froid sur le territoire
C92: Résidentiel | D92: =SUMPRODUCT(J64:J73,N64:N73) -> 0 | E92: MWh
C93: Déplacements | D93: =SUMPRODUCT(J64:J73,O64:O73) -> 0 | E93: MWh
C94: Biens de consommation | D94: =SUMPRODUCT(J64:J73,P64:P73) -> 0 | E94: MWh
C95: Alimentation | D95: =SUMPRODUCT(J64:J73,Q64:Q73) -> 0 | E95: MWh
C96: Services | D96: =SUMPRODUCT(J64:J73,R64:R73) -> 0 | E96: MWh
C97: Travaux | D97: =SUMPRODUCT(J64:J73,S64:S73) -> 0 | E97: MWh
C98: Production d'énergie | D98: =SUM(D92:D97) -> 0 | E98: MWh | F98: Source:
A102: C. | B102: Consommation de chaleur et froid par poste PCAET (MWh)
B105: Consommation de chaleur par poste PCAET
D107: Part de la consommation destinée au poste | E107: Consommation totale
C108: Résidentiel | D108: =IFERROR(E108/$E$116,0) -> 0 | E108: =D81 -> 0 | F108: MWh
C109: Tertiaire | D109: =IFERROR(E109/$E$116,0) -> 0 | E109: =D85 -> 0 | F109: MWh
C110: Transport routier | D110: 0 | E110: 0 | F110: MWh
C111: Autres transports | D111: 0 | E111: 0 | F111: MWh
C112: Agriculture | D112: 0 | E112: 0 | F112: MWh
C113: Déchets | D113: 0 | E113: 0 | F113: MWh
C114: Industrie hors branche énergie | D114: 0 | E114: =D97+D95+D94 -> 0 | F114: MWh
C115: Industrie branche énergie | D115: =IFERROR(E115/$E$131,0) -> 0 | E115: 0
C116: Total | D116: =SUM(D108:D114) -> 0 | E116: =SUM(E108:E114) -> 0 | F116: MWh
B120: Consommation de froid par poste PCAET
D122: Part de la consommation destinée au poste | E122: Consommation totale
C123: Résidentiel | D123: =IFERROR(E123/$E$131,0) -> 0 | E123: =D92 -> 0 | F123: MWh
C124: Tertiaire | D124: =IFERROR(E124/$E$131,0) -> 0 | E124: =D96 -> 0 | F124: MWh
C125: Transport routier | D125: 0 | E125: 0 | F125: MWh
C126: Autres transports | D126: 0 | E126: 0 | F126: MWh
C127: Agriculture | D127: 0 | E127: 0 | F127: MWh
C128: Déchets | D128: 0 | E128: 0 | F128: MWh
C129: Industrie hors branche énergie | D129: 0 | E129: =D97+D94+D95 -> 0 | F129: MWh
C130: Industrie branche énergie | D130: 0 | E130: 0 | F130: MWh
C131: Total | D131: =SUM(D123:D129) -> 0 | E131: =SUM(E123:E130) -> 0 | F131: MWh
A134: D. | B134: Emissions liées aux réseaux de chaleur et de froid - par poste ESPASS
B136: Territoire - réseaux de chaleur et de froid - émissions liées à la consommation - répartition par poste
D138: Emissions liées à la consommation de chaleur et de froid | E138: Emissions indirectes
C139: Résidentiel | D139: =SUMPRODUCT(L10:L57,N10:N57)+SUMPRODUCT(L64:L73, N64:N73) -> 0 | E139: =D139-D2b!D123 -> 0 | F139: kt eq CO2
C140: Déplacements | D140: =SUMPRODUCT(L10:L57,O10:O57)+SUMPRODUCT(L64:L73, O64:O73) -> 0 | E140: =D140-D2b!D124 -> 0 | F140: kt eq CO2
C141: Biens de consommation | D141: =SUMPRODUCT(L10:L57,P10:P57)+SUMPRODUCT(L64:L73, P64:P73) -> 0 | E141: =D141-D2b!D125 -> 0 | F141: kt eq CO2
C142: Alimentation | D142: =SUMPRODUCT(L10:L57,Q10:Q57)+SUMPRODUCT(L64:L73, Q64:Q73) -> 0 | E142: =D142-D2b!D126 -> 0 | F142: kt eq CO2
C143: Services | D143: =SUMPRODUCT(L10:L57,R10:R57)+SUMPRODUCT(L64:L73, R64:R73) -> 0 | E143: =D143-D2b!D127 -> 0 | F143: kt eq CO2
C144: Travaux | D144: =SUMPRODUCT(L10:L57,S10:S57)+SUMPRODUCT(L64:L73, S64:S73) -> 0 | E144: =D144-D2b!D128 -> 0 | F144: kt eq CO2
C145: Total | D145: =SUM(D139:D144) -> 0 | E145: =D145-D2b!D129 -> 0 | F145: kt eq CO2
A148: E. | B148: Emissions liées aux réseaux de chaleur et de froid - par poste PCAET
B150: Territoire - réseaux de chaleur et de froid - émissions liées à la consommation - répartition par poste
D152: Emissions liées à la consommation de chaleur et de froid | E152: Emissions indirectes
C153: Résidentiel | D153: =D139 -> 0 | E153: =D153-D2b!D137 -> 0 | F153: kt eq CO2
C154: Tertiaire | D154: =D143 -> 0 | E154: =D154-D2b!D138 -> 0 | F154: kt eq CO2
C155: Transport routier | D155: 0 | E155: =D155-D2b!D139 -> 0 | F155: kt eq CO2
C156: Autres transports | D156: =D140 -> 0 | E156: =D156-D2b!D140 -> 0 | F156: kt eq CO2
C157: Agriculture | D157: =D142 -> 0 | E157: =D157-D2b!D141 -> 0 | F157: kt eq CO2
C158: Déchets | D158: 0 | E158: =D158-D2b!D142 -> 0 | F158: kt eq CO2
C159: Industrie hors branche énergie | D159: =D141+D142+D144 -> 0 | E159: =D159-D2b!D143 -> 0 | F159: kt eq CO2
C160: Industrie branche énergie | D160: 0 | E160: =D160-D2b!D144 -> 0 | F160: kt eq CO2
C161: Total | D161: =SUM(D153:D160) -> 0 | E161: =SUM(E153:E160) -> 0 | F161: kt eq CO2

Sheet I3
B2: Bilan des autres émissions indirectes liées à l'énergie - Amont des combustibles …
A4: 1) | B4: Emissions indirectes liées aux combustibles- par poste ESPASS
G6: Résidentiel | H6: Déplacements | I6: Biens de consommation | J6: Alimentation | K6: Services | L6: Travaux | M6: Total
B7: Emissions GES directes liées à la production de combustibles sur le territoire = Emissions exportées | F7: kt eq CO2 | I7: =-SUM(D1a!K155:K157,D1a!K159:K160) -> 0 | M7: =SUM(G7:L7) -> 0
B8: Emissions GES liées à l'amont de la production d'électricité (hors industrie de l'énergie) - (amont des combustibles, transport et distribution) | F8: kt eq CO2 | G8: =I1b!O17 -> 0 | H8: =I1b!O44 -> 0 | I8: =I1b!O68 -> 0 | J8: =I1b!O103 -> 0 | K8: =I1b!O131 -> 0 | L8: =I1b!O150 -> 0 | M8: =SUM(G8:L8) -> 0
B9: Emissions GES liées à l'amont des combustibles (hors électricité et branche énergie) | F9: kt eq CO2 | G9: =F24 -> 0 | H9: =F29 ->  | I9: =F35 -> 0 | K9: =F42 -> 0 | L9: =F47 -> 0 | M9: =SUM(G9:L9) -> 
A11: 2) | B11: Emissions indirectes liées aux combustibles- par poste PCAET
B12: Remarque: ces données ne sont pas utilisées dans le rapportage réglementaire
G13: Résidentiel | H13: Tertiaire | I13: Transport routier | J13: Autres transports | K13: Agriculture | L13: Déchets | M13: Industrie hors branche énergie | N13: Industrie branche énergie | O13: Total
B14: Emissions GES liées à la production de combustibles sur le territoire = Emissions exportées | F14: kt eq CO2 | N14: =-SUM(D1a!K155:K157,D1a!K159:K160) -> 0 | O14: =SUM(G14:N14) -> 0
B15: Emissions GES liées à l'amont de la production d'électricité (hors industrie de l'énergie) - (amont des combustibles, transport et distribution) | F15: kt eq CO2 | G15: ='I3'!G8 -> 0 | H15: =I1b!O125 -> 0 | I15: =I1b!O38 -> 0 | J15: =I1b!O41 -> 0 | K15: =I1b!O97 -> 0 | L15: =I1b!O128 -> 0 | M15: =I1b!O68+I1b!O100+I1b!O150 -> 0 | O15: =SUM(G15:N15) -> 0
B16: Emissions GES liées à l'amont des combustibles (hors électricité et branche énergie) | F16: kt eq CO2 | G16: =G9 -> 0 | H16: =F40 -> 0 | I16: =F29 ->  | L16: =F41 -> 0 | M16: =F47+F35 -> 0 | O16: =SUM(G16:N16) -> 
A20: A. | B20: Données détaillées par poste ESPASS
B22: Résidentiel - émissions indirectes liées à l'énergie (hors électricité)- Amont des combustibles
C24: Emissions indirectes liées à l'énergie (hors électricité) | F24: =Resid!G95 -> 0 | G24: kt eq CO2
B27: Déplacements - émissions indirectes liées à l'énergie
C29: =Depl!C73 -> Emissions indirectes liées à l'énergie | F29: =Depl!F73 -> 
C30: =Depl!C79 -> Emissions indirectes liées à l'énergie (hors avion) | F30: =Depl!F79 ->  | G30: kt eq CO2
B33: Biens de consommation - émissions indirectes liées à l'amont des combustibles dans l'industrie
C35: ='Biens de conso'!C113 -> Emissions indirectes liées à l'amont des combustibles dans l'industrie (kt eq CO2) | F35: ='Biens de conso'!L113 -> 0 | G35: kt eq CO2
B38: Services - émissions indirectes liées à l'énergie (hors électricité)
C40: Tertiaire | F40: =Serv!F62 -> 0 | G40: kt eq CO2
C41: Industrie des déchets | F41: =Serv!F86 -> 0 | G41: kt eq CO2
C42: Services - total | F42: =F40+F41 -> 0 | G42: kt eq CO2
B45: Travaux- émissions indirectes liées à l'amont des combustibles dans l'industrie
C47: =Tra!F69 -> Industrie - minéraux non-métalliques et matériaux de construction | F47: =Tra!F86 -> 0 | G47: kt eq CO2

Sheet IE1
B2: Donnés douanes - Hauts-de-France
A4: A. | B4: Imports / exports - données brutes
B6: Source: | C6: http://lekiosque.finances.gouv.fr/portail_default.asp
D8: Année des données: | F8: 2016
B10: Données douanes importations / exportations | AD10: Catégorie | AG10: Mode de modulation
K11: Mode de modulation | M11: Automatique - présaisi régional | AD11: Biens de consommation | AG11: Automatique - présaisi régional
AD12: Marchandises industrielles | AG12: Manuel
G13: Données indicatives | AD13: Absente
G14: Données régionales | I14: Données régionales | K14: Facteur de modulation territoire appliqué | M14: Facteur de modulation territoire base de données | O14: Catégorie de marchandise | Q14: Présence industrie | S14: Ratio territoire pertinent | U14: Valeur du ratio territoire pertinent | W14: Ratio appliqué | AD14: Présente
C15: Nomenclature A129 | E15: Nomenclature CPF4 | G15: Imports | H15: Exports | I15: Imports | J15: Exports | K15: Imports | L15: Exports | M15: Imports | N15: Exports | O15: Imports | P15: Exports | Q15: Imports | R15: Exports | S15: Imports | T15: Exports | U15: Imports | V15: Exports | W15: Imports | X15: Exports
C16: Code | D16: Libellé | E16: Code | F16: Libellé | G16: (euros) | H16: (euros) | I16: kg | J16: kg | K16: % | L16: % | M16: % | N16: % | O16: - | P16: - | Q16: - | R16: - | S16: - | T16: - | U16: % | V16: %
C17: A01Z | D17: Produits de la culture et de l'élevage | E17: 0111 | F17: Céréales (à l'exclusion du riz), légumineuses et oléagineux | G17: 136149417 | H17: 794315832 | I17: 504262931 | J17: 5761970414 | K17: =IF($M$11=$AG$11,M17,W17) -> 0 | L17: =IF($M$11=$AG$11,N17,X17) -> 0 | O17: Industrie agroalimentaire | P17: Industrie agroalimentaire | Q17: Industrie agroalimentaire | R17: Industrie agroalimentaire | S17: Industrie agroalimentaire | T17: Industrie agroalimentaire | U17: =IFERROR(IF(S17="","",VLOOKUP(S17,$AD$20:$AG$49,4,FALSE)),"") ->  | V17: =IFERROR(IF(T17="","",VLOOKUP(T17,$AD$20:$AG$49,4,FALSE)),"") ->  | W17: =IF(O17=$AD$11,Accueil!$D$24,IF(('IE1'!O17='IE1'!$AD$12)*AND('IE1'!Q17='IE1'!$AD$14),'IE1'!U17,IF(('IE1'!O17='IE1'!$AD$12)*AND('IE1'!Q17='IE1'!$AD$13),0,0))) -> 0 | X17: =IF(P17=$AD$11,Accueil!$D$24,IF(('IE1'!P17='IE1'!$AD$12)*AND('IE1'!R17='IE1'!$AD$14),'IE1'!V17,IF(('IE1'!P17='IE1'!$AD$12)*AND('IE1'!R17='IE1'!$AD$13),0,0))) -> 0
E18: 0112 | F18: Riz, non décortiqué | G18: 1136665 | H18: 8899 | I18: 2792897 | J18: 7972 | K18: =IF($M$11=$AG$11,M18,W18) -> 0 | L18: =IF($M$11=$AG$11,N18,X18) -> 0 | U18: =IFERROR(IF(S18="","",VLOOKUP(S18,$AD$20:$AG$49,4,FALSE)),"") ->  | V18: =IFERROR(IF(T18="","",VLOOKUP(T18,$AD$20:$AG$49,4,FALSE)),"") ->  | W18: =IF(O18=$AD$11,Accueil!$D$24,IF(('IE1'!O18='IE1'!$AD$12)*AND('IE1'!Q18='IE1'!$AD$14),'IE1'!U18,IF(('IE1'!O18='IE1'!$AD$12)*AND('IE1'!Q18='IE1'!$AD$13),0,0))) -> 0 | X18: =IF(P18=$AD$11,Accueil!$D$24,IF(('IE1'!P18='IE1'!$AD$12)*AND('IE1'!R18='IE1'!$AD$14),'IE1'!V18,IF(('IE1'!P18='IE1'!$AD$12)*AND('IE1'!R18='IE1'!$AD$13),0,0))) -> 0 | AD18: Ratios territoires
E19: 0113 | F19: Légumes et melons, racines et tubercules | G19: 284646036 | H19: 209331060 | I19: 527858421 | J19: 1168913851 | K19: 0 | L19: 0 | W19: =IF(O19=$AD$11,Accueil!$D$24,IF(('IE1'!O19='IE1'!$AD$12)*AND('IE1'!Q19='IE1'!$AD$14),'IE1'!U19,IF(('IE1'!O19='IE1'!$AD$12)*AND('IE1'!Q19='IE1'!$AD$13),0,0))) -> 0 | X19: =IF(P19=$AD$11,Accueil!$D$24,IF(('IE1'!P19='IE1'!$AD$12)*AND('IE1'!R19='IE1'!$AD$14),'IE1'!V19,IF(('IE1'!P19='IE1'!$AD$12)*AND('IE1'!R19='IE1'!$AD$13),0,0))) -> 0 | AD19: Liste des ratios possibles | AG19: Valeur du ratio
E20: 0114 | F20: Cannes à sucre | G20: 0 | H20: 0 | I20: 0 | J20: 0 | K20: 0 | L20: 0 | W20: =IF(O20=$AD$11,Accueil!$D$24,IF(('IE1'!O20='IE1'!$AD$12)*AND('IE1'!Q20='IE1'!$AD$14),'IE1'!U20,IF(('IE1'!O20='IE1'!$AD$12)*AND('IE1'!Q20='IE1'!$AD$13),0,0))) -> 0 | X20: =IF(P20=$AD$11,Accueil!$D$24,IF(('IE1'!P20='IE1'!$AD$12)*AND('IE1'!R20='IE1'!$AD$14),'IE1'!V20,IF(('IE1'!P20='IE1'!$AD$12)*AND('IE1'!R20='IE1'!$AD$13),0,0))) -> 0 | AD20: Autres sources de l'agriculture (tracteurs, …) | AG20: =D1a!K134/D1b!K14 -> 0
E21: 0115 | F21: Tabac brut | G21: 0 | H21: 0 | I21: 0 | J21: 0 | K21: 0 | L21: 0 | O21: Biens de consommation | P21: Biens de consommation | W21: =IF(O21=$AD$11,Accueil!$D$24,IF(('IE1'!O21='IE1'!$AD$12)*AND('IE1'!Q21='IE1'!$AD$14),'IE1'!U21,IF(('IE1'!O21='IE1'!$AD$12)*AND('IE1'!Q21='IE1'!$AD$13),0,0))) -> 0 | X21: =IF(P21=$AD$11,Accueil!$D$24,IF(('IE1'!P21='IE1'!$AD$12)*AND('IE1'!R21='IE1'!$AD$14),'IE1'!V21,IF(('IE1'!P21='IE1'!$AD$12)*AND('IE1'!R21='IE1'!$AD$13),0,0))) -> 0 | AD21: Culture | AG21: =D1a!K135/D1b!K15 -> 0
E22: 0116 | F22: Plantes textiles | G22: 3062212 | H22: 2424515 | I22: 2787984 | J22: 1946442 | K22: 0 | L22: 0 | O22: Biens de consommation | P22: Biens de consommation | W22: =IF(O22=$AD$11,Accueil!$D$24,IF(('IE1'!O22='IE1'!$AD$12)*AND('IE1'!Q22='IE1'!$AD$14),'IE1'!U22,IF(('IE1'!O22='IE1'!$AD$12)*AND('IE1'!Q22='IE1'!$AD$13),0,0))) -> 0 | X22: =IF(P22=$AD$11,Accueil!$D$24,IF(('IE1'!P22='IE1'!$AD$12)*AND('IE1'!R22='IE1'!$AD$14),'IE1'!V22,IF(('IE1'!P22='IE1'!$AD$12)*AND('IE1'!R22='IE1'!$AD$13),0,0))) -> 0 | AD22: Elevage | AG22: =D1a!K136/D1b!K16 -> 0
E23: 0119 | F23: Autres cultures non permanentes | G23: 68133097 | H23: 11659883 | I23: 17241375 | J23: 6620470 | K23: 0 | L23: 0 | O23: Industrie agroalimentaire | P23: Industrie agroalimentaire | Q23: Industrie agroalimentaire | R23: Industrie agroalimentaire | S23: Industrie agroalimentaire | T23: Industrie agroalimentaire | W23: =IF(O23=$AD$11,Accueil!$D$24,IF(('IE1'!O23='IE1'!$AD$12)*AND('IE1'!Q23='IE1'!$AD$14),'IE1'!U23,IF(('IE1'!O23='IE1'!$AD$12)*AND('IE1'!Q23='IE1'!$AD$13),0,0))) -> 0 | X23: =IF(P23=$AD$11,Accueil!$D$24,IF(('IE1'!P23='IE1'!$AD$12)*AND('IE1'!R23='IE1'!$AD$14),'IE1'!V23,IF(('IE1'!P23='IE1'!$AD$12)*AND('IE1'!R23='IE1'!$AD$13),0,0))) -> 0 | AD23: Transport aérien français | AG23: =D1a!K137/D1b!K17 -> 0
E24: 0121 | F24: Raisin | G24: 6069817 | H24: 226111 | I24: 3593531 | J24: 103005 | K24: 0 | L24: 0 | W24: =IF(O24=$AD$11,Accueil!$D$24,IF(('IE1'!O24='IE1'!$AD$12)*AND('IE1'!Q24='IE1'!$AD$14),'IE1'!U24,IF(('IE1'!O24='IE1'!$AD$12)*AND('IE1'!Q24='IE1'!$AD$13),0,0))) -> 0 | X24: =IF(P24=$AD$11,Accueil!$D$24,IF(('IE1'!P24='IE1'!$AD$12)*AND('IE1'!R24='IE1'!$AD$14),'IE1'!V24,IF(('IE1'!P24='IE1'!$AD$12)*AND('IE1'!R24='IE1'!$AD$13),0,0))) -> 0 | AD24: Transport ferroviaire | AG24: =D1a!K138/D1b!K18 -> 0
E25: 0122 | F25: Fruits tropicaux et subtropicaux | G25: 28415647 | H25: 8058742 | I25: 31318021 | J25: 10649113 | K25: 0 | L25: 0 | W25: =IF(O25=$AD$11,Accueil!$D$24,IF(('IE1'!O25='IE1'!$AD$12)*AND('IE1'!Q25='IE1'!$AD$14),'IE1'!U25,IF(('IE1'!O25='IE1'!$AD$12)*AND('IE1'!Q25='IE1'!$AD$13),0,0))) -> 0 | X25: =IF(P25=$AD$11,Accueil!$D$24,IF(('IE1'!P25='IE1'!$AD$12)*AND('IE1'!R25='IE1'!$AD$14),'IE1'!V25,IF(('IE1'!P25='IE1'!$AD$12)*AND('IE1'!R25='IE1'!$AD$13),0,0))) -> 0 | AD25: Transport fluvial | AG25: =D1a!K139/D1b!K19 -> 0
E26: 0123 | F26: Agrumes | G26: 34668300 | H26: 1132132 | I26: 36876743 | J26: 1121048 | K26: 0 | L26: 0 | W26: =IF(O26=$AD$11,Accueil!$D$24,IF(('IE1'!O26='IE1'!$AD$12)*AND('IE1'!Q26='IE1'!$AD$14),'IE1'!U26,IF(('IE1'!O26='IE1'!$AD$12)*AND('IE1'!Q26='IE1'!$AD$13),0,0))) -> 0 | X26: =IF(P26=$AD$11,Accueil!$D$24,IF(('IE1'!P26='IE1'!$AD$12)*AND('IE1'!R26='IE1'!$AD$14),'IE1'!V26,IF(('IE1'!P26='IE1'!$AD$12)*AND('IE1'!R26='IE1'!$AD$13),0,0))) -> 0 | AD26: Industrie total (IDEC) | AG26: =SUM(D1a!K140:K151)/SUM(D1b!K20:K31) -> 0
E27: 0124 | F27: Fruits à pépins et à noyau | G27: 34313642 | H27: 1161519 | I27: 41823472 | J27: 2688981 | K27: 0 | L27: 0 | W27: =IF(O27=$AD$11,Accueil!$D$24,IF(('IE1'!O27='IE1'!$AD$12)*AND('IE1'!Q27='IE1'!$AD$14),'IE1'!U27,IF(('IE1'!O27='IE1'!$AD$12)*AND('IE1'!Q27='IE1'!$AD$13),0,0))) -> 0 | X27: =IF(P27=$AD$11,Accueil!$D$24,IF(('IE1'!P27='IE1'!$AD$12)*AND('IE1'!R27='IE1'!$AD$14),'IE1'!V27,IF(('IE1'!P27='IE1'!$AD$12)*AND('IE1'!R27='IE1'!$AD$13),0,0))) -> 0 | AD27: Agro-alimentaire | AG27: =D1a!K140/D1b!K20 -> 0
E28: 0125 | F28: Autres fruits d'arbres ou d'arbustes et fruits à coque | G28: 51408156 | H28: 1271035 | I28: 11578285 | J28: 525278 | K28: 0 | L28: 0 | W28: =IF(O28=$AD$11,Accueil!$D$24,IF(('IE1'!O28='IE1'!$AD$12)*AND('IE1'!Q28='IE1'!$AD$14),'IE1'!U28,IF(('IE1'!O28='IE1'!$AD$12)*AND('IE1'!Q28='IE1'!$AD$13),0,0))) -> 0 | X28: =IF(P28=$AD$11,Accueil!$D$24,IF(('IE1'!P28='IE1'!$AD$12)*AND('IE1'!R28='IE1'!$AD$14),'IE1'!V28,IF(('IE1'!P28='IE1'!$AD$12)*AND('IE1'!R28='IE1'!$AD$13),0,0))) -> 0 | AD28: Autres secteurs de l'industrie et non spécifié | AG28: =D1a!K141/D1b!K21 -> 0
E29: 0126 | F29: Fruits oléagineux | G29: 819671 | H29: 8493 | I29: 315601 | J29: 4994 | K29: 0 | L29: 0 | W29: =IF(O29=$AD$11,Accueil!$D$24,IF(('IE1'!O29='IE1'!$AD$12)*AND('IE1'!Q29='IE1'!$AD$14),'IE1'!U29,IF(('IE1'!O29='IE1'!$AD$12)*AND('IE1'!Q29='IE1'!$AD$13),0,0))) -> 0 | X29: =IF(P29=$AD$11,Accueil!$D$24,IF(('IE1'!P29='IE1'!$AD$12)*AND('IE1'!R29='IE1'!$AD$14),'IE1'!V29,IF(('IE1'!P29='IE1'!$AD$12)*AND('IE1'!R29='IE1'!$AD$13),0,0))) -> 0 | AD29: Biens d'équipement, matériels de transport… | AG29: =D1a!K142/D1b!K22 -> 0
E30: 0127 | F30: Plantes à boissons | G30: 46013861 | H30: 355375 | I30: 19186968 | J30: 616487 | K30: 0 | L30: 0 | W30: =IF(O30=$AD$11,Accueil!$D$24,IF(('IE1'!O30='IE1'!$AD$12)*AND('IE1'!Q30='IE1'!$AD$14),'IE1'!U30,IF(('IE1'!O30='IE1'!$AD$12)*AND('IE1'!Q30='IE1'!$AD$13),0,0))) -> 0 | X30: =IF(P30=$AD$11,Accueil!$D$24,IF(('IE1'!P30='IE1'!$AD$12)*AND('IE1'!R30='IE1'!$AD$14),'IE1'!V30,IF(('IE1'!P30='IE1'!$AD$12)*AND('IE1'!R30='IE1'!$AD$13),0,0))) -> 0 | AD30: Chimie organique, non-organique et divers | AG30: =D1a!K143/D1b!K23 -> 0
E31: 0128 | F31: Plantes à épices, aromatiques, médicinales et pharmaceutiques | G31: 26574851 | H31: 6167444 | I31: 694495 | J31: 106241 | K31: 0 | L31: 0 | W31: =IF(O31=$AD$11,Accueil!$D$24,IF(('IE1'!O31='IE1'!$AD$12)*AND('IE1'!Q31='IE1'!$AD$14),'IE1'!U31,IF(('IE1'!O31='IE1'!$AD$12)*AND('IE1'!Q31='IE1'!$AD$13),0,0))) -> 0 | X31: =IF(P31=$AD$11,Accueil!$D$24,IF(('IE1'!P31='IE1'!$AD$12)*AND('IE1'!R31='IE1'!$AD$14),'IE1'!V31,IF(('IE1'!P31='IE1'!$AD$12)*AND('IE1'!R31='IE1'!$AD$13),0,0))) -> 0 | AD31: Construction | AG31: =D1a!K144/D1b!K24 -> 0
E32: 0129 | F32: Autres cultures permanentes | G32: 24510905 | H32: 482775 | I32: 21395953 | J32: 1126045 | K32: 0 | L32: 0 | W32: =IF(O32=$AD$11,Accueil!$D$24,IF(('IE1'!O32='IE1'!$AD$12)*AND('IE1'!Q32='IE1'!$AD$14),'IE1'!U32,IF(('IE1'!O32='IE1'!$AD$12)*AND('IE1'!Q32='IE1'!$AD$13),0,0))) -> 0 | X32: =IF(P32=$AD$11,Accueil!$D$24,IF(('IE1'!P32='IE1'!$AD$12)*AND('IE1'!R32='IE1'!$AD$14),'IE1'!V32,IF(('IE1'!P32='IE1'!$AD$12)*AND('IE1'!R32='IE1'!$AD$13),0,0))) -> 0 | AD32: Métallurgie des métaux ferreux | AG32: =D1a!K145/D1b!K25 -> 0
E33: 0130 | F33: Plants : plants de pépinière, bulbes, tubercules et rhizomes, boutures et greffons ; blanc de champignon | G33: 83444260 | H33: 240616 | I33: 28353421 | J33: 401412 | K33: 0 | L33: 0 | O33: Biens de consommation | P33: Biens de consommation | W33: =IF(O33=$AD$11,Accueil!$D$24,IF(('IE1'!O33='IE1'!$AD$12)*AND('IE1'!Q33='IE1'!$AD$14),'IE1'!U33,IF(('IE1'!O33='IE1'!$AD$12)*AND('IE1'!Q33='IE1'!$AD$13),0,0))) -> 0 | X33: =IF(P33=$AD$11,Accueil!$D$24,IF(('IE1'!P33='IE1'!$AD$12)*AND('IE1'!R33='IE1'!$AD$14),'IE1'!V33,IF(('IE1'!P33='IE1'!$AD$12)*AND('IE1'!R33='IE1'!$AD$13),0,0))) -> 0 | AD33: Métallurgie des métaux non-ferreux | AG33: =D1a!K146/D1b!K26 -> 0
E34: 0141 | F34: Vaches laitières, vivantes et lait de vache, brut | G34: 2292689 | H34: 1343789 | I34: 537108 | J34: 1543903 | K34: 0 | L34: 0 | O34: Industrie agroalimentaire | P34: Industrie agroalimentaire | Q34: Industrie agroalimentaire | R34: Industrie agroalimentaire | S34: Industrie agroalimentaire | T34: Industrie agroalimentaire | W34: =IF(O34=$AD$11,Accueil!$D$24,IF(('IE1'!O34='IE1'!$AD$12)*AND('IE1'!Q34='IE1'!$AD$14),'IE1'!U34,IF(('IE1'!O34='IE1'!$AD$12)*AND('IE1'!Q34='IE1'!$AD$13),0,0))) -> 0 | X34: =IF(P34=$AD$11,Accueil!$D$24,IF(('IE1'!P34='IE1'!$AD$12)*AND('IE1'!R34='IE1'!$AD$14),'IE1'!V34,IF(('IE1'!P34='IE1'!$AD$12)*AND('IE1'!R34='IE1'!$AD$13),0,0))) -> 0 | AD34: Minéraux non-métalliques et matériaux de construction | AG34: =D1a!K147/D1b!K27 -> 0
E35: 0142 | F35: Autres bovins et buffles, vivants et leur sperme | G35: 2527659 | H35: 16769012 | I35: 213100 | J35: 6507891 | K35: 0 | L35: 0 | W35: =IF(O35=$AD$11,Accueil!$D$24,IF(('IE1'!O35='IE1'!$AD$12)*AND('IE1'!Q35='IE1'!$AD$14),'IE1'!U35,IF(('IE1'!O35='IE1'!$AD$12)*AND('IE1'!Q35='IE1'!$AD$13),0,0))) -> 0 | X35: =IF(P35=$AD$11,Accueil!$D$24,IF(('IE1'!P35='IE1'!$AD$12)*AND('IE1'!R35='IE1'!$AD$14),'IE1'!V35,IF(('IE1'!P35='IE1'!$AD$12)*AND('IE1'!R35='IE1'!$AD$13),0,0))) -> 0 | AD35: Papier, carton | AG35: =D1a!K148/D1b!K28 -> 0
E36: 0143 | F36: Chevaux et autres équidés, vivants | G36: 15728606 | H36: 78800 | I36: 56690 | J36: 296508 | K36: 0 | L36: 0 | W36: =IF(O36=$AD$11,Accueil!$D$24,IF(('IE1'!O36='IE1'!$AD$12)*AND('IE1'!Q36='IE1'!$AD$14),'IE1'!U36,IF(('IE1'!O36='IE1'!$AD$12)*AND('IE1'!Q36='IE1'!$AD$13),0,0))) -> 0 | X36: =IF(P36=$AD$11,Accueil!$D$24,IF(('IE1'!P36='IE1'!$AD$12)*AND('IE1'!R36='IE1'!$AD$14),'IE1'!V36,IF(('IE1'!P36='IE1'!$AD$12)*AND('IE1'!R36='IE1'!$AD$13),0,0))) -> 0 | AD36: Tous secteurs IM | AG36: =IFERROR(D1a!K149/D1b!K29,0) -> 0
E37: 0145 | F37: Ovins et caprins, vivants ; lait de brebis et de chèvre brut, laine en suint et poils d'ovins et de caprins | G37: 1881693 | H37: 57056 | I37: 389745 | J37: 41031 | K37: 0 | L37: 0 | W37: =IF(O37=$AD$11,Accueil!$D$24,IF(('IE1'!O37='IE1'!$AD$12)*AND('IE1'!Q37='IE1'!$AD$14),'IE1'!U37,IF(('IE1'!O37='IE1'!$AD$12)*AND('IE1'!Q37='IE1'!$AD$13),0,0))) -> 0 | X37: =IF(P37=$AD$11,Accueil!$D$24,IF(('IE1'!P37='IE1'!$AD$12)*AND('IE1'!R37='IE1'!$AD$14),'IE1'!V37,IF(('IE1'!P37='IE1'!$AD$12)*AND('IE1'!R37='IE1'!$AD$13),0,0))) -> 0 | AD37: Traitement des déchets | AG37: =D1a!K150/D1b!K30 -> 0
E38: 0146 | F38: Porcins, vivants | G38: 6303304 | H38: 51382124 | I38: 3588626 | J38: 45413040 | K38: 0 | L38: 0 | W38: =IF(O38=$AD$11,Accueil!$D$24,IF(('IE1'!O38='IE1'!$AD$12)*AND('IE1'!Q38='IE1'!$AD$14),'IE1'!U38,IF(('IE1'!O38='IE1'!$AD$12)*AND('IE1'!Q38='IE1'!$AD$13),0,0))) -> 0 | X38: =IF(P38=$AD$11,Accueil!$D$24,IF(('IE1'!P38='IE1'!$AD$12)*AND('IE1'!R38='IE1'!$AD$14),'IE1'!V38,IF(('IE1'!P38='IE1'!$AD$12)*AND('IE1'!R38='IE1'!$AD$13),0,0))) -> 0 | AD38: Traitement déchets industrie | AG38: =AG37 -> 0
E39: 0147 | F39: Volailles vivantes et oeufs | G39: 18157557 | H39: 83205546 | I39: 7157240 | J39: 103799103 | K39: 0 | L39: 0 | W39: =IF(O39=$AD$11,Accueil!$D$24,IF(('IE1'!O39='IE1'!$AD$12)*AND('IE1'!Q39='IE1'!$AD$14),'IE1'!U39,IF(('IE1'!O39='IE1'!$AD$12)*AND('IE1'!Q39='IE1'!$AD$13),0,0))) -> 0 | X39: =IF(P39=$AD$11,Accueil!$D$24,IF(('IE1'!P39='IE1'!$AD$12)*AND('IE1'!R39='IE1'!$AD$14),'IE1'!V39,IF(('IE1'!P39='IE1'!$AD$12)*AND('IE1'!R39='IE1'!$AD$13),0,0))) -> 0 | AD39: Métallurgie / Sidérurgie | AG39: =(D1a!K145+D1a!K146+D1a!K160)/(D1b!K26+D1b!K25+D1b!K40) -> 0
E40: 0149 | F40: Autres animaux d'élevage et produits d'origine animale | G40: 10139911 | H40: 2298335 | I40: 6295452 | J40: 399314 | K40: 0 | L40: 0 | W40: =IF(O40=$AD$11,Accueil!$D$24,IF(('IE1'!O40='IE1'!$AD$12)*AND('IE1'!Q40='IE1'!$AD$14),'IE1'!U40,IF(('IE1'!O40='IE1'!$AD$12)*AND('IE1'!Q40='IE1'!$AD$13),0,0))) -> 0 | X40: =IF(P40=$AD$11,Accueil!$D$24,IF(('IE1'!P40='IE1'!$AD$12)*AND('IE1'!R40='IE1'!$AD$14),'IE1'!V40,IF(('IE1'!P40='IE1'!$AD$12)*AND('IE1'!R40='IE1'!$AD$13),0,0))) -> 0 | AD40: Metallurgie ferreux/Siderurgie | AG40: =(D1a!E145+D1a!E160)/(D1b!E25+D1b!E40) -> 0
C41: A02Z | D41: Produits sylvicoles | E41: 0210 | F41: Arbres forestiers et services des pépinières | G41: 800683 | H41: 15626 | I41: 562407 | J41: 19026 | K41: 0 | L41: 0 | O41: Biens de consommation | P41: Biens de consommation | W41: =IF(O41=$AD$11,Accueil!$D$24,IF(('IE1'!O41='IE1'!$AD$12)*AND('IE1'!Q41='IE1'!$AD$14),'IE1'!U41,IF(('IE1'!O41='IE1'!$AD$12)*AND('IE1'!Q41='IE1'!$AD$13),0,0))) -> 0 | X41: =IF(P41=$AD$11,Accueil!$D$24,IF(('IE1'!P41='IE1'!$AD$12)*AND('IE1'!R41='IE1'!$AD$14),'IE1'!V41,IF(('IE1'!P41='IE1'!$AD$12)*AND('IE1'!R41='IE1'!$AD$13),0,0))) -> 0 | AD41: Métallurgie globalisée | AG41: =(D1a!K145+D1a!K146)/(D1b!K26+D1b!K25) -> 0
E42: 0220 | F42: Bois brut | G42: 7599677 | H42: 4813766 | I42: 109786534 | J42: 259621731 | K42: 0 | L42: 0 | O42: Biens de consommation | P42: Biens de consommation | W42: =IF(O42=$AD$11,Accueil!$D$24,IF(('IE1'!O42='IE1'!$AD$12)*AND('IE1'!Q42='IE1'!$AD$14),'IE1'!U42,IF(('IE1'!O42='IE1'!$AD$12)*AND('IE1'!Q42='IE1'!$AD$13),0,0))) -> 0 | X42: =IF(P42=$AD$11,Accueil!$D$24,IF(('IE1'!P42='IE1'!$AD$12)*AND('IE1'!R42='IE1'!$AD$14),'IE1'!V42,IF(('IE1'!P42='IE1'!$AD$12)*AND('IE1'!R42='IE1'!$AD$13),0,0))) -> 0 | AD42: Chauffage urbain | AG42: =D1a!K154/D1b!K34 -> 0
E43: 0230 | F43: Autres produits forestiers | G43: 4586395 | H43: 360660 | I43: 1219617 | J43: 65861 | K43: 0 | L43: 0 | O43: Biens de consommation | P43: Biens de consommation | W43: =IF(O43=$AD$11,Accueil!$D$24,IF(('IE1'!O43='IE1'!$AD$12)*AND('IE1'!Q43='IE1'!$AD$14),'IE1'!U43,IF(('IE1'!O43='IE1'!$AD$12)*AND('IE1'!Q43='IE1'!$AD$13),0,0))) -> 0 | X43: =IF(P43=$AD$11,Accueil!$D$24,IF(('IE1'!P43='IE1'!$AD$12)*AND('IE1'!R43='IE1'!$AD$14),'IE1'!V43,IF(('IE1'!P43='IE1'!$AD$12)*AND('IE1'!R43='IE1'!$AD$13),0,0))) -> 0 | AD43: Extraction des combustibles gazeux et distribution d'énergie | AG43: =D1a!K155/D1b!K35 -> 0
C44: A03Z | D44: Produits de la pêche et de l'aquaculture | E44: 0300 | F44: Produits de la pêche et de l'aquaculture ; services de soutien à la pêche | G44: 608898505 | H44: 114734266 | I44: 109144440 | J44: 27591818 | K44: 0 | L44: 0 | O44: Industrie agroalimentaire | P44: Industrie agroalimentaire | Q44: Industrie agroalimentaire | R44: Industrie agroalimentaire | S44: Industrie agroalimentaire | T44: Industrie agroalimentaire | W44: =IF(O44=$AD$11,Accueil!$D$24,IF(('IE1'!O44='IE1'!$AD$12)*AND('IE1'!Q44='IE1'!$AD$14),'IE1'!U44,IF(('IE1'!O44='IE1'!$AD$12)*AND('IE1'!Q44='IE1'!$AD$13),0,0))) -> 0 | X44: =IF(P44=$AD$11,Accueil!$D$24,IF(('IE1'!P44='IE1'!$AD$12)*AND('IE1'!R44='IE1'!$AD$14),'IE1'!V44,IF(('IE1'!P44='IE1'!$AD$12)*AND('IE1'!R44='IE1'!$AD$13),0,0))) -> 0 | AD44: Extraction des combustibles liquides et distribution d'énergie | AG44: =IFERROR(D1a!K156/D1b!K36,0) -> 0
C45: B05Z | D45: Houille | E45: 0510 | F45: Houille | G45: 491143491 | H45: 8335094 | I45: 5450541340 | J45: 206738694 | K45: 0 | L45: 0 | O45: Amont de l'énergie | P45: Amont de l'énergie | Q45: Amont de l'énergie | R45: Amont de l'énergie | S45: Amont de l'énergie | T45: Amont de l'énergie | W45: =IF(O45=$AD$11,Accueil!$D$24,IF(('IE1'!O45='IE1'!$AD$12)*AND('IE1'!Q45='IE1'!$AD$14),'IE1'!U45,IF(('IE1'!O45='IE1'!$AD$12)*AND('IE1'!Q45='IE1'!$AD$13),0,0))) -> 0 | X45: =IF(P45=$AD$11,Accueil!$D$24,IF(('IE1'!P45='IE1'!$AD$12)*AND('IE1'!R45='IE1'!$AD$14),'IE1'!V45,IF(('IE1'!P45='IE1'!$AD$12)*AND('IE1'!R45='IE1'!$AD$13),0,0))) -> 0 | AD45: Production d'électricité | AG45: =D1a!K158/D1b!K38 -> 0
E46: 0520 | F46: Lignite | G46: 1539171 | H46: 0 | I46: 11929320 | J46: 0 | K46: 0 | L46: 0 | W46: =IF(O46=$AD$11,Accueil!$D$24,IF(('IE1'!O46='IE1'!$AD$12)*AND('IE1'!Q46='IE1'!$AD$14),'IE1'!U46,IF(('IE1'!O46='IE1'!$AD$12)*AND('IE1'!Q46='IE1'!$AD$13),0,0))) -> 0 | X46: =IF(P46=$AD$11,Accueil!$D$24,IF(('IE1'!P46='IE1'!$AD$12)*AND('IE1'!R46='IE1'!$AD$14),'IE1'!V46,IF(('IE1'!P46='IE1'!$AD$12)*AND('IE1'!R46='IE1'!$AD$13),0,0))) -> 0 | AD46: Raffinage de pétrole | AG46: =D1a!K159/D1b!K39 -> 0
C47: B06Z | D47: Hydrocarbures naturels | E47: 0610 | F47: Pétrole brut | G47: 1084840 | H47: 1660013 | I47: 11667709 | J47: 9862834 | K47: 0 | L47: 0 | W47: =IF(O47=$AD$11,Accueil!$D$24,IF(('IE1'!O47='IE1'!$AD$12)*AND('IE1'!Q47='IE1'!$AD$14),'IE1'!U47,IF(('IE1'!O47='IE1'!$AD$12)*AND('IE1'!Q47='IE1'!$AD$13),0,0))) -> 0 | X47: =IF(P47=$AD$11,Accueil!$D$24,IF(('IE1'!P47='IE1'!$AD$12)*AND('IE1'!R47='IE1'!$AD$14),'IE1'!V47,IF(('IE1'!P47='IE1'!$AD$12)*AND('IE1'!R47='IE1'!$AD$13),0,0))) -> 0 | AD47: Transformation des combustibles minéraux solides – siderurgies | AG47: =IFERROR(D1a!K160/D1b!K40,0) -> 0
E48: 0620 | F48: Gaz naturel, liquéfié ou gazeux | G48: 48401740 | H48: 0 | I48: 0 | J48: 0 | K48: 0 | L48: 0 | W48: =IF(O48=$AD$11,Accueil!$D$24,IF(('IE1'!O48='IE1'!$AD$12)*AND('IE1'!Q48='IE1'!$AD$14),'IE1'!U48,IF(('IE1'!O48='IE1'!$AD$12)*AND('IE1'!Q48='IE1'!$AD$13),0,0))) -> 0 | X48: =IF(P48=$AD$11,Accueil!$D$24,IF(('IE1'!P48='IE1'!$AD$12)*AND('IE1'!R48='IE1'!$AD$14),'IE1'!V48,IF(('IE1'!P48='IE1'!$AD$12)*AND('IE1'!R48='IE1'!$AD$13),0,0))) -> 0 | AD48: Aucun- Ratio par défaut | AG48: =Accueil!D24 -> 0
C49: B07Z | D49: Minerais métalliques | E49: 0710 | F49: Minerais de fer | G49: =I49*458062168/8603544471 -> 505790446.1 | H49: 3754408 | I49: =8603544471*0+ 9500000000 -> 9500000000 | J49: 61694686 | K49: =IF($M$11=$AG$11,M49,W49) -> 0 | L49: 0 | O49: Marchandises industrielles | P49: Biens de consommation | Q49: Présente | S49: Transformation des combustibles minéraux solides – siderurgies | U49: 0 | W49: =IF(O49=$AD$11,Accueil!$D$24,IF(('IE1'!O49='IE1'!$AD$12)*AND('IE1'!Q49='IE1'!$AD$14),'IE1'!U49,IF(('IE1'!O49='IE1'!$AD$12)*AND('IE1'!Q49='IE1'!$AD$13),0,0))) -> 0 | X49: =IF(P49=$AD$11,Accueil!$D$24,IF(('IE1'!P49='IE1'!$AD$12)*AND('IE1'!R49='IE1'!$AD$14),'IE1'!V49,IF(('IE1'!P49='IE1'!$AD$12)*AND('IE1'!R49='IE1'!$AD$13),0,0))) -> 0 | AD49: Industrie hors métallurgie et sidérurgie | AG49: =SUM(D1a!K140:K144,D1a!K147:K151)/SUM(D1b!K20:K24,D1b!K27:K31) -> 0
E50: 0721 | F50: Minerais d'uranium et de thorium | G50: 0 | H50: 0 | I50: 0 | J50: 0 | K50: 0 | L50: 0 | W50: =IF(O50=$AD$11,Accueil!$D$24,IF(('IE1'!O50='IE1'!$AD$12)*AND('IE1'!Q50='IE1'!$AD$14),'IE1'!U50,IF(('IE1'!O50='IE1'!$AD$12)*AND('IE1'!Q50='IE1'!$AD$13),0,0))) -> 0 | X50: =IF(P50=$AD$11,Accueil!$D$24,IF(('IE1'!P50='IE1'!$AD$12)*AND('IE1'!R50='IE1'!$AD$14),'IE1'!V50,IF(('IE1'!P50='IE1'!$AD$12)*AND('IE1'!R50='IE1'!$AD$13),0,0))) -> 0
E51: 0729 | F51: Autres minerais métalliques | G51: 231075816 | H51: 70082028 | I51: 985311105 | J51: 186384606 | K51: 0 | L51: 0 | O51: Marchandises industrielles | P51: Marchandises industrielles | Q51: Présente | R51: Présente | S51: Métallurgie des métaux non-ferreux | T51: Métallurgie / Sidérurgie | U51: 0 | V51: 0 | W51: =IF(O51=$AD$11,Accueil!$D$24,IF(('IE1'!O51='IE1'!$AD$12)*AND('IE1'!Q51='IE1'!$AD$14),'IE1'!U51,IF(('IE1'!O51='IE1'!$AD$12)*AND('IE1'!Q51='IE1'!$AD$13),0,0))) -> 0 | X51: =IF(P51=$AD$11,Accueil!$D$24,IF(('IE1'!P51='IE1'!$AD$12)*AND('IE1'!R51='IE1'!$AD$14),'IE1'!V51,IF(('IE1'!P51='IE1'!$AD$12)*AND('IE1'!R51='IE1'!$AD$13),0,0))) -> 0
C52: B08Z | D52: Produits divers des industries extractives | E52: 0811 | F52: Pierres ornementales ou de construction, calcaire industriel, gypse, craie et ardoise | G52: 10631984 | H52: 5985547 | I52: 271317933 | J52: 220994954 | K52: 0 | L52: 0 | O52: Travaux | P52: Travaux | Q52: Travaux | R52: Travaux | S52: Travaux | T52: Travaux | W52: =IF(O52=$AD$11,Accueil!$D$24,IF(('IE1'!O52='IE1'!$AD$12)*AND('IE1'!Q52='IE1'!$AD$14),'IE1'!U52,IF(('IE1'!O52='IE1'!$AD$12)*AND('IE1'!Q52='IE1'!$AD$13),0,0))) -> 0 | X52: =IF(P52=$AD$11,Accueil!$D$24,IF(('IE1'!P52='IE1'!$AD$12)*AND('IE1'!R52='IE1'!$AD$14),'IE1'!V52,IF(('IE1'!P52='IE1'!$AD$12)*AND('IE1'!R52='IE1'!$AD$13),0,0))) -> 0
E53: 0812 | F53: Sables et granulats, argiles et kaolin | G53: 100648666 | H53: 14733729 | I53: 7305923553 | J53: 1146028186 | K53: 0 | L53: 0 | O53: Travaux | P53: Travaux | Q53: Travaux | R53: Travaux | S53: Travaux | T53: Travaux | W53: =IF(O53=$AD$11,Accueil!$D$24,IF(('IE1'!O53='IE1'!$AD$12)*AND('IE1'!Q53='IE1'!$AD$14),'IE1'!U53,IF(('IE1'!O53='IE1'!$AD$12)*AND('IE1'!Q53='IE1'!$AD$13),0,0))) -> 0 | X53: =IF(P53=$AD$11,Accueil!$D$24,IF(('IE1'!P53='IE1'!$AD$12)*AND('IE1'!R53='IE1'!$AD$14),'IE1'!V53,IF(('IE1'!P53='IE1'!$AD$12)*AND('IE1'!R53='IE1'!$AD$13),0,0))) -> 0
E54: 0891 | F54: Minéraux chimiques et engrais minéraux | G54: 17776506 | H54: 1929498 | I54: 143913434 | J54: 14986082 | K54: 0 | L54: 0 | O54: Industrie agroalimentaire | P54: Industrie agroalimentaire | Q54: Industrie agroalimentaire | R54: Industrie agroalimentaire | S54: Industrie agroalimentaire | T54: Industrie agroalimentaire | W54: =IF(O54=$AD$11,Accueil!$D$24,IF(('IE1'!O54='IE1'!$AD$12)*AND('IE1'!Q54='IE1'!$AD$14),'IE1'!U54,IF(('IE1'!O54='IE1'!$AD$12)*AND('IE1'!Q54='IE1'!$AD$13),0,0))) -> 0 | X54: =IF(P54=$AD$11,Accueil!$D$24,IF(('IE1'!P54='IE1'!$AD$12)*AND('IE1'!R54='IE1'!$AD$14),'IE1'!V54,IF(('IE1'!P54='IE1'!$AD$12)*AND('IE1'!R54='IE1'!$AD$13),0,0))) -> 0
E55: 0892 | F55: Tourbe | G55: 8659281 | H55: 281721 | I55: 85262851 | J55: 1987281 | K55: 0 | L55: 0 | O55: Travaux | P55: Travaux | Q55: Travaux | R55: Travaux | S55: Travaux | T55: Travaux | W55: =IF(O55=$AD$11,Accueil!$D$24,IF(('IE1'!O55='IE1'!$AD$12)*AND('IE1'!Q55='IE1'!$AD$14),'IE1'!U55,IF(('IE1'!O55='IE1'!$AD$12)*AND('IE1'!Q55='IE1'!$AD$13),0,0))) -> 0 | X55: =IF(P55=$AD$11,Accueil!$D$24,IF(('IE1'!P55='IE1'!$AD$12)*AND('IE1'!R55='IE1'!$AD$14),'IE1'!V55,IF(('IE1'!P55='IE1'!$AD$12)*AND('IE1'!R55='IE1'!$AD$13),0,0))) -> 0
E56: 0893 | F56: Sel et chlorure de sodium pur ; eau de mer | G56: 11930659 | H56: 174364 | I56: 45587367 | J56: 533204 | K56: 0 | L56: 0 | O56: Industrie agroalimentaire | P56: Industrie agroalimentaire | Q56: Industrie agroalimentaire | R56: Industrie agroalimentaire | S56: Industrie agroalimentaire | T56: Industrie agroalimentaire | W56: =IF(O56=$AD$11,Accueil!$D$24,IF(('IE1'!O56='IE1'!$AD$12)*AND('IE1'!Q56='IE1'!$AD$14),'IE1'!U56,IF(('IE1'!O56='IE1'!$AD$12)*AND('IE1'!Q56='IE1'!$AD$13),0,0))) -> 0 | X56: =IF(P56=$AD$11,Accueil!$D$24,IF(('IE1'!P56='IE1'!$AD$12)*AND('IE1'!R56='IE1'!$AD$14),'IE1'!V56,IF(('IE1'!P56='IE1'!$AD$12)*AND('IE1'!R56='IE1'!$AD$13),0,0))) -> 0
E57: 0899 | F57: Autres produits des industries extractives n.c.a. | G57: 30075459 | H57: 8453872 | I57: 157831898 | J57: 7200553 | K57: 0 | L57: 0 | O57: Travaux | P57: Travaux | Q57: Travaux | R57: Travaux | S57: Travaux | T57: Travaux | W57: =IF(O57=$AD$11,Accueil!$D$24,IF(('IE1'!O57='IE1'!$AD$12)*AND('IE1'!Q57='IE1'!$AD$14),'IE1'!U57,IF(('IE1'!O57='IE1'!$AD$12)*AND('IE1'!Q57='IE1'!$AD$13),0,0))) -> 0 | X57: =IF(P57=$AD$11,Accueil!$D$24,IF(('IE1'!P57='IE1'!$AD$12)*AND('IE1'!R57='IE1'!$AD$14),'IE1'!V57,IF(('IE1'!P57='IE1'!$AD$12)*AND('IE1'!R57='IE1'!$AD$13),0,0))) -> 0
C58: C10A | D58: Viande et produits à base de viande | E58: 1011 | F58: Viandes de boucherie et produits d'abattage | G58: 383657183 | H58: 97494405 | I58: 147791075 | J58: 52065820 | K58: 0 | L58: 0 | O58: Industrie agroalimentaire | P58: Industrie agroalimentaire | Q58: Industrie agroalimentaire | R58: Industrie agroalimentaire | S58: Industrie agroalimentaire | T58: Industrie agroalimentaire | W58: =IF(O58=$AD$11,Accueil!$D$24,IF(('IE1'!O58='IE1'!$AD$12)*AND('IE1'!Q58='IE1'!$AD$14),'IE1'!U58,IF(('IE1'!O58='IE1'!$AD$12)*AND('IE1'!Q58='IE1'!$AD$13),0,0))) -> 0 | X58: =IF(P58=$AD$11,Accueil!$D$24,IF(('IE1'!P58='IE1'!$AD$12)*AND('IE1'!R58='IE1'!$AD$14),'IE1'!V58,IF(('IE1'!P58='IE1'!$AD$12)*AND('IE1'!R58='IE1'!$AD$13),0,0))) -> 0
E59: 1012 | F59: Viandes de volailles | G59: 155215776 | H59: 14664054 | I59: 66067726 | J59: 12768040 | K59: 0 | L59: 0 | W59: =IF(O59=$AD$11,Accueil!$D$24,IF(('IE1'!O59='IE1'!$AD$12)*AND('IE1'!Q59='IE1'!$AD$14),'IE1'!U59,IF(('IE1'!O59='IE1'!$AD$12)*AND('IE1'!Q59='IE1'!$AD$13),0,0))) -> 0 | X59: =IF(P59=$AD$11,Accueil!$D$24,IF(('IE1'!P59='IE1'!$AD$12)*AND('IE1'!R59='IE1'!$AD$14),'IE1'!V59,IF(('IE1'!P59='IE1'!$AD$12)*AND('IE1'!R59='IE1'!$AD$13),0,0))) -> 0
E60: 1013 | F60: Produits à base de viande | G60: 130460597 | H60: 129578869 | I60: 48585436 | J60: 61327552 | K60: 0 | L60: 0 | W60: =IF(O60=$AD$11,Accueil!$D$24,IF(('IE1'!O60='IE1'!$AD$12)*AND('IE1'!Q60='IE1'!$AD$14),'IE1'!U60,IF(('IE1'!O60='IE1'!$AD$12)*AND('IE1'!Q60='IE1'!$AD$13),0,0))) -> 0 | X60: =IF(P60=$AD$11,Accueil!$D$24,IF(('IE1'!P60='IE1'!$AD$12)*AND('IE1'!R60='IE1'!$AD$14),'IE1'!V60,IF(('IE1'!P60='IE1'!$AD$12)*AND('IE1'!R60='IE1'!$AD$13),0,0))) -> 0
C61: C10B | D61: Préparations et conserves à base de poisson | E61: 1020 | F61: Préparations et conserves à base de poisson et de produits de la pêche | G61: 984679830 | H61: 219490469 | I61: 188202710 | J61: 38154655 | K61: 0 | L61: 0 | W61: =IF(O61=$AD$11,Accueil!$D$24,IF(('IE1'!O61='IE1'!$AD$12)*AND('IE1'!Q61='IE1'!$AD$14),'IE1'!U61,IF(('IE1'!O61='IE1'!$AD$12)*AND('IE1'!Q61='IE1'!$AD$13),0,0))) -> 0 | X61: =IF(P61=$AD$11,Accueil!$D$24,IF(('IE1'!P61='IE1'!$AD$12)*AND('IE1'!R61='IE1'!$AD$14),'IE1'!V61,IF(('IE1'!P61='IE1'!$AD$12)*AND('IE1'!R61='IE1'!$AD$13),0,0))) -> 0
C62: C10C | D62: Produits à base de fruits et légumes | E62: 1031 | F62: Préparations et conserves à base de pommes de terre | G62: 134523591 | H62: 291604726 | I62: 171340323 | J62: 338762447 | K62: 0 | L62: 0 | W62: =IF(O62=$AD$11,Accueil!$D$24,IF(('IE1'!O62='IE1'!$AD$12)*AND('IE1'!Q62='IE1'!$AD$14),'IE1'!U62,IF(('IE1'!O62='IE1'!$AD$12)*AND('IE1'!Q62='IE1'!$AD$13),0,0))) -> 0 | X62: =IF(P62=$AD$11,Accueil!$D$24,IF(('IE1'!P62='IE1'!$AD$12)*AND('IE1'!R62='IE1'!$AD$14),'IE1'!V62,IF(('IE1'!P62='IE1'!$AD$12)*AND('IE1'!R62='IE1'!$AD$13),0,0))) -> 0
E63: 1032 | F63: Jus de fruits et légumes | G63: 53294527 | H63: 1781258 | I63: 49201848 | J63: 2269063 | K63: 0 | L63: 0 | W63: =IF(O63=$AD$11,Accueil!$D$24,IF(('IE1'!O63='IE1'!$AD$12)*AND('IE1'!Q63='IE1'!$AD$14),'IE1'!U63,IF(('IE1'!O63='IE1'!$AD$12)*AND('IE1'!Q63='IE1'!$AD$13),0,0))) -> 0 | X63: =IF(P63=$AD$11,Accueil!$D$24,IF(('IE1'!P63='IE1'!$AD$12)*AND('IE1'!R63='IE1'!$AD$14),'IE1'!V63,IF(('IE1'!P63='IE1'!$AD$12)*AND('IE1'!R63='IE1'!$AD$13),0,0))) -> 0
E64: 1039 | F64: Autres préparations et conserves à base de fruits et légumes | G64: 373398181 | H64: 225466027 | I64: 325137745 | J64: 268726229 | K64: 0 | L64: 0 | W64: =IF(O64=$AD$11,Accueil!$D$24,IF(('IE1'!O64='IE1'!$AD$12)*AND('IE1'!Q64='IE1'!$AD$14),'IE1'!U64,IF(('IE1'!O64='IE1'!$AD$12)*AND('IE1'!Q64='IE1'!$AD$13),0,0))) -> 0 | X64: =IF(P64=$AD$11,Accueil!$D$24,IF(('IE1'!P64='IE1'!$AD$12)*AND('IE1'!R64='IE1'!$AD$14),'IE1'!V64,IF(('IE1'!P64='IE1'!$AD$12)*AND('IE1'!R64='IE1'!$AD$13),0,0))) -> 0
C65: C10D | D65: Huiles et graisses végétales et animales | E65: 1041 | F65: Huiles et graisses | G65: 499894290 | H65: 158356975 | I65: 812178183 | J65: 166909344 | K65: 0 | L65: 0 | W65: =IF(O65=$AD$11,Accueil!$D$24,IF(('IE1'!O65='IE1'!$AD$12)*AND('IE1'!Q65='IE1'!$AD$14),'IE1'!U65,IF(('IE1'!O65='IE1'!$AD$12)*AND('IE1'!Q65='IE1'!$AD$13),0,0))) -> 0 | X65: =IF(P65=$AD$11,Accueil!$D$24,IF(('IE1'!P65='IE1'!$AD$12)*AND('IE1'!R65='IE1'!$AD$14),'IE1'!V65,IF(('IE1'!P65='IE1'!$AD$12)*AND('IE1'!R65='IE1'!$AD$13),0,0))) -> 0
E66: 1042 | F66: Margarines et graisses comestibles similaires | G66: 93842483 | H66: 1522057 | I66: 84848551 | J66: 743430 | K66: 0 | L66: 0 | W66: =IF(O66=$AD$11,Accueil!$D$24,IF(('IE1'!O66='IE1'!$AD$12)*AND('IE1'!Q66='IE1'!$AD$14),'IE1'!U66,IF(('IE1'!O66='IE1'!$AD$12)*AND('IE1'!Q66='IE1'!$AD$13),0,0))) -> 0 | X66: =IF(P66=$AD$11,Accueil!$D$24,IF(('IE1'!P66='IE1'!$AD$12)*AND('IE1'!R66='IE1'!$AD$14),'IE1'!V66,IF(('IE1'!P66='IE1'!$AD$12)*AND('IE1'!R66='IE1'!$AD$13),0,0))) -> 0
C67: C10E | D67: Produits laitiers et glaces | E67: 1051 | F67: Produits laitiers et fromages | G67: 473427337 | H67: 305688746 | I67: 238488437 | J67: 313822538 | K67: 0 | L67: 0 | W67: =IF(O67=$AD$11,Accueil!$D$24,IF(('IE1'!O67='IE1'!$AD$12)*AND('IE1'!Q67='IE1'!$AD$14),'IE1'!U67,IF(('IE1'!O67='IE1'!$AD$12)*AND('IE1'!Q67='IE1'!$AD$13),0,0))) -> 0 | X67: =IF(P67=$AD$11,Accueil!$D$24,IF(('IE1'!P67='IE1'!$AD$12)*AND('IE1'!R67='IE1'!$AD$14),'IE1'!V67,IF(('IE1'!P67='IE1'!$AD$12)*AND('IE1'!R67='IE1'!$AD$13),0,0))) -> 0
E68: 1052 | F68: Glaces et sorbets | G68: 20431912 | H68: 152452199 | I68: 8166045 | J68: 44815500 | K68: 0 | L68: 0 | W68: =IF(O68=$AD$11,Accueil!$D$24,IF(('IE1'!O68='IE1'!$AD$12)*AND('IE1'!Q68='IE1'!$AD$14),'IE1'!U68,IF(('IE1'!O68='IE1'!$AD$12)*AND('IE1'!Q68='IE1'!$AD$13),0,0))) -> 0 | X68: =IF(P68=$AD$11,Accueil!$D$24,IF(('IE1'!P68='IE1'!$AD$12)*AND('IE1'!R68='IE1'!$AD$14),'IE1'!V68,IF(('IE1'!P68='IE1'!$AD$12)*AND('IE1'!R68='IE1'!$AD$13),0,0))) -> 0
C69: C10F | D69: Produits du travail des grains | E69: 1061 | F69: Produits du travail des grains | G69: 381057156 | H69: 171608373 | I69: 350659454 | J69: 264655999 | K69: 0 | L69: 0 | W69: =IF(O69=$AD$11,Accueil!$D$24,IF(('IE1'!O69='IE1'!$AD$12)*AND('IE1'!Q69='IE1'!$AD$14),'IE1'!U69,IF(('IE1'!O69='IE1'!$AD$12)*AND('IE1'!Q69='IE1'!$AD$13),0,0))) -> 0 | X69: =IF(P69=$AD$11,Accueil!$D$24,IF(('IE1'!P69='IE1'!$AD$12)*AND('IE1'!R69='IE1'!$AD$14),'IE1'!V69,IF(('IE1'!P69='IE1'!$AD$12)*AND('IE1'!R69='IE1'!$AD$13),0,0))) -> 0
E70: 1062 | F70: Produits amylacés | G70: 98029991 | H70: 725558287 | I70: 174479758 | J70: 865368866 | K70: 0 | L70: 0 | W70: =IF(O70=$AD$11,Accueil!$D$24,IF(('IE1'!O70='IE1'!$AD$12)*AND('IE1'!Q70='IE1'!$AD$14),'IE1'!U70,IF(('IE1'!O70='IE1'!$AD$12)*AND('IE1'!Q70='IE1'!$AD$13),0,0))) -> 0 | X70: =IF(P70=$AD$11,Accueil!$D$24,IF(('IE1'!P70='IE1'!$AD$12)*AND('IE1'!R70='IE1'!$AD$14),'IE1'!V70,IF(('IE1'!P70='IE1'!$AD$12)*AND('IE1'!R70='IE1'!$AD$13),0,0))) -> 0
C71: C10G | D71: Produits de boulangerier-pâtisserie et pâtes | E71: 1071 | F71: Pain ; pâtisseries et viennoiseries fraîches | G71: 58199083 | H71: 183389009 | I71: 21542821 | J71: 146102362 | K71: 0 | L71: 0 | W71: =IF(O71=$AD$11,Accueil!$D$24,IF(('IE1'!O71='IE1'!$AD$12)*AND('IE1'!Q71='IE1'!$AD$14),'IE1'!U71,IF(('IE1'!O71='IE1'!$AD$12)*AND('IE1'!Q71='IE1'!$AD$13),0,0))) -> 0 | X71: =IF(P71=$AD$11,Accueil!$D$24,IF(('IE1'!P71='IE1'!$AD$12)*AND('IE1'!R71='IE1'!$AD$14),'IE1'!V71,IF(('IE1'!P71='IE1'!$AD$12)*AND('IE1'!R71='IE1'!$AD$13),0,0))) -> 0
E72: 1072 | F72: Biscottes et biscuits ; pâtisseries de conservation | G72: 243131831 | H72: 140045288 | I72: 138800016 | J72: 64354600 | K72: 0 | L72: 0 | W72: =IF(O72=$AD$11,Accueil!$D$24,IF(('IE1'!O72='IE1'!$AD$12)*AND('IE1'!Q72='IE1'!$AD$14),'IE1'!U72,IF(('IE1'!O72='IE1'!$AD$12)*AND('IE1'!Q72='IE1'!$AD$13),0,0))) -> 0 | X72: =IF(P72=$AD$11,Accueil!$D$24,IF(('IE1'!P72='IE1'!$AD$12)*AND('IE1'!R72='IE1'!$AD$14),'IE1'!V72,IF(('IE1'!P72='IE1'!$AD$12)*AND('IE1'!R72='IE1'!$AD$13),0,0))) -> 0
E73: 1073 | F73: Pâtes alimentaires | G73: 29970854 | H73: 2403390 | I73: 32697998 | J73: 8449203 | K73: 0 | L73: 0 | W73: =IF(O73=$AD$11,Accueil!$D$24,IF(('IE1'!O73='IE1'!$AD$12)*AND('IE1'!Q73='IE1'!$AD$14),'IE1'!U73,IF(('IE1'!O73='IE1'!$AD$12)*AND('IE1'!Q73='IE1'!$AD$13),0,0))) -> 0 | X73: =IF(P73=$AD$11,Accueil!$D$24,IF(('IE1'!P73='IE1'!$AD$12)*AND('IE1'!R73='IE1'!$AD$14),'IE1'!V73,IF(('IE1'!P73='IE1'!$AD$12)*AND('IE1'!R73='IE1'!$AD$13),0,0))) -> 0
C74: C10H | D74: Produits alimentaires divers | E74: 1081 | F74: Sucre | G74: 52614340 | H74: 309468798 | I74: 131331775 | J74: 1381419923 | K74: 0 | L74: 0 | W74: =IF(O74=$AD$11,Accueil!$D$24,IF(('IE1'!O74='IE1'!$AD$12)*AND('IE1'!Q74='IE1'!$AD$14),'IE1'!U74,IF(('IE1'!O74='IE1'!$AD$12)*AND('IE1'!Q74='IE1'!$AD$13),0,0))) -> 0 | X74: =IF(P74=$AD$11,Accueil!$D$24,IF(('IE1'!P74='IE1'!$AD$12)*AND('IE1'!R74='IE1'!$AD$14),'IE1'!V74,IF(('IE1'!P74='IE1'!$AD$12)*AND('IE1'!R74='IE1'!$AD$13),0,0))) -> 0
E75: 1082 | F75: Cacao, chocolat et produits de confiserie | G75: 404869317 | H75: 186553367 | I75: 116844432 | J75: 59621667 | K75: 0 | L75: 0 | W75: =IF(O75=$AD$11,Accueil!$D$24,IF(('IE1'!O75='IE1'!$AD$12)*AND('IE1'!Q75='IE1'!$AD$14),'IE1'!U75,IF(('IE1'!O75='IE1'!$AD$12)*AND('IE1'!Q75='IE1'!$AD$13),0,0))) -> 0 | X75: =IF(P75=$AD$11,Accueil!$D$24,IF(('IE1'!P75='IE1'!$AD$12)*AND('IE1'!R75='IE1'!$AD$14),'IE1'!V75,IF(('IE1'!P75='IE1'!$AD$12)*AND('IE1'!R75='IE1'!$AD$13),0,0))) -> 0
E76: 1083 | F76: Café et thé transformés | G76: 39831037 | H76: 19248771 | I76: 7315916 | J76: 1223116 | K76: 0 | L76: 0 | W76: =IF(O76=$AD$11,Accueil!$D$24,IF(('IE1'!O76='IE1'!$AD$12)*AND('IE1'!Q76='IE1'!$AD$14),'IE1'!U76,IF(('IE1'!O76='IE1'!$AD$12)*AND('IE1'!Q76='IE1'!$AD$13),0,0))) -> 0 | X76: =IF(P76=$AD$11,Accueil!$D$24,IF(('IE1'!P76='IE1'!$AD$12)*AND('IE1'!R76='IE1'!$AD$14),'IE1'!V76,IF(('IE1'!P76='IE1'!$AD$12)*AND('IE1'!R76='IE1'!$AD$13),0,0))) -> 0
E77: 1084 | F77: Condiments et assaisonnements | G77: 107862843 | H77: 34339303 | I77: 93114983 | J77: 35738672 | K77: 0 | L77: 0 | W77: =IF(O77=$AD$11,Accueil!$D$24,IF(('IE1'!O77='IE1'!$AD$12)*AND('IE1'!Q77='IE1'!$AD$14),'IE1'!U77,IF(('IE1'!O77='IE1'!$AD$12)*AND('IE1'!Q77='IE1'!$AD$13),0,0))) -> 0 | X77: =IF(P77=$AD$11,Accueil!$D$24,IF(('IE1'!P77='IE1'!$AD$12)*AND('IE1'!R77='IE1'!$AD$14),'IE1'!V77,IF(('IE1'!P77='IE1'!$AD$12)*AND('IE1'!R77='IE1'!$AD$13),0,0))) -> 0
E78: 1085 | F78: Plats préparés | G78: 78272018 | H78: 36415655 | I78: 20976023 | J78: 16265211 | K78: 0 | L78: 0 | W78: =IF(O78=$AD$11,Accueil!$D$24,IF(('IE1'!O78='IE1'!$AD$12)*AND('IE1'!Q78='IE1'!$AD$14),'IE1'!U78,IF(('IE1'!O78='IE1'!$AD$12)*AND('IE1'!Q78='IE1'!$AD$13),0,0))) -> 0 | X78: =IF(P78=$AD$11,Accueil!$D$24,IF(('IE1'!P78='IE1'!$AD$12)*AND('IE1'!R78='IE1'!$AD$14),'IE1'!V78,IF(('IE1'!P78='IE1'!$AD$12)*AND('IE1'!R78='IE1'!$AD$13),0,0))) -> 0
E79: 1086 | F79: Aliments homogénéisés et diététiques | G79: 63162975 | H79: 93930452 | I79: 18533164 | J79: 73945778 | K79: 0 | L79: 0 | W79: =IF(O79=$AD$11,Accueil!$D$24,IF(('IE1'!O79='IE1'!$AD$12)*AND('IE1'!Q79='IE1'!$AD$14),'IE1'!U79,IF(('IE1'!O79='IE1'!$AD$12)*AND('IE1'!Q79='IE1'!$AD$13),0,0))) -> 0 | X79: =IF(P79=$AD$11,Accueil!$D$24,IF(('IE1'!P79='IE1'!$AD$12)*AND('IE1'!R79='IE1'!$AD$14),'IE1'!V79,IF(('IE1'!P79='IE1'!$AD$12)*AND('IE1'!R79='IE1'!$AD$13),0,0))) -> 0
E80: 1089 | F80: Autres produits alimentaires n.c.a. | G80: 108194996 | H80: 322503468 | I80: 57736216 | J80: 109722346 | K80: 0 | L80: 0 | W80: =IF(O80=$AD$11,Accueil!$D$24,IF(('IE1'!O80='IE1'!$AD$12)*AND('IE1'!Q80='IE1'!$AD$14),'IE1'!U80,IF(('IE1'!O80='IE1'!$AD$12)*AND('IE1'!Q80='IE1'!$AD$13),0,0))) -> 0 | X80: =IF(P80=$AD$11,Accueil!$D$24,IF(('IE1'!P80='IE1'!$AD$12)*AND('IE1'!R80='IE1'!$AD$14),'IE1'!V80,IF(('IE1'!P80='IE1'!$AD$12)*AND('IE1'!R80='IE1'!$AD$13),0,0))) -> 0
C81: C10K | D81: Aliments pour animaux | E81: 1091 | F81: Aliments pour animaux de ferme | G81: 116417424 | H81: 63117875 | I81: 283131956 | J81: 293059585 | K81: 0 | L81: 0 | W81: =IF(O81=$AD$11,Accueil!$D$24,IF(('IE1'!O81='IE1'!$AD$12)*AND('IE1'!Q81='IE1'!$AD$14),'IE1'!U81,IF(('IE1'!O81='IE1'!$AD$12)*AND('IE1'!Q81='IE1'!$AD$13),0,0))) -> 0 | X81: =IF(P81=$AD$11,Accueil!$D$24,IF(('IE1'!P81='IE1'!$AD$12)*AND('IE1'!R81='IE1'!$AD$14),'IE1'!V81,IF(('IE1'!P81='IE1'!$AD$12)*AND('IE1'!R81='IE1'!$AD$13),0,0))) -> 0
E82: 1092 | F82: Aliments pour animaux de compagnie | G82: 37236457 | H82: 340712204 | I82: 28914186 | J82: 335653964 | K82: =IF($M$11=$AG$11,M82,W82) -> 0 | L82: =IF($M$11=$AG$11,N82,X82) -> 0 | U82: =IFERROR(IF(S82="","",VLOOKUP(S82,$AD$20:$AG$49,4,FALSE)),"") ->  | V82: =IFERROR(IF(T82="","",VLOOKUP(T82,$AD$20:$AG$49,4,FALSE)),"") ->  | W82: =IF(O82=$AD$11,Accueil!$D$24,IF(('IE1'!O82='IE1'!$AD$12)*AND('IE1'!Q82='IE1'!$AD$14),'IE1'!U82,IF(('IE1'!O82='IE1'!$AD$12)*AND('IE1'!Q82='IE1'!$AD$13),0,0))) -> 0 | X82: =IF(P82=$AD$11,Accueil!$D$24,IF(('IE1'!P82='IE1'!$AD$12)*AND('IE1'!R82='IE1'!$AD$14),'IE1'!V82,IF(('IE1'!P82='IE1'!$AD$12)*AND('IE1'!R82='IE1'!$AD$13),0,0))) -> 0
C83: C11Z | D83: Boissons | E83: 1101 | F83: Boissons alcoolisées distillées | G83: 63122339 | H83: 37120446 | I83: 23504715 | J83: 16464306 | K83: 0 | L83: 0 | W83: =IF(O83=$AD$11,Accueil!$D$24,IF(('IE1'!O83='IE1'!$AD$12)*AND('IE1'!Q83='IE1'!$AD$14),'IE1'!U83,IF(('IE1'!O83='IE1'!$AD$12)*AND('IE1'!Q83='IE1'!$AD$13),0,0))) -> 0 | X83: =IF(P83=$AD$11,Accueil!$D$24,IF(('IE1'!P83='IE1'!$AD$12)*AND('IE1'!R83='IE1'!$AD$14),'IE1'!V83,IF(('IE1'!P83='IE1'!$AD$12)*AND('IE1'!R83='IE1'!$AD$13),0,0))) -> 0
E84: 1102 | F84: Vins de raisin | G84: 36717483 | H84: 84738169 | I84: 31353084 | J84: 35173069 | K84: 0 | L84: 0 | W84: =IF(O84=$AD$11,Accueil!$D$24,IF(('IE1'!O84='IE1'!$AD$12)*AND('IE1'!Q84='IE1'!$AD$14),'IE1'!U84,IF(('IE1'!O84='IE1'!$AD$12)*AND('IE1'!Q84='IE1'!$AD$13),0,0))) -> 0 | X84: =IF(P84=$AD$11,Accueil!$D$24,IF(('IE1'!P84='IE1'!$AD$12)*AND('IE1'!R84='IE1'!$AD$14),'IE1'!V84,IF(('IE1'!P84='IE1'!$AD$12)*AND('IE1'!R84='IE1'!$AD$13),0,0))) -> 0
E85: 1103 | F85: Cidre et autres vins de fruits | G85: 2160335 | H85: 2313610 | I85: 3880039 | J85: 4830554 | K85: 0 | L85: 0 | W85: =IF(O85=$AD$11,Accueil!$D$24,IF(('IE1'!O85='IE1'!$AD$12)*AND('IE1'!Q85='IE1'!$AD$14),'IE1'!U85,IF(('IE1'!O85='IE1'!$AD$12)*AND('IE1'!Q85='IE1'!$AD$13),0,0))) -> 0 | X85: =IF(P85=$AD$11,Accueil!$D$24,IF(('IE1'!P85='IE1'!$AD$12)*AND('IE1'!R85='IE1'!$AD$14),'IE1'!V85,IF(('IE1'!P85='IE1'!$AD$12)*AND('IE1'!R85='IE1'!$AD$13),0,0))) -> 0
E86: 1104 | F86: Autres boissons fermentées non distillées | G86: 1164632 | H86: 1673972 | I86: 1131481 | J86: 596778 | K86: 0 | L86: 0 | W86: =IF(O86=$AD$11,Accueil!$D$24,IF(('IE1'!O86='IE1'!$AD$12)*AND('IE1'!Q86='IE1'!$AD$14),'IE1'!U86,IF(('IE1'!O86='IE1'!$AD$12)*AND('IE1'!Q86='IE1'!$AD$13),0,0))) -> 0 | X86: =IF(P86=$AD$11,Accueil!$D$24,IF(('IE1'!P86='IE1'!$AD$12)*AND('IE1'!R86='IE1'!$AD$14),'IE1'!V86,IF(('IE1'!P86='IE1'!$AD$12)*AND('IE1'!R86='IE1'!$AD$13),0,0))) -> 0
E87: 1105 | F87: Bière | G87: 413628351 | H87: 99163526 | I87: 489119656 | J87: 240334625 | K87: 0 | L87: 0 | W87: =IF(O87=$AD$11,Accueil!$D$24,IF(('IE1'!O87='IE1'!$AD$12)*AND('IE1'!Q87='IE1'!$AD$14),'IE1'!U87,IF(('IE1'!O87='IE1'!$AD$12)*AND('IE1'!Q87='IE1'!$AD$13),0,0))) -> 0 | X87: =IF(P87=$AD$11,Accueil!$D$24,IF(('IE1'!P87='IE1'!$AD$12)*AND('IE1'!R87='IE1'!$AD$14),'IE1'!V87,IF(('IE1'!P87='IE1'!$AD$12)*AND('IE1'!R87='IE1'!$AD$13),0,0))) -> 0
E88: 1106 | F88: Malt | G88: 995487 | H88: 46113896 | I88: 1830594 | J88: 129492950 | K88: 0 | L88: 0 | W88: =IF(O88=$AD$11,Accueil!$D$24,IF(('IE1'!O88='IE1'!$AD$12)*AND('IE1'!Q88='IE1'!$AD$14),'IE1'!U88,IF(('IE1'!O88='IE1'!$AD$12)*AND('IE1'!Q88='IE1'!$AD$13),0,0))) -> 0 | X88: =IF(P88=$AD$11,Accueil!$D$24,IF(('IE1'!P88='IE1'!$AD$12)*AND('IE1'!R88='IE1'!$AD$14),'IE1'!V88,IF(('IE1'!P88='IE1'!$AD$12)*AND('IE1'!R88='IE1'!$AD$13),0,0))) -> 0
E89: 1107 | F89: Boissons rafraîchissantes ; eaux minérales et autres eaux en bouteille | G89: 49149219 | H89: 97884951 | I89: 86890900 | J89: 1276816825 | K89: 0 | L89: 0 | W89: =IF(O89=$AD$11,Accueil!$D$24,IF(('IE1'!O89='IE1'!$AD$12)*AND('IE1'!Q89='IE1'!$AD$14),'IE1'!U89,IF(('IE1'!O89='IE1'!$AD$12)*AND('IE1'!Q89='IE1'!$AD$13),0,0))) -> 0 | X89: =IF(P89=$AD$11,Accueil!$D$24,IF(('IE1'!P89='IE1'!$AD$12)*AND('IE1'!R89='IE1'!$AD$14),'IE1'!V89,IF(('IE1'!P89='IE1'!$AD$12)*AND('IE1'!R89='IE1'!$AD$13),0,0))) -> 0
C90: C12Z | D90: Tabacs manufacturés | E90: 1200 | F90: Produits à base de tabac | G90: 1274609 | H90: 43967 | I90: 95955 | J90: 763 | K90: 0 | L90: 0 | O90: Biens de consommation | P90: Biens de consommation | W90: =IF(O90=$AD$11,Accueil!$D$24,IF(('IE1'!O90='IE1'!$AD$12)*AND('IE1'!Q90='IE1'!$AD$14),'IE1'!U90,IF(('IE1'!O90='IE1'!$AD$12)*AND('IE1'!Q90='IE1'!$AD$13),0,0))) -> 0 | X90: =IF(P90=$AD$11,Accueil!$D$24,IF(('IE1'!P90='IE1'!$AD$12)*AND('IE1'!R90='IE1'!$AD$14),'IE1'!V90,IF(('IE1'!P90='IE1'!$AD$12)*AND('IE1'!R90='IE1'!$AD$13),0,0))) -> 0
C91: C13Z | D91: Produits de l'industrie textile | E91: 1310 | F91: Fils et filés | G91: 110920198 | H91: 156069514 | I91: 29942301 | J91: 130336234 | K91: 0 | L91: 0 | O91: Biens de consommation | P91: Biens de consommation | W91: =IF(O91=$AD$11,Accueil!$D$24,IF(('IE1'!O91='IE1'!$AD$12)*AND('IE1'!Q91='IE1'!$AD$14),'IE1'!U91,IF(('IE1'!O91='IE1'!$AD$12)*AND('IE1'!Q91='IE1'!$AD$13),0,0))) -> 0 | X91: =IF(P91=$AD$11,Accueil!$D$24,IF(('IE1'!P91='IE1'!$AD$12)*AND('IE1'!R91='IE1'!$AD$14),'IE1'!V91,IF(('IE1'!P91='IE1'!$AD$12)*AND('IE1'!R91='IE1'!$AD$13),0,0))) -> 0
E92: 1320 | F92: Tissus | G92: 185050650 | H92: 196325526 | I92: 23665772 | J92: 14297468 | K92: 0 | L92: 0 | O92: Biens de consommation | P92: Biens de consommation | W92: =IF(O92=$AD$11,Accueil!$D$24,IF(('IE1'!O92='IE1'!$AD$12)*AND('IE1'!Q92='IE1'!$AD$14),'IE1'!U92,IF(('IE1'!O92='IE1'!$AD$12)*AND('IE1'!Q92='IE1'!$AD$13),0,0))) -> 0 | X92: =IF(P92=$AD$11,Accueil!$D$24,IF(('IE1'!P92='IE1'!$AD$12)*AND('IE1'!R92='IE1'!$AD$14),'IE1'!V92,IF(('IE1'!P92='IE1'!$AD$12)*AND('IE1'!R92='IE1'!$AD$13),0,0))) -> 0
E93: 1391 | F93: Étoffes à maille | G93: 34377076 | H93: 43446648 | I93: 3265520 | J93: 7565309 | K93: 0 | L93: 0 | O93: Biens de consommation | P93: Biens de consommation | W93: =IF(O93=$AD$11,Accueil!$D$24,IF(('IE1'!O93='IE1'!$AD$12)*AND('IE1'!Q93='IE1'!$AD$14),'IE1'!U93,IF(('IE1'!O93='IE1'!$AD$12)*AND('IE1'!Q93='IE1'!$AD$13),0,0))) -> 0 | X93: =IF(P93=$AD$11,Accueil!$D$24,IF(('IE1'!P93='IE1'!$AD$12)*AND('IE1'!R93='IE1'!$AD$14),'IE1'!V93,IF(('IE1'!P93='IE1'!$AD$12)*AND('IE1'!R93='IE1'!$AD$13),0,0))) -> 0
E94: 1392 | F94: Articles textiles confectionnés, sauf habillement | G94: 436697261 | H94: 152600116 | I94: 70259629 | J94: 14229058 | K94: 0 | L94: 0 | O94: Biens de consommation | P94: Biens de consommation | W94: =IF(O94=$AD$11,Accueil!$D$24,IF(('IE1'!O94='IE1'!$AD$12)*AND('IE1'!Q94='IE1'!$AD$14),'IE1'!U94,IF(('IE1'!O94='IE1'!$AD$12)*AND('IE1'!Q94='IE1'!$AD$13),0,0))) -> 0 | X94: =IF(P94=$AD$11,Accueil!$D$24,IF(('IE1'!P94='IE1'!$AD$12)*AND('IE1'!R94='IE1'!$AD$14),'IE1'!V94,IF(('IE1'!P94='IE1'!$AD$12)*AND('IE1'!R94='IE1'!$AD$13),0,0))) -> 0
E95: 1393 | F95: Tapis et moquettes | G95: 75564301 | H95: 40916621 | I95: 22221781 | J95: 13460872 | K95: 0 | L95: 0 | O95: Biens de consommation | P95: Biens de consommation | W95: =IF(O95=$AD$11,Accueil!$D$24,IF(('IE1'!O95='IE1'!$AD$12)*AND('IE1'!Q95='IE1'!$AD$14),'IE1'!U95,IF(('IE1'!O95='IE1'!$AD$12)*AND('IE1'!Q95='IE1'!$AD$13),0,0))) -> 0 | X95: =IF(P95=$AD$11,Accueil!$D$24,IF(('IE1'!P95='IE1'!$AD$12)*AND('IE1'!R95='IE1'!$AD$14),'IE1'!V95,IF(('IE1'!P95='IE1'!$AD$12)*AND('IE1'!R95='IE1'!$AD$13),0,0))) -> 0
E96: 1394 | F96: Ficelles, cordes et filets | G96: 15721186 | H96: 6947337 | I96: 6380631 | J96: 4747313 | K96: 0 | L96: 0 | O96: Biens de consommation | P96: Biens de consommation | W96: =IF(O96=$AD$11,Accueil!$D$24,IF(('IE1'!O96='IE1'!$AD$12)*AND('IE1'!Q96='IE1'!$AD$14),'IE1'!U96,IF(('IE1'!O96='IE1'!$AD$12)*AND('IE1'!Q96='IE1'!$AD$13),0,0))) -> 0 | X96: =IF(P96=$AD$11,Accueil!$D$24,IF(('IE1'!P96='IE1'!$AD$12)*AND('IE1'!R96='IE1'!$AD$14),'IE1'!V96,IF(('IE1'!P96='IE1'!$AD$12)*AND('IE1'!R96='IE1'!$AD$13),0,0))) -> 0
E97: 1395 | F97: Non-tissés et articles en non-tissés, sauf habillement | G97: 62111988 | H97: 92404297 | I97: 22657721 | J97: 39432684 | K97: 0 | L97: 0 | O97: Biens de consommation | P97: Biens de consommation | W97: =IF(O97=$AD$11,Accueil!$D$24,IF(('IE1'!O97='IE1'!$AD$12)*AND('IE1'!Q97='IE1'!$AD$14),'IE1'!U97,IF(('IE1'!O97='IE1'!$AD$12)*AND('IE1'!Q97='IE1'!$AD$13),0,0))) -> 0 | X97: =IF(P97=$AD$11,Accueil!$D$24,IF(('IE1'!P97='IE1'!$AD$12)*AND('IE1'!R97='IE1'!$AD$14),'IE1'!V97,IF(('IE1'!P97='IE1'!$AD$12)*AND('IE1'!R97='IE1'!$AD$13),0,0))) -> 0
E98: 1396 | F98: Autres textiles techniques et industriels | G98: 76854483 | H98: 52981924 | I98: 9069662 | J98: 9055737 | K98: 0 | L98: 0 | O98: Biens de consommation | P98: Biens de consommation | W98: =IF(O98=$AD$11,Accueil!$D$24,IF(('IE1'!O98='IE1'!$AD$12)*AND('IE1'!Q98='IE1'!$AD$14),'IE1'!U98,IF(('IE1'!O98='IE1'!$AD$12)*AND('IE1'!Q98='IE1'!$AD$13),0,0))) -> 0 | X98: =IF(P98=$AD$11,Accueil!$D$24,IF(('IE1'!P98='IE1'!$AD$12)*AND('IE1'!R98='IE1'!$AD$14),'IE1'!V98,IF(('IE1'!P98='IE1'!$AD$12)*AND('IE1'!R98='IE1'!$AD$13),0,0))) -> 0
E99: 1399 | F99: Autres textiles n.c.a. | G99: 28805741 | H99: 80603827 | I99: 3883206 | J99: 1587036 | K99: 0 | L99: 0 | O99: Biens de consommation | P99: Biens de consommation | W99: =IF(O99=$AD$11,Accueil!$D$24,IF(('IE1'!O99='IE1'!$AD$12)*AND('IE1'!Q99='IE1'!$AD$14),'IE1'!U99,IF(('IE1'!O99='IE1'!$AD$12)*AND('IE1'!Q99='IE1'!$AD$13),0,0))) -> 0 | X99: =IF(P99=$AD$11,Accueil!$D$24,IF(('IE1'!P99='IE1'!$AD$12)*AND('IE1'!R99='IE1'!$AD$14),'IE1'!V99,IF(('IE1'!P99='IE1'!$AD$12)*AND('IE1'!R99='IE1'!$AD$13),0,0))) -> 0
C100: C14Z | D100: Articles d'habillement | E100: 1411 | F100: Vêtements en cuir | G100: 12964124 | H100: 2755650 | I100: 273862 | J100: 51775 | K100: 0 | L100: 0 | O100: Biens de consommation | P100: Biens de consommation | W100: =IF(O100=$AD$11,Accueil!$D$24,IF(('IE1'!O100='IE1'!$AD$12)*AND('IE1'!Q100='IE1'!$AD$14),'IE1'!U100,IF(('IE1'!O100='IE1'!$AD$12)*AND('IE1'!Q100='IE1'!$AD$13),0,0))) -> 0 | X100: =IF(P100=$AD$11,Accueil!$D$24,IF(('IE1'!P100='IE1'!$AD$12)*AND('IE1'!R100='IE1'!$AD$14),'IE1'!V100,IF(('IE1'!P100='IE1'!$AD$12)*AND('IE1'!R100='IE1'!$AD$13),0,0))) -> 0
E101: 1412 | F101: Vêtements de travail | G101: 52524700 | H101: 7124692 | I101: 3076154 | J101: 402737 | K101: 0 | L101: 0 | O101: Biens de consommation | P101: Biens de consommation | W101: =IF(O101=$AD$11,Accueil!$D$24,IF(('IE1'!O101='IE1'!$AD$12)*AND('IE1'!Q101='IE1'!$AD$14),'IE1'!U101,IF(('IE1'!O101='IE1'!$AD$12)*AND('IE1'!Q101='IE1'!$AD$13),0,0))) -> 0 | X101: =IF(P101=$AD$11,Accueil!$D$24,IF(('IE1'!P101='IE1'!$AD$12)*AND('IE1'!R101='IE1'!$AD$14),'IE1'!V101,IF(('IE1'!P101='IE1'!$AD$12)*AND('IE1'!R101='IE1'!$AD$13),0,0))) -> 0
E102: 1413 | F102: Autres vêtements de dessus | G102: 1502362205 | H102: 678077179 | I102: 84272138 | J102: 103984006 | K102: 0 | L102: 0 | O102: Biens de consommation | P102: Biens de consommation | W102: =IF(O102=$AD$11,Accueil!$D$24,IF(('IE1'!O102='IE1'!$AD$12)*AND('IE1'!Q102='IE1'!$AD$14),'IE1'!U102,IF(('IE1'!O102='IE1'!$AD$12)*AND('IE1'!Q102='IE1'!$AD$13),0,0))) -> 0 | X102: =IF(P102=$AD$11,Accueil!$D$24,IF(('IE1'!P102='IE1'!$AD$12)*AND('IE1'!R102='IE1'!$AD$14),'IE1'!V102,IF(('IE1'!P102='IE1'!$AD$12)*AND('IE1'!R102='IE1'!$AD$13),0,0))) -> 0
E103: 1414 | F103: Vêtements de dessous | G103: 1098777613 | H103: 407862241 | I103: 49975418 | J103: 17469705 | K103: 0 | L103: 0 | O103: Biens de consommation | P103: Biens de consommation | W103: =IF(O103=$AD$11,Accueil!$D$24,IF(('IE1'!O103='IE1'!$AD$12)*AND('IE1'!Q103='IE1'!$AD$14),'IE1'!U103,IF(('IE1'!O103='IE1'!$AD$12)*AND('IE1'!Q103='IE1'!$AD$13),0,0))) -> 0 | X103: =IF(P103=$AD$11,Accueil!$D$24,IF(('IE1'!P103='IE1'!$AD$12)*AND('IE1'!R103='IE1'!$AD$14),'IE1'!V103,IF(('IE1'!P103='IE1'!$AD$12)*AND('IE1'!R103='IE1'!$AD$13),0,0))) -> 0
E104: 1419 | F104: Autres vêtements et accessoires | G104: 553039947 | H104: 287664135 | I104: 27267293 | J104: 11916357 | K104: 0 | L104: 0 | O104: Biens de consommation | P104: Biens de consommation | W104: =IF(O104=$AD$11,Accueil!$D$24,IF(('IE1'!O104='IE1'!$AD$12)*AND('IE1'!Q104='IE1'!$AD$14),'IE1'!U104,IF(('IE1'!O104='IE1'!$AD$12)*AND('IE1'!Q104='IE1'!$AD$13),0,0))) -> 0 | X104: =IF(P104=$AD$11,Accueil!$D$24,IF(('IE1'!P104='IE1'!$AD$12)*AND('IE1'!R104='IE1'!$AD$14),'IE1'!V104,IF(('IE1'!P104='IE1'!$AD$12)*AND('IE1'!R104='IE1'!$AD$13),0,0))) -> 0
E105: 1420 | F105: Articles en fourrure | G105: 464357 | H105: 519750 | I105: 8763 | J105: 7699 | K105: 0 | L105: 0 | O105: Biens de consommation | P105: Biens de consommation | W105: =IF(O105=$AD$11,Accueil!$D$24,IF(('IE1'!O105='IE1'!$AD$12)*AND('IE1'!Q105='IE1'!$AD$14),'IE1'!U105,IF(('IE1'!O105='IE1'!$AD$12)*AND('IE1'!Q105='IE1'!$AD$13),0,0))) -> 0 | X105: =IF(P105=$AD$11,Accueil!$D$24,IF(('IE1'!P105='IE1'!$AD$12)*AND('IE1'!R105='IE1'!$AD$14),'IE1'!V105,IF(('IE1'!P105='IE1'!$AD$12)*AND('IE1'!R105='IE1'!$AD$13),0,0))) -> 0
E106: 1431 | F106: Articles chaussants à mailles | G106: 92568928 | H106: 23379535 | I106: 7789677 | J106: 2981686 | K106: 0 | L106: 0 | O106: Biens de consommation | P106: Biens de consommation | W106: =IF(O106=$AD$11,Accueil!$D$24,IF(('IE1'!O106='IE1'!$AD$12)*AND('IE1'!Q106='IE1'!$AD$14),'IE1'!U106,IF(('IE1'!O106='IE1'!$AD$12)*AND('IE1'!Q106='IE1'!$AD$13),0,0))) -> 0 | X106: =IF(P106=$AD$11,Accueil!$D$24,IF(('IE1'!P106='IE1'!$AD$12)*AND('IE1'!R106='IE1'!$AD$14),'IE1'!V106,IF(('IE1'!P106='IE1'!$AD$12)*AND('IE1'!R106='IE1'!$AD$13),0,0))) -> 0
E107: 1439 | F107: Autres articles à mailles | G107: 508734523 | H107: 191397239 | I107: 26433295 | J107: 8590815 | K107: 0 | L107: 0 | O107: Biens de consommation | P107: Biens de consommation | W107: =IF(O107=$AD$11,Accueil!$D$24,IF(('IE1'!O107='IE1'!$AD$12)*AND('IE1'!Q107='IE1'!$AD$14),'IE1'!U107,IF(('IE1'!O107='IE1'!$AD$12)*AND('IE1'!Q107='IE1'!$AD$13),0,0))) -> 0 | X107: =IF(P107=$AD$11,Accueil!$D$24,IF(('IE1'!P107='IE1'!$AD$12)*AND('IE1'!R107='IE1'!$AD$14),'IE1'!V107,IF(('IE1'!P107='IE1'!$AD$12)*AND('IE1'!R107='IE1'!$AD$13),0,0))) -> 0
C108: C15Z | D108: Cuir, bagages et chaussures | E108: 1511 | F108: Cuirs et peaux tannés et apprêtés ; peaux apprêtées et teintées | G108: 36300892 | H108: 1147589 | I108: 247745 | J108: 214544 | K108: 0 | L108: 0 | O108: Biens de consommation | P108: Biens de consommation | W108: =IF(O108=$AD$11,Accueil!$D$24,IF(('IE1'!O108='IE1'!$AD$12)*AND('IE1'!Q108='IE1'!$AD$14),'IE1'!U108,IF(('IE1'!O108='IE1'!$AD$12)*AND('IE1'!Q108='IE1'!$AD$13),0,0))) -> 0 | X108: =IF(P108=$AD$11,Accueil!$D$24,IF(('IE1'!P108='IE1'!$AD$12)*AND('IE1'!R108='IE1'!$AD$14),'IE1'!V108,IF(('IE1'!P108='IE1'!$AD$12)*AND('IE1'!R108='IE1'!$AD$13),0,0))) -> 0
E109: 1512 | F109: Articles de voyage, de maroquinerie, de sellerie et de bourrellerie | G109: 167164879 | H109: 49042083 | I109: 12885106 | J109: 4224609 | K109: 0 | L109: 0 | O109: Biens de consommation | P109: Biens de consommation | W109: =IF(O109=$AD$11,Accueil!$D$24,IF(('IE1'!O109='IE1'!$AD$12)*AND('IE1'!Q109='IE1'!$AD$14),'IE1'!U109,IF(('IE1'!O109='IE1'!$AD$12)*AND('IE1'!Q109='IE1'!$AD$13),0,0))) -> 0 | X109: =IF(P109=$AD$11,Accueil!$D$24,IF(('IE1'!P109='IE1'!$AD$12)*AND('IE1'!R109='IE1'!$AD$14),'IE1'!V109,IF(('IE1'!P109='IE1'!$AD$12)*AND('IE1'!R109='IE1'!$AD$13),0,0))) -> 0
E110: 1520 | F110: Chaussures | G110: 505030517 | H110: 241275292 | I110: 28465766 | J110: 10938640 | K110: 0 | L110: 0 | O110: Biens de consommation | P110: Biens de consommation | W110: =IF(O110=$AD$11,Accueil!$D$24,IF(('IE1'!O110='IE1'!$AD$12)*AND('IE1'!Q110='IE1'!$AD$14),'IE1'!U110,IF(('IE1'!O110='IE1'!$AD$12)*AND('IE1'!Q110='IE1'!$AD$13),0,0))) -> 0 | X110: =IF(P110=$AD$11,Accueil!$D$24,IF(('IE1'!P110='IE1'!$AD$12)*AND('IE1'!R110='IE1'!$AD$14),'IE1'!V110,IF(('IE1'!P110='IE1'!$AD$12)*AND('IE1'!R110='IE1'!$AD$13),0,0))) -> 0
C111: C16Z | D111: Bois, articles en bois | E111: 1610 | F111: Bois, sciés et rabotés | G111: 83748917 | H111: 2856959 | I111: 217473007 | J111: 33630476 | K111: 0 | L111: 0 | O111: Marchandises industrielles | P111: Biens de consommation | Q111: Présente | S111: Papier, carton | U111: 0 | W111: =IF(O111=$AD$11,Accueil!$D$24,IF(('IE1'!O111='IE1'!$AD$12)*AND('IE1'!Q111='IE1'!$AD$14),'IE1'!U111,IF(('IE1'!O111='IE1'!$AD$12)*AND('IE1'!Q111='IE1'!$AD$13),0,0))) -> 0 | X111: =IF(P111=$AD$11,Accueil!$D$24,IF(('IE1'!P111='IE1'!$AD$12)*AND('IE1'!R111='IE1'!$AD$14),'IE1'!V111,IF(('IE1'!P111='IE1'!$AD$12)*AND('IE1'!R111='IE1'!$AD$13),0,0))) -> 0
E112: 1621 | F112: Panneaux et placages à base de bois | G112: 126167788 | H112: 46938370 | I112: 202819313 | J112: 19987882 | K112: 0 | L112: 0 | O112: Biens de consommation | P112: Biens de consommation | W112: =IF(O112=$AD$11,Accueil!$D$24,IF(('IE1'!O112='IE1'!$AD$12)*AND('IE1'!Q112='IE1'!$AD$14),'IE1'!U112,IF(('IE1'!O112='IE1'!$AD$12)*AND('IE1'!Q112='IE1'!$AD$13),0,0))) -> 0 | X112: =IF(P112=$AD$11,Accueil!$D$24,IF(('IE1'!P112='IE1'!$AD$12)*AND('IE1'!R112='IE1'!$AD$14),'IE1'!V112,IF(('IE1'!P112='IE1'!$AD$12)*AND('IE1'!R112='IE1'!$AD$13),0,0))) -> 0
E113: 1622 | F113: Parquets assemblés | G113: 7804332 | H113: 63235 | I113: 2739623 | J113: 31923 | K113: 0 | L113: 0 | O113: Biens de consommation | P113: Biens de consommation | W113: =IF(O113=$AD$11,Accueil!$D$24,IF(('IE1'!O113='IE1'!$AD$12)*AND('IE1'!Q113='IE1'!$AD$14),'IE1'!U113,IF(('IE1'!O113='IE1'!$AD$12)*AND('IE1'!Q113='IE1'!$AD$13),0,0))) -> 0 | X113: =IF(P113=$AD$11,Accueil!$D$24,IF(('IE1'!P113='IE1'!$AD$12)*AND('IE1'!R113='IE1'!$AD$14),'IE1'!V113,IF(('IE1'!P113='IE1'!$AD$12)*AND('IE1'!R113='IE1'!$AD$13),0,0))) -> 0
E114: 1623 | F114: Autres éléments de menuiserie et de charpente | G114: 76785734 | H114: 7381324 | I114: 37713869 | J114: 2225357 | K114: 0 | L114: 0 | O114: Biens de consommation | P114: Biens de consommation | W114: =IF(O114=$AD$11,Accueil!$D$24,IF(('IE1'!O114='IE1'!$AD$12)*AND('IE1'!Q114='IE1'!$AD$14),'IE1'!U114,IF(('IE1'!O114='IE1'!$AD$12)*AND('IE1'!Q114='IE1'!$AD$13),0,0))) -> 0 | X114: =IF(P114=$AD$11,Accueil!$D$24,IF(('IE1'!P114='IE1'!$AD$12)*AND('IE1'!R114='IE1'!$AD$14),'IE1'!V114,IF(('IE1'!P114='IE1'!$AD$12)*AND('IE1'!R114='IE1'!$AD$13),0,0))) -> 0
E115: 1624 | F115: Emballages en bois | G115: 63020913 | H115: 14448736 | I115: 156667039 | J115: 42042781 | K115: 0 | L115: 0 | O115: Biens de consommation | P115: Biens de consommation | W115: =IF(O115=$AD$11,Accueil!$D$24,IF(('IE1'!O115='IE1'!$AD$12)*AND('IE1'!Q115='IE1'!$AD$14),'IE1'!U115,IF(('IE1'!O115='IE1'!$AD$12)*AND('IE1'!Q115='IE1'!$AD$13),0,0))) -> 0 | X115: =IF(P115=$AD$11,Accueil!$D$24,IF(('IE1'!P115='IE1'!$AD$12)*AND('IE1'!R115='IE1'!$AD$14),'IE1'!V115,IF(('IE1'!P115='IE1'!$AD$12)*AND('IE1'!R115='IE1'!$AD$13),0,0))) -> 0
E116: 1629 | F116: Autres objets en bois ; objets en liège, vannerie et sparterie | G116: 93553949 | H116: 8190075 | I116: 93317159 | J116: 14092449 | K116: 0 | L116: 0 | O116: Biens de consommation | P116: Biens de consommation | W116: =IF(O116=$AD$11,Accueil!$D$24,IF(('IE1'!O116='IE1'!$AD$12)*AND('IE1'!Q116='IE1'!$AD$14),'IE1'!U116,IF(('IE1'!O116='IE1'!$AD$12)*AND('IE1'!Q116='IE1'!$AD$13),0,0))) -> 0 | X116: =IF(P116=$AD$11,Accueil!$D$24,IF(('IE1'!P116='IE1'!$AD$12)*AND('IE1'!R116='IE1'!$AD$14),'IE1'!V116,IF(('IE1'!P116='IE1'!$AD$12)*AND('IE1'!R116='IE1'!$AD$13),0,0))) -> 0
C117: C17A | D117: Pâtes à papier, papier et carton | E117: 1711 | F117: Pâte à papier | G117: 77169324 | H117: 194609 | I117: 128565093 | J117: 32239688 | K117: 0 | L117: 0 | O117: Marchandises industrielles | P117: Biens de consommation | Q117: Présente | S117: Papier, carton | U117: 0 | W117: =IF(O117=$AD$11,Accueil!$D$24,IF(('IE1'!O117='IE1'!$AD$12)*AND('IE1'!Q117='IE1'!$AD$14),'IE1'!U117,IF(('IE1'!O117='IE1'!$AD$12)*AND('IE1'!Q117='IE1'!$AD$13),0,0))) -> 0 | X117: =IF(P117=$AD$11,Accueil!$D$24,IF(('IE1'!P117='IE1'!$AD$12)*AND('IE1'!R117='IE1'!$AD$14),'IE1'!V117,IF(('IE1'!P117='IE1'!$AD$12)*AND('IE1'!R117='IE1'!$AD$13),0,0))) -> 0
E118: 1712 | F118: Papier et carton | G118: 512619362 | H118: 134338219 | I118: 760071963 | J118: 294539762 | K118: 0 | L118: 0 | O118: Biens de consommation | P118: Marchandises industrielles | R118: Présente | T118: Papier, carton | V118: 0 | W118: =IF(O118=$AD$11,Accueil!$D$24,IF(('IE1'!O118='IE1'!$AD$12)*AND('IE1'!Q118='IE1'!$AD$14),'IE1'!U118,IF(('IE1'!O118='IE1'!$AD$12)*AND('IE1'!Q118='IE1'!$AD$13),0,0))) -> 0 | X118: =IF(P118=$AD$11,Accueil!$D$24,IF(('IE1'!P118='IE1'!$AD$12)*AND('IE1'!R118='IE1'!$AD$14),'IE1'!V118,IF(('IE1'!P118='IE1'!$AD$12)*AND('IE1'!R118='IE1'!$AD$13),0,0))) -> 0
C119: C17B | D119: Articles en papier ou en carton | E119: 1721 | F119: Papier et carton ondulés et emballages en papier ou en carton | G119: 240323451 | H119: 104520054 | I119: 146597343 | J119: 131529128 | K119: 0 | L119: 0 | O119: Biens de consommation | P119: Marchandises industrielles | R119: Présente | T119: Papier, carton | V119: 0 | W119: =IF(O119=$AD$11,Accueil!$D$24,IF(('IE1'!O119='IE1'!$AD$12)*AND('IE1'!Q119='IE1'!$AD$14),'IE1'!U119,IF(('IE1'!O119='IE1'!$AD$12)*AND('IE1'!Q119='IE1'!$AD$13),0,0))) -> 0 | X119: =IF(P119=$AD$11,Accueil!$D$24,IF(('IE1'!P119='IE1'!$AD$12)*AND('IE1'!R119='IE1'!$AD$14),'IE1'!V119,IF(('IE1'!P119='IE1'!$AD$12)*AND('IE1'!R119='IE1'!$AD$13),0,0))) -> 0
E120: 1722 | F120: Articles en papier à usage sanitaire ou domestique | G120: 356955768 | H120: 215944437 | I120: 158411654 | J120: 127079997 | K120: 0 | L120: 0 | O120: Biens de consommation | P120: Marchandises industrielles | R120: Présente | T120: Papier, carton | V120: 0 | W120: =IF(O120=$AD$11,Accueil!$D$24,IF(('IE1'!O120='IE1'!$AD$12)*AND('IE1'!Q120='IE1'!$AD$14),'IE1'!U120,IF(('IE1'!O120='IE1'!$AD$12)*AND('IE1'!Q120='IE1'!$AD$13),0,0))) -> 0 | X120: =IF(P120=$AD$11,Accueil!$D$24,IF(('IE1'!P120='IE1'!$AD$12)*AND('IE1'!R120='IE1'!$AD$14),'IE1'!V120,IF(('IE1'!P120='IE1'!$AD$12)*AND('IE1'!R120='IE1'!$AD$13),0,0))) -> 0
E121: 1723 | F121: Articles de papeterie | G121: 32735142 | H121: 16632502 | I121: 13249231 | J121: 5421830 | K121: 0 | L121: 0 | O121: Biens de consommation | P121: Biens de consommation | W121: =IF(O121=$AD$11,Accueil!$D$24,IF(('IE1'!O121='IE1'!$AD$12)*AND('IE1'!Q121='IE1'!$AD$14),'IE1'!U121,IF(('IE1'!O121='IE1'!$AD$12)*AND('IE1'!Q121='IE1'!$AD$13),0,0))) -> 0 | X121: =IF(P121=$AD$11,Accueil!$D$24,IF(('IE1'!P121='IE1'!$AD$12)*AND('IE1'!R121='IE1'!$AD$14),'IE1'!V121,IF(('IE1'!P121='IE1'!$AD$12)*AND('IE1'!R121='IE1'!$AD$13),0,0))) -> 0
E122: 1724 | F122: Papiers peints | G122: 35979932 | H122: 11930174 | I122: 8604742 | J122: 7683284 | K122: 0 | L122: 0 | O122: Biens de consommation | P122: Biens de consommation | W122: =IF(O122=$AD$11,Accueil!$D$24,IF(('IE1'!O122='IE1'!$AD$12)*AND('IE1'!Q122='IE1'!$AD$14),'IE1'!U122,IF(('IE1'!O122='IE1'!$AD$12)*AND('IE1'!Q122='IE1'!$AD$13),0,0))) -> 0 | X122: =IF(P122=$AD$11,Accueil!$D$24,IF(('IE1'!P122='IE1'!$AD$12)*AND('IE1'!R122='IE1'!$AD$14),'IE1'!V122,IF(('IE1'!P122='IE1'!$AD$12)*AND('IE1'!R122='IE1'!$AD$13),0,0))) -> 0
E123: 1729 | F123: Autres articles en papier ou en carton | G123: 87180922 | H123: 25988658 | I123: 27861505 | J123: 5903571 | K123: 0 | L123: 0 | O123: Biens de consommation | P123: Biens de consommation | W123: =IF(O123=$AD$11,Accueil!$D$24,IF(('IE1'!O123='IE1'!$AD$12)*AND('IE1'!Q123='IE1'!$AD$14),'IE1'!U123,IF(('IE1'!O123='IE1'!$AD$12)*AND('IE1'!Q123='IE1'!$AD$13),0,0))) -> 0 | X123: =IF(P123=$AD$11,Accueil!$D$24,IF(('IE1'!P123='IE1'!$AD$12)*AND('IE1'!R123='IE1'!$AD$14),'IE1'!V123,IF(('IE1'!P123='IE1'!$AD$12)*AND('IE1'!R123='IE1'!$AD$13),0,0))) -> 0
C124: C18Z | D124: Matériel d'impression et de reproduction | E124: 1813 | F124: Travaux de préparation d'impression | G124: 3942487 | H124: 86555469 | I124: 164525 | J124: 17633721 | K124: 0 | L124: 0 | O124: Biens de consommation | P124: Biens de consommation | W124: =IF(O124=$AD$11,Accueil!$D$24,IF(('IE1'!O124='IE1'!$AD$12)*AND('IE1'!Q124='IE1'!$AD$14),'IE1'!U124,IF(('IE1'!O124='IE1'!$AD$12)*AND('IE1'!Q124='IE1'!$AD$13),0,0))) -> 0 | X124: =IF(P124=$AD$11,Accueil!$D$24,IF(('IE1'!P124='IE1'!$AD$12)*AND('IE1'!R124='IE1'!$AD$14),'IE1'!V124,IF(('IE1'!P124='IE1'!$AD$12)*AND('IE1'!R124='IE1'!$AD$13),0,0))) -> 0
C125: C19Z | D125: Produits pétroliers raffinés et coke | E125: 1910 | F125: Produits de la cokéfaction | G125: 37486006 | H125: 9693526 | I125: 152970749 | J125: 58647090 | K125: 0 | L125: 0 | O125: Amont de l'énergie | P125: Amont de l'énergie | Q125: Amont de l'énergie | R125: Amont de l'énergie | S125: Amont de l'énergie | T125: Amont de l'énergie | W125: =IF(O125=$AD$11,Accueil!$D$24,IF(('IE1'!O125='IE1'!$AD$12)*AND('IE1'!Q125='IE1'!$AD$14),'IE1'!U125,IF(('IE1'!O125='IE1'!$AD$12)*AND('IE1'!Q125='IE1'!$AD$13),0,0))) -> 0 | X125: =IF(P125=$AD$11,Accueil!$D$24,IF(('IE1'!P125='IE1'!$AD$12)*AND('IE1'!R125='IE1'!$AD$14),'IE1'!V125,IF(('IE1'!P125='IE1'!$AD$12)*AND('IE1'!R125='IE1'!$AD$13),0,0))) -> 0
E126: 1920 | F126: Produits du raffinage du pétrole | G126: 2096854339 | H126: 233783307 | I126: 5084339417 | J126: 527072215 | K126: 0 | L126: 0 | W126: =IF(O126=$AD$11,Accueil!$D$24,IF(('IE1'!O126='IE1'!$AD$12)*AND('IE1'!Q126='IE1'!$AD$14),'IE1'!U126,IF(('IE1'!O126='IE1'!$AD$12)*AND('IE1'!Q126='IE1'!$AD$13),0,0))) -> 0 | X126: =IF(P126=$AD$11,Accueil!$D$24,IF(('IE1'!P126='IE1'!$AD$12)*AND('IE1'!R126='IE1'!$AD$14),'IE1'!V126,IF(('IE1'!P126='IE1'!$AD$12)*AND('IE1'!R126='IE1'!$AD$13),0,0))) -> 0
C127: C20A | D127: Produits chimiques de base, matières plastiques | E127: 2011 | F127: Gaz industriels | G127: 20439094 | H127: 1316904 | I127: 155035897 | J127: 5020303 | K127: 0 | L127: 0 | O127: Marchandises industrielles | P127: Marchandises industrielles | Q127: Présente | R127: Présente | S127: Industrie total (IDEC) | T127: Chimie organique, non-organique et divers | U127: 0 | V127: 0 | W127: =IF(O127=$AD$11,Accueil!$D$24,IF(('IE1'!O127='IE1'!$AD$12)*AND('IE1'!Q127='IE1'!$AD$14),'IE1'!U127,IF(('IE1'!O127='IE1'!$AD$12)*AND('IE1'!Q127='IE1'!$AD$13),0,0))) -> 0 | X127: =IF(P127=$AD$11,Accueil!$D$24,IF(('IE1'!P127='IE1'!$AD$12)*AND('IE1'!R127='IE1'!$AD$14),'IE1'!V127,IF(('IE1'!P127='IE1'!$AD$12)*AND('IE1'!R127='IE1'!$AD$13),0,0))) -> 0
E128: 2012 | F128: Colorants, pigments et agents tannants | G128: 254822152 | H128: 139112929 | I128: 98135555 | J128: 62484945 | K128: 0 | L128: 0 | O128: Biens de consommation | P128: Marchandises industrielles | R128: Présente | T128: Chimie organique, non-organique et divers | V128: 0 | W128: =IF(O128=$AD$11,Accueil!$D$24,IF(('IE1'!O128='IE1'!$AD$12)*AND('IE1'!Q128='IE1'!$AD$14),'IE1'!U128,IF(('IE1'!O128='IE1'!$AD$12)*AND('IE1'!Q128='IE1'!$AD$13),0,0))) -> 0 | X128: =IF(P128=$AD$11,Accueil!$D$24,IF(('IE1'!P128='IE1'!$AD$12)*AND('IE1'!R128='IE1'!$AD$14),'IE1'!V128,IF(('IE1'!P128='IE1'!$AD$12)*AND('IE1'!R128='IE1'!$AD$13),0,0))) -> 0
E129: 2013 | F129: Autres produits chimiques inorganiques de base | G129: 422023295 | H129: 94686530 | I129: 976782552 | J129: 336415893 | K129: 0 | L129: 0 | O129: Marchandises industrielles | P129: Biens de consommation | Q129: Présente | S129: Chimie organique, non-organique et divers | U129: 0 | W129: =IF(O129=$AD$11,Accueil!$D$24,IF(('IE1'!O129='IE1'!$AD$12)*AND('IE1'!Q129='IE1'!$AD$14),'IE1'!U129,IF(('IE1'!O129='IE1'!$AD$12)*AND('IE1'!Q129='IE1'!$AD$13),0,0))) -> 0 | X129: =IF(P129=$AD$11,Accueil!$D$24,IF(('IE1'!P129='IE1'!$AD$12)*AND('IE1'!R129='IE1'!$AD$14),'IE1'!V129,IF(('IE1'!P129='IE1'!$AD$12)*AND('IE1'!R129='IE1'!$AD$13),0,0))) -> 0
E130: 2014 | F130: Autres produits chimiques organiques de base | G130: 1389244900 | H130: 1150578811 | I130: 1232722094 | J130: 527275295 | K130: 0 | L130: 0 | O130: Marchandises industrielles | P130: Marchandises industrielles | Q130: Présente | R130: Présente | S130: Chimie organique, non-organique et divers | T130: Chimie organique, non-organique et divers | U130: 0 | V130: 0 | W130: =IF(O130=$AD$11,Accueil!$D$24,IF(('IE1'!O130='IE1'!$AD$12)*AND('IE1'!Q130='IE1'!$AD$14),'IE1'!U130,IF(('IE1'!O130='IE1'!$AD$12)*AND('IE1'!Q130='IE1'!$AD$13),0,0))) -> 0 | X130: =IF(P130=$AD$11,Accueil!$D$24,IF(('IE1'!P130='IE1'!$AD$12)*AND('IE1'!R130='IE1'!$AD$14),'IE1'!V130,IF(('IE1'!P130='IE1'!$AD$12)*AND('IE1'!R130='IE1'!$AD$13),0,0))) -> 0
E131: 2015 | F131: Engrais et composés azotés | G131: 282399106 | H131: 29046300 | I131: 1730010230 | J131: 125573406 | K131: 0 | L131: 0 | O131: Industrie agroalimentaire | P131: Industrie agroalimentaire | Q131: Industrie agroalimentaire | R131: Industrie agroalimentaire | S131: Industrie agroalimentaire | T131: Industrie agroalimentaire | W131: =IF(O131=$AD$11,Accueil!$D$24,IF(('IE1'!O131='IE1'!$AD$12)*AND('IE1'!Q131='IE1'!$AD$14),'IE1'!U131,IF(('IE1'!O131='IE1'!$AD$12)*AND('IE1'!Q131='IE1'!$AD$13),0,0))) -> 0 | X131: =IF(P131=$AD$11,Accueil!$D$24,IF(('IE1'!P131='IE1'!$AD$12)*AND('IE1'!R131='IE1'!$AD$14),'IE1'!V131,IF(('IE1'!P131='IE1'!$AD$12)*AND('IE1'!R131='IE1'!$AD$13),0,0))) -> 0
E132: 2016 | F132: Matières plastiques sous formes primaires | G132: 1121720598 | H132: 1014670219 | I132: 722976045 | J132: 995039143 | K132: 0 | L132: 0 | O132: Marchandises industrielles | P132: Marchandises industrielles | Q132: Présente | R132: Présente | S132: Chimie organique, non-organique et divers | T132: Chimie organique, non-organique et divers | U132: 0 | V132: 0 | W132: =IF(O132=$AD$11,Accueil!$D$24,IF(('IE1'!O132='IE1'!$AD$12)*AND('IE1'!Q132='IE1'!$AD$14),'IE1'!U132,IF(('IE1'!O132='IE1'!$AD$12)*AND('IE1'!Q132='IE1'!$AD$13),0,0))) -> 0 | X132: =IF(P132=$AD$11,Accueil!$D$24,IF(('IE1'!P132='IE1'!$AD$12)*AND('IE1'!R132='IE1'!$AD$14),'IE1'!V132,IF(('IE1'!P132='IE1'!$AD$12)*AND('IE1'!R132='IE1'!$AD$13),0,0))) -> 0
E133: 2017 | F133: Caoutchouc synthétique sous formes primaires | G133: 74321374 | H133: 526045 | I133: 49265887 | J133: 1899386 | K133: 0 | L133: 0 | O133: Marchandises industrielles | P133: Marchandises industrielles | Q133: Présente | R133: Présente | S133: Chimie organique, non-organique et divers | T133: Chimie organique, non-organique et divers | U133: 0 | V133: 0 | W133: =IF(O133=$AD$11,Accueil!$D$24,IF(('IE1'!O133='IE1'!$AD$12)*AND('IE1'!Q133='IE1'!$AD$14),'IE1'!U133,IF(('IE1'!O133='IE1'!$AD$12)*AND('IE1'!Q133='IE1'!$AD$13),0,0))) -> 0 | X133: =IF(P133=$AD$11,Accueil!$D$24,IF(('IE1'!P133='IE1'!$AD$12)*AND('IE1'!R133='IE1'!$AD$14),'IE1'!V133,IF(('IE1'!P133='IE1'!$AD$12)*AND('IE1'!R133='IE1'!$AD$13),0,0))) -> 0
C134: C20B | D134: Parfums, cosmétiques et produits d'entretien | E134: 2041 | F134: Savons, détergents et produits d'entretien | G134: 410721297 | H134: 288587346 | I134: 314941131 | J134: 527676640 | K134: 0 | L134: 0 | O134: Biens de consommation | P134: Marchandises industrielles | R134: Présente | T134: Chimie organique, non-organique et divers | V134: 0 | W134: =IF(O134=$AD$11,Accueil!$D$24,IF(('IE1'!O134='IE1'!$AD$12)*AND('IE1'!Q134='IE1'!$AD$14),'IE1'!U134,IF(('IE1'!O134='IE1'!$AD$12)*AND('IE1'!Q134='IE1'!$AD$13),0,0))) -> 0 | X134: =IF(P134=$AD$11,Accueil!$D$24,IF(('IE1'!P134='IE1'!$AD$12)*AND('IE1'!R134='IE1'!$AD$14),'IE1'!V134,IF(('IE1'!P134='IE1'!$AD$12)*AND('IE1'!R134='IE1'!$AD$13),0,0))) -> 0
E135: 2042 | F135: Parfums et produits pour la toilette | G135: 520481639 | H135: 147096865 | I135: 103435208 | J135: 170411671 | K135: 0 | L135: 0 | O135: Biens de consommation | P135: Marchandises industrielles | R135: Présente | T135: Chimie organique, non-organique et divers | V135: 0 | W135: =IF(O135=$AD$11,Accueil!$D$24,IF(('IE1'!O135='IE1'!$AD$12)*AND('IE1'!Q135='IE1'!$AD$14),'IE1'!U135,IF(('IE1'!O135='IE1'!$AD$12)*AND('IE1'!Q135='IE1'!$AD$13),0,0))) -> 0 | X135: =IF(P135=$AD$11,Accueil!$D$24,IF(('IE1'!P135='IE1'!$AD$12)*AND('IE1'!R135='IE1'!$AD$14),'IE1'!V135,IF(('IE1'!P135='IE1'!$AD$12)*AND('IE1'!R135='IE1'!$AD$13),0,0))) -> 0
C136: C20C | D136: Produits chimiques divers | E136: 2020 | F136: Pesticides et autres produits agrochimiques | G136: 548782795 | H136: 132035716 | I136: 57740482 | J136: 132451859 | K136: 0 | L136: 0 | O136: Industrie agroalimentaire | P136: Industrie agroalimentaire | Q136: Industrie agroalimentaire | R136: Industrie agroalimentaire | S136: Industrie agroalimentaire | T136: Industrie agroalimentaire | W136: =IF(O136=$AD$11,Accueil!$D$24,IF(('IE1'!O136='IE1'!$AD$12)*AND('IE1'!Q136='IE1'!$AD$14),'IE1'!U136,IF(('IE1'!O136='IE1'!$AD$12)*AND('IE1'!Q136='IE1'!$AD$13),0,0))) -> 0 | X136: =IF(P136=$AD$11,Accueil!$D$24,IF(('IE1'!P136='IE1'!$AD$12)*AND('IE1'!R136='IE1'!$AD$14),'IE1'!V136,IF(('IE1'!P136='IE1'!$AD$12)*AND('IE1'!R136='IE1'!$AD$13),0,0))) -> 0
E137: 2030 | F137: Peintures, vernis et revêtements similaires, encres d'imprimerie et mastics | G137: 314022153 | H137: 92450438 | I137: 110205062 | J137: 164464790 | K137: 0 | L137: 0 | O137: Biens de consommation | P137: Marchandises industrielles | R137: Présente | T137: Chimie organique, non-organique et divers | V137: 0 | W137: =IF(O137=$AD$11,Accueil!$D$24,IF(('IE1'!O137='IE1'!$AD$12)*AND('IE1'!Q137='IE1'!$AD$14),'IE1'!U137,IF(('IE1'!O137='IE1'!$AD$12)*AND('IE1'!Q137='IE1'!$AD$13),0,0))) -> 0 | X137: =IF(P137=$AD$11,Accueil!$D$24,IF(('IE1'!P137='IE1'!$AD$12)*AND('IE1'!R137='IE1'!$AD$14),'IE1'!V137,IF(('IE1'!P137='IE1'!$AD$12)*AND('IE1'!R137='IE1'!$AD$13),0,0))) -> 0
E138: 2051 | F138: Produits explosifs | G138: 2986089 | H138: 64576 | I138: 1306359 | J138: 19893 | K138: 0 | L138: 0 | O138: Biens de consommation | P138: Marchandises industrielles | R138: Présente | T138: Chimie organique, non-organique et divers | V138: 0 | W138: =IF(O138=$AD$11,Accueil!$D$24,IF(('IE1'!O138='IE1'!$AD$12)*AND('IE1'!Q138='IE1'!$AD$14),'IE1'!U138,IF(('IE1'!O138='IE1'!$AD$12)*AND('IE1'!Q138='IE1'!$AD$13),0,0))) -> 0 | X138: =IF(P138=$AD$11,Accueil!$D$24,IF(('IE1'!P138='IE1'!$AD$12)*AND('IE1'!R138='IE1'!$AD$14),'IE1'!V138,IF(('IE1'!P138='IE1'!$AD$12)*AND('IE1'!R138='IE1'!$AD$13),0,0))) -> 0
E139: 2052 | F139: Colles | G139: 57252839 | H139: 21332531 | I139: 21582245 | J139: 6127270 | K139: 0 | L139: 0 | O139: Biens de consommation | P139: Marchandises industrielles | R139: Présente | T139: Chimie organique, non-organique et divers | V139: 0 | W139: =IF(O139=$AD$11,Accueil!$D$24,IF(('IE1'!O139='IE1'!$AD$12)*AND('IE1'!Q139='IE1'!$AD$14),'IE1'!U139,IF(('IE1'!O139='IE1'!$AD$12)*AND('IE1'!Q139='IE1'!$AD$13),0,0))) -> 0 | X139: =IF(P139=$AD$11,Accueil!$D$24,IF(('IE1'!P139='IE1'!$AD$12)*AND('IE1'!R139='IE1'!$AD$14),'IE1'!V139,IF(('IE1'!P139='IE1'!$AD$12)*AND('IE1'!R139='IE1'!$AD$13),0,0))) -> 0
E140: 2053 | F140: Huiles essentielles | G140: 358146845 | H140: 3133666 | I140: 13160617 | J140: 4314829 | K140: 0 | L140: 0 | O140: Marchandises industrielles | P140: Marchandises industrielles | Q140: Présente | R140: Présente | S140: Chimie organique, non-organique et divers | T140: Chimie organique, non-organique et divers | U140: 0 | V140: 0 | W140: =IF(O140=$AD$11,Accueil!$D$24,IF(('IE1'!O140='IE1'!$AD$12)*AND('IE1'!Q140='IE1'!$AD$14),'IE1'!U140,IF(('IE1'!O140='IE1'!$AD$12)*AND('IE1'!Q140='IE1'!$AD$13),0,0))) -> 0 | X140: =IF(P140=$AD$11,Accueil!$D$24,IF(('IE1'!P140='IE1'!$AD$12)*AND('IE1'!R140='IE1'!$AD$14),'IE1'!V140,IF(('IE1'!P140='IE1'!$AD$12)*AND('IE1'!R140='IE1'!$AD$13),0,0))) -> 0
E141: 2059 | F141: Autres produits chimiques n.c.a. | G141: 621876411 | H141: 358161610 | I141: 285499435 | J141: 512186972 | K141: 0 | L141: 0 | O141: Marchandises industrielles | P141: Marchandises industrielles | Q141: Présente | R141: Présente | S141: Chimie organique, non-organique et divers | T141: Chimie organique, non-organique et divers | U141: 0 | V141: 0 | W141: =IF(O141=$AD$11,Accueil!$D$24,IF(('IE1'!O141='IE1'!$AD$12)*AND('IE1'!Q141='IE1'!$AD$14),'IE1'!U141,IF(('IE1'!O141='IE1'!$AD$12)*AND('IE1'!Q141='IE1'!$AD$13),0,0))) -> 0 | X141: =IF(P141=$AD$11,Accueil!$D$24,IF(('IE1'!P141='IE1'!$AD$12)*AND('IE1'!R141='IE1'!$AD$14),'IE1'!V141,IF(('IE1'!P141='IE1'!$AD$12)*AND('IE1'!R141='IE1'!$AD$13),0,0))) -> 0
E142: 2060 | F142: Fibres artificielles ou synthétiques | G142: 128401470 | H142: 65144606 | I142: 49004012 | J142: 22935229 | K142: 0 | L142: 0 | O142: Biens de consommation | P142: Marchandises industrielles | R142: Présente | T142: Chimie organique, non-organique et divers | V142: 0 | W142: =IF(O142=$AD$11,Accueil!$D$24,IF(('IE1'!O142='IE1'!$AD$12)*AND('IE1'!Q142='IE1'!$AD$14),'IE1'!U142,IF(('IE1'!O142='IE1'!$AD$12)*AND('IE1'!Q142='IE1'!$AD$13),0,0))) -> 0 | X142: =IF(P142=$AD$11,Accueil!$D$24,IF(('IE1'!P142='IE1'!$AD$12)*AND('IE1'!R142='IE1'!$AD$14),'IE1'!V142,IF(('IE1'!P142='IE1'!$AD$12)*AND('IE1'!R142='IE1'!$AD$13),0,0))) -> 0
C143: C21Z | D143: Produits pharmaceutiques | E143: 2110 | F143: Produits pharmaceutiques de base | G143: 226072741 | H143: 105305115 | I143: 44507237 | J143: 28245644 | K143: 0 | L143: 0 | O143: Marchandises industrielles | P143: Marchandises industrielles | R143: Présente | S143: Chimie organique, non-organique et divers | T143: Chimie organique, non-organique et divers | U143: 0 | V143: 0 | W143: =IF(O143=$AD$11,Accueil!$D$24,IF(('IE1'!O143='IE1'!$AD$12)*AND('IE1'!Q143='IE1'!$AD$14),'IE1'!U143,IF(('IE1'!O143='IE1'!$AD$12)*AND('IE1'!Q143='IE1'!$AD$13),0,0))) -> 0 | X143: =IF(P143=$AD$11,Accueil!$D$24,IF(('IE1'!P143='IE1'!$AD$12)*AND('IE1'!R143='IE1'!$AD$14),'IE1'!V143,IF(('IE1'!P143='IE1'!$AD$12)*AND('IE1'!R143='IE1'!$AD$13),0,0))) -> 0
E144: 2120 | F144: Préparations pharmaceutiques | G144: 948893375 | H144: 1413040136 | I144: 13776942 | J144: 17960839 | K144: 0 | L144: 0 | O144: Biens de consommation | P144: Marchandises industrielles | R144: Présente | T144: Chimie organique, non-organique et divers | V144: 0 | W144: =IF(O144=$AD$11,Accueil!$D$24,IF(('IE1'!O144='IE1'!$AD$12)*AND('IE1'!Q144='IE1'!$AD$14),'IE1'!U144,IF(('IE1'!O144='IE1'!$AD$12)*AND('IE1'!Q144='IE1'!$AD$13),0,0))) -> 0 | X144: =IF(P144=$AD$11,Accueil!$D$24,IF(('IE1'!P144='IE1'!$AD$12)*AND('IE1'!R144='IE1'!$AD$14),'IE1'!V144,IF(('IE1'!P144='IE1'!$AD$12)*AND('IE1'!R144='IE1'!$AD$13),0,0))) -> 0
C145: C22A | D145: Produits en caoutchouc | E145: 2211 | F145: Pneumatiques ; rechapage et resculptage de pneumatiques | G145: 723927018 | H145: 281284277 | I145: 199378421 | J145: 103077625 | K145: 0 | L145: 0 | O145: Marchandises industrielles | P145: Marchandises industrielles | R145: Présente | S145: Biens d'équipement, matériels de transport… | T145: Chimie organique, non-organique et divers | U145: 0 | V145: 0 | W145: =IF(O145=$AD$11,Accueil!$D$24,IF(('IE1'!O145='IE1'!$AD$12)*AND('IE1'!Q145='IE1'!$AD$14),'IE1'!U145,IF(('IE1'!O145='IE1'!$AD$12)*AND('IE1'!Q145='IE1'!$AD$13),0,0))) -> 0 | X145: =IF(P145=$AD$11,Accueil!$D$24,IF(('IE1'!P145='IE1'!$AD$12)*AND('IE1'!R145='IE1'!$AD$14),'IE1'!V145,IF(('IE1'!P145='IE1'!$AD$12)*AND('IE1'!R145='IE1'!$AD$13),0,0))) -> 0
E146: 2219 | F146: Autres produits en caoutchouc | G146: 262808457 | H146: 61358986 | I146: 45797630 | J146: 22338992 | K146: =IF($M$11=$AG$11,M146,W146) -> 0 | L146: =IF($M$11=$AG$11,N146,X146) -> 0 | O146: Biens de consommation | P146: Marchandises industrielles | R146: Présente | T146: Chimie organique, non-organique et divers | U146: =IFERROR(IF(S146="","",VLOOKUP(S146,$AD$20:$AG$49,4,FALSE)),"") ->  | V146: =IFERROR(IF(T146="","",VLOOKUP(T146,$AD$20:$AG$49,4,FALSE)),"") -> 0 | W146: =IF(O146=$AD$11,Accueil!$D$24,IF(('IE1'!O146='IE1'!$AD$12)*AND('IE1'!Q146='IE1'!$AD$14),'IE1'!U146,IF(('IE1'!O146='IE1'!$AD$12)*AND('IE1'!Q146='IE1'!$AD$13),0,0))) -> 0 | X146: =IF(P146=$AD$11,Accueil!$D$24,IF(('IE1'!P146='IE1'!$AD$12)*AND('IE1'!R146='IE1'!$AD$14),'IE1'!V146,IF(('IE1'!P146='IE1'!$AD$12)*AND('IE1'!R146='IE1'!$AD$13),0,0))) -> 0
C147: C22B | D147: Produits en plastique | E147: 2221 | F147: Plaques, feuilles, tubes et profilés en matières plastiques | G147: 561419329 | H147: 134955989 | I147: 178697687 | J147: 88637781 | K147: 0 | L147: 0 | O147: Biens de consommation | P147: Marchandises industrielles | R147: Présente | T147: Chimie organique, non-organique et divers | V147: 0 | W147: =IF(O147=$AD$11,Accueil!$D$24,IF(('IE1'!O147='IE1'!$AD$12)*AND('IE1'!Q147='IE1'!$AD$14),'IE1'!U147,IF(('IE1'!O147='IE1'!$AD$12)*AND('IE1'!Q147='IE1'!$AD$13),0,0))) -> 0 | X147: =IF(P147=$AD$11,Accueil!$D$24,IF(('IE1'!P147='IE1'!$AD$12)*AND('IE1'!R147='IE1'!$AD$14),'IE1'!V147,IF(('IE1'!P147='IE1'!$AD$12)*AND('IE1'!R147='IE1'!$AD$13),0,0))) -> 0
E148: 2222 | F148: Emballages en matières plastiques | G148: 382200892 | H148: 215780398 | I148: 131242150 | J148: 81945387 | K148: 0 | L148: 0 | O148: Biens de consommation | P148: Marchandises industrielles | R148: Présente | T148: Chimie organique, non-organique et divers | V148: 0 | W148: =IF(O148=$AD$11,Accueil!$D$24,IF(('IE1'!O148='IE1'!$AD$12)*AND('IE1'!Q148='IE1'!$AD$14),'IE1'!U148,IF(('IE1'!O148='IE1'!$AD$12)*AND('IE1'!Q148='IE1'!$AD$13),0,0))) -> 0 | X148: =IF(P148=$AD$11,Accueil!$D$24,IF(('IE1'!P148='IE1'!$AD$12)*AND('IE1'!R148='IE1'!$AD$14),'IE1'!V148,IF(('IE1'!P148='IE1'!$AD$12)*AND('IE1'!R148='IE1'!$AD$13),0,0))) -> 0
E149: 2223 | F149: Éléments en matières plastiques pour la construction | G149: 155743677 | H149: 18020182 | I149: 59117456 | J149: 8215883 | K149: 0 | L149: 0 | O149: Biens de consommation | P149: Marchandises industrielles | R149: Présente | T149: Chimie organique, non-organique et divers | V149: 0 | W149: =IF(O149=$AD$11,Accueil!$D$24,IF(('IE1'!O149='IE1'!$AD$12)*AND('IE1'!Q149='IE1'!$AD$14),'IE1'!U149,IF(('IE1'!O149='IE1'!$AD$12)*AND('IE1'!Q149='IE1'!$AD$13),0,0))) -> 0 | X149: =IF(P149=$AD$11,Accueil!$D$24,IF(('IE1'!P149='IE1'!$AD$12)*AND('IE1'!R149='IE1'!$AD$14),'IE1'!V149,IF(('IE1'!P149='IE1'!$AD$12)*AND('IE1'!R149='IE1'!$AD$13),0,0))) -> 0
E150: 2229 | F150: Autres produits en matières plastiques | G150: 458629665 | H150: 184529640 | I150: 84185584 | J150: 77479419 | K150: 0 | L150: 0 | O150: Biens de consommation | P150: Marchandises industrielles | R150: Présente | T150: Chimie organique, non-organique et divers | V150: 0 | W150: =IF(O150=$AD$11,Accueil!$D$24,IF(('IE1'!O150='IE1'!$AD$12)*AND('IE1'!Q150='IE1'!$AD$14),'IE1'!U150,IF(('IE1'!O150='IE1'!$AD$12)*AND('IE1'!Q150='IE1'!$AD$13),0,0))) -> 0 | X150: =IF(P150=$AD$11,Accueil!$D$24,IF(('IE1'!P150='IE1'!$AD$12)*AND('IE1'!R150='IE1'!$AD$14),'IE1'!V150,IF(('IE1'!P150='IE1'!$AD$12)*AND('IE1'!R150='IE1'!$AD$13),0,0))) -> 0
